Workbook

Sheet Introduktion
A2: Introduktion. Denna fil innehåller följande flikar:
A3: 1. Effektsamband | B3: Underlag om ERF och grundfrekvens för varje hälsoutfall, befexp per emission
A4: 2. Kostnader | B4: Resultat av kostnaderna för varje respektiva hälsoutfall (TV=DK+PK+ H)
A5: 3. Skadekostnader | B5: Beräkning av skadekostnader relaterade till luftföroreningar (Baserade på flik 1 och 2)
A6: 4. Känslighetsanalys | B6: Monte Carlo simulering för varje hälsoutfall och för slutresultat

Sheet 1. Effektsamband
A2: Hälsoutfall | B2: Studie | C2: Befdos/ton generell (C) | D2: Förorening | E2: RR per 10 µgm-3 (ERF) | F2: % per 1 µg/m3 (RR-1/10) | G2: 95% LCL | H2: 95% UCL | I2: std.err. | J2: Grundfrekv/pers*år (f) | K2: Källa | L2: Bef dos justering (P) | M2: Antal incidenta fall (AF) | N2: ln(fall) | O2: lower_fall | P2: upper_fall | Q2: ln(lower) | R2: ln(upper) | S2: std.err.
A3: Mortalitet (total) 30+ | B3: Turner MC, 2016 | C3: 885 | D3: PM2.5 | E3: 1.26 | F3: 2.6 | G3: 1.19 | H3: 1.34 | I3: =(H3-G3)/(2*1.96) -> 0.03826530612 | J3: 0.01422 | K3: SoS | L3: 0.64 | M3: =C3*L3*F3/100*J3 -> 0.209409408 | N3: =LN(M3) -> -1.563464053 | O3: 0.153029952 | P3: 0.273843072 | Q3: =LN(O3) -> -1.877121612 | R3: =LN(P3) -> -1.295200067 | S3: =(R3-Q3)/(2*1.96) -> 0.1484493738
A4: Dagligt antal dödsfall (totalt, alla åldrar) | B4: Meister K, 2012 | C4: 885 | D4: PM10 | E4: 1.0168 | F4: 0.168 | G4: 1.002 | H4: 1.0315 | I4: =(H4-G4)/(2*1.96) -> 0.007525510204 | J4: 0.00915 | K4: SoS | L4: 1 | M4: =C4*L4*F4/100*J4 -> 0.01360422 | N4: =LN(M4) -> -4.29737524 | O4: 0.00161955 | P4: 0.025507913 | Q4: =LN(O4) -> -6.425606946 | R4: =LN(P4) -> -3.668766561 | S4: =(R4-Q4)/(2*1.96) -> 0.7032756084
A5: Hjärtinfarkt 30+ | B5: Cesaroni G, 2014 | C5: 885 | D5: PM10 | E5: 1.12 | F5: 1.2 | G5: 1.01 | H5: 1.25 | I5: 0.0612244898 | J5: 0.00246 | K5: SoS | L5: 0.64 | M5: 0.016720128 | N5: -4.091142016 | O5: 0.001852128 | P5: 0.0463032 | Q5: -6.291420031 | R5: -3.072544206 | S5: 0.8211417921
A6: Stroke 30+ | B6: Staffogia M, 2014 | C6: 885 | D6: PM2.5 | E6: 1.66 | F6: 6.6 | G6: 1.02 | H6: 2.54 | I6: 0.387755102 | J6: 0.00253 | K6: SoS | L6: 0.64 | M6: 0.094577472 | N6: -2.358335971 | O6: 0.002865984 | P6: 0.220680768 | Q6: -5.854843532 | R6: -1.51103811 | S6: 1.108113628
A7: Diabetes | B7: He D, 2017 | C7: 885 | D7: PM2.5 | E7: 1.25 | F7: 2.5 | G7: 1.1 | H7: 1.43 | I7: 0.08418367347 | J7: 0.004 | K7: Norhammar et al, 2016 | L7: 0.82 | M7: 0.07257 | N7: -2.623203666 | O7: 0.029028 | P7: 0.1248204 | Q7: -3.539494398 | R7: -2.080879375 | S7: 0.3720956691
A8: KOL 50+ | B8: Weichentahl S, 2017 | C8: 885 | D8: PM2.5 | E8: 1.1875 | F8: 1.875 | G8: 1.125 | H8: 1.25 | I8: 0.0318877551 | J8: 0.00157 | K8: Lindberg et al, 2006 | L8: 0.38 | M8: 0.00989983125 | N8: -4.615237567 | O8: 0.006599888 | P8: 0.013199775 | Q8: -5.0207026 | R8: -4.327555495 | S8: 0.176823241
A9: Barnastma | B9: Khreis H, 2017 | C9: 885 | D9: PM2.5 | E9: 1.3 | F9: 3 | G9: 1.1 | H9: 1.5 | I9: 0.1020408163 | J9: 0.075 | K9: Bråbäck, Oudin, Andersson | L9: 0.012 | M9: 0.023895 | N9: -3.734086047 | O9: 0.007965 | P9: 0.039825 | Q9: -4.832698336 | R9: -3.223260423 | S9: 0.410570896
A10: Förtidig födsel | B10: Klepac P, 2018 | C10: 885 | D10: PM2.5 | E10: 1.24 | F10: 2.4 | G10: 1.08 | H10: 1.41 | I10: 0.08418367347 | J10: 0.00069 | K10: SoS | L10: 1 | M10: 0.0146556 | N10: -4.222932764 | O10: 0.0048852 | P10: 0.02503665 | Q10: -5.321545053 | R10: -3.687414528 | S10: 0.4168700319
B11: Klepac P, 2018 | C11: 885 | D11: PM10 | E11: 1.09 | F11: 0.9 | G11: 1.03 | H11: 1.16 | I11: 0.03316326531 | J11: 0.00069 | K11: SoS | L11: 1 | M11: 0.00549585 | N11: -5.203762017 | O11: 0.00183195 | P11: 0.0097704 | Q11: -6.302374306 | R11: -4.628397872 | S11: 0.4270348045
A12: Sjukdagar (15-64år) | B12: WHO HRAPIE | C12: 885 | D12: PM2.5 | E12: 902 RADs (95% CI 792-1013) per 10 μg/m3 PM2.5 per 1,000 adults at age 15-64, | I12: 0 | J12: 0 | K12: HRAPIE, 2013 | L12: 0.63 | M12: 0 | O12: 0 | P12: 0
B13: Ostro B, 1987 | C13: 885 | D13: PM2.5 | E13: 1. 046 | F13: 0.46 | G13: 1.039 | H13: 1.053 | J13: 11.9 | K13: Ostro, 1987 | L13: 0.63 | M13: 30.520287 | N13: 3.41839161 | O13: 19.57 | P13: 26.59 | Q13: 2.973997781 | R13: 3.280535205 | S13: 0.07819832241
A15: Genomsnitt år förlorade QALY justerade | B15: 9.7
A16: Genomsnitt år förlorade | B16: =11.2 -> 11.2

Sheet 2. Kostnader
B5: Kostnad per fall | E5: Prisnivå 2017 | F5: Andel direkt kostnad | G5: Prisnivå 2017 inkl skattefaktor | H5: Prisnivå 2017 slump | I5: standardfel | J5: 95% CI | K5: alpha | L5: beta | M5: fördelning | N5: referens
B6: Förlorade levnadsår* | E6: 1776000 | F6: 0 | G6: =(E6*F6)*1.3+(1-F6)*E6 -> 1776000 | H6: =_xlfn.GAMMA.INV(RAND(),K6,L6) -> 1591387.859 | I6: =0.2*E6 -> 355200 | K6: =E6^2/I6^2 -> 25 | L6: =I6^2/E6 -> 71040 | M6: gamma | N6: Persson&Olofsson, 2018
B7: KOL | E7: 106850 | F7: 1 | G7: =(E7*F7)*1.3+(1-F7)*E7 -> 138905 | H7: =_xlfn.GAMMA.INV(RAND(),K7,L7) -> 129091.1961 | I7: =(196267-70371)/(2*1.96) -> 32116.32653 | J7: 70 371 - 196 267 | K7: =G7^2/I7^2 -> 18.70613344 | L7: =I7^2/G7 -> 7425.639321 | M7: gamma | N7: Ställberg, 2018
B8: Diabetes | E8: 482327 | F8: 0.4 | G8: =(E8*F8)*1.3+(1-F8)*E8 -> 540206.24 | H8: 515418.4702 | I8: =0.2*E8 -> 96465.4 | K8: =G8^2/I8^2 -> 31.36 | L8: =I8^2/G8 -> 17225.96429 | M8: gamma | N8: Peters, 2018
B9: Hjärtinfarkt | E9: =205750 -> 205750 | F9: 0.83 | G9: 256981.75 | H9: 282432.7585 | I9: =0.2*E9 -> 41150 | K9: 39.000025 | L9: 6589.271417 | M9: gamma | N9: Mourad, 2012
B10: Förtida födsel | E10: =988361 -> 988361 | F10: 1 | G10: 1284869.3 | H10: 1160384.724 | I10: =(1317012-674657)/(2*1.96) -> 163866.0714 | J10: 674657-1317012 | K10: 61.48084403 | L10: 20898.69325 | M10: gamma | N10: Mangham, 2008
B11: RAD | E11: 2028 | F11: 0 | G11: 2028 | H11: 2389.107206 | I11: =0.2*E11 -> 405.6 | K11: 25 | L11: 81.12 | M11: gamma | N11: Ready, 2004 + SCB
B12: Stroke | E12: 2524978 | F12: 0.84 | G12: 3161272.456 | H12: 3253149.674 | I12: =0.2*E12 -> 504995.6 | K12: 39.1876 | L12: 80670.22364 | M12: gamma | N12: Lekander, 2017; Persson, 2017
B13: Barnastma <19 | E13: 136617 | F13: 0.915 | G13: 174118.3665 | H13: 165771.163 | I13: =(145310-114062)/(2*1.96) -> 7971.428571 | J13: 114062 - 145310 | K13: 477.1081667 | L13: 364.9452654 | M13: gamma | N13: Magalhaes, 2017;
B14: Barnastma | E14: 1600546 | F14: 0.31 | G14: 1749396.778 | H14: 1682519.59 | I14: =E14*0.053 -> 84828.938 | K14: 425.2933428 | L14: 4113.388576 | M14: gamma | N14: Jansson, 2007
B15: Värde per QALY | E15: 2400000 | F15: 0 | G15: =(E15*F15)*1.3+(1-F15)*E15 -> 2400000 | H15: =G15 -> 2400000 | I15: =0.2*E15 -> 480000 | K15: =E15^2/I15^2 -> 25 | L15: =I15^2/E15 -> 96000 | M15: gamma | N15: Persson&Olofsson, 2018
B19: QALY-förlust värdering (minskning i utility-weight jmf normalpopulation)
C20: punktestimat | D20: Sjukdomsduration | E20: referenspopulation* | H20: Förlorade QALYs | I20: Förlorade QALYs slump | J20: standardfel | K20: 95% CI | L20: alpha | M20: beta | N20: fördelning | O20: referens
B21: KOL | C21: 0.62 | D21: 19 | E21: 0.91 | H21: =(E21-C21)*D21 -> 5.51 | J21: =(0.643-0.597)/(2*1.96) -> 0.01173469388 | K21: 0,597-0,643 | L21: =H21^2/J21^2 -> 220475.161 | M21: =J21^2/H21 -> 2.499147739e-05 | N21: gamma | O21: Arne, 2009
B22: Hjärtinfarkt | C22: 0.82 | D22: 1 | E22: 0.91 | H22: =(E22-C22)*D22 -> 0.09 | J22: 0.0037 | L22: =H22^2/J22^2 -> 591.6727538 | M22: =J22^2/H22 -> 0.0001521111111 | N22: gamma | O22: Gencer, 2016
B23: Diabetes | C23: 0.738 | D23: 9 | E23: 0.91 | H23: =(E23-C23)*D23 -> 1.548 | J23: =(0.742-0.7334)/(2*1.96) -> 0.002193877551 | K23: 0,7334-0,742 | L23: 497871.36 | M23: 3.109236892e-06 | N23: gamma | O23: Neumann, 2014
B24: Förtida födsel | C24: 0.93 | D24: 84 | H24: 0 | J24: 0 | K24: 0 | N24: gamma | O24: Husby, 2016
B25: RAD | C25: 0 | D25: 0 | E25: 0.91 | H25: =(E25-C25)*D25 -> 0 | J25: =0.05*H25 -> 0 | N25: gamma
B26: Stroke | C26: 0.61 | D26: 9.5 | E26: 0.91 | H26: =(E26-C26)*D26 -> 2.85 | J26: 0.018 | K26: =-2.9447-0.64554 -> -3.59024 | L26: =H26^2/J26^2 -> 25069.44444 | M26: 0.0001136842105 | N26: gamma | O26: Ghatnekar, 2014
B27: Barnastma 19+ | C27: 0.77 | D27: =84-18 -> 66 | E27: 0.91 | H27: =(E27-C27)*D27 -> 9.24 | J27: 0.109428 | L27: 7129.958777 | M27: 0.001295940171 | N27: gamma | O27: Jansson et al. 2019 to be submitted
B28: Barnastma 2-19 | C28: 0.807 | D28: 17 | E28: 0.91 | H28: =(E28-C28)*D28 -> 1.751 | J28: =(0.839-0.773)/(2*1.96) -> 0.01683673469 | K28: 0,773-0,839 | L28: 10815.74788 | M28: 0.0001618935666 | N28: gamma | O28: Bergfors, 2014

Sheet 3. Skadekostnad
A3: Steg 1 | D3: Antal fall (AF) | E3: Värdering för antal fall | F3: Förlorade QALYs | G3: Värdering förlorade QALY | H3: Skadekostnad per hälsoutfall
C4: Mortalitet (total) 30+ | D4: ='1. Effektsamband'!M3 -> 0.209409408 | E4: =D4*('2. Kostnader'!$E$15*'1. Effektsamband'!B15) -> 4875051.018 | H4: =G4+E4 -> 4875051.018
C5: Dagligt antal dödsfall (totalt, alla åldrar) | D5: ='1. Effektsamband'!M4 -> 0.01360422 | E5: =D5*'2. Kostnader'!$G$6 -> 24161.09472 | H5: =G5+E5 -> 24161.09472
C6: Hjärtinfarkt 30+ | D6: ='1. Effektsamband'!M5 -> 0.016720128 | E6: =D6*'2. Kostnader'!G9 -> 4296.767754 | F6: ='2. Kostnader'!H22*D6 -> 0.00150481152 | G6: ='2. Kostnader'!$E$15*'3. Skadekostnad'!F6 -> 3611.547648 | H6: 7908.315402
C7: Stroke 30+ | D7: ='1. Effektsamband'!M6 -> 0.094577472 | E7: =D7*'2. Kostnader'!G12 -> 298985.1572 | F7: ='2. Kostnader'!H26*D7 -> 0.2695457952 | G7: ='2. Kostnader'!$E$15*'3. Skadekostnad'!F7 -> 646909.9085 | H7: =G7+E7 -> 945895.0657
C8: Diabetes | D8: ='1. Effektsamband'!M7 -> 0.07257 | E8: ='2. Kostnader'!G8*D8 -> 39202.76684 | F8: ='2. Kostnader'!H23*D8 -> 0.11233836 | G8: ='2. Kostnader'!$E$15*'3. Skadekostnad'!F8 -> 269612.064 | H8: 308814.8308
C9: KOL 50+ | D9: ='1. Effektsamband'!M8 -> 0.00989983125 | E9: =D9*'2. Kostnader'!G7 -> 1375.13606 | F9: ='2. Kostnader'!H21*D9 -> 0.05454807019 | G9: ='2. Kostnader'!$E$15*'3. Skadekostnad'!F9 -> 130915.3685 | H9: 132290.5045
C10: Barnastma 2-18 | D10: ='1. Effektsamband'!M9 -> 0.023895 | E10: =D10*'2. Kostnader'!G13 -> 4160.558368 | F10: ='2. Kostnader'!H28*D10 -> 0.041840145 | G10: ='2. Kostnader'!$E$15*'3. Skadekostnad'!F10 -> 100416.348 | H10: 104576.9064
C11: Barnastma 18+ | D11: =('1. Effektsamband'!M9*0.8) -> 0.019116 | E11: =D11*'2. Kostnader'!G14 -> 33441.46881 | F11: ='2. Kostnader'!H27*D11 -> 0.17663184 | G11: ='2. Kostnader'!$E$15*'3. Skadekostnad'!F11 -> 423916.416 | H11: 457357.8848
C12: Sjukdagar | D12: ='1. Effektsamband'!M13 -> 30.520287 | E12: =D12*'2. Kostnader'!G11 -> 61895.14204 | F12: ='2. Kostnader'!H25*D12 -> 0 | G12: ='2. Kostnader'!$E$15*'3. Skadekostnad'!F12 -> 0 | H12: 61895.14204
C13: Förtidig födsel | D13: ='1. Effektsamband'!M10 -> 0.0146556 | E13: =D13*'2. Kostnader'!G10 -> 18830.53051 | F13: =D13*'2. Kostnader'!H24 -> 0 | G13: =0 -> 0 | H13: =E13 -> 18830.53051
C14: Förtidig födsel PM 10 | D14: ='1. Effektsamband'!M11 -> 0.00549585 | E14: =D14*'2. Kostnader'!G10 -> 7061.448942 | F14: 0 | G14: 0 | H14: =E14 -> 7061.448942
G16: HUVUDRESULTAT | H16: Skadekostnader i kr givet den generella nationella befolkningsexponeringen (885 mikrogram/m3 personer per ton) | I16: Skadekostnader i kr per mcg/m3/per person
F17: Steg 2 | G17: Per ton PM2.5 (avgaser och slitage) | H17: =SUM('3. Skadekostnad'!H4,'3. Skadekostnad'!H6,'3. Skadekostnad'!H7,'3. Skadekostnad'!H8,'3. Skadekostnad'!H9,'3. Skadekostnad'!H10,'3. Skadekostnad'!H11,'3. Skadekostnad'!H12,H13) -> 6912620.198 | I17: =H17/'1. Effektsamband'!C3 -> 7810.870281
G18: Per ton avgaspartiklar | H18: =H17 -> 6912620.198 | I18: =I17 -> 7810.870281
G19: Per ton slitage i grovfraktionen (PM10-PM2.5) | H19: =SUM(H5,H14,H6) -> 39130.85906 | I19: =H19/'1. Effektsamband'!C3 -> 44.21565996
G20: Per ton slitage totalt (PM10) | H20: =(0.2*H17)+(0.8*H19) -> 1413828.727 | I20: =H20/'1. Effektsamband'!C3 -> 1597.546584
F25: Steg 3 | H25: Befolkningsdos | I25: Skadekostnader i kr för varje ort beräknad befolkningsviktade halten | J25: MonteCarlo lägre konfidens intervall | K25: MonteCarlo konfidens intervall högre
G26: Sverige | H26: ='1. Effektsamband'!C3 -> 885 | I26: =H17 -> 6912620.198 | J26: =H26*'4. Känslighetsanalys'!M2 -> 2870911.568 | K26: =H26*'4. Känslighetsanalys'!N2 -> 14227459.57
G27: Stockholm innerstad | H27: 2807 | I27: =I17*H27 -> 21925112.88 | J27: =H27*'4. Känslighetsanalys'!M2 -> 9105817.82 | K27: =H27*'4. Känslighetsanalys'!N2 -> 45125965
G28: Stor Stockholm | H28: 1397 | I28: =I17*H28 -> 10911785.78 | J28: =H28*'4. Känslighetsanalys'!M2 -> 4531823.119 | K28: =H28*'4. Känslighetsanalys'!N2 -> 22458487.03
G29: Uppsala | H29: 922 | I29: =I17*H29 -> 7201622.399 | J29: =H29*'4. Känslighetsanalys'!M2 -> 2990938.379 | K29: =H29*'4. Känslighetsanalys'!N2 -> 14822279.92
G30: Umeå | H30: 543 | I30: =I17*H30 -> 4241302.562 | J30: =H30*'4. Känslighetsanalys'!M2 -> 1761474.555 | K30: =H30*'4. Känslighetsanalys'!N2 -> 8729390.451
G31: Sandviken | H31: 311 | I31: =I17*H31 -> 2429180.657 | J31: =H31*'4. Känslighetsanalys'!M2 -> 1008874.009 | K31: =H31*'4. Känslighetsanalys'!N2 -> 4999706.133

Sheet 4. Känslighetsanalys
A1: Summering av Monte Carlo resultat Steg 1 | B1: Hälsoutfall | C1: Probabilistisk medelvärde | D1: Lägre intervall | F1: Högre intervall | G1: Steg 2 | H1: Slut resultat | I1: Skadekostnader i kr givet den generella nationella befolkningsexponeringen (885 mikrogram/m3 personer per ton) | J1: Skadekostnader per mcg/m3 per person | K1: Lägre intervall | L1: Högre intervall | M1: Lägre intervall per mcg/m3 per person | N1: Högre intervall per mcg/m3 per person
B2: Mortalitet | C2: =AVERAGE(B15:B1015) -> 3681020.952 | D2: =_xlfn.PERCENTILE.INC(B15:B1015,0.025) -> 2030401.705 | F2: =_xlfn.PERCENTILE.INC($B$15:$B$1015,0.975) -> 5965154.278 | H2: Per ton PM2.5 | I2: =SUM(C2,C3,C4,C5,C6,C7,C8,C9,C10) -> 6545200.313 | J2: =I2/885 -> 7395.706569 | K2: =SUM(D2:D10) -> 2870911.568 | L2: =SUM(F2:F10) -> 14227459.57 | M2: =K2/885 -> 3243.967873 | N2: =L2/885 -> 16076.22551
B3: Stroke | C3: =AVERAGE(H15:H1015) -> 1562385.288 | D3: =_xlfn.PERCENTILE.INC(H15:H1015,0.025) -> 212201.0094 | F3: =_xlfn.PERCENTILE.INC(H15:H1015,0.975) -> 5794401.84 | H3: Per ton avgaspartikal | I3: =SUM(C2,C3,C4,C5,C6,C7,C8,C9,C10) -> 6545200.313 | J3: =I3/885 -> 7395.706569 | K3: =SUM(D2:D10) -> 2870911.568 | L3: =SUM(F2:F10) -> 14227459.57
B4: Diabetes | C4: =AVERAGE(K15:K105) -> 330702.5721 | D4: =_xlfn.PERCENTILE.INC(K15:K1015,0.025) -> 164436.3379 | F4: =_xlfn.PERCENTILE.INC(K15:K1015,0.975) -> 618827.6204 | H4: Slitage i grovfraktionen | I4: =SUM(C12,C11,C9) -> 49884.7378 | J4: =I4/885 -> 56.36693537 | K4: =SUM(D9,D11:D12) -> 11449.95931 | L4: =SUM(F9,F11,F12) -> 148028.7538
B5: KOL | C5: =AVERAGE(M15:M1015) -> 132329.0371 | D5: =_xlfn.PERCENTILE.INC(M15:M1015,0.0025) -> 76398.5518 | F5: =_xlfn.PERCENTILE.INC(M15:M1015,0.975) -> 186557.0746 | H5: Slitage totalt | I5: =(0.2*I2)+(0.8*I4) -> 1348947.853 | J5: =I5/885 -> 1524.234862 | K5: =(0.2*K2)+(0.8*K4) -> 583342.281 | L5: =(0.2*L2)+(0.8*L4) -> 2963914.918
B6: Barnastma <=19 | C6: =AVERAGE(Q15:Q1015) -> 112520.2733 | D6: =_xlfn.PERCENTILE.INC(Q15:Q1015,0.025) -> 51641.7197 | F6: =_xlfn.PERCENTILE.INC(Q15:Q1015, 0.975) -> 215008.0976
B7: Barnastma >19 | C7: =AVERAGE(T15:T1015) -> 632094.0418 | D7: =(_xlfn.PERCENTILE.INC(T15:T1015,0.025)) -> 285561.9967 | F7: =(_xlfn.PERCENTILE.INC(T15:T1015,0.975)) -> 1286622.759
B8: Sjukdagar | C8: =AVERAGE(V15:V1015) -> 62864.27565 | D8: =_xlfn.PERCENTILE.INC(V15:V1015,0.025) -> 39186.37717 | F8: =_xlfn.PERCENTILE.INC(V15:V105,0.975) -> 88720.4544
B9: Hjärtinfarkt | C9: =AVERAGE(E15:E1015) -> 11105.35515 | D9: =_xlfn.PERCENTILE.INC(E15:E1015,0.025) -> 2981.745119 | F9: =_xlfn.PERCENTILE.INC(E15:E1015,0.975) -> 29656.31669
B10: Förtida födsel PM2.5 | C10: =AVERAGE(W15:W1015) -> 20178.51799 | D10: =_xlfn.PERCENTILE.INC(W15:W1015,0.025) -> 8102.125364 | F10: =_xlfn.PERCENTILE.INC(W15:W1015,0.975) -> 42511.13335
B11: Förtida fösel PM10 | C11: =AVERAGE(X15:X1015) -> 7677.942732 | D11: =_xlfn.PERCENTILE.INC(X15:X1015,0.025) -> 2850.178328 | F11: =_xlfn.PERCENTILE.INC(X15:X1015,0.975) -> 16064.97315
B12: Daglig antal dödsfall | C12: =AVERAGE(Y15:Y1015) -> 31101.43992 | D12: =_xlfn.PERCENTILE.INC(Y15:Y1015,0.025) -> 5618.035863 | F12: =_xlfn.PERCENTILE.INC(Y15:Y1015,0.975) -> 102307.464
B13: Mortalitet (total 30+) | C13: Hjärtinfarkt | F13: Stroke | I13: Diabetes | L13: KOL | O13: Barnastma 2-19 | R13: Barnastma 19+ | U13: RAD | W13: Förtida födsel | Y13: Dagligt antal dödsfall
A14: Iterationer (x1000) | B14: Värde per fall | C14: Värde per fall | D14: Värde förlorade QALYs | E14: summa | F14: Värde per fall | G14: Värde förlorade QALYs | H14: Summa | I14: Värde per fall | J14: Värde förlorade QALYs | K14: Summa | L14: Värde per fall | M14: Värde förlorade QALYs | N14: Summa | O14: Värde per fall | P14: Värde förlorade QALYs | Q14: Summa | R14: Värde per fall | S14: Värde förlorade QALYs | T14: Summa | U14: Värde per fall | V14: Summa | W14: Värde per fall PM2.5 | X14: Värde per fall PM10 | Y14: Värde per fall
A15: 1 | B15: =EXP(_xlfn.NORM.INV(RAND(),'1. Effektsamband'!$N$3,'1. Effektsamband'!$S$3))*(_xlfn.GAMMA.INV(RAND(),'2. Kostnader'!$K$15,'2. Kostnader'!$L$15)*'1. Effektsamband'!$B$15) -> 5146070.487 | C15: =(_xlfn.GAMMA.INV(RAND(),'2. Kostnader'!$K$9,'2. Kostnader'!$L$9))*(EXP(_xlfn.NORM.INV(RAND(),'1. Effektsamband'!$N$5,'1. Effektsamband'!$S$5))) -> 6085.42518 | D15: =(_xlfn.GAMMA.INV(RAND(),'2. Kostnader'!$L$22,'2. Kostnader'!$M$22))*EXP(_xlfn.NORM.INV(RAND(),'1. Effektsamband'!$N$5,'1. Effektsamband'!$S$5))*'2. Kostnader'!$E$15 -> 3423.47177 | E15: =SUM(C15:D15) -> 9508.89695 | F15: =(_xlfn.GAMMA.INV(RAND(),'2. Kostnader'!$K$12,'2. Kostnader'!$L$12))*EXP(_xlfn.NORM.INV(RAND(),'1. Effektsamband'!$N$6,'1. Effektsamband'!$S$6)) -> 535048.1496 | G15: =(_xlfn.GAMMA.INV(RAND(),'2. Kostnader'!$L$26,'2. Kostnader'!$M$26))*EXP(_xlfn.NORM.INV(RAND(),'1. Effektsamband'!$N$6,'1. Effektsamband'!$S$6))*'2. Kostnader'!$E$15 -> 581675.9382 | H15: =SUM(F15:G15) -> 1116724.088 | I15: =(_xlfn.GAMMA.INV(RAND(),'2. Kostnader'!$K$8,'2. Kostnader'!$L$8))*EXP(_xlfn.NORM.INV(RAND(),'1. Effektsamband'!$N$7,'1. Effektsamband'!$S$7)) -> 32732.25016 | J15: =(_xlfn.GAMMA.INV(RAND(),'2. Kostnader'!$L$23,'2. Kostnader'!$M$23))*EXP(_xlfn.NORM.INV(RAND(),'1. Effektsamband'!$N$7,'1. Effektsamband'!$S$7))*'2. Kostnader'!$E$15 -> 190455.7784 | K15: =SUM(I15:J15) -> 223188.0286 | L15: =(_xlfn.GAMMA.INV(RAND(),'2. Kostnader'!$K$7,'2. Kostnader'!$L$7))*EXP(_xlfn.NORM.INV(RAND(),'1. Effektsamband'!$N$8,'1. Effektsamband'!$S$8)) -> 1733.134291 | M15: =(_xlfn.GAMMA.INV(RAND(),'2. Kostnader'!$L$21,'2. Kostnader'!$M$21))*EXP(_xlfn.NORM.INV(RAND(), '1. Effektsamband'!$N$8,'1. Effektsamband'!$S$8))*'2. Kostnader'!$E$15 -> 128795.3492 | N15: =SUM(L15:M15) -> 130528.4835 | O15: =(_xlfn.GAMMA.INV(RAND(),'2. Kostnader'!$K$13,'2. Kostnader'!$L$13))*EXP(_xlfn.NORM.INV(RAND(),'1. Effektsamband'!$N$9,'1. Effektsamband'!$S$9)) -> 8182.328465 | P15: =(_xlfn.GAMMA.INV(RAND(),'2. Kostnader'!$L$28,'2. Kostnader'!$M$28))*EXP(_xlfn.NORM.INV(RAND(),'1. Effektsamband'!$N$9,'1. Effektsamband'!$S$9))*'2. Kostnader'!$E$15 -> 50368.82349 | Q15: =SUM(O15:P15) -> 58551.15196 | R15: =(_xlfn.GAMMA.INV(RAND(),'2. Kostnader'!$K$14,'2. Kostnader'!$L$14))*EXP(_xlfn.NORM.INV(RAND(),'1. Effektsamband'!$N$9,'1. Effektsamband'!$S$9)) -> 54745.17772 | S15: =(_xlfn.GAMMA.INV(RAND(),'2. Kostnader'!$L$27,'2. Kostnader'!$M$27))*EXP(_xlfn.NORM.INV(RAND(),'1. Effektsamband'!$N$9,'1. Effektsamband'!$S$9))*'2. Kostnader'!$E$15 -> 172667.814 | T15: =SUM(R15:S15) -> 227412.9917 | U15: =(_xlfn.GAMMA.INV(RAND(),'2. Kostnader'!$K$11,'2. Kostnader'!$L$11))*EXP(_xlfn.NORM.INV(RAND(),'1. Effektsamband'!$N$13,'1. Effektsamband'!$S$13)) -> 68617.13511 | V15: =SUM(U15:U15) -> 68617.13511 | W15: =(_xlfn.GAMMA.INV(RAND(),'2. Kostnader'!$K$10,'2. Kostnader'!$L$10)*EXP(_xlfn.NORM.INV(RAND(),'1. Effektsamband'!$N$10,'1. Effektsamband'!$S$10))) -> 17853.94681 | X15: =(_xlfn.GAMMA.INV(RAND(),'2. Kostnader'!$K$10,'2. Kostnader'!$L$10)*(EXP(_xlfn.NORM.INV(RAND(),'1. Effektsamband'!$N$11,'1. Effektsamband'!$S$11)))) -> 7683.867904 | Y15: =(_xlfn.GAMMA.INV(RAND(),'2. Kostnader'!$K$6,'2. Kostnader'!$L$6)*(EXP(_xlfn.NORM.INV(RAND(),'1. Effektsamband'!$N$4,'1. Effektsamband'!$S$4)))) -> 16312.68133
A16: 2 | B16: =EXP(_xlfn.NORM.INV(RAND(),'1. Effektsamband'!$N$3,'1. Effektsamband'!$S$3))*(_xlfn.GAMMA.INV(RAND(),'2. Kostnader'!$K$6,'2. Kostnader'!$L$6)*'1. Effektsamband'!$B$15) -> 4119592.979 | C16: =(_xlfn.GAMMA.INV(RAND(),'2. Kostnader'!$K$9,'2. Kostnader'!$L$9))*(EXP(_xlfn.NORM.INV(RAND(),'1. Effektsamband'!$N$5,'1. Effektsamband'!$S$5))) -> 3785.24897 | D16: =(_xlfn.GAMMA.INV(RAND(),'2. Kostnader'!$L$22,'2. Kostnader'!$M$22))*EXP(_xlfn.NORM.INV(RAND(),'1. Effektsamband'!$N$5,'1. Effektsamband'!$S$5))*'2. Kostnader'!$E$15 -> 1742.219708 | E16: =SUM(C16:D16) -> 5527.468678 | F16: =(_xlfn.GAMMA.INV(RAND(),'2. Kostnader'!$K$12,'2. Kostnader'!$L$12))*EXP(_xlfn.NORM.INV(RAND(),'1. Effektsamband'!$N$6,'1. Effektsamband'!$S$6)) -> 272675.4836 | G16: =(_xlfn.GAMMA.INV(RAND(),'2. Kostnader'!$L$26,'2. Kostnader'!$M$26))*EXP(_xlfn.NORM.INV(RAND(),'1. Effektsamband'!$N$6,'1. Effektsamband'!$S$6))*'2. Kostnader'!$E$15 -> 859666.5931 | H16: =SUM(F16:G16) -> 1132342.077 | I16: =(_xlfn.GAMMA.INV(RAND(),'2. Kostnader'!$K$8,'2. Kostnader'!$L$8))*EXP(_xlfn.NORM.INV(RAND(),'1. Effektsamband'!$N$7,'1. Effektsamband'!$S$7)) -> 22636.75538 | J16: =(_xlfn.GAMMA.INV(RAND(),'2. Kostnader'!$L$23,'2. Kostnader'!$M$23))*EXP(_xlfn.NORM.INV(RAND(),'1. Effektsamband'!$N$7,'1. Effektsamband'!$S$7))*'2. Kostnader'!$E$15 -> 231789.7477 | K16: =SUM(I16:J16) -> 254426.5031 | L16: =(_xlfn.GAMMA.INV(RAND(),'2. Kostnader'!$K$7,'2. Kostnader'!$L$7))*EXP(_xlfn.NORM.INV(RAND(),'1. Effektsamband'!$N$8,'1. Effektsamband'!$S$8)) -> 1156.400812 | M16: =(_xlfn.GAMMA.INV(RAND(),'2. Kostnader'!$L$21,'2. Kostnader'!$M$21))*EXP(_xlfn.NORM.INV(RAND(), '1. Effektsamband'!$N$8,'1. Effektsamband'!$S$8))*'2. Kostnader'!$E$15 -> 140362.7171 | N16: =SUM(L16:M16) -> 141519.118 | O16: =(_xlfn.GAMMA.INV(RAND(),'2. Kostnader'!$K$13,'2. Kostnader'!$L$13))*EXP(_xlfn.NORM.INV(RAND(),'1. Effektsamband'!$N$9,'1. Effektsamband'!$S$9)) -> 5094.381839 | P16: =(_xlfn.GAMMA.INV(RAND(),'2. Kostnader'!$L$28,'2. Kostnader'!$M$28))*EXP(_xlfn.NORM.INV(RAND(),'1. Effektsamband'!$N$9,'1. Effektsamband'!$S$9))*'2. Kostnader'!$E$15 -> 69394.34464 | Q16: =SUM(O16:P16) -> 74488.72648 | R16: =(_xlfn.GAMMA.INV(RAND(),'2. Kostnader'!$K$14,'2. Kostnader'!$L$14))*EXP(_xlfn.NORM.INV(RAND(),'1. Effektsamband'!$N$9,'1. Effektsamband'!$S$9)) -> 52308.90471 | S16: =(_xlfn.GAMMA.INV(RAND(),'2. Kostnader'!$L$27,'2. Kostnader'!$M$27))*EXP(_xlfn.NORM.INV(RAND(),'1. Effektsamband'!$N$9,'1. Effektsamband'!$S$9))*'2. Kostnader'!$E$15 -> 391168.3055 | T16: =SUM(R16:S16) -> 443477.2102 | U16: =(_xlfn.GAMMA.INV(RAND(),'2. Kostnader'!$K$11,'2. Kostnader'!$L$11))*EXP(_xlfn.NORM.INV(RAND(),'1. Effektsamband'!$N$13,'1. Effektsamband'!$S$13)) -> 56891.66895 | V16: 56891.66895 | W16: =(_xlfn.GAMMA.INV(RAND(),'2. Kostnader'!$K$10,'2. Kostnader'!$L$10)*EXP(_xlfn.NORM.INV(RAND(),'1. Effektsamband'!$N$10,'1. Effektsamband'!$S$10))) -> 12131.63426 | X16: =(_xlfn.GAMMA.INV(RAND(),'2. Kostnader'!$K$10,'2. Kostnader'!$L$10)*(EXP(_xlfn.NORM.INV(RAND(),'1. Effektsamband'!$N$11,'1. Effektsamband'!$S$11)))) -> 4061.861902 | Y16: =(_xlfn.GAMMA.INV(RAND(),'2. Kostnader'!$K$6,'2. Kostnader'!$L$6)*(EXP(_xlfn.NORM.INV(RAND(),'1. Effektsamband'!$N$4,'1. Effektsamband'!$S$4)))) -> 18861.71106
A17: 3 | B17: =EXP(_xlfn.NORM.INV(RAND(),'1. Effektsamband'!$N$3,'1. Effektsamband'!$S$3))*(_xlfn.GAMMA.INV(RAND(),'2. Kostnader'!$K$6,'2. Kostnader'!$L$6)*'1. Effektsamband'!$B$15) -> 3509666.495 | C17: =(_xlfn.GAMMA.INV(RAND(),'2. Kostnader'!$K$9,'2. Kostnader'!$L$9))*(EXP(_xlfn.NORM.INV(RAND(),'1. Effektsamband'!$N$5,'1. Effektsamband'!$S$5))) -> 4620.621719 | D17: =(_xlfn.GAMMA.INV(RAND(),'2. Kostnader'!$L$22,'2. Kostnader'!$M$22))*EXP(_xlfn.NORM.INV(RAND(),'1. Effektsamband'!$N$5,'1. Effektsamband'!$S$5))*'2. Kostnader'!$E$15 -> 3105.405074 | E17: 7726.026793 | F17: =(_xlfn.GAMMA.INV(RAND(),'2. Kostnader'!$K$12,'2. Kostnader'!$L$12))*EXP(_xlfn.NORM.INV(RAND(),'1. Effektsamband'!$N$6,'1. Effektsamband'!$S$6)) -> 293330.2606 | G17: =(_xlfn.GAMMA.INV(RAND(),'2. Kostnader'!$L$26,'2. Kostnader'!$M$26))*EXP(_xlfn.NORM.INV(RAND(),'1. Effektsamband'!$N$6,'1. Effektsamband'!$S$6))*'2. Kostnader'!$E$15 -> 1284599.655 | H17: 1577929.916 | I17: =(_xlfn.GAMMA.INV(RAND(),'2. Kostnader'!$K$8,'2. Kostnader'!$L$8))*EXP(_xlfn.NORM.INV(RAND(),'1. Effektsamband'!$N$7,'1. Effektsamband'!$S$7)) -> 34885.40125 | J17: =(_xlfn.GAMMA.INV(RAND(),'2. Kostnader'!$L$23,'2. Kostnader'!$M$23))*EXP(_xlfn.NORM.INV(RAND(),'1. Effektsamband'!$N$7,'1. Effektsamband'!$S$7))*'2. Kostnader'!$E$15 -> 200078.3683 | K17: 234963.7696 | L17: =(_xlfn.GAMMA.INV(RAND(),'2. Kostnader'!$K$7,'2. Kostnader'!$L$7))*EXP(_xlfn.NORM.INV(RAND(),'1. Effektsamband'!$N$8,'1. Effektsamband'!$S$8)) -> 1299.359171 | M17: =(_xlfn.GAMMA.INV(RAND(),'2. Kostnader'!$L$21,'2. Kostnader'!$M$21))*EXP(_xlfn.NORM.INV(RAND(), '1. Effektsamband'!$N$8,'1. Effektsamband'!$S$8))*'2. Kostnader'!$E$15 -> 149203.2771 | N17: 150502.6363 | O17: =(_xlfn.GAMMA.INV(RAND(),'2. Kostnader'!$K$13,'2. Kostnader'!$L$13))*EXP(_xlfn.NORM.INV(RAND(),'1. Effektsamband'!$N$9,'1. Effektsamband'!$S$9)) -> 3259.340963 | P17: =(_xlfn.GAMMA.INV(RAND(),'2. Kostnader'!$L$28,'2. Kostnader'!$M$28))*EXP(_xlfn.NORM.INV(RAND(),'1. Effektsamband'!$N$9,'1. Effektsamband'!$S$9))*'2. Kostnader'!$E$15 -> 88541.24915 | Q17: 91800.59011 | R17: =(_xlfn.GAMMA.INV(RAND(),'2. Kostnader'!$K$14,'2. Kostnader'!$L$14))*EXP(_xlfn.NORM.INV(RAND(),'1. Effektsamband'!$N$9,'1. Effektsamband'!$S$9)) -> 54505.71855 | S17: =(_xlfn.GAMMA.INV(RAND(),'2. Kostnader'!$L$27,'2. Kostnader'!$M$27))*EXP(_xlfn.NORM.INV(RAND(),'1. Effektsamband'!$N$9,'1. Effektsamband'!$S$9))*'2. Kostnader'!$E$15 -> 340110.6585 | T17: 394616.3771 | U17: =(_xlfn.GAMMA.INV(RAND(),'2. Kostnader'!$K$11,'2. Kostnader'!$L$11))*EXP(_xlfn.NORM.INV(RAND(),'1. Effektsamband'!$N$13,'1. Effektsamband'!$S$13)) -> 67384.28442 | V17: 67384.28442 | W17: =(_xlfn.GAMMA.INV(RAND(),'2. Kostnader'!$K$10,'2. Kostnader'!$L$10)*EXP(_xlfn.NORM.INV(RAND(),'1. Effektsamband'!$N$10,'1. Effektsamband'!$S$10))) -> 18033.09979 | X17: =(_xlfn.GAMMA.INV(RAND(),'2. Kostnader'!$K$10,'2. Kostnader'!$L$10)*(EXP(_xlfn.NORM.INV(RAND(),'1. Effektsamband'!$N$11,'1. Effektsamband'!$S$11)))) -> 8816.653131 | Y17: =(_xlfn.GAMMA.INV(RAND(),'2. Kostnader'!$K$6,'2. Kostnader'!$L$6)*(EXP(_xlfn.NORM.INV(RAND(),'1. Effektsamband'!$N$4,'1. Effektsamband'!$S$4)))) -> 24534.05228
A18: 4 | B18: =EXP(_xlfn.NORM.INV(RAND(),'1. Effektsamband'!$N$3,'1. Effektsamband'!$S$3))*(_xlfn.GAMMA.INV(RAND(),'2. Kostnader'!$K$6,'2. Kostnader'!$L$6)*'1. Effektsamband'!$B$15) -> 3402325.885 | C18: =(_xlfn.GAMMA.INV(RAND(),'2. Kostnader'!$K$9,'2. Kostnader'!$L$9))*(EXP(_xlfn.NORM.INV(RAND(),'1. Effektsamband'!$N$5,'1. Effektsamband'!$S$5))) -> 6028.369034 | D18: =(_xlfn.GAMMA.INV(RAND(),'2. Kostnader'!$L$22,'2. Kostnader'!$M$22))*EXP(_xlfn.NORM.INV(RAND(),'1. Effektsamband'!$N$5,'1. Effektsamband'!$S$5))*'2. Kostnader'!$E$15 -> 3232.971682 | E18: 9261.340716 | F18: =(_xlfn.GAMMA.INV(RAND(),'2. Kostnader'!$K$12,'2. Kostnader'!$L$12))*EXP(_xlfn.NORM.INV(RAND(),'1. Effektsamband'!$N$6,'1. Effektsamband'!$S$6)) -> 178617.4633 | G18: =(_xlfn.GAMMA.INV(RAND(),'2. Kostnader'!$L$26,'2. Kostnader'!$M$26))*EXP(_xlfn.NORM.INV(RAND(),'1. Effektsamband'!$N$6,'1. Effektsamband'!$S$6))*'2. Kostnader'!$E$15 -> 317730.604 | H18: 496348.0674 | I18: =(_xlfn.GAMMA.INV(RAND(),'2. Kostnader'!$K$8,'2. Kostnader'!$L$8))*EXP(_xlfn.NORM.INV(RAND(),'1. Effektsamband'!$N$7,'1. Effektsamband'!$S$7)) -> 17418.82046 | J18: =(_xlfn.GAMMA.INV(RAND(),'2. Kostnader'!$L$23,'2. Kostnader'!$M$23))*EXP(_xlfn.NORM.INV(RAND(),'1. Effektsamband'!$N$7,'1. Effektsamband'!$S$7))*'2. Kostnader'!$E$15 -> 202344.3715 | K18: 219763.192 | L18: =(_xlfn.GAMMA.INV(RAND(),'2. Kostnader'!$K$7,'2. Kostnader'!$L$7))*EXP(_xlfn.NORM.INV(RAND(),'1. Effektsamband'!$N$8,'1. Effektsamband'!$S$8)) -> 1252.41233 | M18: =(_xlfn.GAMMA.INV(RAND(),'2. Kostnader'!$L$21,'2. Kostnader'!$M$21))*EXP(_xlfn.NORM.INV(RAND(), '1. Effektsamband'!$N$8,'1. Effektsamband'!$S$8))*'2. Kostnader'!$E$15 -> 110420.1721 | N18: 111672.5845 | O18: =(_xlfn.GAMMA.INV(RAND(),'2. Kostnader'!$K$13,'2. Kostnader'!$L$13))*EXP(_xlfn.NORM.INV(RAND(),'1. Effektsamband'!$N$9,'1. Effektsamband'!$S$9)) -> 7244.655019 | P18: =(_xlfn.GAMMA.INV(RAND(),'2. Kostnader'!$L$28,'2. Kostnader'!$M$28))*EXP(_xlfn.NORM.INV(RAND(),'1. Effektsamband'!$N$9,'1. Effektsamband'!$S$9))*'2. Kostnader'!$E$15 -> 58513.27917 | Q18: 65757.93419 | R18: =(_xlfn.GAMMA.INV(RAND(),'2. Kostnader'!$K$14,'2. Kostnader'!$L$14))*EXP(_xlfn.NORM.INV(RAND(),'1. Effektsamband'!$N$9,'1. Effektsamband'!$S$9)) -> 23123.09923 | S18: =(_xlfn.GAMMA.INV(RAND(),'2. Kostnader'!$L$27,'2. Kostnader'!$M$27))*EXP(_xlfn.NORM.INV(RAND(),'1. Effektsamband'!$N$9,'1. Effektsamband'!$S$9))*'2. Kostnader'!$E$15 -> 450228.5884 | T18: 473351.6876 | U18: =(_xlfn.GAMMA.INV(RAND(),'2. Kostnader'!$K$11,'2. Kostnader'!$L$11))*EXP(_xlfn.NORM.INV(RAND(),'1. Effektsamband'!$N$13,'1. Effektsamband'!$S$13)) -> 46933.24464 | V18: 46933.24464 | W18: =(_xlfn.GAMMA.INV(RAND(),'2. Kostnader'!$K$10,'2. Kostnader'!$L$10)*EXP(_xlfn.NORM.INV(RAND(),'1. Effektsamband'!$N$10,'1. Effektsamband'!$S$10))) -> 18825.69792 | X18: =(_xlfn.GAMMA.INV(RAND(),'2. Kostnader'!$K$10,'2. Kostnader'!$L$10)*(EXP(_xlfn.NORM.INV(RAND(),'1. Effektsamband'!$N$11,'1. Effektsamband'!$S$11)))) -> 10982.42279 | Y18: =(_xlfn.GAMMA.INV(RAND(),'2. Kostnader'!$K$6,'2. Kostnader'!$L$6)*(EXP(_xlfn.NORM.INV(RAND(),'1. Effektsamband'!$N$4,'1. Effektsamband'!$S$4)))) -> 37758.63969
A19: 5 | B19: =EXP(_xlfn.NORM.INV(RAND(),'1. Effektsamband'!$N$3,'1. Effektsamband'!$S$3))*(_xlfn.GAMMA.INV(RAND(),'2. Kostnader'!$K$6,'2. Kostnader'!$L$6)*'1. Effektsamband'!$B$15) -> 3971046.612 | C19: =(_xlfn.GAMMA.INV(RAND(),'2. Kostnader'!$K$9,'2. Kostnader'!$L$9))*(EXP(_xlfn.NORM.INV(RAND(),'1. Effektsamband'!$N$5,'1. Effektsamband'!$S$5))) -> 2531.902444 | D19: =(_xlfn.GAMMA.INV(RAND(),'2. Kostnader'!$L$22,'2. Kostnader'!$M$22))*EXP(_xlfn.NORM.INV(RAND(),'1. Effektsamband'!$N$5,'1. Effektsamband'!$S$5))*'2. Kostnader'!$E$15 -> 1946.083955 | E19: 4477.986399 | F19: =(_xlfn.GAMMA.INV(RAND(),'2. Kostnader'!$K$12,'2. Kostnader'!$L$12))*EXP(_xlfn.NORM.INV(RAND(),'1. Effektsamband'!$N$6,'1. Effektsamband'!$S$6)) -> 112079.8872 | G19: =(_xlfn.GAMMA.INV(RAND(),'2. Kostnader'!$L$26,'2. Kostnader'!$M$26))*EXP(_xlfn.NORM.INV(RAND(),'1. Effektsamband'!$N$6,'1. Effektsamband'!$S$6))*'2. Kostnader'!$E$15 -> 334601.2973 | H19: 446681.1844 | I19: =(_xlfn.GAMMA.INV(RAND(),'2. Kostnader'!$K$8,'2. Kostnader'!$L$8))*EXP(_xlfn.NORM.INV(RAND(),'1. Effektsamband'!$N$7,'1. Effektsamband'!$S$7)) -> 36914.53776 | J19: =(_xlfn.GAMMA.INV(RAND(),'2. Kostnader'!$L$23,'2. Kostnader'!$M$23))*EXP(_xlfn.NORM.INV(RAND(),'1. Effektsamband'!$N$7,'1. Effektsamband'!$S$7))*'2. Kostnader'!$E$15 -> 250433.8652 | K19: 287348.4029 | L19: =(_xlfn.GAMMA.INV(RAND(),'2. Kostnader'!$K$7,'2. Kostnader'!$L$7))*EXP(_xlfn.NORM.INV(RAND(),'1. Effektsamband'!$N$8,'1. Effektsamband'!$S$8)) -> 2147.611458 | M19: =(_xlfn.GAMMA.INV(RAND(),'2. Kostnader'!$L$21,'2. Kostnader'!$M$21))*EXP(_xlfn.NORM.INV(RAND(), '1. Effektsamband'!$N$8,'1. Effektsamband'!$S$8))*'2. Kostnader'!$E$15 -> 136395.347 | N19: 138542.9584 | O19: =(_xlfn.GAMMA.INV(RAND(),'2. Kostnader'!$K$13,'2. Kostnader'!$L$13))*EXP(_xlfn.NORM.INV(RAND(),'1. Effektsamband'!$N$9,'1. Effektsamband'!$S$9)) -> 2717.361392 | P19: =(_xlfn.GAMMA.INV(RAND(),'2. Kostnader'!$L$28,'2. Kostnader'!$M$28))*EXP(_xlfn.NORM.INV(RAND(),'1. Effektsamband'!$N$9,'1. Effektsamband'!$S$9))*'2. Kostnader'!$E$15 -> 81023.51313 | Q19: 83740.87452 | R19: =(_xlfn.GAMMA.INV(RAND(),'2. Kostnader'!$K$14,'2. Kostnader'!$L$14))*EXP(_xlfn.NORM.INV(RAND(),'1. Effektsamband'!$N$9,'1. Effektsamband'!$S$9)) -> 97962.1789 | S19: =(_xlfn.GAMMA.INV(RAND(),'2. Kostnader'!$L$27,'2. Kostnader'!$M$27))*EXP(_xlfn.NORM.INV(RAND(),'1. Effektsamband'!$N$9,'1. Effektsamband'!$S$9))*'2. Kostnader'!$E$15 -> 690636.7876 | T19: 788598.9665 | U19: =(_xlfn.GAMMA.INV(RAND(),'2. Kostnader'!$K$11,'2. Kostnader'!$L$11))*EXP(_xlfn.NORM.INV(RAND(),'1. Effektsamband'!$N$13,'1. Effektsamband'!$S$13)) -> 54355.71789 | V19: 54355.71789 | W19: =(_xlfn.GAMMA.INV(RAND(),'2. Kostnader'!$K$10,'2. Kostnader'!$L$10)*EXP(_xlfn.NORM.INV(RAND(),'1. Effektsamband'!$N$10,'1. Effektsamband'!$S$10))) -> 43797.80345 | X19: =(_xlfn.GAMMA.INV(RAND(),'2. Kostnader'!$K$10,'2. Kostnader'!$L$10)*(EXP(_xlfn.NORM.INV(RAND(),'1. Effektsamband'!$N$11,'1. Effektsamband'!$S$11)))) -> 7452.147182 | Y19: =(_xlfn.GAMMA.INV(RAND(),'2. Kostnader'!$K$6,'2. Kostnader'!$L$6)*(EXP(_xlfn.NORM.INV(RAND(),'1. Effektsamband'!$N$4,'1. Effektsamband'!$S$4)))) -> 7881.838291
A20: 6 | B20: =EXP(_xlfn.NORM.INV(RAND(),'1. Effektsamband'!$N$3,'1. Effektsamband'!$S$3))*(_xlfn.GAMMA.INV(RAND(),'2. Kostnader'!$K$6,'2. Kostnader'!$L$6)*'1. Effektsamband'!$B$15) -> 2535663.879 | C20: =(_xlfn.GAMMA.INV(RAND(),'2. Kostnader'!$K$9,'2. Kostnader'!$L$9))*(EXP(_xlfn.NORM.INV(RAND(),'1. Effektsamband'!$N$5,'1. Effektsamband'!$S$5))) -> 4586.621627 | D20: =(_xlfn.GAMMA.INV(RAND(),'2. Kostnader'!$L$22,'2. Kostnader'!$M$22))*EXP(_xlfn.NORM.INV(RAND(),'1. Effektsamband'!$N$5,'1. Effektsamband'!$S$5))*'2. Kostnader'!$E$15 -> 5830.446997 | E20: 10417.06862 | F20: =(_xlfn.GAMMA.INV(RAND(),'2. Kostnader'!$K$12,'2. Kostnader'!$L$12))*EXP(_xlfn.NORM.INV(RAND(),'1. Effektsamband'!$N$6,'1. Effektsamband'!$S$6)) -> 58682.43163 | G20: =(_xlfn.GAMMA.INV(RAND(),'2. Kostnader'!$L$26,'2. Kostnader'!$M$26))*EXP(_xlfn.NORM.INV(RAND(),'1. Effektsamband'!$N$6,'1. Effektsamband'!$S$6))*'2. Kostnader'!$E$15 -> 243976.3246 | H20: 302658.7562 | I20: =(_xlfn.GAMMA.INV(RAND(),'2. Kostnader'!$K$8,'2. Kostnader'!$L$8))*EXP(_xlfn.NORM.INV(RAND(),'1. Effektsamband'!$N$7,'1. Effektsamband'!$S$7)) -> 39035.09359 | J20: =(_xlfn.GAMMA.INV(RAND(),'2. Kostnader'!$L$23,'2. Kostnader'!$M$23))*EXP(_xlfn.NORM.INV(RAND(),'1. Effektsamband'!$N$7,'1. Effektsamband'!$S$7))*'2. Kostnader'!$E$15 -> 141246.2175 | K20: 180281.3111 | L20: =(_xlfn.GAMMA.INV(RAND(),'2. Kostnader'!$K$7,'2. Kostnader'!$L$7))*EXP(_xlfn.NORM.INV(RAND(),'1. Effektsamband'!$N$8,'1. Effektsamband'!$S$8)) -> 1373.529375 | M20: =(_xlfn.GAMMA.INV(RAND(),'2. Kostnader'!$L$21,'2. Kostnader'!$M$21))*EXP(_xlfn.NORM.INV(RAND(), '1. Effektsamband'!$N$8,'1. Effektsamband'!$S$8))*'2. Kostnader'!$E$15 -> 179236.7685 | N20: 180610.2979 | O20: =(_xlfn.GAMMA.INV(RAND(),'2. Kostnader'!$K$13,'2. Kostnader'!$L$13))*EXP(_xlfn.NORM.INV(RAND(),'1. Effektsamband'!$N$9,'1. Effektsamband'!$S$9)) -> 8809.021063 | P20: =(_xlfn.GAMMA.INV(RAND(),'2. Kostnader'!$L$28,'2. Kostnader'!$M$28))*EXP(_xlfn.NORM.INV(RAND(),'1. Effektsamband'!$N$9,'1. Effektsamband'!$S$9))*'2. Kostnader'!$E$15 -> 161374.8652 | Q20: 170183.8862 | R20: =(_xlfn.GAMMA.INV(RAND(),'2. Kostnader'!$K$14,'2. Kostnader'!$L$14))*EXP(_xlfn.NORM.INV(RAND(),'1. Effektsamband'!$N$9,'1. Effektsamband'!$S$9)) -> 33292.34452 | S20: =(_xlfn.GAMMA.INV(RAND(),'2. Kostnader'!$L$27,'2. Kostnader'!$M$27))*EXP(_xlfn.NORM.INV(RAND(),'1. Effektsamband'!$N$9,'1. Effektsamband'!$S$9))*'2. Kostnader'!$E$15 -> 868317.4927 | T20: 901609.8373 | U20: =(_xlfn.GAMMA.INV(RAND(),'2. Kostnader'!$K$11,'2. Kostnader'!$L$11))*EXP(_xlfn.NORM.INV(RAND(),'1. Effektsamband'!$N$13,'1. Effektsamband'!$S$13)) -> 74443.66619 | V20: 74443.66619 | W20: =(_xlfn.GAMMA.INV(RAND(),'2. Kostnader'!$K$10,'2. Kostnader'!$L$10)*EXP(_xlfn.NORM.INV(RAND(),'1. Effektsamband'!$N$10,'1. Effektsamband'!$S$10))) -> 28748.01516 | X20: =(_xlfn.GAMMA.INV(RAND(),'2. Kostnader'!$K$10,'2. Kostnader'!$L$10)*(EXP(_xlfn.NORM.INV(RAND(),'1. Effektsamband'!$N$11,'1. Effektsamband'!$S$11)))) -> 5364.400026 | Y20: =(_xlfn.GAMMA.INV(RAND(),'2. Kostnader'!$K$6,'2. Kostnader'!$L$6)*(EXP(_xlfn.NORM.INV(RAND(),'1. Effektsamband'!$N$4,'1. Effektsamband'!$S$4)))) -> 8583.392638
A21: 7 | B21: =EXP(_xlfn.NORM.INV(RAND(),'1. Effektsamband'!$N$3,'1. Effektsamband'!$S$3))*(_xlfn.GAMMA.INV(RAND(),'2. Kostnader'!$K$6,'2. Kostnader'!$L$6)*'1. Effektsamband'!$B$15) -> 3121003.825 | C21: =(_xlfn.GAMMA.INV(RAND(),'2. Kostnader'!$K$9,'2. Kostnader'!$L$9))*(EXP(_xlfn.NORM.INV(RAND(),'1. Effektsamband'!$N$5,'1. Effektsamband'!$S$5))) -> 4153.893126 | D21: =(_xlfn.GAMMA.INV(RAND(),'2. Kostnader'!$L$22,'2. Kostnader'!$M$22))*EXP(_xlfn.NORM.INV(RAND(),'1. Effektsamband'!$N$5,'1. Effektsamband'!$S$5))*'2. Kostnader'!$E$15 -> 2394.627717 | E21: 6548.520843 | F21: =(_xlfn.GAMMA.INV(RAND(),'2. Kostnader'!$K$12,'2. Kostnader'!$L$12))*EXP(_xlfn.NORM.INV(RAND(),'1. Effektsamband'!$N$6,'1. Effektsamband'!$S$6)) -> 861206.1558 | G21: =(_xlfn.GAMMA.INV(RAND(),'2. Kostnader'!$L$26,'2. Kostnader'!$M$26))*EXP(_xlfn.NORM.INV(RAND(),'1. Effektsamband'!$N$6,'1. Effektsamband'!$S$6))*'2. Kostnader'!$E$15 -> 3730413.002 | H21: 4591619.158 | I21: =(_xlfn.GAMMA.INV(RAND(),'2. Kostnader'!$K$8,'2. Kostnader'!$L$8))*EXP(_xlfn.NORM.INV(RAND(),'1. Effektsamband'!$N$7,'1. Effektsamband'!$S$7)) -> 22674.28651 | J21: =(_xlfn.GAMMA.INV(RAND(),'2. Kostnader'!$L$23,'2. Kostnader'!$M$23))*EXP(_xlfn.NORM.INV(RAND(),'1. Effektsamband'!$N$7,'1. Effektsamband'!$S$7))*'2. Kostnader'!$E$15 -> 230275.7739 | K21: 252950.0604 | L21: =(_xlfn.GAMMA.INV(RAND(),'2. Kostnader'!$K$7,'2. Kostnader'!$L$7))*EXP(_xlfn.NORM.INV(RAND(),'1. Effektsamband'!$N$8,'1. Effektsamband'!$S$8)) -> 955.9750577 | M21: =(_xlfn.GAMMA.INV(RAND(),'2. Kostnader'!$L$21,'2. Kostnader'!$M$21))*EXP(_xlfn.NORM.INV(RAND(), '1. Effektsamband'!$N$8,'1. Effektsamband'!$S$8))*'2. Kostnader'!$E$15 -> 109096.1431 | N21: 110052.1182 | O21: =(_xlfn.GAMMA.INV(RAND(),'2. Kostnader'!$K$13,'2. Kostnader'!$L$13))*EXP(_xlfn.NORM.INV(RAND(),'1. Effektsamband'!$N$9,'1. Effektsamband'!$S$9)) -> 3856.273977 | P21: =(_xlfn.GAMMA.INV(RAND(),'2. Kostnader'!$L$28,'2. Kostnader'!$M$28))*EXP(_xlfn.NORM.INV(RAND(),'1. Effektsamband'!$N$9,'1. Effektsamband'!$S$9))*'2. Kostnader'!$E$15 -> 106637.6414 | Q21: 110493.9154 | R21: =(_xlfn.GAMMA.INV(RAND(),'2. Kostnader'!$K$14,'2. Kostnader'!$L$14))*EXP(_xlfn.NORM.INV(RAND(),'1. Effektsamband'!$N$9,'1. Effektsamband'!$S$9)) -> 35483.18015 | S21: =(_xlfn.GAMMA.INV(RAND(),'2. Kostnader'!$L$27,'2. Kostnader'!$M$27))*EXP(_xlfn.NORM.INV(RAND(),'1. Effektsamband'!$N$9,'1. Effektsamband'!$S$9))*'2. Kostnader'!$E$15 -> 876247.287 | T21: 911730.4672 | U21: =(_xlfn.GAMMA.INV(RAND(),'2. Kostnader'!$K$11,'2. Kostnader'!$L$11))*EXP(_xlfn.NORM.INV(RAND(),'1. Effektsamband'!$N$13,'1. Effektsamband'!$S$13)) -> 68633.97015 | V21: 68633.97015 | W21: =(_xlfn.GAMMA.INV(RAND(),'2. Kostnader'!$K$10,'2. Kostnader'!$L$10)*EXP(_xlfn.NORM.INV(RAND(),'1. Effektsamband'!$N$10,'1. Effektsamband'!$S$10))) -> 13694.76981 | X21: =(_xlfn.GAMMA.INV(RAND(),'2. Kostnader'!$K$10,'2. Kostnader'!$L$10)*(EXP(_xlfn.NORM.INV(RAND(),'1. Effektsamband'!$N$11,'1. Effektsamband'!$S$11)))) -> 2906.665864 | Y21: =(_xlfn.GAMMA.INV(RAND(),'2. Kostnader'!$K$6,'2. Kostnader'!$L$6)*(EXP(_xlfn.NORM.INV(RAND(),'1. Effektsamband'!$N$4,'1. Effektsamband'!$S$4)))) -> 17459.16421
A22: 8 | B22: =EXP(_xlfn.NORM.INV(RAND(),'1. Effektsamband'!$N$3,'1. Effektsamband'!$S$3))*(_xlfn.GAMMA.INV(RAND(),'2. Kostnader'!$K$6,'2. Kostnader'!$L$6)*'1. Effektsamband'!$B$15) -> 3395627.424 | C22: =(_xlfn.GAMMA.INV(RAND(),'2. Kostnader'!$K$9,'2. Kostnader'!$L$9))*(EXP(_xlfn.NORM.INV(RAND(),'1. Effektsamband'!$N$5,'1. Effektsamband'!$S$5))) -> 6647.500648 | D22: =(_xlfn.GAMMA.INV(RAND(),'2. Kostnader'!$L$22,'2. Kostnader'!$M$22))*EXP(_xlfn.NORM.INV(RAND(),'1. Effektsamband'!$N$5,'1. Effektsamband'!$S$5))*'2. Kostnader'!$E$15 -> 6939.9897 | E22: 13587.49035 | F22: =(_xlfn.GAMMA.INV(RAND(),'2. Kostnader'!$K$12,'2. Kostnader'!$L$12))*EXP(_xlfn.NORM.INV(RAND(),'1. Effektsamband'!$N$6,'1. Effektsamband'!$S$6)) -> 2539445.711 | G22: =(_xlfn.GAMMA.INV(RAND(),'2. Kostnader'!$L$26,'2. Kostnader'!$M$26))*EXP(_xlfn.NORM.INV(RAND(),'1. Effektsamband'!$N$6,'1. Effektsamband'!$S$6))*'2. Kostnader'!$E$15 -> 1235686.439 | H22: 3775132.15 | I22: =(_xlfn.GAMMA.INV(RAND(),'2. Kostnader'!$K$8,'2. Kostnader'!$L$8))*EXP(_xlfn.NORM.INV(RAND(),'1. Effektsamband'!$N$7,'1. Effektsamband'!$S$7)) -> 50167.45019 | J22: =(_xlfn.GAMMA.INV(RAND(),'2. Kostnader'!$L$23,'2. Kostnader'!$M$23))*EXP(_xlfn.NORM.INV(RAND(),'1. Effektsamband'!$N$7,'1. Effektsamband'!$S$7))*'2. Kostnader'!$E$15 -> 154835.0211 | K22: 205002.4713 | L22: =(_xlfn.GAMMA.INV(RAND(),'2. Kostnader'!$K$7,'2. Kostnader'!$L$7))*EXP(_xlfn.NORM.INV(RAND(),'1. Effektsamband'!$N$8,'1. Effektsamband'!$S$8)) -> 931.76638 | M22: =(_xlfn.GAMMA.INV(RAND(),'2. Kostnader'!$L$21,'2. Kostnader'!$M$21))*EXP(_xlfn.NORM.INV(RAND(), '1. Effektsamband'!$N$8,'1. Effektsamband'!$S$8))*'2. Kostnader'!$E$15 -> 141564.3802 | N22: 142496.1466 | O22: =(_xlfn.GAMMA.INV(RAND(),'2. Kostnader'!$K$13,'2. Kostnader'!$L$13))*EXP(_xlfn.NORM.INV(RAND(),'1. Effektsamband'!$N$9,'1. Effektsamband'!$S$9)) -> 5184.67877 | P22: =(_xlfn.GAMMA.INV(RAND(),'2. Kostnader'!$L$28,'2. Kostnader'!$M$28))*EXP(_xlfn.NORM.INV(RAND(),'1. Effektsamband'!$N$9,'1. Effektsamband'!$S$9))*'2. Kostnader'!$E$15 -> 321637.2578 | Q22: 326821.9365 | R22: =(_xlfn.GAMMA.INV(RAND(),'2. Kostnader'!$K$14,'2. Kostnader'!$L$14))*EXP(_xlfn.NORM.INV(RAND(),'1. Effektsamband'!$N$9,'1. Effektsamband'!$S$9)) -> 71504.43257 | S22: =(_xlfn.GAMMA.INV(RAND(),'2. Kostnader'!$L$27,'2. Kostnader'!$M$27))*EXP(_xlfn.NORM.INV(RAND(),'1. Effektsamband'!$N$9,'1. Effektsamband'!$S$9))*'2. Kostnader'!$E$15 -> 812235.463 | T22: 883739.8956 | U22: =(_xlfn.GAMMA.INV(RAND(),'2. Kostnader'!$K$11,'2. Kostnader'!$L$11))*EXP(_xlfn.NORM.INV(RAND(),'1. Effektsamband'!$N$13,'1. Effektsamband'!$S$13)) -> 67640.1565 | V22: 67640.1565 | W22: =(_xlfn.GAMMA.INV(RAND(),'2. Kostnader'!$K$10,'2. Kostnader'!$L$10)*EXP(_xlfn.NORM.INV(RAND(),'1. Effektsamband'!$N$10,'1. Effektsamband'!$S$10))) -> 7098.321494 | X22: =(_xlfn.GAMMA.INV(RAND(),'2. Kostnader'!$K$10,'2. Kostnader'!$L$10)*(EXP(_xlfn.NORM.INV(RAND(),'1. Effektsamband'!$N$11,'1. Effektsamband'!$S$11)))) -> 8674.294191 | Y22: =(_xlfn.GAMMA.INV(RAND(),'2. Kostnader'!$K$6,'2. Kostnader'!$L$6)*(EXP(_xlfn.NORM.INV(RAND(),'1. Effektsamband'!$N$4,'1. Effektsamband'!$S$4)))) -> 23920.27016
A23: 9 | B23: =EXP(_xlfn.NORM.INV(RAND(),'1. Effektsamband'!$N$3,'1. Effektsamband'!$S$3))*(_xlfn.GAMMA.INV(RAND(),'2. Kostnader'!$K$6,'2. Kostnader'!$L$6)*'1. Effektsamband'!$B$15) -> 6811287.664 | C23: =(_xlfn.GAMMA.INV(RAND(),'2. Kostnader'!$K$9,'2. Kostnader'!$L$9))*(EXP(_xlfn.NORM.INV(RAND(),'1. Effektsamband'!$N$5,'1. Effektsamband'!$S$5))) -> 892.6540518 | D23: =(_xlfn.GAMMA.INV(RAND(),'2. Kostnader'!$L$22,'2. Kostnader'!$M$22))*EXP(_xlfn.NORM.INV(RAND(),'1. Effektsamband'!$N$5,'1. Effektsamband'!$S$5))*'2. Kostnader'!$E$15 -> 1365.126476 | E23: 2257.780528 | F23: =(_xlfn.GAMMA.INV(RAND(),'2. Kostnader'!$K$12,'2. Kostnader'!$L$12))*EXP(_xlfn.NORM.INV(RAND(),'1. Effektsamband'!$N$6,'1. Effektsamband'!$S$6)) -> 75422.2507 | G23: =(_xlfn.GAMMA.INV(RAND(),'2. Kostnader'!$L$26,'2. Kostnader'!$M$26))*EXP(_xlfn.NORM.INV(RAND(),'1. Effektsamband'!$N$6,'1. Effektsamband'!$S$6))*'2. Kostnader'!$E$15 -> 304536.6404 | H23: 379958.8911 | I23: =(_xlfn.GAMMA.INV(RAND(),'2. Kostnader'!$K$8,'2. Kostnader'!$L$8))*EXP(_xlfn.NORM.INV(RAND(),'1. Effektsamband'!$N$7,'1. Effektsamband'!$S$7)) -> 62417.21712 | J23: =(_xlfn.GAMMA.INV(RAND(),'2. Kostnader'!$L$23,'2. Kostnader'!$M$23))*EXP(_xlfn.NORM.INV(RAND(),'1. Effektsamband'!$N$7,'1. Effektsamband'!$S$7))*'2. Kostnader'!$E$15 -> 360031.0802 | K23: 422448.2973 | L23: =(_xlfn.GAMMA.INV(RAND(),'2. Kostnader'!$K$7,'2. Kostnader'!$L$7))*EXP(_xlfn.NORM.INV(RAND(),'1. Effektsamband'!$N$8,'1. Effektsamband'!$S$8)) -> 1416.360219 | M23: =(_xlfn.GAMMA.INV(RAND(),'2. Kostnader'!$L$21,'2. Kostnader'!$M$21))*EXP(_xlfn.NORM.INV(RAND(), '1. Effektsamband'!$N$8,'1. Effektsamband'!$S$8))*'2. Kostnader'!$E$15 -> 185164.6215 | N23: 186580.9817 | O23: =(_xlfn.GAMMA.INV(RAND(),'2. Kostnader'!$K$13,'2. Kostnader'!$L$13))*EXP(_xlfn.NORM.INV(RAND(),'1. Effektsamband'!$N$9,'1. Effektsamband'!$S$9)) -> 3098.303107 | P23: =(_xlfn.GAMMA.INV(RAND(),'2. Kostnader'!$L$28,'2. Kostnader'!$M$28))*EXP(_xlfn.NORM.INV(RAND(),'1. Effektsamband'!$N$9,'1. Effektsamband'!$S$9))*'2. Kostnader'!$E$15 -> 67541.7994 | Q23: 70640.10251 | R23: =(_xlfn.GAMMA.INV(RAND(),'2. Kostnader'!$K$14,'2. Kostnader'!$L$14))*EXP(_xlfn.NORM.INV(RAND(),'1. Effektsamband'!$N$9,'1. Effektsamband'!$S$9)) -> 47857.07325 | S23: =(_xlfn.GAMMA.INV(RAND(),'2. Kostnader'!$L$27,'2. Kostnader'!$M$27))*EXP(_xlfn.NORM.INV(RAND(),'1. Effektsamband'!$N$9,'1. Effektsamband'!$S$9))*'2. Kostnader'!$E$15 -> 519367.2256 | T23: 567224.2989 | U23: =(_xlfn.GAMMA.INV(RAND(),'2. Kostnader'!$K$11,'2. Kostnader'!$L$11))*EXP(_xlfn.NORM.INV(RAND(),'1. Effektsamband'!$N$13,'1. Effektsamband'!$S$13)) -> 59079.88951 | V23: 59079.88951 | W23: =(_xlfn.GAMMA.INV(RAND(),'2. Kostnader'!$K$10,'2. Kostnader'!$L$10)*EXP(_xlfn.NORM.INV(RAND(),'1. Effektsamband'!$N$10,'1. Effektsamband'!$S$10))) -> 52820.36563 | X23: =(_xlfn.GAMMA.INV(RAND(),'2. Kostnader'!$K$10,'2. Kostnader'!$L$10)*(EXP(_xlfn.NORM.INV(RAND(),'1. Effektsamband'!$N$11,'1. Effektsamband'!$S$11)))) -> 12182.72114 | Y23: =(_xlfn.GAMMA.INV(RAND(),'2. Kostnader'!$K$6,'2. Kostnader'!$L$6)*(EXP(_xlfn.NORM.INV(RAND(),'1. Effektsamband'!$N$4,'1. Effektsamband'!$S$4)))) -> 41317.86896
A24: 10 | B24: =EXP(_xlfn.NORM.INV(RAND(),'1. Effektsamband'!$N$3,'1. Effektsamband'!$S$3))*(_xlfn.GAMMA.INV(RAND(),'2. Kostnader'!$K$6,'2. Kostnader'!$L$6)*'1. Effektsamband'!$B$15) -> 3732099.863 | C24: =(_xlfn.GAMMA.INV(RAND(),'2. Kostnader'!$K$9,'2. Kostnader'!$L$9))*(EXP(_xlfn.NORM.INV(RAND(),'1. Effektsamband'!$N$5,'1. Effektsamband'!$S$5))) -> 13800.32844 | D24: =(_xlfn.GAMMA.INV(RAND(),'2. Kostnader'!$L$22,'2. Kostnader'!$M$22))*EXP(_xlfn.NORM.INV(RAND(),'1. Effektsamband'!$N$5,'1. Effektsamband'!$S$5))*'2. Kostnader'!$E$15 -> 2141.143545 | E24: 15941.47199 | F24: =(_xlfn.GAMMA.INV(RAND(),'2. Kostnader'!$K$12,'2. Kostnader'!$L$12))*EXP(_xlfn.NORM.INV(RAND(),'1. Effektsamband'!$N$6,'1. Effektsamband'!$S$6)) -> 145473.4917 | G24: =(_xlfn.GAMMA.INV(RAND(),'2. Kostnader'!$L$26,'2. Kostnader'!$M$26))*EXP(_xlfn.NORM.INV(RAND(),'1. Effektsamband'!$N$6,'1. Effektsamband'!$S$6))*'2. Kostnader'!$E$15 -> 656225.5875 | H24: 801699.0792 | I24: =(_xlfn.GAMMA.INV(RAND(),'2. Kostnader'!$K$8,'2. Kostnader'!$L$8))*EXP(_xlfn.NORM.INV(RAND(),'1. Effektsamband'!$N$7,'1. Effektsamband'!$S$7)) -> 28778.4656 | J24: =(_xlfn.GAMMA.INV(RAND(),'2. Kostnader'!$L$23,'2. Kostnader'!$M$23))*EXP(_xlfn.NORM.INV(RAND(),'1. Effektsamband'!$N$7,'1. Effektsamband'!$S$7))*'2. Kostnader'!$E$15 -> 136584.6144 | K24: 165363.08 | L24: =(_xlfn.GAMMA.INV(RAND(),'2. Kostnader'!$K$7,'2. Kostnader'!$L$7))*EXP(_xlfn.NORM.INV(RAND(),'1. Effektsamband'!$N$8,'1. Effektsamband'!$S$8)) -> 1327.716886 | M24: =(_xlfn.GAMMA.INV(RAND(),'2. Kostnader'!$L$21,'2. Kostnader'!$M$21))*EXP(_xlfn.NORM.INV(RAND(), '1. Effektsamband'!$N$8,'1. Effektsamband'!$S$8))*'2. Kostnader'!$E$15 -> 104456.3452 | N24: 105784.0621 | O24: =(_xlfn.GAMMA.INV(RAND(),'2. Kostnader'!$K$13,'2. Kostnader'!$L$13))*EXP(_xlfn.NORM.INV(RAND(),'1. Effektsamband'!$N$9,'1. Effektsamband'!$S$9)) -> 3397.857992 | P24: =(_xlfn.GAMMA.INV(RAND(),'2. Kostnader'!$L$28,'2. Kostnader'!$M$28))*EXP(_xlfn.NORM.INV(RAND(),'1. Effektsamband'!$N$9,'1. Effektsamband'!$S$9))*'2. Kostnader'!$E$15 -> 89057.68223 | Q24: 92455.54022 | R24: =(_xlfn.GAMMA.INV(RAND(),'2. Kostnader'!$K$14,'2. Kostnader'!$L$14))*EXP(_xlfn.NORM.INV(RAND(),'1. Effektsamband'!$N$9,'1. Effektsamband'!$S$9)) -> 20357.48223 | S24: =(_xlfn.GAMMA.INV(RAND(),'2. Kostnader'!$L$27,'2. Kostnader'!$M$27))*EXP(_xlfn.NORM.INV(RAND(),'1. Effektsamband'!$N$9,'1. Effektsamband'!$S$9))*'2. Kostnader'!$E$15 -> 344389.2312 | T24: 364746.7134 | U24: =(_xlfn.GAMMA.INV(RAND(),'2. Kostnader'!$K$11,'2. Kostnader'!$L$11))*EXP(_xlfn.NORM.INV(RAND(),'1. Effektsamband'!$N$13,'1. Effektsamband'!$S$13)) -> 84403.15675 | V24: 84403.15675 | W24: =(_xlfn.GAMMA.INV(RAND(),'2. Kostnader'!$K$10,'2. Kostnader'!$L$10)*EXP(_xlfn.NORM.INV(RAND(),'1. Effektsamband'!$N$10,'1. Effektsamband'!$S$10))) -> 14486.24514 | X24: =(_xlfn.GAMMA.INV(RAND(),'2. Kostnader'!$K$10,'2. Kostnader'!$L$10)*(EXP(_xlfn.NORM.INV(RAND(),'1. Effektsamband'!$N$11,'1. Effektsamband'!$S$11)))) -> 11215.74549 | Y24: =(_xlfn.GAMMA.INV(RAND(),'2. Kostnader'!$K$6,'2. Kostnader'!$L$6)*(EXP(_xlfn.NORM.INV(RAND(),'1. Effektsamband'!$N$4,'1. Effektsamband'!$S$4)))) -> 28111.49754
A25: 11 | B25: =EXP(_xlfn.NORM.INV(RAND(),'1. Effektsamband'!$N$3,'1. Effektsamband'!$S$3))*(_xlfn.GAMMA.INV(RAND(),'2. Kostnader'!$K$6,'2. Kostnader'!$L$6)*'1. Effektsamband'!$B$15) -> 3323629.683 | C25: =(_xlfn.GAMMA.INV(RAND(),'2. Kostnader'!$K$9,'2. Kostnader'!$L$9))*(EXP(_xlfn.NORM.INV(RAND(),'1. Effektsamband'!$N$5,'1. Effektsamband'!$S$5))) -> 5713.494039 | D25: =(_xlfn.GAMMA.INV(RAND(),'2. Kostnader'!$L$22,'2. Kostnader'!$M$22))*EXP(_xlfn.NORM.INV(RAND(),'1. Effektsamband'!$N$5,'1. Effektsamband'!$S$5))*'2. Kostnader'!$E$15 -> 2863.256041 | E25: 8576.750079 | F25: =(_xlfn.GAMMA.INV(RAND(),'2. Kostnader'!$K$12,'2. Kostnader'!$L$12))*EXP(_xlfn.NORM.INV(RAND(),'1. Effektsamband'!$N$6,'1. Effektsamband'!$S$6)) -> 1569791.63 | G25: =(_xlfn.GAMMA.INV(RAND(),'2. Kostnader'!$L$26,'2. Kostnader'!$M$26))*EXP(_xlfn.NORM.INV(RAND(),'1. Effektsamband'!$N$6,'1. Effektsamband'!$S$6))*'2. Kostnader'!$E$15 -> 186784.1421 | H25: 1756575.772 | I25: =(_xlfn.GAMMA.INV(RAND(),'2. Kostnader'!$K$8,'2. Kostnader'!$L$8))*EXP(_xlfn.NORM.INV(RAND(),'1. Effektsamband'!$N$7,'1. Effektsamband'!$S$7)) -> 47883.29051 | J25: =(_xlfn.GAMMA.INV(RAND(),'2. Kostnader'!$L$23,'2. Kostnader'!$M$23))*EXP(_xlfn.NORM.INV(RAND(),'1. Effektsamband'!$N$7,'1. Effektsamband'!$S$7))*'2. Kostnader'!$E$15 -> 347866.7935 | K25: 395750.084 | L25: =(_xlfn.GAMMA.INV(RAND(),'2. Kostnader'!$K$7,'2. Kostnader'!$L$7))*EXP(_xlfn.NORM.INV(RAND(),'1. Effektsamband'!$N$8,'1. Effektsamband'!$S$8)) -> 1214.985436 | M25: =(_xlfn.GAMMA.INV(RAND(),'2. Kostnader'!$L$21,'2. Kostnader'!$M$21))*EXP(_xlfn.NORM.INV(RAND(), '1. Effektsamband'!$N$8,'1. Effektsamband'!$S$8))*'2. Kostnader'!$E$15 -> 128800.2067 | N25: 130015.1922 | O25: =(_xlfn.GAMMA.INV(RAND(),'2. Kostnader'!$K$13,'2. Kostnader'!$L$13))*EXP(_xlfn.NORM.INV(RAND(),'1. Effektsamband'!$N$9,'1. Effektsamband'!$S$9)) -> 3768.33192 | P25: =(_xlfn.GAMMA.INV(RAND(),'2. Kostnader'!$L$28,'2. Kostnader'!$M$28))*EXP(_xlfn.NORM.INV(RAND(),'1. Effektsamband'!$N$9,'1. Effektsamband'!$S$9))*'2. Kostnader'!$E$15 -> 97039.61979 | Q25: 100807.9517 | R25: =(_xlfn.GAMMA.INV(RAND(),'2. Kostnader'!$K$14,'2. Kostnader'!$L$14))*EXP(_xlfn.NORM.INV(RAND(),'1. Effektsamband'!$N$9,'1. Effektsamband'!$S$9)) -> 47139.48018 | S25: =(_xlfn.GAMMA.INV(RAND(),'2. Kostnader'!$L$27,'2. Kostnader'!$M$27))*EXP(_xlfn.NORM.INV(RAND(),'1. Effektsamband'!$N$9,'1. Effektsamband'!$S$9))*'2. Kostnader'!$E$15 -> 356840.5307 | T25: 403980.0109 | U25: =(_xlfn.GAMMA.INV(RAND(),'2. Kostnader'!$K$11,'2. Kostnader'!$L$11))*EXP(_xlfn.NORM.INV(RAND(),'1. Effektsamband'!$N$13,'1. Effektsamband'!$S$13)) -> 59110.73526 | V25: 59110.73526 | W25: =(_xlfn.GAMMA.INV(RAND(),'2. Kostnader'!$K$10,'2. Kostnader'!$L$10)*EXP(_xlfn.NORM.INV(RAND(),'1. Effektsamband'!$N$10,'1. Effektsamband'!$S$10))) -> 21241.66951 | X25: =(_xlfn.GAMMA.INV(RAND(),'2. Kostnader'!$K$10,'2. Kostnader'!$L$10)*(EXP(_xlfn.NORM.INV(RAND(),'1. Effektsamband'!$N$11,'1. Effektsamband'!$S$11)))) -> 16374.42699 | Y25: =(_xlfn.GAMMA.INV(RAND(),'2. Kostnader'!$K$6,'2. Kostnader'!$L$6)*(EXP(_xlfn.NORM.INV(RAND(),'1. Effektsamband'!$N$4,'1. Effektsamband'!$S$4)))) -> 21623.86903
A26: 12 | B26: =EXP(_xlfn.NORM.INV(RAND(),'1. Effektsamband'!$N$3,'1. Effektsamband'!$S$3))*(_xlfn.GAMMA.INV(RAND(),'2. Kostnader'!$K$6,'2. Kostnader'!$L$6)*'1. Effektsamband'!$B$15) -> 3200003.165 | C26: =(_xlfn.GAMMA.INV(RAND(),'2. Kostnader'!$K$9,'2. Kostnader'!$L$9))*(EXP(_xlfn.NORM.INV(RAND(),'1. Effektsamband'!$N$5,'1. Effektsamband'!$S$5))) -> 1373.282734 | D26: =(_xlfn.GAMMA.INV(RAND(),'2. Kostnader'!$L$22,'2. Kostnader'!$M$22))*EXP(_xlfn.NORM.INV(RAND(),'1. Effektsamband'!$N$5,'1. Effektsamband'!$S$5))*'2. Kostnader'!$E$15 -> 7249.079108 | E26: 8622.361842 | F26: =(_xlfn.GAMMA.INV(RAND(),'2. Kostnader'!$K$12,'2. Kostnader'!$L$12))*EXP(_xlfn.NORM.INV(RAND(),'1. Effektsamband'!$N$6,'1. Effektsamband'!$S$6)) -> 117868.2101 | G26: =(_xlfn.GAMMA.INV(RAND(),'2. Kostnader'!$L$26,'2. Kostnader'!$M$26))*EXP(_xlfn.NORM.INV(RAND(),'1. Effektsamband'!$N$6,'1. Effektsamband'!$S$6))*'2. Kostnader'!$E$15 -> 3419264.864 | H26: 3537133.074 | I26: =(_xlfn.GAMMA.INV(RAND(),'2. Kostnader'!$K$8,'2. Kostnader'!$L$8))*EXP(_xlfn.NORM.INV(RAND(),'1. Effektsamband'!$N$7,'1. Effektsamband'!$S$7)) -> 21397.94927 | J26: =(_xlfn.GAMMA.INV(RAND(),'2. Kostnader'!$L$23,'2. Kostnader'!$M$23))*EXP(_xlfn.NORM.INV(RAND(),'1. Effektsamband'!$N$7,'1. Effektsamband'!$S$7))*'2. Kostnader'!$E$15 -> 489606.7957 | K26: 511004.745 | L26: =(_xlfn.GAMMA.INV(RAND(),'2. Kostnader'!$K$7,'2. Kostnader'!$L$7))*EXP(_xlfn.NORM.INV(RAND(),'1. Effektsamband'!$N$8,'1. Effektsamband'!$S$8)) -> 906.7778001 | M26: =(_xlfn.GAMMA.INV(RAND(),'2. Kostnader'!$L$21,'2. Kostnader'!$M$21))*EXP(_xlfn.NORM.INV(RAND(), '1. Effektsamband'!$N$8,'1. Effektsamband'!$S$8))*'2. Kostnader'!$E$15 -> 135787.6261 | N26: 136694.4039 | O26: =(_xlfn.GAMMA.INV(RAND(),'2. Kostnader'!$K$13,'2. Kostnader'!$L$13))*EXP(_xlfn.NORM.INV(RAND(),'1. Effektsamband'!$N$9,'1. Effektsamband'!$S$9)) -> 5379.847668 | P26: =(_xlfn.GAMMA.INV(RAND(),'2. Kostnader'!$L$28,'2. Kostnader'!$M$28))*EXP(_xlfn.NORM.INV(RAND(),'1. Effektsamband'!$N$9,'1. Effektsamband'!$S$9))*'2. Kostnader'!$E$15 -> 101227.3471 | Q26: 106607.1948 | R26: =(_xlfn.GAMMA.INV(RAND(),'2. Kostnader'!$K$14,'2. Kostnader'!$L$14))*EXP(_xlfn.NORM.INV(RAND(),'1. Effektsamband'!$N$9,'1. Effektsamband'!$S$9)) -> 51148.2285 | S26: =(_xlfn.GAMMA.INV(RAND(),'2. Kostnader'!$L$27,'2. Kostnader'!$M$27))*EXP(_xlfn.NORM.INV(RAND(),'1. Effektsamband'!$N$9,'1. Effektsamband'!$S$9))*'2. Kostnader'!$E$15 -> 488863.1222 | T26: 540011.3507 | U26: =(_xlfn.GAMMA.INV(RAND(),'2. Kostnader'!$K$11,'2. Kostnader'!$L$11))*EXP(_xlfn.NORM.INV(RAND(),'1. Effektsamband'!$N$13,'1. Effektsamband'!$S$13)) -> 69042.21217 | V26: 69042.21217 | W26: =(_xlfn.GAMMA.INV(RAND(),'2. Kostnader'!$K$10,'2. Kostnader'!$L$10)*EXP(_xlfn.NORM.INV(RAND(),'1. Effektsamband'!$N$10,'1. Effektsamband'!$S$10))) -> 12175.64795 | X26: =(_xlfn.GAMMA.INV(RAND(),'2. Kostnader'!$K$10,'2. Kostnader'!$L$10)*(EXP(_xlfn.NORM.INV(RAND(),'1. Effektsamband'!$N$11,'1. Effektsamband'!$S$11)))) -> 21160.55179 | Y26: =(_xlfn.GAMMA.INV(RAND(),'2. Kostnader'!$K$6,'2. Kostnader'!$L$6)*(EXP(_xlfn.NORM.INV(RAND(),'1. Effektsamband'!$N$4,'1. Effektsamband'!$S$4)))) -> 26010.71247
A27: 13 | B27: =EXP(_xlfn.NORM.INV(RAND(),'1. Effektsamband'!$N$3,'1. Effektsamband'!$S$3))*(_xlfn.GAMMA.INV(RAND(),'2. Kostnader'!$K$6,'2. Kostnader'!$L$6)*'1. Effektsamband'!$B$15) -> 4506558.161 | C27: =(_xlfn.GAMMA.INV(RAND(),'2. Kostnader'!$K$9,'2. Kostnader'!$L$9))*(EXP(_xlfn.NORM.INV(RAND(),'1. Effektsamband'!$N$5,'1. Effektsamband'!$S$5))) -> 6714.862178 | D27: =(_xlfn.GAMMA.INV(RAND(),'2. Kostnader'!$L$22,'2. Kostnader'!$M$22))*EXP(_xlfn.NORM.INV(RAND(),'1. Effektsamband'!$N$5,'1. Effektsamband'!$S$5))*'2. Kostnader'!$E$15 -> 1350.529197 | E27: 8065.391375 | F27: =(_xlfn.GAMMA.INV(RAND(),'2. Kostnader'!$K$12,'2. Kostnader'!$L$12))*EXP(_xlfn.NORM.INV(RAND(),'1. Effektsamband'!$N$6,'1. Effektsamband'!$S$6)) -> 792719.8963 | G27: =(_xlfn.GAMMA.INV(RAND(),'2. Kostnader'!$L$26,'2. Kostnader'!$M$26))*EXP(_xlfn.NORM.INV(RAND(),'1. Effektsamband'!$N$6,'1. Effektsamband'!$S$6))*'2. Kostnader'!$E$15 -> 607175.8125 | H27: 1399895.709 | I27: =(_xlfn.GAMMA.INV(RAND(),'2. Kostnader'!$K$8,'2. Kostnader'!$L$8))*EXP(_xlfn.NORM.INV(RAND(),'1. Effektsamband'!$N$7,'1. Effektsamband'!$S$7)) -> 23720.60908 | J27: =(_xlfn.GAMMA.INV(RAND(),'2. Kostnader'!$L$23,'2. Kostnader'!$M$23))*EXP(_xlfn.NORM.INV(RAND(),'1. Effektsamband'!$N$7,'1. Effektsamband'!$S$7))*'2. Kostnader'!$E$15 -> 264202.5374 | K27: 287923.1465 | L27: =(_xlfn.GAMMA.INV(RAND(),'2. Kostnader'!$K$7,'2. Kostnader'!$L$7))*EXP(_xlfn.NORM.INV(RAND(),'1. Effektsamband'!$N$8,'1. Effektsamband'!$S$8)) -> 1209.955305 | M27: =(_xlfn.GAMMA.INV(RAND(),'2. Kostnader'!$L$21,'2. Kostnader'!$M$21))*EXP(_xlfn.NORM.INV(RAND(), '1. Effektsamband'!$N$8,'1. Effektsamband'!$S$8))*'2. Kostnader'!$E$15 -> 129660.0296 | N27: 130869.9849 | O27: =(_xlfn.GAMMA.INV(RAND(),'2. Kostnader'!$K$13,'2. Kostnader'!$L$13))*EXP(_xlfn.NORM.INV(RAND(),'1. Effektsamband'!$N$9,'1. Effektsamband'!$S$9)) -> 5323.639147 | P27: =(_xlfn.GAMMA.INV(RAND(),'2. Kostnader'!$L$28,'2. Kostnader'!$M$28))*EXP(_xlfn.NORM.INV(RAND(),'1. Effektsamband'!$N$9,'1. Effektsamband'!$S$9))*'2. Kostnader'!$E$15 -> 120309.4266 | Q27: 125633.0658 | R27: =(_xlfn.GAMMA.INV(RAND(),'2. Kostnader'!$K$14,'2. Kostnader'!$L$14))*EXP(_xlfn.NORM.INV(RAND(),'1. Effektsamband'!$N$9,'1. Effektsamband'!$S$9)) -> 92479.50005 | S27: =(_xlfn.GAMMA.INV(RAND(),'2. Kostnader'!$L$27,'2. Kostnader'!$M$27))*EXP(_xlfn.NORM.INV(RAND(),'1. Effektsamband'!$N$9,'1. Effektsamband'!$S$9))*'2. Kostnader'!$E$15 -> 261775.7337 | T27: 354255.2337 | U27: =(_xlfn.GAMMA.INV(RAND(),'2. Kostnader'!$K$11,'2. Kostnader'!$L$11))*EXP(_xlfn.NORM.INV(RAND(),'1. Effektsamband'!$N$13,'1. Effektsamband'!$S$13)) -> 66246.28791 | V27: 66246.28791 | W27: =(_xlfn.GAMMA.INV(RAND(),'2. Kostnader'!$K$10,'2. Kostnader'!$L$10)*EXP(_xlfn.NORM.INV(RAND(),'1. Effektsamband'!$N$10,'1. Effektsamband'!$S$10))) -> 25573.66299 | X27: =(_xlfn.GAMMA.INV(RAND(),'2. Kostnader'!$K$10,'2. Kostnader'!$L$10)*(EXP(_xlfn.NORM.INV(RAND(),'1. Effektsamband'!$N$11,'1. Effektsamband'!$S$11)))) -> 7745.028441 | Y27: =(_xlfn.GAMMA.INV(RAND(),'2. Kostnader'!$K$6,'2. Kostnader'!$L$6)*(EXP(_xlfn.NORM.INV(RAND(),'1. Effektsamband'!$N$4,'1. Effektsamband'!$S$4)))) -> 33587.37021
A28: 14 | B28: =EXP(_xlfn.NORM.INV(RAND(),'1. Effektsamband'!$N$3,'1. Effektsamband'!$S$3))*(_xlfn.GAMMA.INV(RAND(),'2. Kostnader'!$K$6,'2. Kostnader'!$L$6)*'1. Effektsamband'!$B$15) -> 1911542.387 | C28: =(_xlfn.GAMMA.INV(RAND(),'2. Kostnader'!$K$9,'2. Kostnader'!$L$9))*(EXP(_xlfn.NORM.INV(RAND(),'1. Effektsamband'!$N$5,'1. Effektsamband'!$S$5))) -> 5973.90074 | D28: =(_xlfn.GAMMA.INV(RAND(),'2. Kostnader'!$L$22,'2. Kostnader'!$M$22))*EXP(_xlfn.NORM.INV(RAND(),'1. Effektsamband'!$N$5,'1. Effektsamband'!$S$5))*'2. Kostnader'!$E$15 -> 6573.48365 | E28: 12547.38439 | F28: =(_xlfn.GAMMA.INV(RAND(),'2. Kostnader'!$K$12,'2. Kostnader'!$L$12))*EXP(_xlfn.NORM.INV(RAND(),'1. Effektsamband'!$N$6,'1. Effektsamband'!$S$6)) -> 158576.8544 | G28: =(_xlfn.GAMMA.INV(RAND(),'2. Kostnader'!$L$26,'2. Kostnader'!$M$26))*EXP(_xlfn.NORM.INV(RAND(),'1. Effektsamband'!$N$6,'1. Effektsamband'!$S$6))*'2. Kostnader'!$E$15 -> 305945.5866 | H28: 464522.441 | I28: =(_xlfn.GAMMA.INV(RAND(),'2. Kostnader'!$K$8,'2. Kostnader'!$L$8))*EXP(_xlfn.NORM.INV(RAND(),'1. Effektsamband'!$N$7,'1. Effektsamband'!$S$7)) -> 32116.70758 | J28: =(_xlfn.GAMMA.INV(RAND(),'2. Kostnader'!$L$23,'2. Kostnader'!$M$23))*EXP(_xlfn.NORM.INV(RAND(),'1. Effektsamband'!$N$7,'1. Effektsamband'!$S$7))*'2. Kostnader'!$E$15 -> 300168.4414 | K28: 332285.149 | L28: =(_xlfn.GAMMA.INV(RAND(),'2. Kostnader'!$K$7,'2. Kostnader'!$L$7))*EXP(_xlfn.NORM.INV(RAND(),'1. Effektsamband'!$N$8,'1. Effektsamband'!$S$8)) -> 1106.089223 | M28: =(_xlfn.GAMMA.INV(RAND(),'2. Kostnader'!$L$21,'2. Kostnader'!$M$21))*EXP(_xlfn.NORM.INV(RAND(), '1. Effektsamband'!$N$8,'1. Effektsamband'!$S$8))*'2. Kostnader'!$E$15 -> 80727.47473 | N28: 81833.56395 | O28: =(_xlfn.GAMMA.INV(RAND(),'2. Kostnader'!$K$13,'2. Kostnader'!$L$13))*EXP(_xlfn.NORM.INV(RAND(),'1. Effektsamband'!$N$9,'1. Effektsamband'!$S$9)) -> 6708.440714 | P28: =(_xlfn.GAMMA.INV(RAND(),'2. Kostnader'!$L$28,'2. Kostnader'!$M$28))*EXP(_xlfn.NORM.INV(RAND(),'1. Effektsamband'!$N$9,'1. Effektsamband'!$S$9))*'2. Kostnader'!$E$15 -> 78065.69127 | Q28: 84774.13198 | R28: =(_xlfn.GAMMA.INV(RAND(),'2. Kostnader'!$K$14,'2. Kostnader'!$L$14))*EXP(_xlfn.NORM.INV(RAND(),'1. Effektsamband'!$N$9,'1. Effektsamband'!$S$9)) -> 22853.89571 | S28: =(_xlfn.GAMMA.INV(RAND(),'2. Kostnader'!$L$27,'2. Kostnader'!$M$27))*EXP(_xlfn.NORM.INV(RAND(),'1. Effektsamband'!$N$9,'1. Effektsamband'!$S$9))*'2. Kostnader'!$E$15 -> 454758.7804 | T28: 477612.6761 | U28: =(_xlfn.GAMMA.INV(RAND(),'2. Kostnader'!$K$11,'2. Kostnader'!$L$11))*EXP(_xlfn.NORM.INV(RAND(),'1. Effektsamband'!$N$13,'1. Effektsamband'!$S$13)) -> 47784.97325 | V28: 47784.97325 | W28: =(_xlfn.GAMMA.INV(RAND(),'2. Kostnader'!$K$10,'2. Kostnader'!$L$10)*EXP(_xlfn.NORM.INV(RAND(),'1. Effektsamband'!$N$10,'1. Effektsamband'!$S$10))) -> 34920.91369 | X28: =(_xlfn.GAMMA.INV(RAND(),'2. Kostnader'!$K$10,'2. Kostnader'!$L$10)*(EXP(_xlfn.NORM.INV(RAND(),'1. Effektsamband'!$N$11,'1. Effektsamband'!$S$11)))) -> 2850.178328 | Y28: =(_xlfn.GAMMA.INV(RAND(),'2. Kostnader'!$K$6,'2. Kostnader'!$L$6)*(EXP(_xlfn.NORM.INV(RAND(),'1. Effektsamband'!$N$4,'1. Effektsamband'!$S$4)))) -> 15295.15407
A29: 15 | B29: =EXP(_xlfn.NORM.INV(RAND(),'1. Effektsamband'!$N$3,'1. Effektsamband'!$S$3))*(_xlfn.GAMMA.INV(RAND(),'2. Kostnader'!$K$6,'2. Kostnader'!$L$6)*'1. Effektsamband'!$B$15) -> 2695401.613 | C29: =(_xlfn.GAMMA.INV(RAND(),'2. Kostnader'!$K$9,'2. Kostnader'!$L$9))*(EXP(_xlfn.NORM.INV(RAND(),'1. Effektsamband'!$N$5,'1. Effektsamband'!$S$5))) -> 658.7994363 | D29: =(_xlfn.GAMMA.INV(RAND(),'2. Kostnader'!$L$22,'2. Kostnader'!$M$22))*EXP(_xlfn.NORM.INV(RAND(),'1. Effektsamband'!$N$5,'1. Effektsamband'!$S$5))*'2. Kostnader'!$E$15 -> 4309.664425 | E29: 4968.463861 | F29: =(_xlfn.GAMMA.INV(RAND(),'2. Kostnader'!$K$12,'2. Kostnader'!$L$12))*EXP(_xlfn.NORM.INV(RAND(),'1. Effektsamband'!$N$6,'1. Effektsamband'!$S$6)) -> 876338.4607 | G29: =(_xlfn.GAMMA.INV(RAND(),'2. Kostnader'!$L$26,'2. Kostnader'!$M$26))*EXP(_xlfn.NORM.INV(RAND(),'1. Effektsamband'!$N$6,'1. Effektsamband'!$S$6))*'2. Kostnader'!$E$15 -> 165771.4292 | H29: 1042109.89 | I29: =(_xlfn.GAMMA.INV(RAND(),'2. Kostnader'!$K$8,'2. Kostnader'!$L$8))*EXP(_xlfn.NORM.INV(RAND(),'1. Effektsamband'!$N$7,'1. Effektsamband'!$S$7)) -> 33820.42448 | J29: =(_xlfn.GAMMA.INV(RAND(),'2. Kostnader'!$L$23,'2. Kostnader'!$M$23))*EXP(_xlfn.NORM.INV(RAND(),'1. Effektsamband'!$N$7,'1. Effektsamband'!$S$7))*'2. Kostnader'!$E$15 -> 164081.7515 | K29: 197902.176 | L29: =(_xlfn.GAMMA.INV(RAND(),'2. Kostnader'!$K$7,'2. Kostnader'!$L$7))*EXP(_xlfn.NORM.INV(RAND(),'1. Effektsamband'!$N$8,'1. Effektsamband'!$S$8)) -> 1217.014818 | M29: =(_xlfn.GAMMA.INV(RAND(),'2. Kostnader'!$L$21,'2. Kostnader'!$M$21))*EXP(_xlfn.NORM.INV(RAND(), '1. Effektsamband'!$N$8,'1. Effektsamband'!$S$8))*'2. Kostnader'!$E$15 -> 123915.9126 | N29: 125132.9274 | O29: =(_xlfn.GAMMA.INV(RAND(),'2. Kostnader'!$K$13,'2. Kostnader'!$L$13))*EXP(_xlfn.NORM.INV(RAND(),'1. Effektsamband'!$N$9,'1. Effektsamband'!$S$9)) -> 4856.485885 | P29: =(_xlfn.GAMMA.INV(RAND(),'2. Kostnader'!$L$28,'2. Kostnader'!$M$28))*EXP(_xlfn.NORM.INV(RAND(),'1. Effektsamband'!$N$9,'1. Effektsamband'!$S$9))*'2. Kostnader'!$E$15 -> 156791.4137 | Q29: 161647.8996 | R29: =(_xlfn.GAMMA.INV(RAND(),'2. Kostnader'!$K$14,'2. Kostnader'!$L$14))*EXP(_xlfn.NORM.INV(RAND(),'1. Effektsamband'!$N$9,'1. Effektsamband'!$S$9)) -> 37882.68406 | S29: =(_xlfn.GAMMA.INV(RAND(),'2. Kostnader'!$L$27,'2. Kostnader'!$M$27))*EXP(_xlfn.NORM.INV(RAND(),'1. Effektsamband'!$N$9,'1. Effektsamband'!$S$9))*'2. Kostnader'!$E$15 -> 673655.9055 | T29: 711538.5895 | U29: =(_xlfn.GAMMA.INV(RAND(),'2. Kostnader'!$K$11,'2. Kostnader'!$L$11))*EXP(_xlfn.NORM.INV(RAND(),'1. Effektsamband'!$N$13,'1. Effektsamband'!$S$13)) -> 71602.81258 | V29: 71602.81258 | W29: =(_xlfn.GAMMA.INV(RAND(),'2. Kostnader'!$K$10,'2. Kostnader'!$L$10)*EXP(_xlfn.NORM.INV(RAND(),'1. Effektsamband'!$N$10,'1. Effektsamband'!$S$10))) -> 15395.69595 | X29: =(_xlfn.GAMMA.INV(RAND(),'2. Kostnader'!$K$10,'2. Kostnader'!$L$10)*(EXP(_xlfn.NORM.INV(RAND(),'1. Effektsamband'!$N$11,'1. Effektsamband'!$S$11)))) -> 11098.10354 | Y29: =(_xlfn.GAMMA.INV(RAND(),'2. Kostnader'!$K$6,'2. Kostnader'!$L$6)*(EXP(_xlfn.NORM.INV(RAND(),'1. Effektsamband'!$N$4,'1. Effektsamband'!$S$4)))) -> 27873.03614
A30: 16 | B30: =EXP(_xlfn.NORM.INV(RAND(),'1. Effektsamband'!$N$3,'1. Effektsamband'!$S$3))*(_xlfn.GAMMA.INV(RAND(),'2. Kostnader'!$K$6,'2. Kostnader'!$L$6)*'1. Effektsamband'!$B$15) -> 3647024.32 | C30: =(_xlfn.GAMMA.INV(RAND(),'2. Kostnader'!$K$9,'2. Kostnader'!$L$9))*(EXP(_xlfn.NORM.INV(RAND(),'1. Effektsamband'!$N$5,'1. Effektsamband'!$S$5))) -> 3295.582225 | D30: =(_xlfn.GAMMA.INV(RAND(),'2. Kostnader'!$L$22,'2. Kostnader'!$M$22))*EXP(_xlfn.NORM.INV(RAND(),'1. Effektsamband'!$N$5,'1. Effektsamband'!$S$5))*'2. Kostnader'!$E$15 -> 1657.068541 | E30: 4952.650765 | F30: =(_xlfn.GAMMA.INV(RAND(),'2. Kostnader'!$K$12,'2. Kostnader'!$L$12))*EXP(_xlfn.NORM.INV(RAND(),'1. Effektsamband'!$N$6,'1. Effektsamband'!$S$6)) -> 340983.709 | G30: =(_xlfn.GAMMA.INV(RAND(),'2. Kostnader'!$L$26,'2. Kostnader'!$M$26))*EXP(_xlfn.NORM.INV(RAND(),'1. Effektsamband'!$N$6,'1. Effektsamband'!$S$6))*'2. Kostnader'!$E$15 -> 324347.9294 | H30: 665331.6384 | I30: =(_xlfn.GAMMA.INV(RAND(),'2. Kostnader'!$K$8,'2. Kostnader'!$L$8))*EXP(_xlfn.NORM.INV(RAND(),'1. Effektsamband'!$N$7,'1. Effektsamband'!$S$7)) -> 42356.22838 | J30: =(_xlfn.GAMMA.INV(RAND(),'2. Kostnader'!$L$23,'2. Kostnader'!$M$23))*EXP(_xlfn.NORM.INV(RAND(),'1. Effektsamband'!$N$7,'1. Effektsamband'!$S$7))*'2. Kostnader'!$E$15 -> 106323.0883 | K30: 148679.3167 | L30: =(_xlfn.GAMMA.INV(RAND(),'2. Kostnader'!$K$7,'2. Kostnader'!$L$7))*EXP(_xlfn.NORM.INV(RAND(),'1. Effektsamband'!$N$8,'1. Effektsamband'!$S$8)) -> 1040.953319 | M30: =(_xlfn.GAMMA.INV(RAND(),'2. Kostnader'!$L$21,'2. Kostnader'!$M$21))*EXP(_xlfn.NORM.INV(RAND(), '1. Effektsamband'!$N$8,'1. Effektsamband'!$S$8))*'2. Kostnader'!$E$15 -> 141835.2998 | N30: 142876.2531 | O30: =(_xlfn.GAMMA.INV(RAND(),'2. Kostnader'!$K$13,'2. Kostnader'!$L$13))*EXP(_xlfn.NORM.INV(RAND(),'1. Effektsamband'!$N$9,'1. Effektsamband'!$S$9)) -> 3251.655331 | P30: =(_xlfn.GAMMA.INV(RAND(),'2. Kostnader'!$L$28,'2. Kostnader'!$M$28))*EXP(_xlfn.NORM.INV(RAND(),'1. Effektsamband'!$N$9,'1. Effektsamband'!$S$9))*'2. Kostnader'!$E$15 -> 90367.06117 | Q30: 93618.7165 | R30: =(_xlfn.GAMMA.INV(RAND(),'2. Kostnader'!$K$14,'2. Kostnader'!$L$14))*EXP(_xlfn.NORM.INV(RAND(),'1. Effektsamband'!$N$9,'1. Effektsamband'!$S$9)) -> 45030.81472 | S30: =(_xlfn.GAMMA.INV(RAND(),'2. Kostnader'!$L$27,'2. Kostnader'!$M$27))*EXP(_xlfn.NORM.INV(RAND(),'1. Effektsamband'!$N$9,'1. Effektsamband'!$S$9))*'2. Kostnader'!$E$15 -> 581845.3735 | T30: 626876.1882 | U30: =(_xlfn.GAMMA.INV(RAND(),'2. Kostnader'!$K$11,'2. Kostnader'!$L$11))*EXP(_xlfn.NORM.INV(RAND(),'1. Effektsamband'!$N$13,'1. Effektsamband'!$S$13)) -> 52407.97098 | V30: 52407.97098 | W30: =(_xlfn.GAMMA.INV(RAND(),'2. Kostnader'!$K$10,'2. Kostnader'!$L$10)*EXP(_xlfn.NORM.INV(RAND(),'1. Effektsamband'!$N$10,'1. Effektsamband'!$S$10))) -> 33230.86572 | X30: =(_xlfn.GAMMA.INV(RAND(),'2. Kostnader'!$K$10,'2. Kostnader'!$L$10)*(EXP(_xlfn.NORM.INV(RAND(),'1. Effektsamband'!$N$11,'1. Effektsamband'!$S$11)))) -> 8402.438321 | Y30: =(_xlfn.GAMMA.INV(RAND(),'2. Kostnader'!$K$6,'2. Kostnader'!$L$6)*(EXP(_xlfn.NORM.INV(RAND(),'1. Effektsamband'!$N$4,'1. Effektsamband'!$S$4)))) -> 15853.64229
A31: 17 | B31: =EXP(_xlfn.NORM.INV(RAND(),'1. Effektsamband'!$N$3,'1. Effektsamband'!$S$3))*(_xlfn.GAMMA.INV(RAND(),'2. Kostnader'!$K$6,'2. Kostnader'!$L$6)*'1. Effektsamband'!$B$15) -> 3473032.439 | C31: =(_xlfn.GAMMA.INV(RAND(),'2. Kostnader'!$K$9,'2. Kostnader'!$L$9))*(EXP(_xlfn.NORM.INV(RAND(),'1. Effektsamband'!$N$5,'1. Effektsamband'!$S$5))) -> 4305.677601 | D31: =(_xlfn.GAMMA.INV(RAND(),'2. Kostnader'!$L$22,'2. Kostnader'!$M$22))*EXP(_xlfn.NORM.INV(RAND(),'1. Effektsamband'!$N$5,'1. Effektsamband'!$S$5))*'2. Kostnader'!$E$15 -> 1077.452627 | E31: 5383.130228 | F31: =(_xlfn.GAMMA.INV(RAND(),'2. Kostnader'!$K$12,'2. Kostnader'!$L$12))*EXP(_xlfn.NORM.INV(RAND(),'1. Effektsamband'!$N$6,'1. Effektsamband'!$S$6)) -> 134642.7899 | G31: =(_xlfn.GAMMA.INV(RAND(),'2. Kostnader'!$L$26,'2. Kostnader'!$M$26))*EXP(_xlfn.NORM.INV(RAND(),'1. Effektsamband'!$N$6,'1. Effektsamband'!$S$6))*'2. Kostnader'!$E$15 -> 1517753.942 | H31: 1652396.731 | I31: =(_xlfn.GAMMA.INV(RAND(),'2. Kostnader'!$K$8,'2. Kostnader'!$L$8))*EXP(_xlfn.NORM.INV(RAND(),'1. Effektsamband'!$N$7,'1. Effektsamband'!$S$7)) -> 14524.03876 | J31: =(_xlfn.GAMMA.INV(RAND(),'2. Kostnader'!$L$23,'2. Kostnader'!$M$23))*EXP(_xlfn.NORM.INV(RAND(),'1. Effektsamband'!$N$7,'1. Effektsamband'!$S$7))*'2. Kostnader'!$E$15 -> 275297.7893 | K31: 289821.8281 | L31: =(_xlfn.GAMMA.INV(RAND(),'2. Kostnader'!$K$7,'2. Kostnader'!$L$7))*EXP(_xlfn.NORM.INV(RAND(),'1. Effektsamband'!$N$8,'1. Effektsamband'!$S$8)) -> 1106.092548 | M31: =(_xlfn.GAMMA.INV(RAND(),'2. Kostnader'!$L$21,'2. Kostnader'!$M$21))*EXP(_xlfn.NORM.INV(RAND(), '1. Effektsamband'!$N$8,'1. Effektsamband'!$S$8))*'2. Kostnader'!$E$15 -> 123326.384 | N31: 124432.4765 | O31: =(_xlfn.GAMMA.INV(RAND(),'2. Kostnader'!$K$13,'2. Kostnader'!$L$13))*EXP(_xlfn.NORM.INV(RAND(),'1. Effektsamband'!$N$9,'1. Effektsamband'!$S$9)) -> 5361.346108 | P31: =(_xlfn.GAMMA.INV(RAND(),'2. Kostnader'!$L$28,'2. Kostnader'!$M$28))*EXP(_xlfn.NORM.INV(RAND(),'1. Effektsamband'!$N$9,'1. Effektsamband'!$S$9))*'2. Kostnader'!$E$15 -> 98391.52726 | Q31: 103752.8734 | R31: =(_xlfn.GAMMA.INV(RAND(),'2. Kostnader'!$K$14,'2. Kostnader'!$L$14))*EXP(_xlfn.NORM.INV(RAND(),'1. Effektsamband'!$N$9,'1. Effektsamband'!$S$9)) -> 37624.03677 | S31: =(_xlfn.GAMMA.INV(RAND(),'2. Kostnader'!$L$27,'2. Kostnader'!$M$27))*EXP(_xlfn.NORM.INV(RAND(),'1. Effektsamband'!$N$9,'1. Effektsamband'!$S$9))*'2. Kostnader'!$E$15 -> 306235.3255 | T31: 343859.3623 | U31: =(_xlfn.GAMMA.INV(RAND(),'2. Kostnader'!$K$11,'2. Kostnader'!$L$11))*EXP(_xlfn.NORM.INV(RAND(),'1. Effektsamband'!$N$13,'1. Effektsamband'!$S$13)) -> 55311.33324 | V31: 55311.33324 | W31: =(_xlfn.GAMMA.INV(RAND(),'2. Kostnader'!$K$10,'2. Kostnader'!$L$10)*EXP(_xlfn.NORM.INV(RAND(),'1. Effektsamband'!$N$10,'1. Effektsamband'!$S$10))) -> 13264.93776 | X31: =(_xlfn.GAMMA.INV(RAND(),'2. Kostnader'!$K$10,'2. Kostnader'!$L$10)*(EXP(_xlfn.NORM.INV(RAND(),'1. Effektsamband'!$N$11,'1. Effektsamband'!$S$11)))) -> 4426.044858 | Y31: =(_xlfn.GAMMA.INV(RAND(),'2. Kostnader'!$K$6,'2. Kostnader'!$L$6)*(EXP(_xlfn.NORM.INV(RAND(),'1. Effektsamband'!$N$4,'1. Effektsamband'!$S$4)))) -> 7794.604322
A32: 18 | B32: =EXP(_xlfn.NORM.INV(RAND(),'1. Effektsamband'!$N$3,'1. Effektsamband'!$S$3))*(_xlfn.GAMMA.INV(RAND(),'2. Kostnader'!$K$6,'2. Kostnader'!$L$6)*'1. Effektsamband'!$B$15) -> 5813016.669 | C32: =(_xlfn.GAMMA.INV(RAND(),'2. Kostnader'!$K$9,'2. Kostnader'!$L$9))*(EXP(_xlfn.NORM.INV(RAND(),'1. Effektsamband'!$N$5,'1. Effektsamband'!$S$5))) -> 1784.552581 | D32: =(_xlfn.GAMMA.INV(RAND(),'2. Kostnader'!$L$22,'2. Kostnader'!$M$22))*EXP(_xlfn.NORM.INV(RAND(),'1. Effektsamband'!$N$5,'1. Effektsamband'!$S$5))*'2. Kostnader'!$E$15 -> 7494.285474 | E32: 9278.838056 | F32: =(_xlfn.GAMMA.INV(RAND(),'2. Kostnader'!$K$12,'2. Kostnader'!$L$12))*EXP(_xlfn.NORM.INV(RAND(),'1. Effektsamband'!$N$6,'1. Effektsamband'!$S$6)) -> 3238328.408 | G32: =(_xlfn.GAMMA.INV(RAND(),'2. Kostnader'!$L$26,'2. Kostnader'!$M$26))*EXP(_xlfn.NORM.INV(RAND(),'1. Effektsamband'!$N$6,'1. Effektsamband'!$S$6))*'2. Kostnader'!$E$15 -> 532559.2428 | H32: 3770887.65 | I32: =(_xlfn.GAMMA.INV(RAND(),'2. Kostnader'!$K$8,'2. Kostnader'!$L$8))*EXP(_xlfn.NORM.INV(RAND(),'1. Effektsamband'!$N$7,'1. Effektsamband'!$S$7)) -> 86520.93535 | J32: =(_xlfn.GAMMA.INV(RAND(),'2. Kostnader'!$L$23,'2. Kostnader'!$M$23))*EXP(_xlfn.NORM.INV(RAND(),'1. Effektsamband'!$N$7,'1. Effektsamband'!$S$7))*'2. Kostnader'!$E$15 -> 267023.2709 | K32: 353544.2063 | L32: =(_xlfn.GAMMA.INV(RAND(),'2. Kostnader'!$K$7,'2. Kostnader'!$L$7))*EXP(_xlfn.NORM.INV(RAND(),'1. Effektsamband'!$N$8,'1. Effektsamband'!$S$8)) -> 1178.819481 | M32: =(_xlfn.GAMMA.INV(RAND(),'2. Kostnader'!$L$21,'2. Kostnader'!$M$21))*EXP(_xlfn.NORM.INV(RAND(), '1. Effektsamband'!$N$8,'1. Effektsamband'!$S$8))*'2. Kostnader'!$E$15 -> 125170.7284 | N32: 126349.5479 | O32: =(_xlfn.GAMMA.INV(RAND(),'2. Kostnader'!$K$13,'2. Kostnader'!$L$13))*EXP(_xlfn.NORM.INV(RAND(),'1. Effektsamband'!$N$9,'1. Effektsamband'!$S$9)) -> 3421.463404 | P32: =(_xlfn.GAMMA.INV(RAND(),'2. Kostnader'!$L$28,'2. Kostnader'!$M$28))*EXP(_xlfn.NORM.INV(RAND(),'1. Effektsamband'!$N$9,'1. Effektsamband'!$S$9))*'2. Kostnader'!$E$15 -> 133214.1758 | Q32: 136635.6392 | R32: =(_xlfn.GAMMA.INV(RAND(),'2. Kostnader'!$K$14,'2. Kostnader'!$L$14))*EXP(_xlfn.NORM.INV(RAND(),'1. Effektsamband'!$N$9,'1. Effektsamband'!$S$9)) -> 19619.87921 | S32: =(_xlfn.GAMMA.INV(RAND(),'2. Kostnader'!$L$27,'2. Kostnader'!$M$27))*EXP(_xlfn.NORM.INV(RAND(),'1. Effektsamband'!$N$9,'1. Effektsamband'!$S$9))*'2. Kostnader'!$E$15 -> 421594.5346 | T32: 441214.4138 | U32: =(_xlfn.GAMMA.INV(RAND(),'2. Kostnader'!$K$11,'2. Kostnader'!$L$11))*EXP(_xlfn.NORM.INV(RAND(),'1. Effektsamband'!$N$13,'1. Effektsamband'!$S$13)) -> 46815.51012 | V32: 46815.51012 | W32: =(_xlfn.GAMMA.INV(RAND(),'2. Kostnader'!$K$10,'2. Kostnader'!$L$10)*EXP(_xlfn.NORM.INV(RAND(),'1. Effektsamband'!$N$10,'1. Effektsamband'!$S$10))) -> 25200.58627 | X32: =(_xlfn.GAMMA.INV(RAND(),'2. Kostnader'!$K$10,'2. Kostnader'!$L$10)*(EXP(_xlfn.NORM.INV(RAND(),'1. Effektsamband'!$N$11,'1. Effektsamband'!$S$11)))) -> 6114.874992 | Y32: =(_xlfn.GAMMA.INV(RAND(),'2. Kostnader'!$K$6,'2. Kostnader'!$L$6)*(EXP(_xlfn.NORM.INV(RAND(),'1. Effektsamband'!$N$4,'1. Effektsamband'!$S$4)))) -> 9549.335071
A33: 19 | B33: =EXP(_xlfn.NORM.INV(RAND(),'1. Effektsamband'!$N$3,'1. Effektsamband'!$S$3))*(_xlfn.GAMMA.INV(RAND(),'2. Kostnader'!$K$6,'2. Kostnader'!$L$6)*'1. Effektsamband'!$B$15) -> 2915695.173 | C33: =(_xlfn.GAMMA.INV(RAND(),'2. Kostnader'!$K$9,'2. Kostnader'!$L$9))*(EXP(_xlfn.NORM.INV(RAND(),'1. Effektsamband'!$N$5,'1. Effektsamband'!$S$5))) -> 7062.709454 | D33: =(_xlfn.GAMMA.INV(RAND(),'2. Kostnader'!$L$22,'2. Kostnader'!$M$22))*EXP(_xlfn.NORM.INV(RAND(),'1. Effektsamband'!$N$5,'1. Effektsamband'!$S$5))*'2. Kostnader'!$E$15 -> 3486.169739 | E33: 10548.87919 | F33: =(_xlfn.GAMMA.INV(RAND(),'2. Kostnader'!$K$12,'2. Kostnader'!$L$12))*EXP(_xlfn.NORM.INV(RAND(),'1. Effektsamband'!$N$6,'1. Effektsamband'!$S$6)) -> 561448.1705 | G33: =(_xlfn.GAMMA.INV(RAND(),'2. Kostnader'!$L$26,'2. Kostnader'!$M$26))*EXP(_xlfn.NORM.INV(RAND(),'1. Effektsamband'!$N$6,'1. Effektsamband'!$S$6))*'2. Kostnader'!$E$15 -> 1837747.218 | H33: 2399195.388 | I33: =(_xlfn.GAMMA.INV(RAND(),'2. Kostnader'!$K$8,'2. Kostnader'!$L$8))*EXP(_xlfn.NORM.INV(RAND(),'1. Effektsamband'!$N$7,'1. Effektsamband'!$S$7)) -> 68919.00834 | J33: =(_xlfn.GAMMA.INV(RAND(),'2. Kostnader'!$L$23,'2. Kostnader'!$M$23))*EXP(_xlfn.NORM.INV(RAND(),'1. Effektsamband'!$N$7,'1. Effektsamband'!$S$7))*'2. Kostnader'!$E$15 -> 219411.0758 | K33: 288330.0841 | L33: =(_xlfn.GAMMA.INV(RAND(),'2. Kostnader'!$K$7,'2. Kostnader'!$L$7))*EXP(_xlfn.NORM.INV(RAND(),'1. Effektsamband'!$N$8,'1. Effektsamband'!$S$8)) -> 1509.152455 | M33: =(_xlfn.GAMMA.INV(RAND(),'2. Kostnader'!$L$21,'2. Kostnader'!$M$21))*EXP(_xlfn.NORM.INV(RAND(), '1. Effektsamband'!$N$8,'1. Effektsamband'!$S$8))*'2. Kostnader'!$E$15 -> 151908.1183 | N33: 153417.2708 | O33: =(_xlfn.GAMMA.INV(RAND(),'2. Kostnader'!$K$13,'2. Kostnader'!$L$13))*EXP(_xlfn.NORM.INV(RAND(),'1. Effektsamband'!$N$9,'1. Effektsamband'!$S$9)) -> 3090.194351 | P33: =(_xlfn.GAMMA.INV(RAND(),'2. Kostnader'!$L$28,'2. Kostnader'!$M$28))*EXP(_xlfn.NORM.INV(RAND(),'1. Effektsamband'!$N$9,'1. Effektsamband'!$S$9))*'2. Kostnader'!$E$15 -> 44169.16249 | Q33: 47259.35684 | R33: =(_xlfn.GAMMA.INV(RAND(),'2. Kostnader'!$K$14,'2. Kostnader'!$L$14))*EXP(_xlfn.NORM.INV(RAND(),'1. Effektsamband'!$N$9,'1. Effektsamband'!$S$9)) -> 18223.40518 | S33: =(_xlfn.GAMMA.INV(RAND(),'2. Kostnader'!$L$27,'2. Kostnader'!$M$27))*EXP(_xlfn.NORM.INV(RAND(),'1. Effektsamband'!$N$9,'1. Effektsamband'!$S$9))*'2. Kostnader'!$E$15 -> 913740.3477 | T33: 931963.7529 | U33: =(_xlfn.GAMMA.INV(RAND(),'2. Kostnader'!$K$11,'2. Kostnader'!$L$11))*EXP(_xlfn.NORM.INV(RAND(),'1. Effektsamband'!$N$13,'1. Effektsamband'!$S$13)) -> 80679.62291 | V33: 80679.62291 | W33: =(_xlfn.GAMMA.INV(RAND(),'2. Kostnader'!$K$10,'2. Kostnader'!$L$10)*EXP(_xlfn.NORM.INV(RAND(),'1. Effektsamband'!$N$10,'1. Effektsamband'!$S$10))) -> 26564.02685 | X33: =(_xlfn.GAMMA.INV(RAND(),'2. Kostnader'!$K$10,'2. Kostnader'!$L$10)*(EXP(_xlfn.NORM.INV(RAND(),'1. Effektsamband'!$N$11,'1. Effektsamband'!$S$11)))) -> 4371.284165 | Y33: =(_xlfn.GAMMA.INV(RAND(),'2. Kostnader'!$K$6,'2. Kostnader'!$L$6)*(EXP(_xlfn.NORM.INV(RAND(),'1. Effektsamband'!$N$4,'1. Effektsamband'!$S$4)))) -> 14698.60466
A34: 20 | B34: =EXP(_xlfn.NORM.INV(RAND(),'1. Effektsamband'!$N$3,'1. Effektsamband'!$S$3))*(_xlfn.GAMMA.INV(RAND(),'2. Kostnader'!$K$6,'2. Kostnader'!$L$6)*'1. Effektsamband'!$B$15) -> 4365341.265 | C34: =(_xlfn.GAMMA.INV(RAND(),'2. Kostnader'!$K$9,'2. Kostnader'!$L$9))*(EXP(_xlfn.NORM.INV(RAND(),'1. Effektsamband'!$N$5,'1. Effektsamband'!$S$5))) -> 8098.210743 | D34: =(_xlfn.GAMMA.INV(RAND(),'2. Kostnader'!$L$22,'2. Kostnader'!$M$22))*EXP(_xlfn.NORM.INV(RAND(),'1. Effektsamband'!$N$5,'1. Effektsamband'!$S$5))*'2. Kostnader'!$E$15 -> 10296.94985 | E34: 18395.16059 | F34: =(_xlfn.GAMMA.INV(RAND(),'2. Kostnader'!$K$12,'2. Kostnader'!$L$12))*EXP(_xlfn.NORM.INV(RAND(),'1. Effektsamband'!$N$6,'1. Effektsamband'!$S$6)) -> 2934976.605 | G34: =(_xlfn.GAMMA.INV(RAND(),'2. Kostnader'!$L$26,'2. Kostnader'!$M$26))*EXP(_xlfn.NORM.INV(RAND(),'1. Effektsamband'!$N$6,'1. Effektsamband'!$S$6))*'2. Kostnader'!$E$15 -> 1094616.851 | H34: 4029593.457 | I34: =(_xlfn.GAMMA.INV(RAND(),'2. Kostnader'!$K$8,'2. Kostnader'!$L$8))*EXP(_xlfn.NORM.INV(RAND(),'1. Effektsamband'!$N$7,'1. Effektsamband'!$S$7)) -> 48684.81609 | J34: =(_xlfn.GAMMA.INV(RAND(),'2. Kostnader'!$L$23,'2. Kostnader'!$M$23))*EXP(_xlfn.NORM.INV(RAND(),'1. Effektsamband'!$N$7,'1. Effektsamband'!$S$7))*'2. Kostnader'!$E$15 -> 523560.5518 | K34: 572245.3679 | L34: =(_xlfn.GAMMA.INV(RAND(),'2. Kostnader'!$K$7,'2. Kostnader'!$L$7))*EXP(_xlfn.NORM.INV(RAND(),'1. Effektsamband'!$N$8,'1. Effektsamband'!$S$8)) -> 1247.891878 | M34: =(_xlfn.GAMMA.INV(RAND(),'2. Kostnader'!$L$21,'2. Kostnader'!$M$21))*EXP(_xlfn.NORM.INV(RAND(), '1. Effektsamband'!$N$8,'1. Effektsamband'!$S$8))*'2. Kostnader'!$E$15 -> 136168.0851 | N34: 137415.977 | O34: =(_xlfn.GAMMA.INV(RAND(),'2. Kostnader'!$K$13,'2. Kostnader'!$L$13))*EXP(_xlfn.NORM.INV(RAND(),'1. Effektsamband'!$N$9,'1. Effektsamband'!$S$9)) -> 2288.851486 | P34: =(_xlfn.GAMMA.INV(RAND(),'2. Kostnader'!$L$28,'2. Kostnader'!$M$28))*EXP(_xlfn.NORM.INV(RAND(),'1. Effektsamband'!$N$9,'1. Effektsamband'!$S$9))*'2. Kostnader'!$E$15 -> 68310.80328 | Q34: 70599.65476 | R34: =(_xlfn.GAMMA.INV(RAND(),'2. Kostnader'!$K$14,'2. Kostnader'!$L$14))*EXP(_xlfn.NORM.INV(RAND(),'1. Effektsamband'!$N$9,'1. Effektsamband'!$S$9)) -> 34511.33644 | S34: =(_xlfn.GAMMA.INV(RAND(),'2. Kostnader'!$L$27,'2. Kostnader'!$M$27))*EXP(_xlfn.NORM.INV(RAND(),'1. Effektsamband'!$N$9,'1. Effektsamband'!$S$9))*'2. Kostnader'!$E$15 -> 821786.1884 | T34: 856297.5249 | U34: =(_xlfn.GAMMA.INV(RAND(),'2. Kostnader'!$K$11,'2. Kostnader'!$L$11))*EXP(_xlfn.NORM.INV(RAND(),'1. Effektsamband'!$N$13,'1. Effektsamband'!$S$13)) -> 46436.61886 | V34: 46436.61886 | W34: =(_xlfn.GAMMA.INV(RAND(),'2. Kostnader'!$K$10,'2. Kostnader'!$L$10)*EXP(_xlfn.NORM.INV(RAND(),'1. Effektsamband'!$N$10,'1. Effektsamband'!$S$10))) -> 12106.40447 | X34: =(_xlfn.GAMMA.INV(RAND(),'2. Kostnader'!$K$10,'2. Kostnader'!$L$10)*(EXP(_xlfn.NORM.INV(RAND(),'1. Effektsamband'!$N$11,'1. Effektsamband'!$S$11)))) -> 8374.653228 | Y34: =(_xlfn.GAMMA.INV(RAND(),'2. Kostnader'!$K$6,'2. Kostnader'!$L$6)*(EXP(_xlfn.NORM.INV(RAND(),'1. Effektsamband'!$N$4,'1. Effektsamband'!$S$4)))) -> 2814.314603
A35: 21 | B35: =EXP(_xlfn.NORM.INV(RAND(),'1. Effektsamband'!$N$3,'1. Effektsamband'!$S$3))*(_xlfn.GAMMA.INV(RAND(),'2. Kostnader'!$K$6,'2. Kostnader'!$L$6)*'1. Effektsamband'!$B$15) -> 4675721.272 | C35: =(_xlfn.GAMMA.INV(RAND(),'2. Kostnader'!$K$9,'2. Kostnader'!$L$9))*(EXP(_xlfn.NORM.INV(RAND(),'1. Effektsamband'!$N$5,'1. Effektsamband'!$S$5))) -> 21720.2714 | D35: =(_xlfn.GAMMA.INV(RAND(),'2. Kostnader'!$L$22,'2. Kostnader'!$M$22))*EXP(_xlfn.NORM.INV(RAND(),'1. Effektsamband'!$N$5,'1. Effektsamband'!$S$5))*'2. Kostnader'!$E$15 -> 1933.445791 | E35: 23653.71719 | F35: =(_xlfn.GAMMA.INV(RAND(),'2. Kostnader'!$K$12,'2. Kostnader'!$L$12))*EXP(_xlfn.NORM.INV(RAND(),'1. Effektsamband'!$N$6,'1. Effektsamband'!$S$6)) -> 227125.832 | G35: =(_xlfn.GAMMA.INV(RAND(),'2. Kostnader'!$L$26,'2. Kostnader'!$M$26))*EXP(_xlfn.NORM.INV(RAND(),'1. Effektsamband'!$N$6,'1. Effektsamband'!$S$6))*'2. Kostnader'!$E$15 -> 339874.2616 | H35: 567000.0936 | I35: =(_xlfn.GAMMA.INV(RAND(),'2. Kostnader'!$K$8,'2. Kostnader'!$L$8))*EXP(_xlfn.NORM.INV(RAND(),'1. Effektsamband'!$N$7,'1. Effektsamband'!$S$7)) -> 43014.09759 | J35: =(_xlfn.GAMMA.INV(RAND(),'2. Kostnader'!$L$23,'2. Kostnader'!$M$23))*EXP(_xlfn.NORM.INV(RAND(),'1. Effektsamband'!$N$7,'1. Effektsamband'!$S$7))*'2. Kostnader'!$E$15 -> 616926.998 | K35: 659941.0956 | L35: =(_xlfn.GAMMA.INV(RAND(),'2. Kostnader'!$K$7,'2. Kostnader'!$L$7))*EXP(_xlfn.NORM.INV(RAND(),'1. Effektsamband'!$N$8,'1. Effektsamband'!$S$8)) -> 1187.697964 | M35: =(_xlfn.GAMMA.INV(RAND(),'2. Kostnader'!$L$21,'2. Kostnader'!$M$21))*EXP(_xlfn.NORM.INV(RAND(), '1. Effektsamband'!$N$8,'1. Effektsamband'!$S$8))*'2. Kostnader'!$E$15 -> 146503.1868 | N35: 147690.8848 | O35: =(_xlfn.GAMMA.INV(RAND(),'2. Kostnader'!$K$13,'2. Kostnader'!$L$13))*EXP(_xlfn.NORM.INV(RAND(),'1. Effektsamband'!$N$9,'1. Effektsamband'!$S$9)) -> 2879.584276 | P35: =(_xlfn.GAMMA.INV(RAND(),'2. Kostnader'!$L$28,'2. Kostnader'!$M$28))*EXP(_xlfn.NORM.INV(RAND(),'1. Effektsamband'!$N$9,'1. Effektsamband'!$S$9))*'2. Kostnader'!$E$15 -> 97014.67052 | Q35: 99894.2548 | R35: =(_xlfn.GAMMA.INV(RAND(),'2. Kostnader'!$K$14,'2. Kostnader'!$L$14))*EXP(_xlfn.NORM.INV(RAND(),'1. Effektsamband'!$N$9,'1. Effektsamband'!$S$9)) -> 65706.29472 | S35: =(_xlfn.GAMMA.INV(RAND(),'2. Kostnader'!$L$27,'2. Kostnader'!$M$27))*EXP(_xlfn.NORM.INV(RAND(),'1. Effektsamband'!$N$9,'1. Effektsamband'!$S$9))*'2. Kostnader'!$E$15 -> 529787.0477 | T35: 595493.3424 | U35: =(_xlfn.GAMMA.INV(RAND(),'2. Kostnader'!$K$11,'2. Kostnader'!$L$11))*EXP(_xlfn.NORM.INV(RAND(),'1. Effektsamband'!$N$13,'1. Effektsamband'!$S$13)) -> 81875.70635 | V35: 81875.70635 | W35: =(_xlfn.GAMMA.INV(RAND(),'2. Kostnader'!$K$10,'2. Kostnader'!$L$10)*EXP(_xlfn.NORM.INV(RAND(),'1. Effektsamband'!$N$10,'1. Effektsamband'!$S$10))) -> 18356.06846 | X35: =(_xlfn.GAMMA.INV(RAND(),'2. Kostnader'!$K$10,'2. Kostnader'!$L$10)*(EXP(_xlfn.NORM.INV(RAND(),'1. Effektsamband'!$N$11,'1. Effektsamband'!$S$11)))) -> 12608.22258 | Y35: =(_xlfn.GAMMA.INV(RAND(),'2. Kostnader'!$K$6,'2. Kostnader'!$L$6)*(EXP(_xlfn.NORM.INV(RAND(),'1. Effektsamband'!$N$4,'1. Effektsamband'!$S$4)))) -> 63333.30434
A36: 22 | B36: =EXP(_xlfn.NORM.INV(RAND(),'1. Effektsamband'!$N$3,'1. Effektsamband'!$S$3))*(_xlfn.GAMMA.INV(RAND(),'2. Kostnader'!$K$6,'2. Kostnader'!$L$6)*'1. Effektsamband'!$B$15) -> 3180742.131 | C36: =(_xlfn.GAMMA.INV(RAND(),'2. Kostnader'!$K$9,'2. Kostnader'!$L$9))*(EXP(_xlfn.NORM.INV(RAND(),'1. Effektsamband'!$N$5,'1. Effektsamband'!$S$5))) -> 8234.417426 | D36: =(_xlfn.GAMMA.INV(RAND(),'2. Kostnader'!$L$22,'2. Kostnader'!$M$22))*EXP(_xlfn.NORM.INV(RAND(),'1. Effektsamband'!$N$5,'1. Effektsamband'!$S$5))*'2. Kostnader'!$E$15 -> 1995.173321 | E36: 10229.59075 | F36: =(_xlfn.GAMMA.INV(RAND(),'2. Kostnader'!$K$12,'2. Kostnader'!$L$12))*EXP(_xlfn.NORM.INV(RAND(),'1. Effektsamband'!$N$6,'1. Effektsamband'!$S$6)) -> 1015090.735 | G36: =(_xlfn.GAMMA.INV(RAND(),'2. Kostnader'!$L$26,'2. Kostnader'!$M$26))*EXP(_xlfn.NORM.INV(RAND(),'1. Effektsamband'!$N$6,'1. Effektsamband'!$S$6))*'2. Kostnader'!$E$15 -> 771762.8988 | H36: 1786853.634 | I36: =(_xlfn.GAMMA.INV(RAND(),'2. Kostnader'!$K$8,'2. Kostnader'!$L$8))*EXP(_xlfn.NORM.INV(RAND(),'1. Effektsamband'!$N$7,'1. Effektsamband'!$S$7)) -> 44008.94761 | J36: =(_xlfn.GAMMA.INV(RAND(),'2. Kostnader'!$L$23,'2. Kostnader'!$M$23))*EXP(_xlfn.NORM.INV(RAND(),'1. Effektsamband'!$N$7,'1. Effektsamband'!$S$7))*'2. Kostnader'!$E$15 -> 352257.9449 | K36: 396266.8925 | L36: =(_xlfn.GAMMA.INV(RAND(),'2. Kostnader'!$K$7,'2. Kostnader'!$L$7))*EXP(_xlfn.NORM.INV(RAND(),'1. Effektsamband'!$N$8,'1. Effektsamband'!$S$8)) -> 1648.137841 | M36: =(_xlfn.GAMMA.INV(RAND(),'2. Kostnader'!$L$21,'2. Kostnader'!$M$21))*EXP(_xlfn.NORM.INV(RAND(), '1. Effektsamband'!$N$8,'1. Effektsamband'!$S$8))*'2. Kostnader'!$E$15 -> 126659.4025 | N36: 128307.5403 | O36: =(_xlfn.GAMMA.INV(RAND(),'2. Kostnader'!$K$13,'2. Kostnader'!$L$13))*EXP(_xlfn.NORM.INV(RAND(),'1. Effektsamband'!$N$9,'1. Effektsamband'!$S$9)) -> 2973.680743 | P36: =(_xlfn.GAMMA.INV(RAND(),'2. Kostnader'!$L$28,'2. Kostnader'!$M$28))*EXP(_xlfn.NORM.INV(RAND(),'1. Effektsamband'!$N$9,'1. Effektsamband'!$S$9))*'2. Kostnader'!$E$15 -> 132471.1172 | Q36: 135444.7979 | R36: =(_xlfn.GAMMA.INV(RAND(),'2. Kostnader'!$K$14,'2. Kostnader'!$L$14))*EXP(_xlfn.NORM.INV(RAND(),'1. Effektsamband'!$N$9,'1. Effektsamband'!$S$9)) -> 50176.79796 | S36: =(_xlfn.GAMMA.INV(RAND(),'2. Kostnader'!$L$27,'2. Kostnader'!$M$27))*EXP(_xlfn.NORM.INV(RAND(),'1. Effektsamband'!$N$9,'1. Effektsamband'!$S$9))*'2. Kostnader'!$E$15 -> 456968.3272 | T36: 507145.1252 | U36: =(_xlfn.GAMMA.INV(RAND(),'2. Kostnader'!$K$11,'2. Kostnader'!$L$11))*EXP(_xlfn.NORM.INV(RAND(),'1. Effektsamband'!$N$13,'1. Effektsamband'!$S$13)) -> 47069.59518 | V36: 47069.59518 | W36: =(_xlfn.GAMMA.INV(RAND(),'2. Kostnader'!$K$10,'2. Kostnader'!$L$10)*EXP(_xlfn.NORM.INV(RAND(),'1. Effektsamband'!$N$10,'1. Effektsamband'!$S$10))) -> 12996.41111 | X36: =(_xlfn.GAMMA.INV(RAND(),'2. Kostnader'!$K$10,'2. Kostnader'!$L$10)*(EXP(_xlfn.NORM.INV(RAND(),'1. Effektsamband'!$N$11,'1. Effektsamband'!$S$11)))) -> 7100.843264 | Y36: =(_xlfn.GAMMA.INV(RAND(),'2. Kostnader'!$K$6,'2. Kostnader'!$L$6)*(EXP(_xlfn.NORM.INV(RAND(),'1. Effektsamband'!$N$4,'1. Effektsamband'!$S$4)))) -> 35114.77716
A37: 23 | B37: =EXP(_xlfn.NORM.INV(RAND(),'1. Effektsamband'!$N$3,'1. Effektsamband'!$S$3))*(_xlfn.GAMMA.INV(RAND(),'2. Kostnader'!$K$6,'2. Kostnader'!$L$6)*'1. Effektsamband'!$B$15) -> 3710194.722 | C37: =(_xlfn.GAMMA.INV(RAND(),'2. Kostnader'!$K$9,'2. Kostnader'!$L$9))*(EXP(_xlfn.NORM.INV(RAND(),'1. Effektsamband'!$N$5,'1. Effektsamband'!$S$5))) -> 1448.208605 | D37: =(_xlfn.GAMMA.INV(RAND(),'2. Kostnader'!$L$22,'2. Kostnader'!$M$22))*EXP(_xlfn.NORM.INV(RAND(),'1. Effektsamband'!$N$5,'1. Effektsamband'!$S$5))*'2. Kostnader'!$E$15 -> 4687.932117 | E37: 6136.140722 | F37: =(_xlfn.GAMMA.INV(RAND(),'2. Kostnader'!$K$12,'2. Kostnader'!$L$12))*EXP(_xlfn.NORM.INV(RAND(),'1. Effektsamband'!$N$6,'1. Effektsamband'!$S$6)) -> 404193.1826 | G37: =(_xlfn.GAMMA.INV(RAND(),'2. Kostnader'!$L$26,'2. Kostnader'!$M$26))*EXP(_xlfn.NORM.INV(RAND(),'1. Effektsamband'!$N$6,'1. Effektsamband'!$S$6))*'2. Kostnader'!$E$15 -> 1753352.453 | H37: 2157545.635 | I37: =(_xlfn.GAMMA.INV(RAND(),'2. Kostnader'!$K$8,'2. Kostnader'!$L$8))*EXP(_xlfn.NORM.INV(RAND(),'1. Effektsamband'!$N$7,'1. Effektsamband'!$S$7)) -> 71428.91681 | J37: =(_xlfn.GAMMA.INV(RAND(),'2. Kostnader'!$L$23,'2. Kostnader'!$M$23))*EXP(_xlfn.NORM.INV(RAND(),'1. Effektsamband'!$N$7,'1. Effektsamband'!$S$7))*'2. Kostnader'!$E$15 -> 266681.5934 | K37: 338110.5103 | L37: =(_xlfn.GAMMA.INV(RAND(),'2. Kostnader'!$K$7,'2. Kostnader'!$L$7))*EXP(_xlfn.NORM.INV(RAND(),'1. Effektsamband'!$N$8,'1. Effektsamband'!$S$8)) -> 2424.482861 | M37: =(_xlfn.GAMMA.INV(RAND(),'2. Kostnader'!$L$21,'2. Kostnader'!$M$21))*EXP(_xlfn.NORM.INV(RAND(), '1. Effektsamband'!$N$8,'1. Effektsamband'!$S$8))*'2. Kostnader'!$E$15 -> 107543.5164 | N37: 109967.9993 | O37: =(_xlfn.GAMMA.INV(RAND(),'2. Kostnader'!$K$13,'2. Kostnader'!$L$13))*EXP(_xlfn.NORM.INV(RAND(),'1. Effektsamband'!$N$9,'1. Effektsamband'!$S$9)) -> 1610.369214 | P37: =(_xlfn.GAMMA.INV(RAND(),'2. Kostnader'!$L$28,'2. Kostnader'!$M$28))*EXP(_xlfn.NORM.INV(RAND(),'1. Effektsamband'!$N$9,'1. Effektsamband'!$S$9))*'2. Kostnader'!$E$15 -> 82254.15794 | Q37: 83864.52715 | R37: =(_xlfn.GAMMA.INV(RAND(),'2. Kostnader'!$K$14,'2. Kostnader'!$L$14))*EXP(_xlfn.NORM.INV(RAND(),'1. Effektsamband'!$N$9,'1. Effektsamband'!$S$9)) -> 29661.86228 | S37: =(_xlfn.GAMMA.INV(RAND(),'2. Kostnader'!$L$27,'2. Kostnader'!$M$27))*EXP(_xlfn.NORM.INV(RAND(),'1. Effektsamband'!$N$9,'1. Effektsamband'!$S$9))*'2. Kostnader'!$E$15 -> 863052.491 | T37: 892714.3532 | U37: =(_xlfn.GAMMA.INV(RAND(),'2. Kostnader'!$K$11,'2. Kostnader'!$L$11))*EXP(_xlfn.NORM.INV(RAND(),'1. Effektsamband'!$N$13,'1. Effektsamband'!$S$13)) -> 78572.54141 | V37: 78572.54141 | W37: =(_xlfn.GAMMA.INV(RAND(),'2. Kostnader'!$K$10,'2. Kostnader'!$L$10)*EXP(_xlfn.NORM.INV(RAND(),'1. Effektsamband'!$N$10,'1. Effektsamband'!$S$10))) -> 23495.47988 | X37: =(_xlfn.GAMMA.INV(RAND(),'2. Kostnader'!$K$10,'2. Kostnader'!$L$10)*(EXP(_xlfn.NORM.INV(RAND(),'1. Effektsamband'!$N$11,'1. Effektsamband'!$S$11)))) -> 9507.815658 | Y37: =(_xlfn.GAMMA.INV(RAND(),'2. Kostnader'!$K$6,'2. Kostnader'!$L$6)*(EXP(_xlfn.NORM.INV(RAND(),'1. Effektsamband'!$N$4,'1. Effektsamband'!$S$4)))) -> 21659.89251
A38: 24 | B38: =EXP(_xlfn.NORM.INV(RAND(),'1. Effektsamband'!$N$3,'1. Effektsamband'!$S$3))*(_xlfn.GAMMA.INV(RAND(),'2. Kostnader'!$K$6,'2. Kostnader'!$L$6)*'1. Effektsamband'!$B$15) -> 4655754.469 | C38: =(_xlfn.GAMMA.INV(RAND(),'2. Kostnader'!$K$9,'2. Kostnader'!$L$9))*(EXP(_xlfn.NORM.INV(RAND(),'1. Effektsamband'!$N$5,'1. Effektsamband'!$S$5))) -> 1886.940709 | D38: =(_xlfn.GAMMA.INV(RAND(),'2. Kostnader'!$L$22,'2. Kostnader'!$M$22))*EXP(_xlfn.NORM.INV(RAND(),'1. Effektsamband'!$N$5,'1. Effektsamband'!$S$5))*'2. Kostnader'!$E$15 -> 3457.320862 | E38: 5344.261571 | F38: =(_xlfn.GAMMA.INV(RAND(),'2. Kostnader'!$K$12,'2. Kostnader'!$L$12))*EXP(_xlfn.NORM.INV(RAND(),'1. Effektsamband'!$N$6,'1. Effektsamband'!$S$6)) -> 1320533.258 | G38: =(_xlfn.GAMMA.INV(RAND(),'2. Kostnader'!$L$26,'2. Kostnader'!$M$26))*EXP(_xlfn.NORM.INV(RAND(),'1. Effektsamband'!$N$6,'1. Effektsamband'!$S$6))*'2. Kostnader'!$E$15 -> 1433911.197 | H38: 2754444.455 | I38: =(_xlfn.GAMMA.INV(RAND(),'2. Kostnader'!$K$8,'2. Kostnader'!$L$8))*EXP(_xlfn.NORM.INV(RAND(),'1. Effektsamband'!$N$7,'1. Effektsamband'!$S$7)) -> 62272.48757 | J38: =(_xlfn.GAMMA.INV(RAND(),'2. Kostnader'!$L$23,'2. Kostnader'!$M$23))*EXP(_xlfn.NORM.INV(RAND(),'1. Effektsamband'!$N$7,'1. Effektsamband'!$S$7))*'2. Kostnader'!$E$15 -> 418749.4702 | K38: 481021.9577 | L38: =(_xlfn.GAMMA.INV(RAND(),'2. Kostnader'!$K$7,'2. Kostnader'!$L$7))*EXP(_xlfn.NORM.INV(RAND(),'1. Effektsamband'!$N$8,'1. Effektsamband'!$S$8)) -> 1436.756669 | M38: =(_xlfn.GAMMA.INV(RAND(),'2. Kostnader'!$L$21,'2. Kostnader'!$M$21))*EXP(_xlfn.NORM.INV(RAND(), '1. Effektsamband'!$N$8,'1. Effektsamband'!$S$8))*'2. Kostnader'!$E$15 -> 129199.3453 | N38: 130636.1019 | O38: =(_xlfn.GAMMA.INV(RAND(),'2. Kostnader'!$K$13,'2. Kostnader'!$L$13))*EXP(_xlfn.NORM.INV(RAND(),'1. Effektsamband'!$N$9,'1. Effektsamband'!$S$9)) -> 11914.23351 | P38: =(_xlfn.GAMMA.INV(RAND(),'2. Kostnader'!$L$28,'2. Kostnader'!$M$28))*EXP(_xlfn.NORM.INV(RAND(),'1. Effektsamband'!$N$9,'1. Effektsamband'!$S$9))*'2. Kostnader'!$E$15 -> 99477.95126 | Q38: 111392.1848 | R38: =(_xlfn.GAMMA.INV(RAND(),'2. Kostnader'!$K$14,'2. Kostnader'!$L$14))*EXP(_xlfn.NORM.INV(RAND(),'1. Effektsamband'!$N$9,'1. Effektsamband'!$S$9)) -> 48412.4493 | S38: =(_xlfn.GAMMA.INV(RAND(),'2. Kostnader'!$L$27,'2. Kostnader'!$M$27))*EXP(_xlfn.NORM.INV(RAND(),'1. Effektsamband'!$N$9,'1. Effektsamband'!$S$9))*'2. Kostnader'!$E$15 -> 379158.6386 | T38: 427571.0879 | U38: =(_xlfn.GAMMA.INV(RAND(),'2. Kostnader'!$K$11,'2. Kostnader'!$L$11))*EXP(_xlfn.NORM.INV(RAND(),'1. Effektsamband'!$N$13,'1. Effektsamband'!$S$13)) -> 75399.10372 | V38: 75399.10372 | W38: =(_xlfn.GAMMA.INV(RAND(),'2. Kostnader'!$K$10,'2. Kostnader'!$L$10)*EXP(_xlfn.NORM.INV(RAND(),'1. Effektsamband'!$N$10,'1. Effektsamband'!$S$10))) -> 24763.45686 | X38: =(_xlfn.GAMMA.INV(RAND(),'2. Kostnader'!$K$10,'2. Kostnader'!$L$10)*(EXP(_xlfn.NORM.INV(RAND(),'1. Effektsamband'!$N$11,'1. Effektsamband'!$S$11)))) -> 14703.07121 | Y38: =(_xlfn.GAMMA.INV(RAND(),'2. Kostnader'!$K$6,'2. Kostnader'!$L$6)*(EXP(_xlfn.NORM.INV(RAND(),'1. Effektsamband'!$N$4,'1. Effektsamband'!$S$4)))) -> 59695.89722
A39: 25 | B39: =EXP(_xlfn.NORM.INV(RAND(),'1. Effektsamband'!$N$3,'1. Effektsamband'!$S$3))*(_xlfn.GAMMA.INV(RAND(),'2. Kostnader'!$K$6,'2. Kostnader'!$L$6)*'1. Effektsamband'!$B$15) -> 2627542.773 | C39: =(_xlfn.GAMMA.INV(RAND(),'2. Kostnader'!$K$9,'2. Kostnader'!$L$9))*(EXP(_xlfn.NORM.INV(RAND(),'1. Effektsamband'!$N$5,'1. Effektsamband'!$S$5))) -> 22206.03825 | D39: =(_xlfn.GAMMA.INV(RAND(),'2. Kostnader'!$L$22,'2. Kostnader'!$M$22))*EXP(_xlfn.NORM.INV(RAND(),'1. Effektsamband'!$N$5,'1. Effektsamband'!$S$5))*'2. Kostnader'!$E$15 -> 655.5649553 | E39: 22861.60321 | F39: =(_xlfn.GAMMA.INV(RAND(),'2. Kostnader'!$K$12,'2. Kostnader'!$L$12))*EXP(_xlfn.NORM.INV(RAND(),'1. Effektsamband'!$N$6,'1. Effektsamband'!$S$6)) -> 138732.0247 | G39: =(_xlfn.GAMMA.INV(RAND(),'2. Kostnader'!$L$26,'2. Kostnader'!$M$26))*EXP(_xlfn.NORM.INV(RAND(),'1. Effektsamband'!$N$6,'1. Effektsamband'!$S$6))*'2. Kostnader'!$E$15 -> 305255.7597 | H39: 443987.7844 | I39: =(_xlfn.GAMMA.INV(RAND(),'2. Kostnader'!$K$8,'2. Kostnader'!$L$8))*EXP(_xlfn.NORM.INV(RAND(),'1. Effektsamband'!$N$7,'1. Effektsamband'!$S$7)) -> 22428.86788 | J39: =(_xlfn.GAMMA.INV(RAND(),'2. Kostnader'!$L$23,'2. Kostnader'!$M$23))*EXP(_xlfn.NORM.INV(RAND(),'1. Effektsamband'!$N$7,'1. Effektsamband'!$S$7))*'2. Kostnader'!$E$15 -> 212393.1132 | K39: 234821.9811 | L39: =(_xlfn.GAMMA.INV(RAND(),'2. Kostnader'!$K$7,'2. Kostnader'!$L$7))*EXP(_xlfn.NORM.INV(RAND(),'1. Effektsamband'!$N$8,'1. Effektsamband'!$S$8)) -> 1664.08347 | M39: =(_xlfn.GAMMA.INV(RAND(),'2. Kostnader'!$L$21,'2. Kostnader'!$M$21))*EXP(_xlfn.NORM.INV(RAND(), '1. Effektsamband'!$N$8,'1. Effektsamband'!$S$8))*'2. Kostnader'!$E$15 -> 114105.1244 | N39: 115769.2079 | O39: =(_xlfn.GAMMA.INV(RAND(),'2. Kostnader'!$K$13,'2. Kostnader'!$L$13))*EXP(_xlfn.NORM.INV(RAND(),'1. Effektsamband'!$N$9,'1. Effektsamband'!$S$9)) -> 3454.577023 | P39: =(_xlfn.GAMMA.INV(RAND(),'2. Kostnader'!$L$28,'2. Kostnader'!$M$28))*EXP(_xlfn.NORM.INV(RAND(),'1. Effektsamband'!$N$9,'1. Effektsamband'!$S$9))*'2. Kostnader'!$E$15 -> 84907.89448 | Q39: 88362.4715 | R39: =(_xlfn.GAMMA.INV(RAND(),'2. Kostnader'!$K$14,'2. Kostnader'!$L$14))*EXP(_xlfn.NORM.INV(RAND(),'1. Effektsamband'!$N$9,'1. Effektsamband'!$S$9)) -> 53919.86698 | S39: =(_xlfn.GAMMA.INV(RAND(),'2. Kostnader'!$L$27,'2. Kostnader'!$M$27))*EXP(_xlfn.NORM.INV(RAND(),'1. Effektsamband'!$N$9,'1. Effektsamband'!$S$9))*'2. Kostnader'!$E$15 -> 383706.7889 | T39: 437626.6559 | U39: =(_xlfn.GAMMA.INV(RAND(),'2. Kostnader'!$K$11,'2. Kostnader'!$L$11))*EXP(_xlfn.NORM.INV(RAND(),'1. Effektsamband'!$N$13,'1. Effektsamband'!$S$13)) -> 80537.09701 | V39: 80537.09701 | W39: =(_xlfn.GAMMA.INV(RAND(),'2. Kostnader'!$K$10,'2. Kostnader'!$L$10)*EXP(_xlfn.NORM.INV(RAND(),'1. Effektsamband'!$N$10,'1. Effektsamband'!$S$10))) -> 7920.80058 | X39: =(_xlfn.GAMMA.INV(RAND(),'2. Kostnader'!$K$10,'2. Kostnader'!$L$10)*(EXP(_xlfn.NORM.INV(RAND(),'1. Effektsamband'!$N$11,'1. Effektsamband'!$S$11)))) -> 7263.427086 | Y39: =(_xlfn.GAMMA.INV(RAND(),'2. Kostnader'!$K$6,'2. Kostnader'!$L$6)*(EXP(_xlfn.NORM.INV(RAND(),'1. Effektsamband'!$N$4,'1. Effektsamband'!$S$4)))) -> 48208.26712
A40: 26 | B40: =EXP(_xlfn.NORM.INV(RAND(),'1. Effektsamband'!$N$3,'1. Effektsamband'!$S$3))*(_xlfn.GAMMA.INV(RAND(),'2. Kostnader'!$K$6,'2. Kostnader'!$L$6)*'1. Effektsamband'!$B$15) -> 3476665.285 | C40: =(_xlfn.GAMMA.INV(RAND(),'2. Kostnader'!$K$9,'2. Kostnader'!$L$9))*(EXP(_xlfn.NORM.INV(RAND(),'1. Effektsamband'!$N$5,'1. Effektsamband'!$S$5))) -> 9948.966238 | D40: =(_xlfn.GAMMA.INV(RAND(),'2. Kostnader'!$L$22,'2. Kostnader'!$M$22))*EXP(_xlfn.NORM.INV(RAND(),'1. Effektsamband'!$N$5,'1. Effektsamband'!$S$5))*'2. Kostnader'!$E$15 -> 1861.767057 | E40: 11810.7333 | F40: =(_xlfn.GAMMA.INV(RAND(),'2. Kostnader'!$K$12,'2. Kostnader'!$L$12))*EXP(_xlfn.NORM.INV(RAND(),'1. Effektsamband'!$N$6,'1. Effektsamband'!$S$6)) -> 181552.4504 | G40: =(_xlfn.GAMMA.INV(RAND(),'2. Kostnader'!$L$26,'2. Kostnader'!$M$26))*EXP(_xlfn.NORM.INV(RAND(),'1. Effektsamband'!$N$6,'1. Effektsamband'!$S$6))*'2. Kostnader'!$E$15 -> 401900.7515 | H40: 583453.2019 | I40: =(_xlfn.GAMMA.INV(RAND(),'2. Kostnader'!$K$8,'2. Kostnader'!$L$8))*EXP(_xlfn.NORM.INV(RAND(),'1. Effektsamband'!$N$7,'1. Effektsamband'!$S$7)) -> 16877.29432 | J40: =(_xlfn.GAMMA.INV(RAND(),'2. Kostnader'!$L$23,'2. Kostnader'!$M$23))*EXP(_xlfn.NORM.INV(RAND(),'1. Effektsamband'!$N$7,'1. Effektsamband'!$S$7))*'2. Kostnader'!$E$15 -> 348965.1535 | K40: 365842.4478 | L40: =(_xlfn.GAMMA.INV(RAND(),'2. Kostnader'!$K$7,'2. Kostnader'!$L$7))*EXP(_xlfn.NORM.INV(RAND(),'1. Effektsamband'!$N$8,'1. Effektsamband'!$S$8)) -> 1469.509891 | M40: =(_xlfn.GAMMA.INV(RAND(),'2. Kostnader'!$L$21,'2. Kostnader'!$M$21))*EXP(_xlfn.NORM.INV(RAND(), '1. Effektsamband'!$N$8,'1. Effektsamband'!$S$8))*'2. Kostnader'!$E$15 -> 121215.7934 | N40: 122685.3033 | O40: =(_xlfn.GAMMA.INV(RAND(),'2. Kostnader'!$K$13,'2. Kostnader'!$L$13))*EXP(_xlfn.NORM.INV(RAND(),'1. Effektsamband'!$N$9,'1. Effektsamband'!$S$9)) -> 8500.826383 | P40: =(_xlfn.GAMMA.INV(RAND(),'2. Kostnader'!$L$28,'2. Kostnader'!$M$28))*EXP(_xlfn.NORM.INV(RAND(),'1. Effektsamband'!$N$9,'1. Effektsamband'!$S$9))*'2. Kostnader'!$E$15 -> 272368.3914 | Q40: 280869.2178 | R40: =(_xlfn.GAMMA.INV(RAND(),'2. Kostnader'!$K$14,'2. Kostnader'!$L$14))*EXP(_xlfn.NORM.INV(RAND(),'1. Effektsamband'!$N$9,'1. Effektsamband'!$S$9)) -> 32702.41292 | S40: =(_xlfn.GAMMA.INV(RAND(),'2. Kostnader'!$L$27,'2. Kostnader'!$M$27))*EXP(_xlfn.NORM.INV(RAND(),'1. Effektsamband'!$N$9,'1. Effektsamband'!$S$9))*'2. Kostnader'!$E$15 -> 401732.8756 | T40: 434435.2886 | U40: =(_xlfn.GAMMA.INV(RAND(),'2. Kostnader'!$K$11,'2. Kostnader'!$L$11))*EXP(_xlfn.NORM.INV(RAND(),'1. Effektsamband'!$N$13,'1. Effektsamband'!$S$13)) -> 50989.46856 | V40: 50989.46856 | W40: =(_xlfn.GAMMA.INV(RAND(),'2. Kostnader'!$K$10,'2. Kostnader'!$L$10)*EXP(_xlfn.NORM.INV(RAND(),'1. Effektsamband'!$N$10,'1. Effektsamband'!$S$10))) -> 16061.20378 | X40: =(_xlfn.GAMMA.INV(RAND(),'2. Kostnader'!$K$10,'2. Kostnader'!$L$10)*(EXP(_xlfn.NORM.INV(RAND(),'1. Effektsamband'!$N$11,'1. Effektsamband'!$S$11)))) -> 10824.83846 | Y40: =(_xlfn.GAMMA.INV(RAND(),'2. Kostnader'!$K$6,'2. Kostnader'!$L$6)*(EXP(_xlfn.NORM.INV(RAND(),'1. Effektsamband'!$N$4,'1. Effektsamband'!$S$4)))) -> 11519.70809
A41: 27 | B41: =EXP(_xlfn.NORM.INV(RAND(),'1. Effektsamband'!$N$3,'1. Effektsamband'!$S$3))*(_xlfn.GAMMA.INV(RAND(),'2. Kostnader'!$K$6,'2. Kostnader'!$L$6)*'1. Effektsamband'!$B$15) -> 4693088.377 | C41: =(_xlfn.GAMMA.INV(RAND(),'2. Kostnader'!$K$9,'2. Kostnader'!$L$9))*(EXP(_xlfn.NORM.INV(RAND(),'1. Effektsamband'!$N$5,'1. Effektsamband'!$S$5))) -> 3144.093165 | D41: =(_xlfn.GAMMA.INV(RAND(),'2. Kostnader'!$L$22,'2. Kostnader'!$M$22))*EXP(_xlfn.NORM.INV(RAND(),'1. Effektsamband'!$N$5,'1. Effektsamband'!$S$5))*'2. Kostnader'!$E$15 -> 4640.364375 | E41: 7784.45754 | F41: =(_xlfn.GAMMA.INV(RAND(),'2. Kostnader'!$K$12,'2. Kostnader'!$L$12))*EXP(_xlfn.NORM.INV(RAND(),'1. Effektsamband'!$N$6,'1. Effektsamband'!$S$6)) -> 93374.47608 | G41: =(_xlfn.GAMMA.INV(RAND(),'2. Kostnader'!$L$26,'2. Kostnader'!$M$26))*EXP(_xlfn.NORM.INV(RAND(),'1. Effektsamband'!$N$6,'1. Effektsamband'!$S$6))*'2. Kostnader'!$E$15 -> 1605855.158 | H41: 1699229.634 | I41: =(_xlfn.GAMMA.INV(RAND(),'2. Kostnader'!$K$8,'2. Kostnader'!$L$8))*EXP(_xlfn.NORM.INV(RAND(),'1. Effektsamband'!$N$7,'1. Effektsamband'!$S$7)) -> 29122.56884 | J41: =(_xlfn.GAMMA.INV(RAND(),'2. Kostnader'!$L$23,'2. Kostnader'!$M$23))*EXP(_xlfn.NORM.INV(RAND(),'1. Effektsamband'!$N$7,'1. Effektsamband'!$S$7))*'2. Kostnader'!$E$15 -> 255825.7684 | K41: 284948.3372 | L41: =(_xlfn.GAMMA.INV(RAND(),'2. Kostnader'!$K$7,'2. Kostnader'!$L$7))*EXP(_xlfn.NORM.INV(RAND(),'1. Effektsamband'!$N$8,'1. Effektsamband'!$S$8)) -> 1475.416181 | M41: =(_xlfn.GAMMA.INV(RAND(),'2. Kostnader'!$L$21,'2. Kostnader'!$M$21))*EXP(_xlfn.NORM.INV(RAND(), '1. Effektsamband'!$N$8,'1. Effektsamband'!$S$8))*'2. Kostnader'!$E$15 -> 146651.1305 | N41: 148126.5467 | O41: =(_xlfn.GAMMA.INV(RAND(),'2. Kostnader'!$K$13,'2. Kostnader'!$L$13))*EXP(_xlfn.NORM.INV(RAND(),'1. Effektsamband'!$N$9,'1. Effektsamband'!$S$9)) -> 6869.190115 | P41: =(_xlfn.GAMMA.INV(RAND(),'2. Kostnader'!$L$28,'2. Kostnader'!$M$28))*EXP(_xlfn.NORM.INV(RAND(),'1. Effektsamband'!$N$9,'1. Effektsamband'!$S$9))*'2. Kostnader'!$E$15 -> 91611.05186 | Q41: 98480.24197 | R41: =(_xlfn.GAMMA.INV(RAND(),'2. Kostnader'!$K$14,'2. Kostnader'!$L$14))*EXP(_xlfn.NORM.INV(RAND(),'1. Effektsamband'!$N$9,'1. Effektsamband'!$S$9)) -> 31004.25283 | S41: =(_xlfn.GAMMA.INV(RAND(),'2. Kostnader'!$L$27,'2. Kostnader'!$M$27))*EXP(_xlfn.NORM.INV(RAND(),'1. Effektsamband'!$N$9,'1. Effektsamband'!$S$9))*'2. Kostnader'!$E$15 -> 786496.7594 | T41: 817501.0122 | U41: =(_xlfn.GAMMA.INV(RAND(),'2. Kostnader'!$K$11,'2. Kostnader'!$L$11))*EXP(_xlfn.NORM.INV(RAND(),'1. Effektsamband'!$N$13,'1. Effektsamband'!$S$13)) -> 49180.47891 | V41: 49180.47891 | W41: =(_xlfn.GAMMA.INV(RAND(),'2. Kostnader'!$K$10,'2. Kostnader'!$L$10)*EXP(_xlfn.NORM.INV(RAND(),'1. Effektsamband'!$N$10,'1. Effektsamband'!$S$10))) -> 19404.58173 | X41: =(_xlfn.GAMMA.INV(RAND(),'2. Kostnader'!$K$10,'2. Kostnader'!$L$10)*(EXP(_xlfn.NORM.INV(RAND(),'1. Effektsamband'!$N$11,'1. Effektsamband'!$S$11)))) -> 7590.48383 | Y41: =(_xlfn.GAMMA.INV(RAND(),'2. Kostnader'!$K$6,'2. Kostnader'!$L$6)*(EXP(_xlfn.NORM.INV(RAND(),'1. Effektsamband'!$N$4,'1. Effektsamband'!$S$4)))) -> 4299.061671
A42: 28 | B42: =EXP(_xlfn.NORM.INV(RAND(),'1. Effektsamband'!$N$3,'1. Effektsamband'!$S$3))*(_xlfn.GAMMA.INV(RAND(),'2. Kostnader'!$K$6,'2. Kostnader'!$L$6)*'1. Effektsamband'!$B$15) -> 2612279.891 | C42: =(_xlfn.GAMMA.INV(RAND(),'2. Kostnader'!$K$9,'2. Kostnader'!$L$9))*(EXP(_xlfn.NORM.INV(RAND(),'1. Effektsamband'!$N$5,'1. Effektsamband'!$S$5))) -> 5433.733319 | D42: =(_xlfn.GAMMA.INV(RAND(),'2. Kostnader'!$L$22,'2. Kostnader'!$M$22))*EXP(_xlfn.NORM.INV(RAND(),'1. Effektsamband'!$N$5,'1. Effektsamband'!$S$5))*'2. Kostnader'!$E$15 -> 8244.70839 | E42: 13678.44171 | F42: =(_xlfn.GAMMA.INV(RAND(),'2. Kostnader'!$K$12,'2. Kostnader'!$L$12))*EXP(_xlfn.NORM.INV(RAND(),'1. Effektsamband'!$N$6,'1. Effektsamband'!$S$6)) -> 262942.6427 | G42: =(_xlfn.GAMMA.INV(RAND(),'2. Kostnader'!$L$26,'2. Kostnader'!$M$26))*EXP(_xlfn.NORM.INV(RAND(),'1. Effektsamband'!$N$6,'1. Effektsamband'!$S$6))*'2. Kostnader'!$E$15 -> 412550.5997 | H42: 675493.2423 | I42: =(_xlfn.GAMMA.INV(RAND(),'2. Kostnader'!$K$8,'2. Kostnader'!$L$8))*EXP(_xlfn.NORM.INV(RAND(),'1. Effektsamband'!$N$7,'1. Effektsamband'!$S$7)) -> 36874.73985 | J42: =(_xlfn.GAMMA.INV(RAND(),'2. Kostnader'!$L$23,'2. Kostnader'!$M$23))*EXP(_xlfn.NORM.INV(RAND(),'1. Effektsamband'!$N$7,'1. Effektsamband'!$S$7))*'2. Kostnader'!$E$15 -> 270913.3689 | K42: 307788.1088 | L42: =(_xlfn.GAMMA.INV(RAND(),'2. Kostnader'!$K$7,'2. Kostnader'!$L$7))*EXP(_xlfn.NORM.INV(RAND(),'1. Effektsamband'!$N$8,'1. Effektsamband'!$S$8)) -> 1039.649856 | M42: =(_xlfn.GAMMA.INV(RAND(),'2. Kostnader'!$L$21,'2. Kostnader'!$M$21))*EXP(_xlfn.NORM.INV(RAND(), '1. Effektsamband'!$N$8,'1. Effektsamband'!$S$8))*'2. Kostnader'!$E$15 -> 117326.4939 | N42: 118366.1438 | O42: =(_xlfn.GAMMA.INV(RAND(),'2. Kostnader'!$K$13,'2. Kostnader'!$L$13))*EXP(_xlfn.NORM.INV(RAND(),'1. Effektsamband'!$N$9,'1. Effektsamband'!$S$9)) -> 4246.957192 | P42: =(_xlfn.GAMMA.INV(RAND(),'2. Kostnader'!$L$28,'2. Kostnader'!$M$28))*EXP(_xlfn.NORM.INV(RAND(),'1. Effektsamband'!$N$9,'1. Effektsamband'!$S$9))*'2. Kostnader'!$E$15 -> 171817.2646 | Q42: 176064.2218 | R42: =(_xlfn.GAMMA.INV(RAND(),'2. Kostnader'!$K$14,'2. Kostnader'!$L$14))*EXP(_xlfn.NORM.INV(RAND(),'1. Effektsamband'!$N$9,'1. Effektsamband'!$S$9)) -> 93215.26965 | S42: =(_xlfn.GAMMA.INV(RAND(),'2. Kostnader'!$L$27,'2. Kostnader'!$M$27))*EXP(_xlfn.NORM.INV(RAND(),'1. Effektsamband'!$N$9,'1. Effektsamband'!$S$9))*'2. Kostnader'!$E$15 -> 1021608.586 | T42: 1114823.856 | U42: =(_xlfn.GAMMA.INV(RAND(),'2. Kostnader'!$K$11,'2. Kostnader'!$L$11))*EXP(_xlfn.NORM.INV(RAND(),'1. Effektsamband'!$N$13,'1. Effektsamband'!$S$13)) -> 44205.96201 | V42: 44205.96201 | W42: =(_xlfn.GAMMA.INV(RAND(),'2. Kostnader'!$K$10,'2. Kostnader'!$L$10)*EXP(_xlfn.NORM.INV(RAND(),'1. Effektsamband'!$N$10,'1. Effektsamband'!$S$10))) -> 12773.37413 | X42: =(_xlfn.GAMMA.INV(RAND(),'2. Kostnader'!$K$10,'2. Kostnader'!$L$10)*(EXP(_xlfn.NORM.INV(RAND(),'1. Effektsamband'!$N$11,'1. Effektsamband'!$S$11)))) -> 5366.127389 | Y42: =(_xlfn.GAMMA.INV(RAND(),'2. Kostnader'!$K$6,'2. Kostnader'!$L$6)*(EXP(_xlfn.NORM.INV(RAND(),'1. Effektsamband'!$N$4,'1. Effektsamband'!$S$4)))) -> 30359.52964
A43: 29 | B43: =EXP(_xlfn.NORM.INV(RAND(),'1. Effektsamband'!$N$3,'1. Effektsamband'!$S$3))*(_xlfn.GAMMA.INV(RAND(),'2. Kostnader'!$K$6,'2. Kostnader'!$L$6)*'1. Effektsamband'!$B$15) -> 2867028.206 | C43: =(_xlfn.GAMMA.INV(RAND(),'2. Kostnader'!$K$9,'2. Kostnader'!$L$9))*(EXP(_xlfn.NORM.INV(RAND(),'1. Effektsamband'!$N$5,'1. Effektsamband'!$S$5))) -> 3596.516226 | D43: =(_xlfn.GAMMA.INV(RAND(),'2. Kostnader'!$L$22,'2. Kostnader'!$M$22))*EXP(_xlfn.NORM.INV(RAND(),'1. Effektsamband'!$N$5,'1. Effektsamband'!$S$5))*'2. Kostnader'!$E$15 -> 1112.405421 | E43: 4708.921647 | F43: =(_xlfn.GAMMA.INV(RAND(),'2. Kostnader'!$K$12,'2. Kostnader'!$L$12))*EXP(_xlfn.NORM.INV(RAND(),'1. Effektsamband'!$N$6,'1. Effektsamband'!$S$6)) -> 122454.3293 | G43: =(_xlfn.GAMMA.INV(RAND(),'2. Kostnader'!$L$26,'2. Kostnader'!$M$26))*EXP(_xlfn.NORM.INV(RAND(),'1. Effektsamband'!$N$6,'1. Effektsamband'!$S$6))*'2. Kostnader'!$E$15 -> 307694.0236 | H43: 430148.353 | I43: =(_xlfn.GAMMA.INV(RAND(),'2. Kostnader'!$K$8,'2. Kostnader'!$L$8))*EXP(_xlfn.NORM.INV(RAND(),'1. Effektsamband'!$N$7,'1. Effektsamband'!$S$7)) -> 29492.55503 | J43: =(_xlfn.GAMMA.INV(RAND(),'2. Kostnader'!$L$23,'2. Kostnader'!$M$23))*EXP(_xlfn.NORM.INV(RAND(),'1. Effektsamband'!$N$7,'1. Effektsamband'!$S$7))*'2. Kostnader'!$E$15 -> 293024.5541 | K43: 322517.1091 | L43: =(_xlfn.GAMMA.INV(RAND(),'2. Kostnader'!$K$7,'2. Kostnader'!$L$7))*EXP(_xlfn.NORM.INV(RAND(),'1. Effektsamband'!$N$8,'1. Effektsamband'!$S$8)) -> 1672.385483 | M43: =(_xlfn.GAMMA.INV(RAND(),'2. Kostnader'!$L$21,'2. Kostnader'!$M$21))*EXP(_xlfn.NORM.INV(RAND(), '1. Effektsamband'!$N$8,'1. Effektsamband'!$S$8))*'2. Kostnader'!$E$15 -> 101109.7248 | N43: 102782.1102 | O43: =(_xlfn.GAMMA.INV(RAND(),'2. Kostnader'!$K$13,'2. Kostnader'!$L$13))*EXP(_xlfn.NORM.INV(RAND(),'1. Effektsamband'!$N$9,'1. Effektsamband'!$S$9)) -> 5939.644785 | P43: =(_xlfn.GAMMA.INV(RAND(),'2. Kostnader'!$L$28,'2. Kostnader'!$M$28))*EXP(_xlfn.NORM.INV(RAND(),'1. Effektsamband'!$N$9,'1. Effektsamband'!$S$9))*'2. Kostnader'!$E$15 -> 90439.01151 | Q43: 96378.65629 | R43: =(_xlfn.GAMMA.INV(RAND(),'2. Kostnader'!$K$14,'2. Kostnader'!$L$14))*EXP(_xlfn.NORM.INV(RAND(),'1. Effektsamband'!$N$9,'1. Effektsamband'!$S$9)) -> 51276.07925 | S43: =(_xlfn.GAMMA.INV(RAND(),'2. Kostnader'!$L$27,'2. Kostnader'!$M$27))*EXP(_xlfn.NORM.INV(RAND(),'1. Effektsamband'!$N$9,'1. Effektsamband'!$S$9))*'2. Kostnader'!$E$15 -> 383487.5279 | T43: 434763.6072 | U43: =(_xlfn.GAMMA.INV(RAND(),'2. Kostnader'!$K$11,'2. Kostnader'!$L$11))*EXP(_xlfn.NORM.INV(RAND(),'1. Effektsamband'!$N$13,'1. Effektsamband'!$S$13)) -> 51219.39545 | V43: 51219.39545 | W43: =(_xlfn.GAMMA.INV(RAND(),'2. Kostnader'!$K$10,'2. Kostnader'!$L$10)*EXP(_xlfn.NORM.INV(RAND(),'1. Effektsamband'!$N$10,'1. Effektsamband'!$S$10))) -> 37864.55965 | X43: =(_xlfn.GAMMA.INV(RAND(),'2. Kostnader'!$K$10,'2. Kostnader'!$L$10)*(EXP(_xlfn.NORM.INV(RAND(),'1. Effektsamband'!$N$11,'1. Effektsamband'!$S$11)))) -> 15842.17855 | Y43: =(_xlfn.GAMMA.INV(RAND(),'2. Kostnader'!$K$6,'2. Kostnader'!$L$6)*(EXP(_xlfn.NORM.INV(RAND(),'1. Effektsamband'!$N$4,'1. Effektsamband'!$S$4)))) -> 42178.48163
A44: 30 | B44: =EXP(_xlfn.NORM.INV(RAND(),'1. Effektsamband'!$N$3,'1. Effektsamband'!$S$3))*(_xlfn.GAMMA.INV(RAND(),'2. Kostnader'!$K$6,'2. Kostnader'!$L$6)*'1. Effektsamband'!$B$15) -> 3839463.474 | C44: =(_xlfn.GAMMA.INV(RAND(),'2. Kostnader'!$K$9,'2. Kostnader'!$L$9))*(EXP(_xlfn.NORM.INV(RAND(),'1. Effektsamband'!$N$5,'1. Effektsamband'!$S$5))) -> 10593.0114 | D44: =(_xlfn.GAMMA.INV(RAND(),'2. Kostnader'!$L$22,'2. Kostnader'!$M$22))*EXP(_xlfn.NORM.INV(RAND(),'1. Effektsamband'!$N$5,'1. Effektsamband'!$S$5))*'2. Kostnader'!$E$15 -> 1560.878401 | E44: 12153.8898 | F44: =(_xlfn.GAMMA.INV(RAND(),'2. Kostnader'!$K$12,'2. Kostnader'!$L$12))*EXP(_xlfn.NORM.INV(RAND(),'1. Effektsamband'!$N$6,'1. Effektsamband'!$S$6)) -> 501058.5065 | G44: =(_xlfn.GAMMA.INV(RAND(),'2. Kostnader'!$L$26,'2. Kostnader'!$M$26))*EXP(_xlfn.NORM.INV(RAND(),'1. Effektsamband'!$N$6,'1. Effektsamband'!$S$6))*'2. Kostnader'!$E$15 -> 336359.2402 | H44: 837417.7468 | I44: =(_xlfn.GAMMA.INV(RAND(),'2. Kostnader'!$K$8,'2. Kostnader'!$L$8))*EXP(_xlfn.NORM.INV(RAND(),'1. Effektsamband'!$N$7,'1. Effektsamband'!$S$7)) -> 21807.35629 | J44: =(_xlfn.GAMMA.INV(RAND(),'2. Kostnader'!$L$23,'2. Kostnader'!$M$23))*EXP(_xlfn.NORM.INV(RAND(),'1. Effektsamband'!$N$7,'1. Effektsamband'!$S$7))*'2. Kostnader'!$E$15 -> 354028.7971 | K44: 375836.1534 | L44: =(_xlfn.GAMMA.INV(RAND(),'2. Kostnader'!$K$7,'2. Kostnader'!$L$7))*EXP(_xlfn.NORM.INV(RAND(),'1. Effektsamband'!$N$8,'1. Effektsamband'!$S$8)) -> 2480.497465 | M44: =(_xlfn.GAMMA.INV(RAND(),'2. Kostnader'!$L$21,'2. Kostnader'!$M$21))*EXP(_xlfn.NORM.INV(RAND(), '1. Effektsamband'!$N$8,'1. Effektsamband'!$S$8))*'2. Kostnader'!$E$15 -> 170097.2895 | N44: 172577.787 | O44: =(_xlfn.GAMMA.INV(RAND(),'2. Kostnader'!$K$13,'2. Kostnader'!$L$13))*EXP(_xlfn.NORM.INV(RAND(),'1. Effektsamband'!$N$9,'1. Effektsamband'!$S$9)) -> 2648.477655 | P44: =(_xlfn.GAMMA.INV(RAND(),'2. Kostnader'!$L$28,'2. Kostnader'!$M$28))*EXP(_xlfn.NORM.INV(RAND(),'1. Effektsamband'!$N$9,'1. Effektsamband'!$S$9))*'2. Kostnader'!$E$15 -> 72490.61919 | Q44: 75139.09684 | R44: =(_xlfn.GAMMA.INV(RAND(),'2. Kostnader'!$K$14,'2. Kostnader'!$L$14))*EXP(_xlfn.NORM.INV(RAND(),'1. Effektsamband'!$N$9,'1. Effektsamband'!$S$9)) -> 48977.30827 | S44: =(_xlfn.GAMMA.INV(RAND(),'2. Kostnader'!$L$27,'2. Kostnader'!$M$27))*EXP(_xlfn.NORM.INV(RAND(),'1. Effektsamband'!$N$9,'1. Effektsamband'!$S$9))*'2. Kostnader'!$E$15 -> 670343.6198 | T44: 719320.9281 | U44: =(_xlfn.GAMMA.INV(RAND(),'2. Kostnader'!$K$11,'2. Kostnader'!$L$11))*EXP(_xlfn.NORM.INV(RAND(),'1. Effektsamband'!$N$13,'1. Effektsamband'!$S$13)) -> 62280.72494 | V44: 62280.72494 | W44: =(_xlfn.GAMMA.INV(RAND(),'2. Kostnader'!$K$10,'2. Kostnader'!$L$10)*EXP(_xlfn.NORM.INV(RAND(),'1. Effektsamband'!$N$10,'1. Effektsamband'!$S$10))) -> 30321.26789 | X44: =(_xlfn.GAMMA.INV(RAND(),'2. Kostnader'!$K$10,'2. Kostnader'!$L$10)*(EXP(_xlfn.NORM.INV(RAND(),'1. Effektsamband'!$N$11,'1. Effektsamband'!$S$11)))) -> 6264.288371 | Y44: =(_xlfn.GAMMA.INV(RAND(),'2. Kostnader'!$K$6,'2. Kostnader'!$L$6)*(EXP(_xlfn.NORM.INV(RAND(),'1. Effektsamband'!$N$4,'1. Effektsamband'!$S$4)))) -> 10059.52543
A45: 31 | B45: =EXP(_xlfn.NORM.INV(RAND(),'1. Effektsamband'!$N$3,'1. Effektsamband'!$S$3))*(_xlfn.GAMMA.INV(RAND(),'2. Kostnader'!$K$6,'2. Kostnader'!$L$6)*'1. Effektsamband'!$B$15) -> 3205082.187 | C45: =(_xlfn.GAMMA.INV(RAND(),'2. Kostnader'!$K$9,'2. Kostnader'!$L$9))*(EXP(_xlfn.NORM.INV(RAND(),'1. Effektsamband'!$N$5,'1. Effektsamband'!$S$5))) -> 1464.059439 | D45: =(_xlfn.GAMMA.INV(RAND(),'2. Kostnader'!$L$22,'2. Kostnader'!$M$22))*EXP(_xlfn.NORM.INV(RAND(),'1. Effektsamband'!$N$5,'1. Effektsamband'!$S$5))*'2. Kostnader'!$E$15 -> 8600.691255 | E45: 10064.75069 | F45: =(_xlfn.GAMMA.INV(RAND(),'2. Kostnader'!$K$12,'2. Kostnader'!$L$12))*EXP(_xlfn.NORM.INV(RAND(),'1. Effektsamband'!$N$6,'1. Effektsamband'!$S$6)) -> 1792230.588 | G45: =(_xlfn.GAMMA.INV(RAND(),'2. Kostnader'!$L$26,'2. Kostnader'!$M$26))*EXP(_xlfn.NORM.INV(RAND(),'1. Effektsamband'!$N$6,'1. Effektsamband'!$S$6))*'2. Kostnader'!$E$15 -> 1544574.462 | H45: 3336805.05 | I45: =(_xlfn.GAMMA.INV(RAND(),'2. Kostnader'!$K$8,'2. Kostnader'!$L$8))*EXP(_xlfn.NORM.INV(RAND(),'1. Effektsamband'!$N$7,'1. Effektsamband'!$S$7)) -> 33424.32697 | J45: =(_xlfn.GAMMA.INV(RAND(),'2. Kostnader'!$L$23,'2. Kostnader'!$M$23))*EXP(_xlfn.NORM.INV(RAND(),'1. Effektsamband'!$N$7,'1. Effektsamband'!$S$7))*'2. Kostnader'!$E$15 -> 366105.9879 | K45: 399530.3148 | L45: =(_xlfn.GAMMA.INV(RAND(),'2. Kostnader'!$K$7,'2. Kostnader'!$L$7))*EXP(_xlfn.NORM.INV(RAND(),'1. Effektsamband'!$N$8,'1. Effektsamband'!$S$8)) -> 1222.76961 | M45: =(_xlfn.GAMMA.INV(RAND(),'2. Kostnader'!$L$21,'2. Kostnader'!$M$21))*EXP(_xlfn.NORM.INV(RAND(), '1. Effektsamband'!$N$8,'1. Effektsamband'!$S$8))*'2. Kostnader'!$E$15 -> 134255.674 | N45: 135478.4436 | O45: =(_xlfn.GAMMA.INV(RAND(),'2. Kostnader'!$K$13,'2. Kostnader'!$L$13))*EXP(_xlfn.NORM.INV(RAND(),'1. Effektsamband'!$N$9,'1. Effektsamband'!$S$9)) -> 2262.172693 | P45: =(_xlfn.GAMMA.INV(RAND(),'2. Kostnader'!$L$28,'2. Kostnader'!$M$28))*EXP(_xlfn.NORM.INV(RAND(),'1. Effektsamband'!$N$9,'1. Effektsamband'!$S$9))*'2. Kostnader'!$E$15 -> 158151.0345 | Q45: 160413.2072 | R45: =(_xlfn.GAMMA.INV(RAND(),'2. Kostnader'!$K$14,'2. Kostnader'!$L$14))*EXP(_xlfn.NORM.INV(RAND(),'1. Effektsamband'!$N$9,'1. Effektsamband'!$S$9)) -> 61405.02622 | S45: =(_xlfn.GAMMA.INV(RAND(),'2. Kostnader'!$L$27,'2. Kostnader'!$M$27))*EXP(_xlfn.NORM.INV(RAND(),'1. Effektsamband'!$N$9,'1. Effektsamband'!$S$9))*'2. Kostnader'!$E$15 -> 285716.1032 | T45: 347121.1294 | U45: =(_xlfn.GAMMA.INV(RAND(),'2. Kostnader'!$K$11,'2. Kostnader'!$L$11))*EXP(_xlfn.NORM.INV(RAND(),'1. Effektsamband'!$N$13,'1. Effektsamband'!$S$13)) -> 65380.69734 | V45: 65380.69734 | W45: =(_xlfn.GAMMA.INV(RAND(),'2. Kostnader'!$K$10,'2. Kostnader'!$L$10)*EXP(_xlfn.NORM.INV(RAND(),'1. Effektsamband'!$N$10,'1. Effektsamband'!$S$10))) -> 25789.57007 | X45: =(_xlfn.GAMMA.INV(RAND(),'2. Kostnader'!$K$10,'2. Kostnader'!$L$10)*(EXP(_xlfn.NORM.INV(RAND(),'1. Effektsamband'!$N$11,'1. Effektsamband'!$S$11)))) -> 5670.094137 | Y45: =(_xlfn.GAMMA.INV(RAND(),'2. Kostnader'!$K$6,'2. Kostnader'!$L$6)*(EXP(_xlfn.NORM.INV(RAND(),'1. Effektsamband'!$N$4,'1. Effektsamband'!$S$4)))) -> 17057.4577
A46: 32 | B46: =EXP(_xlfn.NORM.INV(RAND(),'1. Effektsamband'!$N$3,'1. Effektsamband'!$S$3))*(_xlfn.GAMMA.INV(RAND(),'2. Kostnader'!$K$6,'2. Kostnader'!$L$6)*'1. Effektsamband'!$B$15) -> 2774386.226 | C46: =(_xlfn.GAMMA.INV(RAND(),'2. Kostnader'!$K$9,'2. Kostnader'!$L$9))*(EXP(_xlfn.NORM.INV(RAND(),'1. Effektsamband'!$N$5,'1. Effektsamband'!$S$5))) -> 2671.693329 | D46: =(_xlfn.GAMMA.INV(RAND(),'2. Kostnader'!$L$22,'2. Kostnader'!$M$22))*EXP(_xlfn.NORM.INV(RAND(),'1. Effektsamband'!$N$5,'1. Effektsamband'!$S$5))*'2. Kostnader'!$E$15 -> 1526.186199 | E46: 4197.879528 | F46: =(_xlfn.GAMMA.INV(RAND(),'2. Kostnader'!$K$12,'2. Kostnader'!$L$12))*EXP(_xlfn.NORM.INV(RAND(),'1. Effektsamband'!$N$6,'1. Effektsamband'!$S$6)) -> 111225.1958 | G46: =(_xlfn.GAMMA.INV(RAND(),'2. Kostnader'!$L$26,'2. Kostnader'!$M$26))*EXP(_xlfn.NORM.INV(RAND(),'1. Effektsamband'!$N$6,'1. Effektsamband'!$S$6))*'2. Kostnader'!$E$15 -> 515404.7493 | H46: 626629.9451 | I46: =(_xlfn.GAMMA.INV(RAND(),'2. Kostnader'!$K$8,'2. Kostnader'!$L$8))*EXP(_xlfn.NORM.INV(RAND(),'1. Effektsamband'!$N$7,'1. Effektsamband'!$S$7)) -> 36648.03441 | J46: =(_xlfn.GAMMA.INV(RAND(),'2. Kostnader'!$L$23,'2. Kostnader'!$M$23))*EXP(_xlfn.NORM.INV(RAND(),'1. Effektsamband'!$N$7,'1. Effektsamband'!$S$7))*'2. Kostnader'!$E$15 -> 317727.7644 | K46: 354375.7988 | L46: =(_xlfn.GAMMA.INV(RAND(),'2. Kostnader'!$K$7,'2. Kostnader'!$L$7))*EXP(_xlfn.NORM.INV(RAND(),'1. Effektsamband'!$N$8,'1. Effektsamband'!$S$8)) -> 1314.968693 | M46: =(_xlfn.GAMMA.INV(RAND(),'2. Kostnader'!$L$21,'2. Kostnader'!$M$21))*EXP(_xlfn.NORM.INV(RAND(), '1. Effektsamband'!$N$8,'1. Effektsamband'!$S$8))*'2. Kostnader'!$E$15 -> 123043.6234 | N46: 124358.5921 | O46: =(_xlfn.GAMMA.INV(RAND(),'2. Kostnader'!$K$13,'2. Kostnader'!$L$13))*EXP(_xlfn.NORM.INV(RAND(),'1. Effektsamband'!$N$9,'1. Effektsamband'!$S$9)) -> 6051.485747 | P46: =(_xlfn.GAMMA.INV(RAND(),'2. Kostnader'!$L$28,'2. Kostnader'!$M$28))*EXP(_xlfn.NORM.INV(RAND(),'1. Effektsamband'!$N$9,'1. Effektsamband'!$S$9))*'2. Kostnader'!$E$15 -> 85587.40283 | Q46: 91638.88858 | R46: =(_xlfn.GAMMA.INV(RAND(),'2. Kostnader'!$K$14,'2. Kostnader'!$L$14))*EXP(_xlfn.NORM.INV(RAND(),'1. Effektsamband'!$N$9,'1. Effektsamband'!$S$9)) -> 26227.88269 | S46: =(_xlfn.GAMMA.INV(RAND(),'2. Kostnader'!$L$27,'2. Kostnader'!$M$27))*EXP(_xlfn.NORM.INV(RAND(),'1. Effektsamband'!$N$9,'1. Effektsamband'!$S$9))*'2. Kostnader'!$E$15 -> 649015.3078 | T46: 675243.1905 | U46: =(_xlfn.GAMMA.INV(RAND(),'2. Kostnader'!$K$11,'2. Kostnader'!$L$11))*EXP(_xlfn.NORM.INV(RAND(),'1. Effektsamband'!$N$13,'1. Effektsamband'!$S$13)) -> 48921.11996 | V46: 48921.11996 | W46: =(_xlfn.GAMMA.INV(RAND(),'2. Kostnader'!$K$10,'2. Kostnader'!$L$10)*EXP(_xlfn.NORM.INV(RAND(),'1. Effektsamband'!$N$10,'1. Effektsamband'!$S$10))) -> 13723.27731 | X46: =(_xlfn.GAMMA.INV(RAND(),'2. Kostnader'!$K$10,'2. Kostnader'!$L$10)*(EXP(_xlfn.NORM.INV(RAND(),'1. Effektsamband'!$N$11,'1. Effektsamband'!$S$11)))) -> 4477.573441 | Y46: =(_xlfn.GAMMA.INV(RAND(),'2. Kostnader'!$K$6,'2. Kostnader'!$L$6)*(EXP(_xlfn.NORM.INV(RAND(),'1. Effektsamband'!$N$4,'1. Effektsamband'!$S$4)))) -> 28258.36581
A47: 33 | B47: =EXP(_xlfn.NORM.INV(RAND(),'1. Effektsamband'!$N$3,'1. Effektsamband'!$S$3))*(_xlfn.GAMMA.INV(RAND(),'2. Kostnader'!$K$6,'2. Kostnader'!$L$6)*'1. Effektsamband'!$B$15) -> 2601738.451 | C47: =(_xlfn.GAMMA.INV(RAND(),'2. Kostnader'!$K$9,'2. Kostnader'!$L$9))*(EXP(_xlfn.NORM.INV(RAND(),'1. Effektsamband'!$N$5,'1. Effektsamband'!$S$5))) -> 8056.332544 | D47: =(_xlfn.GAMMA.INV(RAND(),'2. Kostnader'!$L$22,'2. Kostnader'!$M$22))*EXP(_xlfn.NORM.INV(RAND(),'1. Effektsamband'!$N$5,'1. Effektsamband'!$S$5))*'2. Kostnader'!$E$15 -> 12808.65679 | E47: 20864.98934 | F47: =(_xlfn.GAMMA.INV(RAND(),'2. Kostnader'!$K$12,'2. Kostnader'!$L$12))*EXP(_xlfn.NORM.INV(RAND(),'1. Effektsamband'!$N$6,'1. Effektsamband'!$S$6)) -> 56368.7659 | G47: =(_xlfn.GAMMA.INV(RAND(),'2. Kostnader'!$L$26,'2. Kostnader'!$M$26))*EXP(_xlfn.NORM.INV(RAND(),'1. Effektsamband'!$N$6,'1. Effektsamband'!$S$6))*'2. Kostnader'!$E$15 -> 920646.8453 | H47: 977015.6112 | I47: =(_xlfn.GAMMA.INV(RAND(),'2. Kostnader'!$K$8,'2. Kostnader'!$L$8))*EXP(_xlfn.NORM.INV(RAND(),'1. Effektsamband'!$N$7,'1. Effektsamband'!$S$7)) -> 26510.46853 | J47: =(_xlfn.GAMMA.INV(RAND(),'2. Kostnader'!$L$23,'2. Kostnader'!$M$23))*EXP(_xlfn.NORM.INV(RAND(),'1. Effektsamband'!$N$7,'1. Effektsamband'!$S$7))*'2. Kostnader'!$E$15 -> 246739.802 | K47: 273250.2705 | L47: =(_xlfn.GAMMA.INV(RAND(),'2. Kostnader'!$K$7,'2. Kostnader'!$L$7))*EXP(_xlfn.NORM.INV(RAND(),'1. Effektsamband'!$N$8,'1. Effektsamband'!$S$8)) -> 1999.066025 | M47: =(_xlfn.GAMMA.INV(RAND(),'2. Kostnader'!$L$21,'2. Kostnader'!$M$21))*EXP(_xlfn.NORM.INV(RAND(), '1. Effektsamband'!$N$8,'1. Effektsamband'!$S$8))*'2. Kostnader'!$E$15 -> 221341.8456 | N47: 223340.9116 | O47: =(_xlfn.GAMMA.INV(RAND(),'2. Kostnader'!$K$13,'2. Kostnader'!$L$13))*EXP(_xlfn.NORM.INV(RAND(),'1. Effektsamband'!$N$9,'1. Effektsamband'!$S$9)) -> 2114.737272 | P47: =(_xlfn.GAMMA.INV(RAND(),'2. Kostnader'!$L$28,'2. Kostnader'!$M$28))*EXP(_xlfn.NORM.INV(RAND(),'1. Effektsamband'!$N$9,'1. Effektsamband'!$S$9))*'2. Kostnader'!$E$15 -> 129015.4178 | Q47: 131130.155 | R47: =(_xlfn.GAMMA.INV(RAND(),'2. Kostnader'!$K$14,'2. Kostnader'!$L$14))*EXP(_xlfn.NORM.INV(RAND(),'1. Effektsamband'!$N$9,'1. Effektsamband'!$S$9)) -> 41754.12338 | S47: =(_xlfn.GAMMA.INV(RAND(),'2. Kostnader'!$L$27,'2. Kostnader'!$M$27))*EXP(_xlfn.NORM.INV(RAND(),'1. Effektsamband'!$N$9,'1. Effektsamband'!$S$9))*'2. Kostnader'!$E$15 -> 1024706.453 | T47: 1066460.577 | U47: =(_xlfn.GAMMA.INV(RAND(),'2. Kostnader'!$K$11,'2. Kostnader'!$L$11))*EXP(_xlfn.NORM.INV(RAND(),'1. Effektsamband'!$N$13,'1. Effektsamband'!$S$13)) -> 42924.30435 | V47: 42924.30435 | W47: =(_xlfn.GAMMA.INV(RAND(),'2. Kostnader'!$K$10,'2. Kostnader'!$L$10)*EXP(_xlfn.NORM.INV(RAND(),'1. Effektsamband'!$N$10,'1. Effektsamband'!$S$10))) -> 22294.36829 | X47: =(_xlfn.GAMMA.INV(RAND(),'2. Kostnader'!$K$10,'2. Kostnader'!$L$10)*(EXP(_xlfn.NORM.INV(RAND(),'1. Effektsamband'!$N$11,'1. Effektsamband'!$S$11)))) -> 9455.372789 | Y47: =(_xlfn.GAMMA.INV(RAND(),'2. Kostnader'!$K$6,'2. Kostnader'!$L$6)*(EXP(_xlfn.NORM.INV(RAND(),'1. Effektsamband'!$N$4,'1. Effektsamband'!$S$4)))) -> 35081.67159
A48: 34 | B48: =EXP(_xlfn.NORM.INV(RAND(),'1. Effektsamband'!$N$3,'1. Effektsamband'!$S$3))*(_xlfn.GAMMA.INV(RAND(),'2. Kostnader'!$K$6,'2. Kostnader'!$L$6)*'1. Effektsamband'!$B$15) -> 3775821.509 | C48: =(_xlfn.GAMMA.INV(RAND(),'2. Kostnader'!$K$9,'2. Kostnader'!$L$9))*(EXP(_xlfn.NORM.INV(RAND(),'1. Effektsamband'!$N$5,'1. Effektsamband'!$S$5))) -> 8487.653723 | D48: =(_xlfn.GAMMA.INV(RAND(),'2. Kostnader'!$L$22,'2. Kostnader'!$M$22))*EXP(_xlfn.NORM.INV(RAND(),'1. Effektsamband'!$N$5,'1. Effektsamband'!$S$5))*'2. Kostnader'!$E$15 -> 1618.469928 | E48: 10106.12365 | F48: =(_xlfn.GAMMA.INV(RAND(),'2. Kostnader'!$K$12,'2. Kostnader'!$L$12))*EXP(_xlfn.NORM.INV(RAND(),'1. Effektsamband'!$N$6,'1. Effektsamband'!$S$6)) -> 350331.1985 | G48: =(_xlfn.GAMMA.INV(RAND(),'2. Kostnader'!$L$26,'2. Kostnader'!$M$26))*EXP(_xlfn.NORM.INV(RAND(),'1. Effektsamband'!$N$6,'1. Effektsamband'!$S$6))*'2. Kostnader'!$E$15 -> 1770669.936 | H48: 2121001.134 | I48: =(_xlfn.GAMMA.INV(RAND(),'2. Kostnader'!$K$8,'2. Kostnader'!$L$8))*EXP(_xlfn.NORM.INV(RAND(),'1. Effektsamband'!$N$7,'1. Effektsamband'!$S$7)) -> 44056.49735 | J48: =(_xlfn.GAMMA.INV(RAND(),'2. Kostnader'!$L$23,'2. Kostnader'!$M$23))*EXP(_xlfn.NORM.INV(RAND(),'1. Effektsamband'!$N$7,'1. Effektsamband'!$S$7))*'2. Kostnader'!$E$15 -> 280598.1031 | K48: 324654.6005 | L48: =(_xlfn.GAMMA.INV(RAND(),'2. Kostnader'!$K$7,'2. Kostnader'!$L$7))*EXP(_xlfn.NORM.INV(RAND(),'1. Effektsamband'!$N$8,'1. Effektsamband'!$S$8)) -> 1287.297812 | M48: =(_xlfn.GAMMA.INV(RAND(),'2. Kostnader'!$L$21,'2. Kostnader'!$M$21))*EXP(_xlfn.NORM.INV(RAND(), '1. Effektsamband'!$N$8,'1. Effektsamband'!$S$8))*'2. Kostnader'!$E$15 -> 172290.5168 | N48: 173577.8146 | O48: =(_xlfn.GAMMA.INV(RAND(),'2. Kostnader'!$K$13,'2. Kostnader'!$L$13))*EXP(_xlfn.NORM.INV(RAND(),'1. Effektsamband'!$N$9,'1. Effektsamband'!$S$9)) -> 5884.244767 | P48: =(_xlfn.GAMMA.INV(RAND(),'2. Kostnader'!$L$28,'2. Kostnader'!$M$28))*EXP(_xlfn.NORM.INV(RAND(),'1. Effektsamband'!$N$9,'1. Effektsamband'!$S$9))*'2. Kostnader'!$E$15 -> 138028.9496 | Q48: 143913.1944 | R48: =(_xlfn.GAMMA.INV(RAND(),'2. Kostnader'!$K$14,'2. Kostnader'!$L$14))*EXP(_xlfn.NORM.INV(RAND(),'1. Effektsamband'!$N$9,'1. Effektsamband'!$S$9)) -> 61975.82464 | S48: =(_xlfn.GAMMA.INV(RAND(),'2. Kostnader'!$L$27,'2. Kostnader'!$M$27))*EXP(_xlfn.NORM.INV(RAND(),'1. Effektsamband'!$N$9,'1. Effektsamband'!$S$9))*'2. Kostnader'!$E$15 -> 390941.9893 | T48: 452917.8139 | U48: =(_xlfn.GAMMA.INV(RAND(),'2. Kostnader'!$K$11,'2. Kostnader'!$L$11))*EXP(_xlfn.NORM.INV(RAND(),'1. Effektsamband'!$N$13,'1. Effektsamband'!$S$13)) -> 42810.83479 | V48: 42810.83479 | W48: =(_xlfn.GAMMA.INV(RAND(),'2. Kostnader'!$K$10,'2. Kostnader'!$L$10)*EXP(_xlfn.NORM.INV(RAND(),'1. Effektsamband'!$N$10,'1. Effektsamband'!$S$10))) -> 30765.50089 | X48: =(_xlfn.GAMMA.INV(RAND(),'2. Kostnader'!$K$10,'2. Kostnader'!$L$10)*(EXP(_xlfn.NORM.INV(RAND(),'1. Effektsamband'!$N$11,'1. Effektsamband'!$S$11)))) -> 8205.975536 | Y48: =(_xlfn.GAMMA.INV(RAND(),'2. Kostnader'!$K$6,'2. Kostnader'!$L$6)*(EXP(_xlfn.NORM.INV(RAND(),'1. Effektsamband'!$N$4,'1. Effektsamband'!$S$4)))) -> 7201.997884
A49: 35 | B49: =EXP(_xlfn.NORM.INV(RAND(),'1. Effektsamband'!$N$3,'1. Effektsamband'!$S$3))*(_xlfn.GAMMA.INV(RAND(),'2. Kostnader'!$K$6,'2. Kostnader'!$L$6)*'1. Effektsamband'!$B$15) -> 2824450.651 | C49: =(_xlfn.GAMMA.INV(RAND(),'2. Kostnader'!$K$9,'2. Kostnader'!$L$9))*(EXP(_xlfn.NORM.INV(RAND(),'1. Effektsamband'!$N$5,'1. Effektsamband'!$S$5))) -> 17733.811 | D49: =(_xlfn.GAMMA.INV(RAND(),'2. Kostnader'!$L$22,'2. Kostnader'!$M$22))*EXP(_xlfn.NORM.INV(RAND(),'1. Effektsamband'!$N$5,'1. Effektsamband'!$S$5))*'2. Kostnader'!$E$15 -> 10056.36039 | E49: 27790.17139 | F49: =(_xlfn.GAMMA.INV(RAND(),'2. Kostnader'!$K$12,'2. Kostnader'!$L$12))*EXP(_xlfn.NORM.INV(RAND(),'1. Effektsamband'!$N$6,'1. Effektsamband'!$S$6)) -> 1048794.886 | G49: =(_xlfn.GAMMA.INV(RAND(),'2. Kostnader'!$L$26,'2. Kostnader'!$M$26))*EXP(_xlfn.NORM.INV(RAND(),'1. Effektsamband'!$N$6,'1. Effektsamband'!$S$6))*'2. Kostnader'!$E$15 -> 103173.4653 | H49: 1151968.351 | I49: =(_xlfn.GAMMA.INV(RAND(),'2. Kostnader'!$K$8,'2. Kostnader'!$L$8))*EXP(_xlfn.NORM.INV(RAND(),'1. Effektsamband'!$N$7,'1. Effektsamband'!$S$7)) -> 31016.0459 | J49: =(_xlfn.GAMMA.INV(RAND(),'2. Kostnader'!$L$23,'2. Kostnader'!$M$23))*EXP(_xlfn.NORM.INV(RAND(),'1. Effektsamband'!$N$7,'1. Effektsamband'!$S$7))*'2. Kostnader'!$E$15 -> 352329.3777 | K49: 383345.4236 | L49: =(_xlfn.GAMMA.INV(RAND(),'2. Kostnader'!$K$7,'2. Kostnader'!$L$7))*EXP(_xlfn.NORM.INV(RAND(),'1. Effektsamband'!$N$8,'1. Effektsamband'!$S$8)) -> 1466.648993 | M49: =(_xlfn.GAMMA.INV(RAND(),'2. Kostnader'!$L$21,'2. Kostnader'!$M$21))*EXP(_xlfn.NORM.INV(RAND(), '1. Effektsamband'!$N$8,'1. Effektsamband'!$S$8))*'2. Kostnader'!$E$15 -> 166317.5612 | N49: 167784.2102 | O49: =(_xlfn.GAMMA.INV(RAND(),'2. Kostnader'!$K$13,'2. Kostnader'!$L$13))*EXP(_xlfn.NORM.INV(RAND(),'1. Effektsamband'!$N$9,'1. Effektsamband'!$S$9)) -> 3531.053467 | P49: =(_xlfn.GAMMA.INV(RAND(),'2. Kostnader'!$L$28,'2. Kostnader'!$M$28))*EXP(_xlfn.NORM.INV(RAND(),'1. Effektsamband'!$N$9,'1. Effektsamband'!$S$9))*'2. Kostnader'!$E$15 -> 87246.27278 | Q49: 90777.32625 | R49: =(_xlfn.GAMMA.INV(RAND(),'2. Kostnader'!$K$14,'2. Kostnader'!$L$14))*EXP(_xlfn.NORM.INV(RAND(),'1. Effektsamband'!$N$9,'1. Effektsamband'!$S$9)) -> 23030.62829 | S49: =(_xlfn.GAMMA.INV(RAND(),'2. Kostnader'!$L$27,'2. Kostnader'!$M$27))*EXP(_xlfn.NORM.INV(RAND(),'1. Effektsamband'!$N$9,'1. Effektsamband'!$S$9))*'2. Kostnader'!$E$15 -> 448478.5293 | T49: 471509.1576 | U49: =(_xlfn.GAMMA.INV(RAND(),'2. Kostnader'!$K$11,'2. Kostnader'!$L$11))*EXP(_xlfn.NORM.INV(RAND(),'1. Effektsamband'!$N$13,'1. Effektsamband'!$S$13)) -> 52702.36192 | V49: 52702.36192 | W49: =(_xlfn.GAMMA.INV(RAND(),'2. Kostnader'!$K$10,'2. Kostnader'!$L$10)*EXP(_xlfn.NORM.INV(RAND(),'1. Effektsamband'!$N$10,'1. Effektsamband'!$S$10))) -> 16751.17189 | X49: =(_xlfn.GAMMA.INV(RAND(),'2. Kostnader'!$K$10,'2. Kostnader'!$L$10)*(EXP(_xlfn.NORM.INV(RAND(),'1. Effektsamband'!$N$11,'1. Effektsamband'!$S$11)))) -> 7129.843923 | Y49: =(_xlfn.GAMMA.INV(RAND(),'2. Kostnader'!$K$6,'2. Kostnader'!$L$6)*(EXP(_xlfn.NORM.INV(RAND(),'1. Effektsamband'!$N$4,'1. Effektsamband'!$S$4)))) -> 14240.11401
A50: 36 | B50: =EXP(_xlfn.NORM.INV(RAND(),'1. Effektsamband'!$N$3,'1. Effektsamband'!$S$3))*(_xlfn.GAMMA.INV(RAND(),'2. Kostnader'!$K$6,'2. Kostnader'!$L$6)*'1. Effektsamband'!$B$15) -> 3297585.124 | C50: =(_xlfn.GAMMA.INV(RAND(),'2. Kostnader'!$K$9,'2. Kostnader'!$L$9))*(EXP(_xlfn.NORM.INV(RAND(),'1. Effektsamband'!$N$5,'1. Effektsamband'!$S$5))) -> 1065.137413 | D50: =(_xlfn.GAMMA.INV(RAND(),'2. Kostnader'!$L$22,'2. Kostnader'!$M$22))*EXP(_xlfn.NORM.INV(RAND(),'1. Effektsamband'!$N$5,'1. Effektsamband'!$S$5))*'2. Kostnader'!$E$15 -> 3091.403741 | E50: 4156.541154 | F50: =(_xlfn.GAMMA.INV(RAND(),'2. Kostnader'!$K$12,'2. Kostnader'!$L$12))*EXP(_xlfn.NORM.INV(RAND(),'1. Effektsamband'!$N$6,'1. Effektsamband'!$S$6)) -> 179218.9217 | G50: =(_xlfn.GAMMA.INV(RAND(),'2. Kostnader'!$L$26,'2. Kostnader'!$M$26))*EXP(_xlfn.NORM.INV(RAND(),'1. Effektsamband'!$N$6,'1. Effektsamband'!$S$6))*'2. Kostnader'!$E$15 -> 3858305.434 | H50: 4037524.356 | I50: =(_xlfn.GAMMA.INV(RAND(),'2. Kostnader'!$K$8,'2. Kostnader'!$L$8))*EXP(_xlfn.NORM.INV(RAND(),'1. Effektsamband'!$N$7,'1. Effektsamband'!$S$7)) -> 46425.73755 | J50: =(_xlfn.GAMMA.INV(RAND(),'2. Kostnader'!$L$23,'2. Kostnader'!$M$23))*EXP(_xlfn.NORM.INV(RAND(),'1. Effektsamband'!$N$7,'1. Effektsamband'!$S$7))*'2. Kostnader'!$E$15 -> 229368.5185 | K50: 275794.2561 | L50: =(_xlfn.GAMMA.INV(RAND(),'2. Kostnader'!$K$7,'2. Kostnader'!$L$7))*EXP(_xlfn.NORM.INV(RAND(),'1. Effektsamband'!$N$8,'1. Effektsamband'!$S$8)) -> 1078.895253 | M50: =(_xlfn.GAMMA.INV(RAND(),'2. Kostnader'!$L$21,'2. Kostnader'!$M$21))*EXP(_xlfn.NORM.INV(RAND(), '1. Effektsamband'!$N$8,'1. Effektsamband'!$S$8))*'2. Kostnader'!$E$15 -> 152805.7729 | N50: 153884.6681 | O50: =(_xlfn.GAMMA.INV(RAND(),'2. Kostnader'!$K$13,'2. Kostnader'!$L$13))*EXP(_xlfn.NORM.INV(RAND(),'1. Effektsamband'!$N$9,'1. Effektsamband'!$S$9)) -> 4550.815462 | P50: =(_xlfn.GAMMA.INV(RAND(),'2. Kostnader'!$L$28,'2. Kostnader'!$M$28))*EXP(_xlfn.NORM.INV(RAND(),'1. Effektsamband'!$N$9,'1. Effektsamband'!$S$9))*'2. Kostnader'!$E$15 -> 136852.3039 | Q50: 141403.1194 | R50: =(_xlfn.GAMMA.INV(RAND(),'2. Kostnader'!$K$14,'2. Kostnader'!$L$14))*EXP(_xlfn.NORM.INV(RAND(),'1. Effektsamband'!$N$9,'1. Effektsamband'!$S$9)) -> 31282.745 | S50: =(_xlfn.GAMMA.INV(RAND(),'2. Kostnader'!$L$27,'2. Kostnader'!$M$27))*EXP(_xlfn.NORM.INV(RAND(),'1. Effektsamband'!$N$9,'1. Effektsamband'!$S$9))*'2. Kostnader'!$E$15 -> 1033519.544 | T50: 1064802.289 | U50: =(_xlfn.GAMMA.INV(RAND(),'2. Kostnader'!$K$11,'2. Kostnader'!$L$11))*EXP(_xlfn.NORM.INV(RAND(),'1. Effektsamband'!$N$13,'1. Effektsamband'!$S$13)) -> 75194.09156 | V50: 75194.09156 | W50: =(_xlfn.GAMMA.INV(RAND(),'2. Kostnader'!$K$10,'2. Kostnader'!$L$10)*EXP(_xlfn.NORM.INV(RAND(),'1. Effektsamband'!$N$10,'1. Effektsamband'!$S$10))) -> 30713.52426 | X50: =(_xlfn.GAMMA.INV(RAND(),'2. Kostnader'!$K$10,'2. Kostnader'!$L$10)*(EXP(_xlfn.NORM.INV(RAND(),'1. Effektsamband'!$N$11,'1. Effektsamband'!$S$11)))) -> 4961.509809 | Y50: =(_xlfn.GAMMA.INV(RAND(),'2. Kostnader'!$K$6,'2. Kostnader'!$L$6)*(EXP(_xlfn.NORM.INV(RAND(),'1. Effektsamband'!$N$4,'1. Effektsamband'!$S$4)))) -> 3777.723502
A51: 37 | B51: =EXP(_xlfn.NORM.INV(RAND(),'1. Effektsamband'!$N$3,'1. Effektsamband'!$S$3))*(_xlfn.GAMMA.INV(RAND(),'2. Kostnader'!$K$6,'2. Kostnader'!$L$6)*'1. Effektsamband'!$B$15) -> 3344546.791 | C51: =(_xlfn.GAMMA.INV(RAND(),'2. Kostnader'!$K$9,'2. Kostnader'!$L$9))*(EXP(_xlfn.NORM.INV(RAND(),'1. Effektsamband'!$N$5,'1. Effektsamband'!$S$5))) -> 505.4335028 | D51: =(_xlfn.GAMMA.INV(RAND(),'2. Kostnader'!$L$22,'2. Kostnader'!$M$22))*EXP(_xlfn.NORM.INV(RAND(),'1. Effektsamband'!$N$5,'1. Effektsamband'!$S$5))*'2. Kostnader'!$E$15 -> 10136.74877 | E51: 10642.18227 | F51: =(_xlfn.GAMMA.INV(RAND(),'2. Kostnader'!$K$12,'2. Kostnader'!$L$12))*EXP(_xlfn.NORM.INV(RAND(),'1. Effektsamband'!$N$6,'1. Effektsamband'!$S$6)) -> 222009.9301 | G51: =(_xlfn.GAMMA.INV(RAND(),'2. Kostnader'!$L$26,'2. Kostnader'!$M$26))*EXP(_xlfn.NORM.INV(RAND(),'1. Effektsamband'!$N$6,'1. Effektsamband'!$S$6))*'2. Kostnader'!$E$15 -> 193832.1391 | H51: 415842.0692 | I51: =(_xlfn.GAMMA.INV(RAND(),'2. Kostnader'!$K$8,'2. Kostnader'!$L$8))*EXP(_xlfn.NORM.INV(RAND(),'1. Effektsamband'!$N$7,'1. Effektsamband'!$S$7)) -> 32343.54446 | J51: =(_xlfn.GAMMA.INV(RAND(),'2. Kostnader'!$L$23,'2. Kostnader'!$M$23))*EXP(_xlfn.NORM.INV(RAND(),'1. Effektsamband'!$N$7,'1. Effektsamband'!$S$7))*'2. Kostnader'!$E$15 -> 233945.1937 | K51: 266288.7381 | L51: =(_xlfn.GAMMA.INV(RAND(),'2. Kostnader'!$K$7,'2. Kostnader'!$L$7))*EXP(_xlfn.NORM.INV(RAND(),'1. Effektsamband'!$N$8,'1. Effektsamband'!$S$8)) -> 969.7900689 | M51: =(_xlfn.GAMMA.INV(RAND(),'2. Kostnader'!$L$21,'2. Kostnader'!$M$21))*EXP(_xlfn.NORM.INV(RAND(), '1. Effektsamband'!$N$8,'1. Effektsamband'!$S$8))*'2. Kostnader'!$E$15 -> 156422.8533 | N51: 157392.6434 | O51: =(_xlfn.GAMMA.INV(RAND(),'2. Kostnader'!$K$13,'2. Kostnader'!$L$13))*EXP(_xlfn.NORM.INV(RAND(),'1. Effektsamband'!$N$9,'1. Effektsamband'!$S$9)) -> 4875.631497 | P51: =(_xlfn.GAMMA.INV(RAND(),'2. Kostnader'!$L$28,'2. Kostnader'!$M$28))*EXP(_xlfn.NORM.INV(RAND(),'1. Effektsamband'!$N$9,'1. Effektsamband'!$S$9))*'2. Kostnader'!$E$15 -> 107867.1777 | Q51: 112742.8092 | R51: =(_xlfn.GAMMA.INV(RAND(),'2. Kostnader'!$K$14,'2. Kostnader'!$L$14))*EXP(_xlfn.NORM.INV(RAND(),'1. Effektsamband'!$N$9,'1. Effektsamband'!$S$9)) -> 42340.12612 | S51: =(_xlfn.GAMMA.INV(RAND(),'2. Kostnader'!$L$27,'2. Kostnader'!$M$27))*EXP(_xlfn.NORM.INV(RAND(),'1. Effektsamband'!$N$9,'1. Effektsamband'!$S$9))*'2. Kostnader'!$E$15 -> 262895.1271 | T51: 305235.2533 | U51: =(_xlfn.GAMMA.INV(RAND(),'2. Kostnader'!$K$11,'2. Kostnader'!$L$11))*EXP(_xlfn.NORM.INV(RAND(),'1. Effektsamband'!$N$13,'1. Effektsamband'!$S$13)) -> 64529.00229 | V51: 64529.00229 | W51: =(_xlfn.GAMMA.INV(RAND(),'2. Kostnader'!$K$10,'2. Kostnader'!$L$10)*EXP(_xlfn.NORM.INV(RAND(),'1. Effektsamband'!$N$10,'1. Effektsamband'!$S$10))) -> 28713.89556 | X51: =(_xlfn.GAMMA.INV(RAND(),'2. Kostnader'!$K$10,'2. Kostnader'!$L$10)*(EXP(_xlfn.NORM.INV(RAND(),'1. Effektsamband'!$N$11,'1. Effektsamband'!$S$11)))) -> 13665.3068 | Y51: =(_xlfn.GAMMA.INV(RAND(),'2. Kostnader'!$K$6,'2. Kostnader'!$L$6)*(EXP(_xlfn.NORM.INV(RAND(),'1. Effektsamband'!$N$4,'1. Effektsamband'!$S$4)))) -> 13089.37644
A52: 38 | B52: =EXP(_xlfn.NORM.INV(RAND(),'1. Effektsamband'!$N$3,'1. Effektsamband'!$S$3))*(_xlfn.GAMMA.INV(RAND(),'2. Kostnader'!$K$6,'2. Kostnader'!$L$6)*'1. Effektsamband'!$B$15) -> 4410619.168 | C52: =(_xlfn.GAMMA.INV(RAND(),'2. Kostnader'!$K$9,'2. Kostnader'!$L$9))*(EXP(_xlfn.NORM.INV(RAND(),'1. Effektsamband'!$N$5,'1. Effektsamband'!$S$5))) -> 31977.63875 | D52: =(_xlfn.GAMMA.INV(RAND(),'2. Kostnader'!$L$22,'2. Kostnader'!$M$22))*EXP(_xlfn.NORM.INV(RAND(),'1. Effektsamband'!$N$5,'1. Effektsamband'!$S$5))*'2. Kostnader'!$E$15 -> 1605.75015 | E52: 33583.3889 | F52: =(_xlfn.GAMMA.INV(RAND(),'2. Kostnader'!$K$12,'2. Kostnader'!$L$12))*EXP(_xlfn.NORM.INV(RAND(),'1. Effektsamband'!$N$6,'1. Effektsamband'!$S$6)) -> 146203.2423 | G52: =(_xlfn.GAMMA.INV(RAND(),'2. Kostnader'!$L$26,'2. Kostnader'!$M$26))*EXP(_xlfn.NORM.INV(RAND(),'1. Effektsamband'!$N$6,'1. Effektsamband'!$S$6))*'2. Kostnader'!$E$15 -> 542480.7053 | H52: 688683.9476 | I52: =(_xlfn.GAMMA.INV(RAND(),'2. Kostnader'!$K$8,'2. Kostnader'!$L$8))*EXP(_xlfn.NORM.INV(RAND(),'1. Effektsamband'!$N$7,'1. Effektsamband'!$S$7)) -> 78087.43319 | J52: =(_xlfn.GAMMA.INV(RAND(),'2. Kostnader'!$L$23,'2. Kostnader'!$M$23))*EXP(_xlfn.NORM.INV(RAND(),'1. Effektsamband'!$N$7,'1. Effektsamband'!$S$7))*'2. Kostnader'!$E$15 -> 297664.1334 | K52: 375751.5666 | L52: =(_xlfn.GAMMA.INV(RAND(),'2. Kostnader'!$K$7,'2. Kostnader'!$L$7))*EXP(_xlfn.NORM.INV(RAND(),'1. Effektsamband'!$N$8,'1. Effektsamband'!$S$8)) -> 1988.355388 | M52: =(_xlfn.GAMMA.INV(RAND(),'2. Kostnader'!$L$21,'2. Kostnader'!$M$21))*EXP(_xlfn.NORM.INV(RAND(), '1. Effektsamband'!$N$8,'1. Effektsamband'!$S$8))*'2. Kostnader'!$E$15 -> 155698.0966 | N52: 157686.452 | O52: =(_xlfn.GAMMA.INV(RAND(),'2. Kostnader'!$K$13,'2. Kostnader'!$L$13))*EXP(_xlfn.NORM.INV(RAND(),'1. Effektsamband'!$N$9,'1. Effektsamband'!$S$9)) -> 4261.50217 | P52: =(_xlfn.GAMMA.INV(RAND(),'2. Kostnader'!$L$28,'2. Kostnader'!$M$28))*EXP(_xlfn.NORM.INV(RAND(),'1. Effektsamband'!$N$9,'1. Effektsamband'!$S$9))*'2. Kostnader'!$E$15 -> 139272.5636 | Q52: 143534.0658 | R52: =(_xlfn.GAMMA.INV(RAND(),'2. Kostnader'!$K$14,'2. Kostnader'!$L$14))*EXP(_xlfn.NORM.INV(RAND(),'1. Effektsamband'!$N$9,'1. Effektsamband'!$S$9)) -> 18090.64938 | S52: =(_xlfn.GAMMA.INV(RAND(),'2. Kostnader'!$L$27,'2. Kostnader'!$M$27))*EXP(_xlfn.NORM.INV(RAND(),'1. Effektsamband'!$N$9,'1. Effektsamband'!$S$9))*'2. Kostnader'!$E$15 -> 720690.07 | T52: 738780.7194 | U52: =(_xlfn.GAMMA.INV(RAND(),'2. Kostnader'!$K$11,'2. Kostnader'!$L$11))*EXP(_xlfn.NORM.INV(RAND(),'1. Effektsamband'!$N$13,'1. Effektsamband'!$S$13)) -> 98081.35022 | V52: 98081.35022 | W52: =(_xlfn.GAMMA.INV(RAND(),'2. Kostnader'!$K$10,'2. Kostnader'!$L$10)*EXP(_xlfn.NORM.INV(RAND(),'1. Effektsamband'!$N$10,'1. Effektsamband'!$S$10))) -> 53308.53495 | X52: =(_xlfn.GAMMA.INV(RAND(),'2. Kostnader'!$K$10,'2. Kostnader'!$L$10)*(EXP(_xlfn.NORM.INV(RAND(),'1. Effektsamband'!$N$11,'1. Effektsamband'!$S$11)))) -> 11689.83451 | Y52: =(_xlfn.GAMMA.INV(RAND(),'2. Kostnader'!$K$6,'2. Kostnader'!$L$6)*(EXP(_xlfn.NORM.INV(RAND(),'1. Effektsamband'!$N$4,'1. Effektsamband'!$S$4)))) -> 5368.79893
A53: 39 | B53: =EXP(_xlfn.NORM.INV(RAND(),'1. Effektsamband'!$N$3,'1. Effektsamband'!$S$3))*(_xlfn.GAMMA.INV(RAND(),'2. Kostnader'!$K$6,'2. Kostnader'!$L$6)*'1. Effektsamband'!$B$15) -> 3324197.714 | C53: =(_xlfn.GAMMA.INV(RAND(),'2. Kostnader'!$K$9,'2. Kostnader'!$L$9))*(EXP(_xlfn.NORM.INV(RAND(),'1. Effektsamband'!$N$5,'1. Effektsamband'!$S$5))) -> 5391.512269 | D53: =(_xlfn.GAMMA.INV(RAND(),'2. Kostnader'!$L$22,'2. Kostnader'!$M$22))*EXP(_xlfn.NORM.INV(RAND(),'1. Effektsamband'!$N$5,'1. Effektsamband'!$S$5))*'2. Kostnader'!$E$15 -> 7822.729767 | E53: 13214.24204 | F53: =(_xlfn.GAMMA.INV(RAND(),'2. Kostnader'!$K$12,'2. Kostnader'!$L$12))*EXP(_xlfn.NORM.INV(RAND(),'1. Effektsamband'!$N$6,'1. Effektsamband'!$S$6)) -> 48074.98154 | G53: =(_xlfn.GAMMA.INV(RAND(),'2. Kostnader'!$L$26,'2. Kostnader'!$M$26))*EXP(_xlfn.NORM.INV(RAND(),'1. Effektsamband'!$N$6,'1. Effektsamband'!$S$6))*'2. Kostnader'!$E$15 -> 568057.6466 | H53: 616132.6282 | I53: =(_xlfn.GAMMA.INV(RAND(),'2. Kostnader'!$K$8,'2. Kostnader'!$L$8))*EXP(_xlfn.NORM.INV(RAND(),'1. Effektsamband'!$N$7,'1. Effektsamband'!$S$7)) -> 37550.12827 | J53: =(_xlfn.GAMMA.INV(RAND(),'2. Kostnader'!$L$23,'2. Kostnader'!$M$23))*EXP(_xlfn.NORM.INV(RAND(),'1. Effektsamband'!$N$7,'1. Effektsamband'!$S$7))*'2. Kostnader'!$E$15 -> 256156.7538 | K53: 293706.8821 | L53: =(_xlfn.GAMMA.INV(RAND(),'2. Kostnader'!$K$7,'2. Kostnader'!$L$7))*EXP(_xlfn.NORM.INV(RAND(),'1. Effektsamband'!$N$8,'1. Effektsamband'!$S$8)) -> 2352.07485 | M53: =(_xlfn.GAMMA.INV(RAND(),'2. Kostnader'!$L$21,'2. Kostnader'!$M$21))*EXP(_xlfn.NORM.INV(RAND(), '1. Effektsamband'!$N$8,'1. Effektsamband'!$S$8))*'2. Kostnader'!$E$15 -> 143130.09 | N53: 145482.1649 | O53: =(_xlfn.GAMMA.INV(RAND(),'2. Kostnader'!$K$13,'2. Kostnader'!$L$13))*EXP(_xlfn.NORM.INV(RAND(),'1. Effektsamband'!$N$9,'1. Effektsamband'!$S$9)) -> 3562.145861 | P53: =(_xlfn.GAMMA.INV(RAND(),'2. Kostnader'!$L$28,'2. Kostnader'!$M$28))*EXP(_xlfn.NORM.INV(RAND(),'1. Effektsamband'!$N$9,'1. Effektsamband'!$S$9))*'2. Kostnader'!$E$15 -> 124093.0739 | Q53: 127655.2197 | R53: =(_xlfn.GAMMA.INV(RAND(),'2. Kostnader'!$K$14,'2. Kostnader'!$L$14))*EXP(_xlfn.NORM.INV(RAND(),'1. Effektsamband'!$N$9,'1. Effektsamband'!$S$9)) -> 57786.05256 | S53: =(_xlfn.GAMMA.INV(RAND(),'2. Kostnader'!$L$27,'2. Kostnader'!$M$27))*EXP(_xlfn.NORM.INV(RAND(),'1. Effektsamband'!$N$9,'1. Effektsamband'!$S$9))*'2. Kostnader'!$E$15 -> 537031.3438 | T53: 594817.3963 | U53: =(_xlfn.GAMMA.INV(RAND(),'2. Kostnader'!$K$11,'2. Kostnader'!$L$11))*EXP(_xlfn.NORM.INV(RAND(),'1. Effektsamband'!$N$13,'1. Effektsamband'!$S$13)) -> 48846.39741 | V53: 48846.39741 | W53: =(_xlfn.GAMMA.INV(RAND(),'2. Kostnader'!$K$10,'2. Kostnader'!$L$10)*EXP(_xlfn.NORM.INV(RAND(),'1. Effektsamband'!$N$10,'1. Effektsamband'!$S$10))) -> 21705.63558 | X53: =(_xlfn.GAMMA.INV(RAND(),'2. Kostnader'!$K$10,'2. Kostnader'!$L$10)*(EXP(_xlfn.NORM.INV(RAND(),'1. Effektsamband'!$N$11,'1. Effektsamband'!$S$11)))) -> 9505.836043 | Y53: =(_xlfn.GAMMA.INV(RAND(),'2. Kostnader'!$K$6,'2. Kostnader'!$L$6)*(EXP(_xlfn.NORM.INV(RAND(),'1. Effektsamband'!$N$4,'1. Effektsamband'!$S$4)))) -> 11897.37698
A54: 40 | B54: =EXP(_xlfn.NORM.INV(RAND(),'1. Effektsamband'!$N$3,'1. Effektsamband'!$S$3))*(_xlfn.GAMMA.INV(RAND(),'2. Kostnader'!$K$6,'2. Kostnader'!$L$6)*'1. Effektsamband'!$B$15) -> 5845826.278 | C54: =(_xlfn.GAMMA.INV(RAND(),'2. Kostnader'!$K$9,'2. Kostnader'!$L$9))*(EXP(_xlfn.NORM.INV(RAND(),'1. Effektsamband'!$N$5,'1. Effektsamband'!$S$5))) -> 3461.20608 | D54: =(_xlfn.GAMMA.INV(RAND(),'2. Kostnader'!$L$22,'2. Kostnader'!$M$22))*EXP(_xlfn.NORM.INV(RAND(),'1. Effektsamband'!$N$5,'1. Effektsamband'!$S$5))*'2. Kostnader'!$E$15 -> 836.9080379 | E54: 4298.114118 | F54: =(_xlfn.GAMMA.INV(RAND(),'2. Kostnader'!$K$12,'2. Kostnader'!$L$12))*EXP(_xlfn.NORM.INV(RAND(),'1. Effektsamband'!$N$6,'1. Effektsamband'!$S$6)) -> 322153.2476 | G54: =(_xlfn.GAMMA.INV(RAND(),'2. Kostnader'!$L$26,'2. Kostnader'!$M$26))*EXP(_xlfn.NORM.INV(RAND(),'1. Effektsamband'!$N$6,'1. Effektsamband'!$S$6))*'2. Kostnader'!$E$15 -> 1476841.174 | H54: 1798994.422 | I54: =(_xlfn.GAMMA.INV(RAND(),'2. Kostnader'!$K$8,'2. Kostnader'!$L$8))*EXP(_xlfn.NORM.INV(RAND(),'1. Effektsamband'!$N$7,'1. Effektsamband'!$S$7)) -> 51380.77278 | J54: =(_xlfn.GAMMA.INV(RAND(),'2. Kostnader'!$L$23,'2. Kostnader'!$M$23))*EXP(_xlfn.NORM.INV(RAND(),'1. Effektsamband'!$N$7,'1. Effektsamband'!$S$7))*'2. Kostnader'!$E$15 -> 344874.6005 | K54: 396255.3732 | L54: =(_xlfn.GAMMA.INV(RAND(),'2. Kostnader'!$K$7,'2. Kostnader'!$L$7))*EXP(_xlfn.NORM.INV(RAND(),'1. Effektsamband'!$N$8,'1. Effektsamband'!$S$8)) -> 1484.72862 | M54: =(_xlfn.GAMMA.INV(RAND(),'2. Kostnader'!$L$21,'2. Kostnader'!$M$21))*EXP(_xlfn.NORM.INV(RAND(), '1. Effektsamband'!$N$8,'1. Effektsamband'!$S$8))*'2. Kostnader'!$E$15 -> 139191.0553 | N54: 140675.7839 | O54: =(_xlfn.GAMMA.INV(RAND(),'2. Kostnader'!$K$13,'2. Kostnader'!$L$13))*EXP(_xlfn.NORM.INV(RAND(),'1. Effektsamband'!$N$9,'1. Effektsamband'!$S$9)) -> 1950.062768 | P54: =(_xlfn.GAMMA.INV(RAND(),'2. Kostnader'!$L$28,'2. Kostnader'!$M$28))*EXP(_xlfn.NORM.INV(RAND(),'1. Effektsamband'!$N$9,'1. Effektsamband'!$S$9))*'2. Kostnader'!$E$15 -> 200591.3398 | Q54: 202541.4026 | R54: =(_xlfn.GAMMA.INV(RAND(),'2. Kostnader'!$K$14,'2. Kostnader'!$L$14))*EXP(_xlfn.NORM.INV(RAND(),'1. Effektsamband'!$N$9,'1. Effektsamband'!$S$9)) -> 64171.70003 | S54: =(_xlfn.GAMMA.INV(RAND(),'2. Kostnader'!$L$27,'2. Kostnader'!$M$27))*EXP(_xlfn.NORM.INV(RAND(),'1. Effektsamband'!$N$9,'1. Effektsamband'!$S$9))*'2. Kostnader'!$E$15 -> 543881.7621 | T54: 608053.4621 | U54: =(_xlfn.GAMMA.INV(RAND(),'2. Kostnader'!$K$11,'2. Kostnader'!$L$11))*EXP(_xlfn.NORM.INV(RAND(),'1. Effektsamband'!$N$13,'1. Effektsamband'!$S$13)) -> 49617.01838 | V54: 49617.01838 | W54: =(_xlfn.GAMMA.INV(RAND(),'2. Kostnader'!$K$10,'2. Kostnader'!$L$10)*EXP(_xlfn.NORM.INV(RAND(),'1. Effektsamband'!$N$10,'1. Effektsamband'!$S$10))) -> 19862.28171 | X54: =(_xlfn.GAMMA.INV(RAND(),'2. Kostnader'!$K$10,'2. Kostnader'!$L$10)*(EXP(_xlfn.NORM.INV(RAND(),'1. Effektsamband'!$N$11,'1. Effektsamband'!$S$11)))) -> 8363.985487 | Y54: =(_xlfn.GAMMA.INV(RAND(),'2. Kostnader'!$K$6,'2. Kostnader'!$L$6)*(EXP(_xlfn.NORM.INV(RAND(),'1. Effektsamband'!$N$4,'1. Effektsamband'!$S$4)))) -> 14052.76584
A55: 41 | B55: =EXP(_xlfn.NORM.INV(RAND(),'1. Effektsamband'!$N$3,'1. Effektsamband'!$S$3))*(_xlfn.GAMMA.INV(RAND(),'2. Kostnader'!$K$6,'2. Kostnader'!$L$6)*'1. Effektsamband'!$B$15) -> 2507009.47 | C55: =(_xlfn.GAMMA.INV(RAND(),'2. Kostnader'!$K$9,'2. Kostnader'!$L$9))*(EXP(_xlfn.NORM.INV(RAND(),'1. Effektsamband'!$N$5,'1. Effektsamband'!$S$5))) -> 11955.06011 | D55: =(_xlfn.GAMMA.INV(RAND(),'2. Kostnader'!$L$22,'2. Kostnader'!$M$22))*EXP(_xlfn.NORM.INV(RAND(),'1. Effektsamband'!$N$5,'1. Effektsamband'!$S$5))*'2. Kostnader'!$E$15 -> 1989.217248 | E55: 13944.27736 | F55: =(_xlfn.GAMMA.INV(RAND(),'2. Kostnader'!$K$12,'2. Kostnader'!$L$12))*EXP(_xlfn.NORM.INV(RAND(),'1. Effektsamband'!$N$6,'1. Effektsamband'!$S$6)) -> 1175892.035 | G55: =(_xlfn.GAMMA.INV(RAND(),'2. Kostnader'!$L$26,'2. Kostnader'!$M$26))*EXP(_xlfn.NORM.INV(RAND(),'1. Effektsamband'!$N$6,'1. Effektsamband'!$S$6))*'2. Kostnader'!$E$15 -> 259352.4247 | H55: 1435244.46 | I55: =(_xlfn.GAMMA.INV(RAND(),'2. Kostnader'!$K$8,'2. Kostnader'!$L$8))*EXP(_xlfn.NORM.INV(RAND(),'1. Effektsamband'!$N$7,'1. Effektsamband'!$S$7)) -> 68914.44389 | J55: =(_xlfn.GAMMA.INV(RAND(),'2. Kostnader'!$L$23,'2. Kostnader'!$M$23))*EXP(_xlfn.NORM.INV(RAND(),'1. Effektsamband'!$N$7,'1. Effektsamband'!$S$7))*'2. Kostnader'!$E$15 -> 225954.1689 | K55: 294868.6128 | L55: =(_xlfn.GAMMA.INV(RAND(),'2. Kostnader'!$K$7,'2. Kostnader'!$L$7))*EXP(_xlfn.NORM.INV(RAND(),'1. Effektsamband'!$N$8,'1. Effektsamband'!$S$8)) -> 1220.122307 | M55: =(_xlfn.GAMMA.INV(RAND(),'2. Kostnader'!$L$21,'2. Kostnader'!$M$21))*EXP(_xlfn.NORM.INV(RAND(), '1. Effektsamband'!$N$8,'1. Effektsamband'!$S$8))*'2. Kostnader'!$E$15 -> 160223.1137 | N55: 161443.236 | O55: =(_xlfn.GAMMA.INV(RAND(),'2. Kostnader'!$K$13,'2. Kostnader'!$L$13))*EXP(_xlfn.NORM.INV(RAND(),'1. Effektsamband'!$N$9,'1. Effektsamband'!$S$9)) -> 7368.897397 | P55: =(_xlfn.GAMMA.INV(RAND(),'2. Kostnader'!$L$28,'2. Kostnader'!$M$28))*EXP(_xlfn.NORM.INV(RAND(),'1. Effektsamband'!$N$9,'1. Effektsamband'!$S$9))*'2. Kostnader'!$E$15 -> 123408.527 | Q55: 130777.4244 | R55: =(_xlfn.GAMMA.INV(RAND(),'2. Kostnader'!$K$14,'2. Kostnader'!$L$14))*EXP(_xlfn.NORM.INV(RAND(),'1. Effektsamband'!$N$9,'1. Effektsamband'!$S$9)) -> 39998.27485 | S55: =(_xlfn.GAMMA.INV(RAND(),'2. Kostnader'!$L$27,'2. Kostnader'!$M$27))*EXP(_xlfn.NORM.INV(RAND(),'1. Effektsamband'!$N$9,'1. Effektsamband'!$S$9))*'2. Kostnader'!$E$15 -> 587406.0849 | T55: 627404.3597 | U55: =(_xlfn.GAMMA.INV(RAND(),'2. Kostnader'!$K$11,'2. Kostnader'!$L$11))*EXP(_xlfn.NORM.INV(RAND(),'1. Effektsamband'!$N$13,'1. Effektsamband'!$S$13)) -> 66330.55467 | V55: 66330.55467 | W55: =(_xlfn.GAMMA.INV(RAND(),'2. Kostnader'!$K$10,'2. Kostnader'!$L$10)*EXP(_xlfn.NORM.INV(RAND(),'1. Effektsamband'!$N$10,'1. Effektsamband'!$S$10))) -> 25277.0222 | X55: =(_xlfn.GAMMA.INV(RAND(),'2. Kostnader'!$K$10,'2. Kostnader'!$L$10)*(EXP(_xlfn.NORM.INV(RAND(),'1. Effektsamband'!$N$11,'1. Effektsamband'!$S$11)))) -> 9427.417317 | Y55: =(_xlfn.GAMMA.INV(RAND(),'2. Kostnader'!$K$6,'2. Kostnader'!$L$6)*(EXP(_xlfn.NORM.INV(RAND(),'1. Effektsamband'!$N$4,'1. Effektsamband'!$S$4)))) -> 18172.04718
A56: 42 | B56: =EXP(_xlfn.NORM.INV(RAND(),'1. Effektsamband'!$N$3,'1. Effektsamband'!$S$3))*(_xlfn.GAMMA.INV(RAND(),'2. Kostnader'!$K$6,'2. Kostnader'!$L$6)*'1. Effektsamband'!$B$15) -> 2445767.426 | C56: =(_xlfn.GAMMA.INV(RAND(),'2. Kostnader'!$K$9,'2. Kostnader'!$L$9))*(EXP(_xlfn.NORM.INV(RAND(),'1. Effektsamband'!$N$5,'1. Effektsamband'!$S$5))) -> 2981.469318 | D56: =(_xlfn.GAMMA.INV(RAND(),'2. Kostnader'!$L$22,'2. Kostnader'!$M$22))*EXP(_xlfn.NORM.INV(RAND(),'1. Effektsamband'!$N$5,'1. Effektsamband'!$S$5))*'2. Kostnader'!$E$15 -> 3965.536458 | E56: 6947.005776 | F56: =(_xlfn.GAMMA.INV(RAND(),'2. Kostnader'!$K$12,'2. Kostnader'!$L$12))*EXP(_xlfn.NORM.INV(RAND(),'1. Effektsamband'!$N$6,'1. Effektsamband'!$S$6)) -> 120354.5454 | G56: =(_xlfn.GAMMA.INV(RAND(),'2. Kostnader'!$L$26,'2. Kostnader'!$M$26))*EXP(_xlfn.NORM.INV(RAND(),'1. Effektsamband'!$N$6,'1. Effektsamband'!$S$6))*'2. Kostnader'!$E$15 -> 887758.203 | H56: 1008112.748 | I56: =(_xlfn.GAMMA.INV(RAND(),'2. Kostnader'!$K$8,'2. Kostnader'!$L$8))*EXP(_xlfn.NORM.INV(RAND(),'1. Effektsamband'!$N$7,'1. Effektsamband'!$S$7)) -> 27339.32795 | J56: =(_xlfn.GAMMA.INV(RAND(),'2. Kostnader'!$L$23,'2. Kostnader'!$M$23))*EXP(_xlfn.NORM.INV(RAND(),'1. Effektsamband'!$N$7,'1. Effektsamband'!$S$7))*'2. Kostnader'!$E$15 -> 333804.5092 | K56: 361143.8372 | L56: =(_xlfn.GAMMA.INV(RAND(),'2. Kostnader'!$K$7,'2. Kostnader'!$L$7))*EXP(_xlfn.NORM.INV(RAND(),'1. Effektsamband'!$N$8,'1. Effektsamband'!$S$8)) -> 1537.254003 | M56: =(_xlfn.GAMMA.INV(RAND(),'2. Kostnader'!$L$21,'2. Kostnader'!$M$21))*EXP(_xlfn.NORM.INV(RAND(), '1. Effektsamband'!$N$8,'1. Effektsamband'!$S$8))*'2. Kostnader'!$E$15 -> 147263.2723 | N56: 148800.5264 | O56: =(_xlfn.GAMMA.INV(RAND(),'2. Kostnader'!$K$13,'2. Kostnader'!$L$13))*EXP(_xlfn.NORM.INV(RAND(),'1. Effektsamband'!$N$9,'1. Effektsamband'!$S$9)) -> 3446.63205 | P56: =(_xlfn.GAMMA.INV(RAND(),'2. Kostnader'!$L$28,'2. Kostnader'!$M$28))*EXP(_xlfn.NORM.INV(RAND(),'1. Effektsamband'!$N$9,'1. Effektsamband'!$S$9))*'2. Kostnader'!$E$15 -> 93402.23204 | Q56: 96848.86409 | R56: =(_xlfn.GAMMA.INV(RAND(),'2. Kostnader'!$K$14,'2. Kostnader'!$L$14))*EXP(_xlfn.NORM.INV(RAND(),'1. Effektsamband'!$N$9,'1. Effektsamband'!$S$9)) -> 22164.50949 | S56: =(_xlfn.GAMMA.INV(RAND(),'2. Kostnader'!$L$27,'2. Kostnader'!$M$27))*EXP(_xlfn.NORM.INV(RAND(),'1. Effektsamband'!$N$9,'1. Effektsamband'!$S$9))*'2. Kostnader'!$E$15 -> 985581.1266 | T56: 1007745.636 | U56: =(_xlfn.GAMMA.INV(RAND(),'2. Kostnader'!$K$11,'2. Kostnader'!$L$11))*EXP(_xlfn.NORM.INV(RAND(),'1. Effektsamband'!$N$13,'1. Effektsamband'!$S$13)) -> 73260.05018 | V56: 73260.05018 | W56: =(_xlfn.GAMMA.INV(RAND(),'2. Kostnader'!$K$10,'2. Kostnader'!$L$10)*EXP(_xlfn.NORM.INV(RAND(),'1. Effektsamband'!$N$10,'1. Effektsamband'!$S$10))) -> 23719.8825 | X56: =(_xlfn.GAMMA.INV(RAND(),'2. Kostnader'!$K$10,'2. Kostnader'!$L$10)*(EXP(_xlfn.NORM.INV(RAND(),'1. Effektsamband'!$N$11,'1. Effektsamband'!$S$11)))) -> 8422.278084 | Y56: =(_xlfn.GAMMA.INV(RAND(),'2. Kostnader'!$K$6,'2. Kostnader'!$L$6)*(EXP(_xlfn.NORM.INV(RAND(),'1. Effektsamband'!$N$4,'1. Effektsamband'!$S$4)))) -> 31123.56652
A57: 43 | B57: =EXP(_xlfn.NORM.INV(RAND(),'1. Effektsamband'!$N$3,'1. Effektsamband'!$S$3))*(_xlfn.GAMMA.INV(RAND(),'2. Kostnader'!$K$6,'2. Kostnader'!$L$6)*'1. Effektsamband'!$B$15) -> 2671760.692 | C57: =(_xlfn.GAMMA.INV(RAND(),'2. Kostnader'!$K$9,'2. Kostnader'!$L$9))*(EXP(_xlfn.NORM.INV(RAND(),'1. Effektsamband'!$N$5,'1. Effektsamband'!$S$5))) -> 1048.780233 | D57: =(_xlfn.GAMMA.INV(RAND(),'2. Kostnader'!$L$22,'2. Kostnader'!$M$22))*EXP(_xlfn.NORM.INV(RAND(),'1. Effektsamband'!$N$5,'1. Effektsamband'!$S$5))*'2. Kostnader'!$E$15 -> 1898.954909 | E57: 2947.735142 | F57: =(_xlfn.GAMMA.INV(RAND(),'2. Kostnader'!$K$12,'2. Kostnader'!$L$12))*EXP(_xlfn.NORM.INV(RAND(),'1. Effektsamband'!$N$6,'1. Effektsamband'!$S$6)) -> 185779.2624 | G57: =(_xlfn.GAMMA.INV(RAND(),'2. Kostnader'!$L$26,'2. Kostnader'!$M$26))*EXP(_xlfn.NORM.INV(RAND(),'1. Effektsamband'!$N$6,'1. Effektsamband'!$S$6))*'2. Kostnader'!$E$15 -> 1074012.719 | H57: 1259791.981 | I57: =(_xlfn.GAMMA.INV(RAND(),'2. Kostnader'!$K$8,'2. Kostnader'!$L$8))*EXP(_xlfn.NORM.INV(RAND(),'1. Effektsamband'!$N$7,'1. Effektsamband'!$S$7)) -> 39694.55972 | J57: =(_xlfn.GAMMA.INV(RAND(),'2. Kostnader'!$L$23,'2. Kostnader'!$M$23))*EXP(_xlfn.NORM.INV(RAND(),'1. Effektsamband'!$N$7,'1. Effektsamband'!$S$7))*'2. Kostnader'!$E$15 -> 290524.0924 | K57: 330218.6521 | L57: =(_xlfn.GAMMA.INV(RAND(),'2. Kostnader'!$K$7,'2. Kostnader'!$L$7))*EXP(_xlfn.NORM.INV(RAND(),'1. Effektsamband'!$N$8,'1. Effektsamband'!$S$8)) -> 1068.99064 | M57: =(_xlfn.GAMMA.INV(RAND(),'2. Kostnader'!$L$21,'2. Kostnader'!$M$21))*EXP(_xlfn.NORM.INV(RAND(), '1. Effektsamband'!$N$8,'1. Effektsamband'!$S$8))*'2. Kostnader'!$E$15 -> 119663.6114 | N57: 120732.6021 | O57: =(_xlfn.GAMMA.INV(RAND(),'2. Kostnader'!$K$13,'2. Kostnader'!$L$13))*EXP(_xlfn.NORM.INV(RAND(),'1. Effektsamband'!$N$9,'1. Effektsamband'!$S$9)) -> 7040.879847 | P57: =(_xlfn.GAMMA.INV(RAND(),'2. Kostnader'!$L$28,'2. Kostnader'!$M$28))*EXP(_xlfn.NORM.INV(RAND(),'1. Effektsamband'!$N$9,'1. Effektsamband'!$S$9))*'2. Kostnader'!$E$15 -> 58227.15033 | Q57: 65268.03017 | R57: =(_xlfn.GAMMA.INV(RAND(),'2. Kostnader'!$K$14,'2. Kostnader'!$L$14))*EXP(_xlfn.NORM.INV(RAND(),'1. Effektsamband'!$N$9,'1. Effektsamband'!$S$9)) -> 48850.07388 | S57: =(_xlfn.GAMMA.INV(RAND(),'2. Kostnader'!$L$27,'2. Kostnader'!$M$27))*EXP(_xlfn.NORM.INV(RAND(),'1. Effektsamband'!$N$9,'1. Effektsamband'!$S$9))*'2. Kostnader'!$E$15 -> 524813.9132 | T57: 573663.9871 | U57: =(_xlfn.GAMMA.INV(RAND(),'2. Kostnader'!$K$11,'2. Kostnader'!$L$11))*EXP(_xlfn.NORM.INV(RAND(),'1. Effektsamband'!$N$13,'1. Effektsamband'!$S$13)) -> 50512.56859 | V57: 50512.56859 | W57: =(_xlfn.GAMMA.INV(RAND(),'2. Kostnader'!$K$10,'2. Kostnader'!$L$10)*EXP(_xlfn.NORM.INV(RAND(),'1. Effektsamband'!$N$10,'1. Effektsamband'!$S$10))) -> 14201.6884 | X57: =(_xlfn.GAMMA.INV(RAND(),'2. Kostnader'!$K$10,'2. Kostnader'!$L$10)*(EXP(_xlfn.NORM.INV(RAND(),'1. Effektsamband'!$N$11,'1. Effektsamband'!$S$11)))) -> 8454.607355 | Y57: =(_xlfn.GAMMA.INV(RAND(),'2. Kostnader'!$K$6,'2. Kostnader'!$L$6)*(EXP(_xlfn.NORM.INV(RAND(),'1. Effektsamband'!$N$4,'1. Effektsamband'!$S$4)))) -> 34513.93367
A58: 44 | B58: =EXP(_xlfn.NORM.INV(RAND(),'1. Effektsamband'!$N$3,'1. Effektsamband'!$S$3))*(_xlfn.GAMMA.INV(RAND(),'2. Kostnader'!$K$6,'2. Kostnader'!$L$6)*'1. Effektsamband'!$B$15) -> 3249647.983 | C58: =(_xlfn.GAMMA.INV(RAND(),'2. Kostnader'!$K$9,'2. Kostnader'!$L$9))*(EXP(_xlfn.NORM.INV(RAND(),'1. Effektsamband'!$N$5,'1. Effektsamband'!$S$5))) -> 19502.99949 | D58: =(_xlfn.GAMMA.INV(RAND(),'2. Kostnader'!$L$22,'2. Kostnader'!$M$22))*EXP(_xlfn.NORM.INV(RAND(),'1. Effektsamband'!$N$5,'1. Effektsamband'!$S$5))*'2. Kostnader'!$E$15 -> 1537.910751 | E58: 21040.91024 | F58: =(_xlfn.GAMMA.INV(RAND(),'2. Kostnader'!$K$12,'2. Kostnader'!$L$12))*EXP(_xlfn.NORM.INV(RAND(),'1. Effektsamband'!$N$6,'1. Effektsamband'!$S$6)) -> 673211.4822 | G58: =(_xlfn.GAMMA.INV(RAND(),'2. Kostnader'!$L$26,'2. Kostnader'!$M$26))*EXP(_xlfn.NORM.INV(RAND(),'1. Effektsamband'!$N$6,'1. Effektsamband'!$S$6))*'2. Kostnader'!$E$15 -> 2233753.726 | H58: 2906965.208 | I58: =(_xlfn.GAMMA.INV(RAND(),'2. Kostnader'!$K$8,'2. Kostnader'!$L$8))*EXP(_xlfn.NORM.INV(RAND(),'1. Effektsamband'!$N$7,'1. Effektsamband'!$S$7)) -> 22591.06389 | J58: =(_xlfn.GAMMA.INV(RAND(),'2. Kostnader'!$L$23,'2. Kostnader'!$M$23))*EXP(_xlfn.NORM.INV(RAND(),'1. Effektsamband'!$N$7,'1. Effektsamband'!$S$7))*'2. Kostnader'!$E$15 -> 341774.4169 | K58: 364365.4808 | L58: =(_xlfn.GAMMA.INV(RAND(),'2. Kostnader'!$K$7,'2. Kostnader'!$L$7))*EXP(_xlfn.NORM.INV(RAND(),'1. Effektsamband'!$N$8,'1. Effektsamband'!$S$8)) -> 1890.667356 | M58: =(_xlfn.GAMMA.INV(RAND(),'2. Kostnader'!$L$21,'2. Kostnader'!$M$21))*EXP(_xlfn.NORM.INV(RAND(), '1. Effektsamband'!$N$8,'1. Effektsamband'!$S$8))*'2. Kostnader'!$E$15 -> 108849.5237 | N58: 110740.1911 | O58: =(_xlfn.GAMMA.INV(RAND(),'2. Kostnader'!$K$13,'2. Kostnader'!$L$13))*EXP(_xlfn.NORM.INV(RAND(),'1. Effektsamband'!$N$9,'1. Effektsamband'!$S$9)) -> 2285.528217 | P58: =(_xlfn.GAMMA.INV(RAND(),'2. Kostnader'!$L$28,'2. Kostnader'!$M$28))*EXP(_xlfn.NORM.INV(RAND(),'1. Effektsamband'!$N$9,'1. Effektsamband'!$S$9))*'2. Kostnader'!$E$15 -> 51520.33086 | Q58: 53805.85907 | R58: =(_xlfn.GAMMA.INV(RAND(),'2. Kostnader'!$K$14,'2. Kostnader'!$L$14))*EXP(_xlfn.NORM.INV(RAND(),'1. Effektsamband'!$N$9,'1. Effektsamband'!$S$9)) -> 105314.9218 | S58: =(_xlfn.GAMMA.INV(RAND(),'2. Kostnader'!$L$27,'2. Kostnader'!$M$27))*EXP(_xlfn.NORM.INV(RAND(),'1. Effektsamband'!$N$9,'1. Effektsamband'!$S$9))*'2. Kostnader'!$E$15 -> 472024.8443 | T58: 577339.7661 | U58: =(_xlfn.GAMMA.INV(RAND(),'2. Kostnader'!$K$11,'2. Kostnader'!$L$11))*EXP(_xlfn.NORM.INV(RAND(),'1. Effektsamband'!$N$13,'1. Effektsamband'!$S$13)) -> 66716.17647 | V58: 66716.17647 | W58: =(_xlfn.GAMMA.INV(RAND(),'2. Kostnader'!$K$10,'2. Kostnader'!$L$10)*EXP(_xlfn.NORM.INV(RAND(),'1. Effektsamband'!$N$10,'1. Effektsamband'!$S$10))) -> 9268.386144 | X58: =(_xlfn.GAMMA.INV(RAND(),'2. Kostnader'!$K$10,'2. Kostnader'!$L$10)*(EXP(_xlfn.NORM.INV(RAND(),'1. Effektsamband'!$N$11,'1. Effektsamband'!$S$11)))) -> 4292.216716 | Y58: =(_xlfn.GAMMA.INV(RAND(),'2. Kostnader'!$K$6,'2. Kostnader'!$L$6)*(EXP(_xlfn.NORM.INV(RAND(),'1. Effektsamband'!$N$4,'1. Effektsamband'!$S$4)))) -> 43741.31515
A59: 45 | B59: =EXP(_xlfn.NORM.INV(RAND(),'1. Effektsamband'!$N$3,'1. Effektsamband'!$S$3))*(_xlfn.GAMMA.INV(RAND(),'2. Kostnader'!$K$6,'2. Kostnader'!$L$6)*'1. Effektsamband'!$B$15) -> 4119963.591 | C59: =(_xlfn.GAMMA.INV(RAND(),'2. Kostnader'!$K$9,'2. Kostnader'!$L$9))*(EXP(_xlfn.NORM.INV(RAND(),'1. Effektsamband'!$N$5,'1. Effektsamband'!$S$5))) -> 3712.647678 | D59: =(_xlfn.GAMMA.INV(RAND(),'2. Kostnader'!$L$22,'2. Kostnader'!$M$22))*EXP(_xlfn.NORM.INV(RAND(),'1. Effektsamband'!$N$5,'1. Effektsamband'!$S$5))*'2. Kostnader'!$E$15 -> 11940.53946 | E59: 15653.18714 | F59: =(_xlfn.GAMMA.INV(RAND(),'2. Kostnader'!$K$12,'2. Kostnader'!$L$12))*EXP(_xlfn.NORM.INV(RAND(),'1. Effektsamband'!$N$6,'1. Effektsamband'!$S$6)) -> 228059.404 | G59: =(_xlfn.GAMMA.INV(RAND(),'2. Kostnader'!$L$26,'2. Kostnader'!$M$26))*EXP(_xlfn.NORM.INV(RAND(),'1. Effektsamband'!$N$6,'1. Effektsamband'!$S$6))*'2. Kostnader'!$E$15 -> 1049154.04 | H59: 1277213.444 | I59: =(_xlfn.GAMMA.INV(RAND(),'2. Kostnader'!$K$8,'2. Kostnader'!$L$8))*EXP(_xlfn.NORM.INV(RAND(),'1. Effektsamband'!$N$7,'1. Effektsamband'!$S$7)) -> 28534.20222 | J59: =(_xlfn.GAMMA.INV(RAND(),'2. Kostnader'!$L$23,'2. Kostnader'!$M$23))*EXP(_xlfn.NORM.INV(RAND(),'1. Effektsamband'!$N$7,'1. Effektsamband'!$S$7))*'2. Kostnader'!$E$15 -> 229067.1242 | K59: 257601.3265 | L59: =(_xlfn.GAMMA.INV(RAND(),'2. Kostnader'!$K$7,'2. Kostnader'!$L$7))*EXP(_xlfn.NORM.INV(RAND(),'1. Effektsamband'!$N$8,'1. Effektsamband'!$S$8)) -> 1469.093194 | M59: =(_xlfn.GAMMA.INV(RAND(),'2. Kostnader'!$L$21,'2. Kostnader'!$M$21))*EXP(_xlfn.NORM.INV(RAND(), '1. Effektsamband'!$N$8,'1. Effektsamband'!$S$8))*'2. Kostnader'!$E$15 -> 132173.447 | N59: 133642.5402 | O59: =(_xlfn.GAMMA.INV(RAND(),'2. Kostnader'!$K$13,'2. Kostnader'!$L$13))*EXP(_xlfn.NORM.INV(RAND(),'1. Effektsamband'!$N$9,'1. Effektsamband'!$S$9)) -> 2880.145297 | P59: =(_xlfn.GAMMA.INV(RAND(),'2. Kostnader'!$L$28,'2. Kostnader'!$M$28))*EXP(_xlfn.NORM.INV(RAND(),'1. Effektsamband'!$N$9,'1. Effektsamband'!$S$9))*'2. Kostnader'!$E$15 -> 124928.0137 | Q59: 127808.159 | R59: =(_xlfn.GAMMA.INV(RAND(),'2. Kostnader'!$K$14,'2. Kostnader'!$L$14))*EXP(_xlfn.NORM.INV(RAND(),'1. Effektsamband'!$N$9,'1. Effektsamband'!$S$9)) -> 50701.78677 | S59: =(_xlfn.GAMMA.INV(RAND(),'2. Kostnader'!$L$27,'2. Kostnader'!$M$27))*EXP(_xlfn.NORM.INV(RAND(),'1. Effektsamband'!$N$9,'1. Effektsamband'!$S$9))*'2. Kostnader'!$E$15 -> 413198.6665 | T59: 463900.4533 | U59: =(_xlfn.GAMMA.INV(RAND(),'2. Kostnader'!$K$11,'2. Kostnader'!$L$11))*EXP(_xlfn.NORM.INV(RAND(),'1. Effektsamband'!$N$13,'1. Effektsamband'!$S$13)) -> 55872.21105 | V59: 55872.21105 | W59: =(_xlfn.GAMMA.INV(RAND(),'2. Kostnader'!$K$10,'2. Kostnader'!$L$10)*EXP(_xlfn.NORM.INV(RAND(),'1. Effektsamband'!$N$10,'1. Effektsamband'!$S$10))) -> 19340.51041 | X59: =(_xlfn.GAMMA.INV(RAND(),'2. Kostnader'!$K$10,'2. Kostnader'!$L$10)*(EXP(_xlfn.NORM.INV(RAND(),'1. Effektsamband'!$N$11,'1. Effektsamband'!$S$11)))) -> 6955.381647 | Y59: =(_xlfn.GAMMA.INV(RAND(),'2. Kostnader'!$K$6,'2. Kostnader'!$L$6)*(EXP(_xlfn.NORM.INV(RAND(),'1. Effektsamband'!$N$4,'1. Effektsamband'!$S$4)))) -> 24059.81193
A60: 46 | B60: =EXP(_xlfn.NORM.INV(RAND(),'1. Effektsamband'!$N$3,'1. Effektsamband'!$S$3))*(_xlfn.GAMMA.INV(RAND(),'2. Kostnader'!$K$6,'2. Kostnader'!$L$6)*'1. Effektsamband'!$B$15) -> 4148169.031 | C60: =(_xlfn.GAMMA.INV(RAND(),'2. Kostnader'!$K$9,'2. Kostnader'!$L$9))*(EXP(_xlfn.NORM.INV(RAND(),'1. Effektsamband'!$N$5,'1. Effektsamband'!$S$5))) -> 3614.59835 | D60: =(_xlfn.GAMMA.INV(RAND(),'2. Kostnader'!$L$22,'2. Kostnader'!$M$22))*EXP(_xlfn.NORM.INV(RAND(),'1. Effektsamband'!$N$5,'1. Effektsamband'!$S$5))*'2. Kostnader'!$E$15 -> 3054.346137 | E60: 6668.944487 | F60: =(_xlfn.GAMMA.INV(RAND(),'2. Kostnader'!$K$12,'2. Kostnader'!$L$12))*EXP(_xlfn.NORM.INV(RAND(),'1. Effektsamband'!$N$6,'1. Effektsamband'!$S$6)) -> 87114.50772 | G60: =(_xlfn.GAMMA.INV(RAND(),'2. Kostnader'!$L$26,'2. Kostnader'!$M$26))*EXP(_xlfn.NORM.INV(RAND(),'1. Effektsamband'!$N$6,'1. Effektsamband'!$S$6))*'2. Kostnader'!$E$15 -> 475932.8819 | H60: 563047.3896 | I60: =(_xlfn.GAMMA.INV(RAND(),'2. Kostnader'!$K$8,'2. Kostnader'!$L$8))*EXP(_xlfn.NORM.INV(RAND(),'1. Effektsamband'!$N$7,'1. Effektsamband'!$S$7)) -> 19869.10399 | J60: =(_xlfn.GAMMA.INV(RAND(),'2. Kostnader'!$L$23,'2. Kostnader'!$M$23))*EXP(_xlfn.NORM.INV(RAND(),'1. Effektsamband'!$N$7,'1. Effektsamband'!$S$7))*'2. Kostnader'!$E$15 -> 269807.7274 | K60: 289676.8314 | L60: =(_xlfn.GAMMA.INV(RAND(),'2. Kostnader'!$K$7,'2. Kostnader'!$L$7))*EXP(_xlfn.NORM.INV(RAND(),'1. Effektsamband'!$N$8,'1. Effektsamband'!$S$8)) -> 983.3765727 | M60: =(_xlfn.GAMMA.INV(RAND(),'2. Kostnader'!$L$21,'2. Kostnader'!$M$21))*EXP(_xlfn.NORM.INV(RAND(), '1. Effektsamband'!$N$8,'1. Effektsamband'!$S$8))*'2. Kostnader'!$E$15 -> 110747.0892 | N60: 111730.4657 | O60: =(_xlfn.GAMMA.INV(RAND(),'2. Kostnader'!$K$13,'2. Kostnader'!$L$13))*EXP(_xlfn.NORM.INV(RAND(),'1. Effektsamband'!$N$9,'1. Effektsamband'!$S$9)) -> 9151.702325 | P60: =(_xlfn.GAMMA.INV(RAND(),'2. Kostnader'!$L$28,'2. Kostnader'!$M$28))*EXP(_xlfn.NORM.INV(RAND(),'1. Effektsamband'!$N$9,'1. Effektsamband'!$S$9))*'2. Kostnader'!$E$15 -> 78867.56913 | Q60: 88019.27145 | R60: =(_xlfn.GAMMA.INV(RAND(),'2. Kostnader'!$K$14,'2. Kostnader'!$L$14))*EXP(_xlfn.NORM.INV(RAND(),'1. Effektsamband'!$N$9,'1. Effektsamband'!$S$9)) -> 43382.53446 | S60: =(_xlfn.GAMMA.INV(RAND(),'2. Kostnader'!$L$27,'2. Kostnader'!$M$27))*EXP(_xlfn.NORM.INV(RAND(),'1. Effektsamband'!$N$9,'1. Effektsamband'!$S$9))*'2. Kostnader'!$E$15 -> 398266.9586 | T60: 441649.4931 | U60: =(_xlfn.GAMMA.INV(RAND(),'2. Kostnader'!$K$11,'2. Kostnader'!$L$11))*EXP(_xlfn.NORM.INV(RAND(),'1. Effektsamband'!$N$13,'1. Effektsamband'!$S$13)) -> 67034.06804 | V60: 67034.06804 | W60: =(_xlfn.GAMMA.INV(RAND(),'2. Kostnader'!$K$10,'2. Kostnader'!$L$10)*EXP(_xlfn.NORM.INV(RAND(),'1. Effektsamband'!$N$10,'1. Effektsamband'!$S$10))) -> 17345.2434 | X60: =(_xlfn.GAMMA.INV(RAND(),'2. Kostnader'!$K$10,'2. Kostnader'!$L$10)*(EXP(_xlfn.NORM.INV(RAND(),'1. Effektsamband'!$N$11,'1. Effektsamband'!$S$11)))) -> 5470.614134 | Y60: =(_xlfn.GAMMA.INV(RAND(),'2. Kostnader'!$K$6,'2. Kostnader'!$L$6)*(EXP(_xlfn.NORM.INV(RAND(),'1. Effektsamband'!$N$4,'1. Effektsamband'!$S$4)))) -> 23038.26952
A61: 47 | B61: =EXP(_xlfn.NORM.INV(RAND(),'1. Effektsamband'!$N$3,'1. Effektsamband'!$S$3))*(_xlfn.GAMMA.INV(RAND(),'2. Kostnader'!$K$6,'2. Kostnader'!$L$6)*'1. Effektsamband'!$B$15) -> 2486351.581 | C61: =(_xlfn.GAMMA.INV(RAND(),'2. Kostnader'!$K$9,'2. Kostnader'!$L$9))*(EXP(_xlfn.NORM.INV(RAND(),'1. Effektsamband'!$N$5,'1. Effektsamband'!$S$5))) -> 7720.69294 | D61: =(_xlfn.GAMMA.INV(RAND(),'2. Kostnader'!$L$22,'2. Kostnader'!$M$22))*EXP(_xlfn.NORM.INV(RAND(),'1. Effektsamband'!$N$5,'1. Effektsamband'!$S$5))*'2. Kostnader'!$E$15 -> 3475.300216 | E61: 11195.99316 | F61: =(_xlfn.GAMMA.INV(RAND(),'2. Kostnader'!$K$12,'2. Kostnader'!$L$12))*EXP(_xlfn.NORM.INV(RAND(),'1. Effektsamband'!$N$6,'1. Effektsamband'!$S$6)) -> 460833.5816 | G61: =(_xlfn.GAMMA.INV(RAND(),'2. Kostnader'!$L$26,'2. Kostnader'!$M$26))*EXP(_xlfn.NORM.INV(RAND(),'1. Effektsamband'!$N$6,'1. Effektsamband'!$S$6))*'2. Kostnader'!$E$15 -> 4622838.015 | H61: 5083671.597 | I61: =(_xlfn.GAMMA.INV(RAND(),'2. Kostnader'!$K$8,'2. Kostnader'!$L$8))*EXP(_xlfn.NORM.INV(RAND(),'1. Effektsamband'!$N$7,'1. Effektsamband'!$S$7)) -> 27754.75054 | J61: =(_xlfn.GAMMA.INV(RAND(),'2. Kostnader'!$L$23,'2. Kostnader'!$M$23))*EXP(_xlfn.NORM.INV(RAND(),'1. Effektsamband'!$N$7,'1. Effektsamband'!$S$7))*'2. Kostnader'!$E$15 -> 626919.0584 | K61: 654673.8089 | L61: =(_xlfn.GAMMA.INV(RAND(),'2. Kostnader'!$K$7,'2. Kostnader'!$L$7))*EXP(_xlfn.NORM.INV(RAND(),'1. Effektsamband'!$N$8,'1. Effektsamband'!$S$8)) -> 1421.666625 | M61: =(_xlfn.GAMMA.INV(RAND(),'2. Kostnader'!$L$21,'2. Kostnader'!$M$21))*EXP(_xlfn.NORM.INV(RAND(), '1. Effektsamband'!$N$8,'1. Effektsamband'!$S$8))*'2. Kostnader'!$E$15 -> 127614.5991 | N61: 129036.2657 | O61: =(_xlfn.GAMMA.INV(RAND(),'2. Kostnader'!$K$13,'2. Kostnader'!$L$13))*EXP(_xlfn.NORM.INV(RAND(),'1. Effektsamband'!$N$9,'1. Effektsamband'!$S$9)) -> 3344.805505 | P61: =(_xlfn.GAMMA.INV(RAND(),'2. Kostnader'!$L$28,'2. Kostnader'!$M$28))*EXP(_xlfn.NORM.INV(RAND(),'1. Effektsamband'!$N$9,'1. Effektsamband'!$S$9))*'2. Kostnader'!$E$15 -> 159379.1215 | Q61: 162723.927 | R61: =(_xlfn.GAMMA.INV(RAND(),'2. Kostnader'!$K$14,'2. Kostnader'!$L$14))*EXP(_xlfn.NORM.INV(RAND(),'1. Effektsamband'!$N$9,'1. Effektsamband'!$S$9)) -> 31280.98935 | S61: =(_xlfn.GAMMA.INV(RAND(),'2. Kostnader'!$L$27,'2. Kostnader'!$M$27))*EXP(_xlfn.NORM.INV(RAND(),'1. Effektsamband'!$N$9,'1. Effektsamband'!$S$9))*'2. Kostnader'!$E$15 -> 264638.5828 | T61: 295919.5721 | U61: =(_xlfn.GAMMA.INV(RAND(),'2. Kostnader'!$K$11,'2. Kostnader'!$L$11))*EXP(_xlfn.NORM.INV(RAND(),'1. Effektsamband'!$N$13,'1. Effektsamband'!$S$13)) -> 67304.77434 | V61: 67304.77434 | W61: =(_xlfn.GAMMA.INV(RAND(),'2. Kostnader'!$K$10,'2. Kostnader'!$L$10)*EXP(_xlfn.NORM.INV(RAND(),'1. Effektsamband'!$N$10,'1. Effektsamband'!$S$10))) -> 27661.12491 | X61: =(_xlfn.GAMMA.INV(RAND(),'2. Kostnader'!$K$10,'2. Kostnader'!$L$10)*(EXP(_xlfn.NORM.INV(RAND(),'1. Effektsamband'!$N$11,'1. Effektsamband'!$S$11)))) -> 3601.071024 | Y61: =(_xlfn.GAMMA.INV(RAND(),'2. Kostnader'!$K$6,'2. Kostnader'!$L$6)*(EXP(_xlfn.NORM.INV(RAND(),'1. Effektsamband'!$N$4,'1. Effektsamband'!$S$4)))) -> 16242.61539
A62: 48 | B62: =EXP(_xlfn.NORM.INV(RAND(),'1. Effektsamband'!$N$3,'1. Effektsamband'!$S$3))*(_xlfn.GAMMA.INV(RAND(),'2. Kostnader'!$K$6,'2. Kostnader'!$L$6)*'1. Effektsamband'!$B$15) -> 3748593.642 | C62: =(_xlfn.GAMMA.INV(RAND(),'2. Kostnader'!$K$9,'2. Kostnader'!$L$9))*(EXP(_xlfn.NORM.INV(RAND(),'1. Effektsamband'!$N$5,'1. Effektsamband'!$S$5))) -> 10268.52992 | D62: =(_xlfn.GAMMA.INV(RAND(),'2. Kostnader'!$L$22,'2. Kostnader'!$M$22))*EXP(_xlfn.NORM.INV(RAND(),'1. Effektsamband'!$N$5,'1. Effektsamband'!$S$5))*'2. Kostnader'!$E$15 -> 8759.104766 | E62: 19027.63468 | F62: =(_xlfn.GAMMA.INV(RAND(),'2. Kostnader'!$K$12,'2. Kostnader'!$L$12))*EXP(_xlfn.NORM.INV(RAND(),'1. Effektsamband'!$N$6,'1. Effektsamband'!$S$6)) -> 2630626.93 | G62: =(_xlfn.GAMMA.INV(RAND(),'2. Kostnader'!$L$26,'2. Kostnader'!$M$26))*EXP(_xlfn.NORM.INV(RAND(),'1. Effektsamband'!$N$6,'1. Effektsamband'!$S$6))*'2. Kostnader'!$E$15 -> 199278.8797 | H62: 2829905.81 | I62: =(_xlfn.GAMMA.INV(RAND(),'2. Kostnader'!$K$8,'2. Kostnader'!$L$8))*EXP(_xlfn.NORM.INV(RAND(),'1. Effektsamband'!$N$7,'1. Effektsamband'!$S$7)) -> 48708.47234 | J62: =(_xlfn.GAMMA.INV(RAND(),'2. Kostnader'!$L$23,'2. Kostnader'!$M$23))*EXP(_xlfn.NORM.INV(RAND(),'1. Effektsamband'!$N$7,'1. Effektsamband'!$S$7))*'2. Kostnader'!$E$15 -> 597150.3274 | K62: 645858.7997 | L62: =(_xlfn.GAMMA.INV(RAND(),'2. Kostnader'!$K$7,'2. Kostnader'!$L$7))*EXP(_xlfn.NORM.INV(RAND(),'1. Effektsamband'!$N$8,'1. Effektsamband'!$S$8)) -> 1562.050558 | M62: =(_xlfn.GAMMA.INV(RAND(),'2. Kostnader'!$L$21,'2. Kostnader'!$M$21))*EXP(_xlfn.NORM.INV(RAND(), '1. Effektsamband'!$N$8,'1. Effektsamband'!$S$8))*'2. Kostnader'!$E$15 -> 176327.3065 | N62: 177889.357 | O62: =(_xlfn.GAMMA.INV(RAND(),'2. Kostnader'!$K$13,'2. Kostnader'!$L$13))*EXP(_xlfn.NORM.INV(RAND(),'1. Effektsamband'!$N$9,'1. Effektsamband'!$S$9)) -> 5724.031152 | P62: =(_xlfn.GAMMA.INV(RAND(),'2. Kostnader'!$L$28,'2. Kostnader'!$M$28))*EXP(_xlfn.NORM.INV(RAND(),'1. Effektsamband'!$N$9,'1. Effektsamband'!$S$9))*'2. Kostnader'!$E$15 -> 187642.1833 | Q62: 193366.2145 | R62: =(_xlfn.GAMMA.INV(RAND(),'2. Kostnader'!$K$14,'2. Kostnader'!$L$14))*EXP(_xlfn.NORM.INV(RAND(),'1. Effektsamband'!$N$9,'1. Effektsamband'!$S$9)) -> 51486.74669 | S62: =(_xlfn.GAMMA.INV(RAND(),'2. Kostnader'!$L$27,'2. Kostnader'!$M$27))*EXP(_xlfn.NORM.INV(RAND(),'1. Effektsamband'!$N$9,'1. Effektsamband'!$S$9))*'2. Kostnader'!$E$15 -> 541253.8937 | T62: 592740.6404 | U62: =(_xlfn.GAMMA.INV(RAND(),'2. Kostnader'!$K$11,'2. Kostnader'!$L$11))*EXP(_xlfn.NORM.INV(RAND(),'1. Effektsamband'!$N$13,'1. Effektsamband'!$S$13)) -> 58136.1631 | V62: 58136.1631 | W62: =(_xlfn.GAMMA.INV(RAND(),'2. Kostnader'!$K$10,'2. Kostnader'!$L$10)*EXP(_xlfn.NORM.INV(RAND(),'1. Effektsamband'!$N$10,'1. Effektsamband'!$S$10))) -> 20354.7554 | X62: =(_xlfn.GAMMA.INV(RAND(),'2. Kostnader'!$K$10,'2. Kostnader'!$L$10)*(EXP(_xlfn.NORM.INV(RAND(),'1. Effektsamband'!$N$11,'1. Effektsamband'!$S$11)))) -> 16698.33997 | Y62: =(_xlfn.GAMMA.INV(RAND(),'2. Kostnader'!$K$6,'2. Kostnader'!$L$6)*(EXP(_xlfn.NORM.INV(RAND(),'1. Effektsamband'!$N$4,'1. Effektsamband'!$S$4)))) -> 37209.67272
A63: 49 | B63: =EXP(_xlfn.NORM.INV(RAND(),'1. Effektsamband'!$N$3,'1. Effektsamband'!$S$3))*(_xlfn.GAMMA.INV(RAND(),'2. Kostnader'!$K$6,'2. Kostnader'!$L$6)*'1. Effektsamband'!$B$15) -> 5535084.985 | C63: =(_xlfn.GAMMA.INV(RAND(),'2. Kostnader'!$K$9,'2. Kostnader'!$L$9))*(EXP(_xlfn.NORM.INV(RAND(),'1. Effektsamband'!$N$5,'1. Effektsamband'!$S$5))) -> 10353.21017 | D63: =(_xlfn.GAMMA.INV(RAND(),'2. Kostnader'!$L$22,'2. Kostnader'!$M$22))*EXP(_xlfn.NORM.INV(RAND(),'1. Effektsamband'!$N$5,'1. Effektsamband'!$S$5))*'2. Kostnader'!$E$15 -> 2776.888635 | E63: 13130.09881 | F63: =(_xlfn.GAMMA.INV(RAND(),'2. Kostnader'!$K$12,'2. Kostnader'!$L$12))*EXP(_xlfn.NORM.INV(RAND(),'1. Effektsamband'!$N$6,'1. Effektsamband'!$S$6)) -> 287840.6595 | G63: =(_xlfn.GAMMA.INV(RAND(),'2. Kostnader'!$L$26,'2. Kostnader'!$M$26))*EXP(_xlfn.NORM.INV(RAND(),'1. Effektsamband'!$N$6,'1. Effektsamband'!$S$6))*'2. Kostnader'!$E$15 -> 6833668.136 | H63: 7121508.796 | I63: =(_xlfn.GAMMA.INV(RAND(),'2. Kostnader'!$K$8,'2. Kostnader'!$L$8))*EXP(_xlfn.NORM.INV(RAND(),'1. Effektsamband'!$N$7,'1. Effektsamband'!$S$7)) -> 20782.23431 | J63: =(_xlfn.GAMMA.INV(RAND(),'2. Kostnader'!$L$23,'2. Kostnader'!$M$23))*EXP(_xlfn.NORM.INV(RAND(),'1. Effektsamband'!$N$7,'1. Effektsamband'!$S$7))*'2. Kostnader'!$E$15 -> 256314.9003 | K63: 277097.1346 | L63: =(_xlfn.GAMMA.INV(RAND(),'2. Kostnader'!$K$7,'2. Kostnader'!$L$7))*EXP(_xlfn.NORM.INV(RAND(),'1. Effektsamband'!$N$8,'1. Effektsamband'!$S$8)) -> 1412.535685 | M63: =(_xlfn.GAMMA.INV(RAND(),'2. Kostnader'!$L$21,'2. Kostnader'!$M$21))*EXP(_xlfn.NORM.INV(RAND(), '1. Effektsamband'!$N$8,'1. Effektsamband'!$S$8))*'2. Kostnader'!$E$15 -> 94261.68259 | N63: 95674.21827 | O63: =(_xlfn.GAMMA.INV(RAND(),'2. Kostnader'!$K$13,'2. Kostnader'!$L$13))*EXP(_xlfn.NORM.INV(RAND(),'1. Effektsamband'!$N$9,'1. Effektsamband'!$S$9)) -> 6537.687507 | P63: =(_xlfn.GAMMA.INV(RAND(),'2. Kostnader'!$L$28,'2. Kostnader'!$M$28))*EXP(_xlfn.NORM.INV(RAND(),'1. Effektsamband'!$N$9,'1. Effektsamband'!$S$9))*'2. Kostnader'!$E$15 -> 114447.3186 | Q63: 120985.0061 | R63: =(_xlfn.GAMMA.INV(RAND(),'2. Kostnader'!$K$14,'2. Kostnader'!$L$14))*EXP(_xlfn.NORM.INV(RAND(),'1. Effektsamband'!$N$9,'1. Effektsamband'!$S$9)) -> 53386.95223 | S63: =(_xlfn.GAMMA.INV(RAND(),'2. Kostnader'!$L$27,'2. Kostnader'!$M$27))*EXP(_xlfn.NORM.INV(RAND(),'1. Effektsamband'!$N$9,'1. Effektsamband'!$S$9))*'2. Kostnader'!$E$15 -> 1019470.865 | T63: 1072857.817 | U63: =(_xlfn.GAMMA.INV(RAND(),'2. Kostnader'!$K$11,'2. Kostnader'!$L$11))*EXP(_xlfn.NORM.INV(RAND(),'1. Effektsamband'!$N$13,'1. Effektsamband'!$S$13)) -> 55983.0182 | V63: 55983.0182 | W63: =(_xlfn.GAMMA.INV(RAND(),'2. Kostnader'!$K$10,'2. Kostnader'!$L$10)*EXP(_xlfn.NORM.INV(RAND(),'1. Effektsamband'!$N$10,'1. Effektsamband'!$S$10))) -> 12569.41387 | X63: =(_xlfn.GAMMA.INV(RAND(),'2. Kostnader'!$K$10,'2. Kostnader'!$L$10)*(EXP(_xlfn.NORM.INV(RAND(),'1. Effektsamband'!$N$11,'1. Effektsamband'!$S$11)))) -> 4665.108004 | Y63: =(_xlfn.GAMMA.INV(RAND(),'2. Kostnader'!$K$6,'2. Kostnader'!$L$6)*(EXP(_xlfn.NORM.INV(RAND(),'1. Effektsamband'!$N$4,'1. Effektsamband'!$S$4)))) -> 40723.56184
A64: 50 | B64: =EXP(_xlfn.NORM.INV(RAND(),'1. Effektsamband'!$N$3,'1. Effektsamband'!$S$3))*(_xlfn.GAMMA.INV(RAND(),'2. Kostnader'!$K$6,'2. Kostnader'!$L$6)*'1. Effektsamband'!$B$15) -> 3039581.052 | C64: =(_xlfn.GAMMA.INV(RAND(),'2. Kostnader'!$K$9,'2. Kostnader'!$L$9))*(EXP(_xlfn.NORM.INV(RAND(),'1. Effektsamband'!$N$5,'1. Effektsamband'!$S$5))) -> 2344.827684 | D64: =(_xlfn.GAMMA.INV(RAND(),'2. Kostnader'!$L$22,'2. Kostnader'!$M$22))*EXP(_xlfn.NORM.INV(RAND(),'1. Effektsamband'!$N$5,'1. Effektsamband'!$S$5))*'2. Kostnader'!$E$15 -> 3263.931215 | E64: 5608.758899 | F64: =(_xlfn.GAMMA.INV(RAND(),'2. Kostnader'!$K$12,'2. Kostnader'!$L$12))*EXP(_xlfn.NORM.INV(RAND(),'1. Effektsamband'!$N$6,'1. Effektsamband'!$S$6)) -> 119053.9398 | G64: =(_xlfn.GAMMA.INV(RAND(),'2. Kostnader'!$L$26,'2. Kostnader'!$M$26))*EXP(_xlfn.NORM.INV(RAND(),'1. Effektsamband'!$N$6,'1. Effektsamband'!$S$6))*'2. Kostnader'!$E$15 -> 409052.1379 | H64: 528106.0778 | I64: =(_xlfn.GAMMA.INV(RAND(),'2. Kostnader'!$K$8,'2. Kostnader'!$L$8))*EXP(_xlfn.NORM.INV(RAND(),'1. Effektsamband'!$N$7,'1. Effektsamband'!$S$7)) -> 32754.16787 | J64: =(_xlfn.GAMMA.INV(RAND(),'2. Kostnader'!$L$23,'2. Kostnader'!$M$23))*EXP(_xlfn.NORM.INV(RAND(),'1. Effektsamband'!$N$7,'1. Effektsamband'!$S$7))*'2. Kostnader'!$E$15 -> 244113.9958 | K64: 276868.1637 | L64: =(_xlfn.GAMMA.INV(RAND(),'2. Kostnader'!$K$7,'2. Kostnader'!$L$7))*EXP(_xlfn.NORM.INV(RAND(),'1. Effektsamband'!$N$8,'1. Effektsamband'!$S$8)) -> 1293.407689 | M64: =(_xlfn.GAMMA.INV(RAND(),'2. Kostnader'!$L$21,'2. Kostnader'!$M$21))*EXP(_xlfn.NORM.INV(RAND(), '1. Effektsamband'!$N$8,'1. Effektsamband'!$S$8))*'2. Kostnader'!$E$15 -> 113617.6182 | N64: 114911.0258 | O64: =(_xlfn.GAMMA.INV(RAND(),'2. Kostnader'!$K$13,'2. Kostnader'!$L$13))*EXP(_xlfn.NORM.INV(RAND(),'1. Effektsamband'!$N$9,'1. Effektsamband'!$S$9)) -> 3055.554283 | P64: =(_xlfn.GAMMA.INV(RAND(),'2. Kostnader'!$L$28,'2. Kostnader'!$M$28))*EXP(_xlfn.NORM.INV(RAND(),'1. Effektsamband'!$N$9,'1. Effektsamband'!$S$9))*'2. Kostnader'!$E$15 -> 167584.9688 | Q64: 170640.5231 | R64: =(_xlfn.GAMMA.INV(RAND(),'2. Kostnader'!$K$14,'2. Kostnader'!$L$14))*EXP(_xlfn.NORM.INV(RAND(),'1. Effektsamband'!$N$9,'1. Effektsamband'!$S$9)) -> 53532.35324 | S64: =(_xlfn.GAMMA.INV(RAND(),'2. Kostnader'!$L$27,'2. Kostnader'!$M$27))*EXP(_xlfn.NORM.INV(RAND(),'1. Effektsamband'!$N$9,'1. Effektsamband'!$S$9))*'2. Kostnader'!$E$15 -> 587706.575 | T64: 641238.9283 | U64: =(_xlfn.GAMMA.INV(RAND(),'2. Kostnader'!$K$11,'2. Kostnader'!$L$11))*EXP(_xlfn.NORM.INV(RAND(),'1. Effektsamband'!$N$13,'1. Effektsamband'!$S$13)) -> 89603.48856 | V64: 89603.48856 | W64: =(_xlfn.GAMMA.INV(RAND(),'2. Kostnader'!$K$10,'2. Kostnader'!$L$10)*EXP(_xlfn.NORM.INV(RAND(),'1. Effektsamband'!$N$10,'1. Effektsamband'!$S$10))) -> 13424.30978 | X64: =(_xlfn.GAMMA.INV(RAND(),'2. Kostnader'!$K$10,'2. Kostnader'!$L$10)*(EXP(_xlfn.NORM.INV(RAND(),'1. Effektsamband'!$N$11,'1. Effektsamband'!$S$11)))) -> 6187.449738 | Y64: =(_xlfn.GAMMA.INV(RAND(),'2. Kostnader'!$K$6,'2. Kostnader'!$L$6)*(EXP(_xlfn.NORM.INV(RAND(),'1. Effektsamband'!$N$4,'1. Effektsamband'!$S$4)))) -> 54614.02019
A65: 51 | B65: =EXP(_xlfn.NORM.INV(RAND(),'1. Effektsamband'!$N$3,'1. Effektsamband'!$S$3))*(_xlfn.GAMMA.INV(RAND(),'2. Kostnader'!$K$6,'2. Kostnader'!$L$6)*'1. Effektsamband'!$B$15) -> 3201116.327 | C65: =(_xlfn.GAMMA.INV(RAND(),'2. Kostnader'!$K$9,'2. Kostnader'!$L$9))*(EXP(_xlfn.NORM.INV(RAND(),'1. Effektsamband'!$N$5,'1. Effektsamband'!$S$5))) -> 7128.498688 | D65: =(_xlfn.GAMMA.INV(RAND(),'2. Kostnader'!$L$22,'2. Kostnader'!$M$22))*EXP(_xlfn.NORM.INV(RAND(),'1. Effektsamband'!$N$5,'1. Effektsamband'!$S$5))*'2. Kostnader'!$E$15 -> 2449.587356 | E65: 9578.086044 | F65: =(_xlfn.GAMMA.INV(RAND(),'2. Kostnader'!$K$12,'2. Kostnader'!$L$12))*EXP(_xlfn.NORM.INV(RAND(),'1. Effektsamband'!$N$6,'1. Effektsamband'!$S$6)) -> 313820.2988 | G65: =(_xlfn.GAMMA.INV(RAND(),'2. Kostnader'!$L$26,'2. Kostnader'!$M$26))*EXP(_xlfn.NORM.INV(RAND(),'1. Effektsamband'!$N$6,'1. Effektsamband'!$S$6))*'2. Kostnader'!$E$15 -> 622747.4041 | H65: 936567.703 | I65: =(_xlfn.GAMMA.INV(RAND(),'2. Kostnader'!$K$8,'2. Kostnader'!$L$8))*EXP(_xlfn.NORM.INV(RAND(),'1. Effektsamband'!$N$7,'1. Effektsamband'!$S$7)) -> 52907.61268 | J65: =(_xlfn.GAMMA.INV(RAND(),'2. Kostnader'!$L$23,'2. Kostnader'!$M$23))*EXP(_xlfn.NORM.INV(RAND(),'1. Effektsamband'!$N$7,'1. Effektsamband'!$S$7))*'2. Kostnader'!$E$15 -> 507177.5152 | K65: 560085.1279 | L65: =(_xlfn.GAMMA.INV(RAND(),'2. Kostnader'!$K$7,'2. Kostnader'!$L$7))*EXP(_xlfn.NORM.INV(RAND(),'1. Effektsamband'!$N$8,'1. Effektsamband'!$S$8)) -> 784.8925644 | M65: =(_xlfn.GAMMA.INV(RAND(),'2. Kostnader'!$L$21,'2. Kostnader'!$M$21))*EXP(_xlfn.NORM.INV(RAND(), '1. Effektsamband'!$N$8,'1. Effektsamband'!$S$8))*'2. Kostnader'!$E$15 -> 104418.4363 | N65: 105203.3289 | O65: =(_xlfn.GAMMA.INV(RAND(),'2. Kostnader'!$K$13,'2. Kostnader'!$L$13))*EXP(_xlfn.NORM.INV(RAND(),'1. Effektsamband'!$N$9,'1. Effektsamband'!$S$9)) -> 4673.927639 | P65: =(_xlfn.GAMMA.INV(RAND(),'2. Kostnader'!$L$28,'2. Kostnader'!$M$28))*EXP(_xlfn.NORM.INV(RAND(),'1. Effektsamband'!$N$9,'1. Effektsamband'!$S$9))*'2. Kostnader'!$E$15 -> 98148.9267 | Q65: 102822.8543 | R65: =(_xlfn.GAMMA.INV(RAND(),'2. Kostnader'!$K$14,'2. Kostnader'!$L$14))*EXP(_xlfn.NORM.INV(RAND(),'1. Effektsamband'!$N$9,'1. Effektsamband'!$S$9)) -> 102547.6227 | S65: =(_xlfn.GAMMA.INV(RAND(),'2. Kostnader'!$L$27,'2. Kostnader'!$M$27))*EXP(_xlfn.NORM.INV(RAND(),'1. Effektsamband'!$N$9,'1. Effektsamband'!$S$9))*'2. Kostnader'!$E$15 -> 661104.2988 | T65: 763651.9214 | U65: =(_xlfn.GAMMA.INV(RAND(),'2. Kostnader'!$K$11,'2. Kostnader'!$L$11))*EXP(_xlfn.NORM.INV(RAND(),'1. Effektsamband'!$N$13,'1. Effektsamband'!$S$13)) -> 53242.38706 | V65: 53242.38706 | W65: =(_xlfn.GAMMA.INV(RAND(),'2. Kostnader'!$K$10,'2. Kostnader'!$L$10)*EXP(_xlfn.NORM.INV(RAND(),'1. Effektsamband'!$N$10,'1. Effektsamband'!$S$10))) -> 17192.60669 | X65: =(_xlfn.GAMMA.INV(RAND(),'2. Kostnader'!$K$10,'2. Kostnader'!$L$10)*(EXP(_xlfn.NORM.INV(RAND(),'1. Effektsamband'!$N$11,'1. Effektsamband'!$S$11)))) -> 6765.467557 | Y65: =(_xlfn.GAMMA.INV(RAND(),'2. Kostnader'!$K$6,'2. Kostnader'!$L$6)*(EXP(_xlfn.NORM.INV(RAND(),'1. Effektsamband'!$N$4,'1. Effektsamband'!$S$4)))) -> 32789.30285
A66: 52 | B66: =EXP(_xlfn.NORM.INV(RAND(),'1. Effektsamband'!$N$3,'1. Effektsamband'!$S$3))*(_xlfn.GAMMA.INV(RAND(),'2. Kostnader'!$K$6,'2. Kostnader'!$L$6)*'1. Effektsamband'!$B$15) -> 4870950.418 | C66: =(_xlfn.GAMMA.INV(RAND(),'2. Kostnader'!$K$9,'2. Kostnader'!$L$9))*(EXP(_xlfn.NORM.INV(RAND(),'1. Effektsamband'!$N$5,'1. Effektsamband'!$S$5))) -> 7376.756407 | D66: =(_xlfn.GAMMA.INV(RAND(),'2. Kostnader'!$L$22,'2. Kostnader'!$M$22))*EXP(_xlfn.NORM.INV(RAND(),'1. Effektsamband'!$N$5,'1. Effektsamband'!$S$5))*'2. Kostnader'!$E$15 -> 4968.787951 | E66: 12345.54436 | F66: =(_xlfn.GAMMA.INV(RAND(),'2. Kostnader'!$K$12,'2. Kostnader'!$L$12))*EXP(_xlfn.NORM.INV(RAND(),'1. Effektsamband'!$N$6,'1. Effektsamband'!$S$6)) -> 1443542.99 | G66: =(_xlfn.GAMMA.INV(RAND(),'2. Kostnader'!$L$26,'2. Kostnader'!$M$26))*EXP(_xlfn.NORM.INV(RAND(),'1. Effektsamband'!$N$6,'1. Effektsamband'!$S$6))*'2. Kostnader'!$E$15 -> 257359.4946 | H66: 1700902.484 | I66: =(_xlfn.GAMMA.INV(RAND(),'2. Kostnader'!$K$8,'2. Kostnader'!$L$8))*EXP(_xlfn.NORM.INV(RAND(),'1. Effektsamband'!$N$7,'1. Effektsamband'!$S$7)) -> 64124.41599 | J66: =(_xlfn.GAMMA.INV(RAND(),'2. Kostnader'!$L$23,'2. Kostnader'!$M$23))*EXP(_xlfn.NORM.INV(RAND(),'1. Effektsamband'!$N$7,'1. Effektsamband'!$S$7))*'2. Kostnader'!$E$15 -> 241784.4499 | K66: 305908.8659 | L66: =(_xlfn.GAMMA.INV(RAND(),'2. Kostnader'!$K$7,'2. Kostnader'!$L$7))*EXP(_xlfn.NORM.INV(RAND(),'1. Effektsamband'!$N$8,'1. Effektsamband'!$S$8)) -> 719.4467479 | M66: =(_xlfn.GAMMA.INV(RAND(),'2. Kostnader'!$L$21,'2. Kostnader'!$M$21))*EXP(_xlfn.NORM.INV(RAND(), '1. Effektsamband'!$N$8,'1. Effektsamband'!$S$8))*'2. Kostnader'!$E$15 -> 175060.6965 | N66: 175780.1432 | O66: =(_xlfn.GAMMA.INV(RAND(),'2. Kostnader'!$K$13,'2. Kostnader'!$L$13))*EXP(_xlfn.NORM.INV(RAND(),'1. Effektsamband'!$N$9,'1. Effektsamband'!$S$9)) -> 2750.276325 | P66: =(_xlfn.GAMMA.INV(RAND(),'2. Kostnader'!$L$28,'2. Kostnader'!$M$28))*EXP(_xlfn.NORM.INV(RAND(),'1. Effektsamband'!$N$9,'1. Effektsamband'!$S$9))*'2. Kostnader'!$E$15 -> 128993.0023 | Q66: 131743.2786 | R66: =(_xlfn.GAMMA.INV(RAND(),'2. Kostnader'!$K$14,'2. Kostnader'!$L$14))*EXP(_xlfn.NORM.INV(RAND(),'1. Effektsamband'!$N$9,'1. Effektsamband'!$S$9)) -> 38625.565 | S66: =(_xlfn.GAMMA.INV(RAND(),'2. Kostnader'!$L$27,'2. Kostnader'!$M$27))*EXP(_xlfn.NORM.INV(RAND(),'1. Effektsamband'!$N$9,'1. Effektsamband'!$S$9))*'2. Kostnader'!$E$15 -> 552034.7673 | T66: 590660.3323 | U66: =(_xlfn.GAMMA.INV(RAND(),'2. Kostnader'!$K$11,'2. Kostnader'!$L$11))*EXP(_xlfn.NORM.INV(RAND(),'1. Effektsamband'!$N$13,'1. Effektsamband'!$S$13)) -> 40213.24378 | V66: 40213.24378 | W66: =(_xlfn.GAMMA.INV(RAND(),'2. Kostnader'!$K$10,'2. Kostnader'!$L$10)*EXP(_xlfn.NORM.INV(RAND(),'1. Effektsamband'!$N$10,'1. Effektsamband'!$S$10))) -> 16766.28561 | X66: =(_xlfn.GAMMA.INV(RAND(),'2. Kostnader'!$K$10,'2. Kostnader'!$L$10)*(EXP(_xlfn.NORM.INV(RAND(),'1. Effektsamband'!$N$11,'1. Effektsamband'!$S$11)))) -> 5656.403472 | Y66: =(_xlfn.GAMMA.INV(RAND(),'2. Kostnader'!$K$6,'2. Kostnader'!$L$6)*(EXP(_xlfn.NORM.INV(RAND(),'1. Effektsamband'!$N$4,'1. Effektsamband'!$S$4)))) -> 14277.78738
A67: 53 | B67: =EXP(_xlfn.NORM.INV(RAND(),'1. Effektsamband'!$N$3,'1. Effektsamband'!$S$3))*(_xlfn.GAMMA.INV(RAND(),'2. Kostnader'!$K$6,'2. Kostnader'!$L$6)*'1. Effektsamband'!$B$15) -> 3037979.047 | C67: =(_xlfn.GAMMA.INV(RAND(),'2. Kostnader'!$K$9,'2. Kostnader'!$L$9))*(EXP(_xlfn.NORM.INV(RAND(),'1. Effektsamband'!$N$5,'1. Effektsamband'!$S$5))) -> 3053.347792 | D67: =(_xlfn.GAMMA.INV(RAND(),'2. Kostnader'!$L$22,'2. Kostnader'!$M$22))*EXP(_xlfn.NORM.INV(RAND(),'1. Effektsamband'!$N$5,'1. Effektsamband'!$S$5))*'2. Kostnader'!$E$15 -> 436.3824274 | E67: 3489.730219 | F67: =(_xlfn.GAMMA.INV(RAND(),'2. Kostnader'!$K$12,'2. Kostnader'!$L$12))*EXP(_xlfn.NORM.INV(RAND(),'1. Effektsamband'!$N$6,'1. Effektsamband'!$S$6)) -> 447512.745 | G67: =(_xlfn.GAMMA.INV(RAND(),'2. Kostnader'!$L$26,'2. Kostnader'!$M$26))*EXP(_xlfn.NORM.INV(RAND(),'1. Effektsamband'!$N$6,'1. Effektsamband'!$S$6))*'2. Kostnader'!$E$15 -> 1199347.377 | H67: 1646860.122 | I67: =(_xlfn.GAMMA.INV(RAND(),'2. Kostnader'!$K$8,'2. Kostnader'!$L$8))*EXP(_xlfn.NORM.INV(RAND(),'1. Effektsamband'!$N$7,'1. Effektsamband'!$S$7)) -> 15336.74847 | J67: =(_xlfn.GAMMA.INV(RAND(),'2. Kostnader'!$L$23,'2. Kostnader'!$M$23))*EXP(_xlfn.NORM.INV(RAND(),'1. Effektsamband'!$N$7,'1. Effektsamband'!$S$7))*'2. Kostnader'!$E$15 -> 192090.7331 | K67: 207427.4815 | L67: =(_xlfn.GAMMA.INV(RAND(),'2. Kostnader'!$K$7,'2. Kostnader'!$L$7))*EXP(_xlfn.NORM.INV(RAND(),'1. Effektsamband'!$N$8,'1. Effektsamband'!$S$8)) -> 1361.598625 | M67: =(_xlfn.GAMMA.INV(RAND(),'2. Kostnader'!$L$21,'2. Kostnader'!$M$21))*EXP(_xlfn.NORM.INV(RAND(), '1. Effektsamband'!$N$8,'1. Effektsamband'!$S$8))*'2. Kostnader'!$E$15 -> 131746.6728 | N67: 133108.2714 | O67: =(_xlfn.GAMMA.INV(RAND(),'2. Kostnader'!$K$13,'2. Kostnader'!$L$13))*EXP(_xlfn.NORM.INV(RAND(),'1. Effektsamband'!$N$9,'1. Effektsamband'!$S$9)) -> 1766.218811 | P67: =(_xlfn.GAMMA.INV(RAND(),'2. Kostnader'!$L$28,'2. Kostnader'!$M$28))*EXP(_xlfn.NORM.INV(RAND(),'1. Effektsamband'!$N$9,'1. Effektsamband'!$S$9))*'2. Kostnader'!$E$15 -> 129426.5229 | Q67: 131192.7417 | R67: =(_xlfn.GAMMA.INV(RAND(),'2. Kostnader'!$K$14,'2. Kostnader'!$L$14))*EXP(_xlfn.NORM.INV(RAND(),'1. Effektsamband'!$N$9,'1. Effektsamband'!$S$9)) -> 25063.41785 | S67: =(_xlfn.GAMMA.INV(RAND(),'2. Kostnader'!$L$27,'2. Kostnader'!$M$27))*EXP(_xlfn.NORM.INV(RAND(),'1. Effektsamband'!$N$9,'1. Effektsamband'!$S$9))*'2. Kostnader'!$E$15 -> 348092.0936 | T67: 373155.5115 | U67: =(_xlfn.GAMMA.INV(RAND(),'2. Kostnader'!$K$11,'2. Kostnader'!$L$11))*EXP(_xlfn.NORM.INV(RAND(),'1. Effektsamband'!$N$13,'1. Effektsamband'!$S$13)) -> 75693.42583 | V67: 75693.42583 | W67: =(_xlfn.GAMMA.INV(RAND(),'2. Kostnader'!$K$10,'2. Kostnader'!$L$10)*EXP(_xlfn.NORM.INV(RAND(),'1. Effektsamband'!$N$10,'1. Effektsamband'!$S$10))) -> 17874.34336 | X67: =(_xlfn.GAMMA.INV(RAND(),'2. Kostnader'!$K$10,'2. Kostnader'!$L$10)*(EXP(_xlfn.NORM.INV(RAND(),'1. Effektsamband'!$N$11,'1. Effektsamband'!$S$11)))) -> 7161.022762 | Y67: =(_xlfn.GAMMA.INV(RAND(),'2. Kostnader'!$K$6,'2. Kostnader'!$L$6)*(EXP(_xlfn.NORM.INV(RAND(),'1. Effektsamband'!$N$4,'1. Effektsamband'!$S$4)))) -> 17131.91662
A68: 54 | B68: =EXP(_xlfn.NORM.INV(RAND(),'1. Effektsamband'!$N$3,'1. Effektsamband'!$S$3))*(_xlfn.GAMMA.INV(RAND(),'2. Kostnader'!$K$6,'2. Kostnader'!$L$6)*'1. Effektsamband'!$B$15) -> 3633404.496 | C68: =(_xlfn.GAMMA.INV(RAND(),'2. Kostnader'!$K$9,'2. Kostnader'!$L$9))*(EXP(_xlfn.NORM.INV(RAND(),'1. Effektsamband'!$N$5,'1. Effektsamband'!$S$5))) -> 1537.408707 | D68: =(_xlfn.GAMMA.INV(RAND(),'2. Kostnader'!$L$22,'2. Kostnader'!$M$22))*EXP(_xlfn.NORM.INV(RAND(),'1. Effektsamband'!$N$5,'1. Effektsamband'!$S$5))*'2. Kostnader'!$E$15 -> 1986.824533 | E68: 3524.23324 | F68: =(_xlfn.GAMMA.INV(RAND(),'2. Kostnader'!$K$12,'2. Kostnader'!$L$12))*EXP(_xlfn.NORM.INV(RAND(),'1. Effektsamband'!$N$6,'1. Effektsamband'!$S$6)) -> 337555.5018 | G68: =(_xlfn.GAMMA.INV(RAND(),'2. Kostnader'!$L$26,'2. Kostnader'!$M$26))*EXP(_xlfn.NORM.INV(RAND(),'1. Effektsamband'!$N$6,'1. Effektsamband'!$S$6))*'2. Kostnader'!$E$15 -> 772927.9815 | H68: 1110483.483 | I68: =(_xlfn.GAMMA.INV(RAND(),'2. Kostnader'!$K$8,'2. Kostnader'!$L$8))*EXP(_xlfn.NORM.INV(RAND(),'1. Effektsamband'!$N$7,'1. Effektsamband'!$S$7)) -> 32444.08773 | J68: =(_xlfn.GAMMA.INV(RAND(),'2. Kostnader'!$L$23,'2. Kostnader'!$M$23))*EXP(_xlfn.NORM.INV(RAND(),'1. Effektsamband'!$N$7,'1. Effektsamband'!$S$7))*'2. Kostnader'!$E$15 -> 299866.761 | K68: 332310.8488 | L68: =(_xlfn.GAMMA.INV(RAND(),'2. Kostnader'!$K$7,'2. Kostnader'!$L$7))*EXP(_xlfn.NORM.INV(RAND(),'1. Effektsamband'!$N$8,'1. Effektsamband'!$S$8)) -> 972.3210144 | M68: =(_xlfn.GAMMA.INV(RAND(),'2. Kostnader'!$L$21,'2. Kostnader'!$M$21))*EXP(_xlfn.NORM.INV(RAND(), '1. Effektsamband'!$N$8,'1. Effektsamband'!$S$8))*'2. Kostnader'!$E$15 -> 137603.3129 | N68: 138575.6339 | O68: =(_xlfn.GAMMA.INV(RAND(),'2. Kostnader'!$K$13,'2. Kostnader'!$L$13))*EXP(_xlfn.NORM.INV(RAND(),'1. Effektsamband'!$N$9,'1. Effektsamband'!$S$9)) -> 4312.201518 | P68: =(_xlfn.GAMMA.INV(RAND(),'2. Kostnader'!$L$28,'2. Kostnader'!$M$28))*EXP(_xlfn.NORM.INV(RAND(),'1. Effektsamband'!$N$9,'1. Effektsamband'!$S$9))*'2. Kostnader'!$E$15 -> 80705.9152 | Q68: 85018.11672 | R68: =(_xlfn.GAMMA.INV(RAND(),'2. Kostnader'!$K$14,'2. Kostnader'!$L$14))*EXP(_xlfn.NORM.INV(RAND(),'1. Effektsamband'!$N$9,'1. Effektsamband'!$S$9)) -> 75509.24132 | S68: =(_xlfn.GAMMA.INV(RAND(),'2. Kostnader'!$L$27,'2. Kostnader'!$M$27))*EXP(_xlfn.NORM.INV(RAND(),'1. Effektsamband'!$N$9,'1. Effektsamband'!$S$9))*'2. Kostnader'!$E$15 -> 462684.9219 | T68: 538194.1632 | U68: =(_xlfn.GAMMA.INV(RAND(),'2. Kostnader'!$K$11,'2. Kostnader'!$L$11))*EXP(_xlfn.NORM.INV(RAND(),'1. Effektsamband'!$N$13,'1. Effektsamband'!$S$13)) -> 57959.31983 | V68: 57959.31983 | W68: =(_xlfn.GAMMA.INV(RAND(),'2. Kostnader'!$K$10,'2. Kostnader'!$L$10)*EXP(_xlfn.NORM.INV(RAND(),'1. Effektsamband'!$N$10,'1. Effektsamband'!$S$10))) -> 7698.050532 | X68: =(_xlfn.GAMMA.INV(RAND(),'2. Kostnader'!$K$10,'2. Kostnader'!$L$10)*(EXP(_xlfn.NORM.INV(RAND(),'1. Effektsamband'!$N$11,'1. Effektsamband'!$S$11)))) -> 12861.32516 | Y68: =(_xlfn.GAMMA.INV(RAND(),'2. Kostnader'!$K$6,'2. Kostnader'!$L$6)*(EXP(_xlfn.NORM.INV(RAND(),'1. Effektsamband'!$N$4,'1. Effektsamband'!$S$4)))) -> 23446.14686
A69: 55 | B69: =EXP(_xlfn.NORM.INV(RAND(),'1. Effektsamband'!$N$3,'1. Effektsamband'!$S$3))*(_xlfn.GAMMA.INV(RAND(),'2. Kostnader'!$K$6,'2. Kostnader'!$L$6)*'1. Effektsamband'!$B$15) -> 3371152.842 | C69: =(_xlfn.GAMMA.INV(RAND(),'2. Kostnader'!$K$9,'2. Kostnader'!$L$9))*(EXP(_xlfn.NORM.INV(RAND(),'1. Effektsamband'!$N$5,'1. Effektsamband'!$S$5))) -> 10600.40393 | D69: =(_xlfn.GAMMA.INV(RAND(),'2. Kostnader'!$L$22,'2. Kostnader'!$M$22))*EXP(_xlfn.NORM.INV(RAND(),'1. Effektsamband'!$N$5,'1. Effektsamband'!$S$5))*'2. Kostnader'!$E$15 -> 2658.08457 | E69: 13258.4885 | F69: =(_xlfn.GAMMA.INV(RAND(),'2. Kostnader'!$K$12,'2. Kostnader'!$L$12))*EXP(_xlfn.NORM.INV(RAND(),'1. Effektsamband'!$N$6,'1. Effektsamband'!$S$6)) -> 296608.5139 | G69: =(_xlfn.GAMMA.INV(RAND(),'2. Kostnader'!$L$26,'2. Kostnader'!$M$26))*EXP(_xlfn.NORM.INV(RAND(),'1. Effektsamband'!$N$6,'1. Effektsamband'!$S$6))*'2. Kostnader'!$E$15 -> 403907.6714 | H69: 700516.1853 | I69: =(_xlfn.GAMMA.INV(RAND(),'2. Kostnader'!$K$8,'2. Kostnader'!$L$8))*EXP(_xlfn.NORM.INV(RAND(),'1. Effektsamband'!$N$7,'1. Effektsamband'!$S$7)) -> 79233.63693 | J69: =(_xlfn.GAMMA.INV(RAND(),'2. Kostnader'!$L$23,'2. Kostnader'!$M$23))*EXP(_xlfn.NORM.INV(RAND(),'1. Effektsamband'!$N$7,'1. Effektsamband'!$S$7))*'2. Kostnader'!$E$15 -> 166756.8119 | K69: 245990.4488 | L69: =(_xlfn.GAMMA.INV(RAND(),'2. Kostnader'!$K$7,'2. Kostnader'!$L$7))*EXP(_xlfn.NORM.INV(RAND(),'1. Effektsamband'!$N$8,'1. Effektsamband'!$S$8)) -> 1521.814228 | M69: =(_xlfn.GAMMA.INV(RAND(),'2. Kostnader'!$L$21,'2. Kostnader'!$M$21))*EXP(_xlfn.NORM.INV(RAND(), '1. Effektsamband'!$N$8,'1. Effektsamband'!$S$8))*'2. Kostnader'!$E$15 -> 150703.9078 | N69: 152225.722 | O69: =(_xlfn.GAMMA.INV(RAND(),'2. Kostnader'!$K$13,'2. Kostnader'!$L$13))*EXP(_xlfn.NORM.INV(RAND(),'1. Effektsamband'!$N$9,'1. Effektsamband'!$S$9)) -> 5653.176709 | P69: =(_xlfn.GAMMA.INV(RAND(),'2. Kostnader'!$L$28,'2. Kostnader'!$M$28))*EXP(_xlfn.NORM.INV(RAND(),'1. Effektsamband'!$N$9,'1. Effektsamband'!$S$9))*'2. Kostnader'!$E$15 -> 91257.18353 | Q69: 96910.36024 | R69: =(_xlfn.GAMMA.INV(RAND(),'2. Kostnader'!$K$14,'2. Kostnader'!$L$14))*EXP(_xlfn.NORM.INV(RAND(),'1. Effektsamband'!$N$9,'1. Effektsamband'!$S$9)) -> 49738.03741 | S69: =(_xlfn.GAMMA.INV(RAND(),'2. Kostnader'!$L$27,'2. Kostnader'!$M$27))*EXP(_xlfn.NORM.INV(RAND(),'1. Effektsamband'!$N$9,'1. Effektsamband'!$S$9))*'2. Kostnader'!$E$15 -> 655689.508 | T69: 705427.5454 | U69: =(_xlfn.GAMMA.INV(RAND(),'2. Kostnader'!$K$11,'2. Kostnader'!$L$11))*EXP(_xlfn.NORM.INV(RAND(),'1. Effektsamband'!$N$13,'1. Effektsamband'!$S$13)) -> 42341.77575 | V69: 42341.77575 | W69: =(_xlfn.GAMMA.INV(RAND(),'2. Kostnader'!$K$10,'2. Kostnader'!$L$10)*EXP(_xlfn.NORM.INV(RAND(),'1. Effektsamband'!$N$10,'1. Effektsamband'!$S$10))) -> 42511.13335 | X69: =(_xlfn.GAMMA.INV(RAND(),'2. Kostnader'!$K$10,'2. Kostnader'!$L$10)*(EXP(_xlfn.NORM.INV(RAND(),'1. Effektsamband'!$N$11,'1. Effektsamband'!$S$11)))) -> 6072.648769 | Y69: =(_xlfn.GAMMA.INV(RAND(),'2. Kostnader'!$K$6,'2. Kostnader'!$L$6)*(EXP(_xlfn.NORM.INV(RAND(),'1. Effektsamband'!$N$4,'1. Effektsamband'!$S$4)))) -> 30868.04751
A70: 56 | B70: =EXP(_xlfn.NORM.INV(RAND(),'1. Effektsamband'!$N$3,'1. Effektsamband'!$S$3))*(_xlfn.GAMMA.INV(RAND(),'2. Kostnader'!$K$6,'2. Kostnader'!$L$6)*'1. Effektsamband'!$B$15) -> 4248037.697 | C70: =(_xlfn.GAMMA.INV(RAND(),'2. Kostnader'!$K$9,'2. Kostnader'!$L$9))*(EXP(_xlfn.NORM.INV(RAND(),'1. Effektsamband'!$N$5,'1. Effektsamband'!$S$5))) -> 2685.118283 | D70: =(_xlfn.GAMMA.INV(RAND(),'2. Kostnader'!$L$22,'2. Kostnader'!$M$22))*EXP(_xlfn.NORM.INV(RAND(),'1. Effektsamband'!$N$5,'1. Effektsamband'!$S$5))*'2. Kostnader'!$E$15 -> 1825.866312 | E70: 4510.984595 | F70: =(_xlfn.GAMMA.INV(RAND(),'2. Kostnader'!$K$12,'2. Kostnader'!$L$12))*EXP(_xlfn.NORM.INV(RAND(),'1. Effektsamband'!$N$6,'1. Effektsamband'!$S$6)) -> 19315.09862 | G70: =(_xlfn.GAMMA.INV(RAND(),'2. Kostnader'!$L$26,'2. Kostnader'!$M$26))*EXP(_xlfn.NORM.INV(RAND(),'1. Effektsamband'!$N$6,'1. Effektsamband'!$S$6))*'2. Kostnader'!$E$15 -> 617544.4806 | H70: 636859.5792 | I70: =(_xlfn.GAMMA.INV(RAND(),'2. Kostnader'!$K$8,'2. Kostnader'!$L$8))*EXP(_xlfn.NORM.INV(RAND(),'1. Effektsamband'!$N$7,'1. Effektsamband'!$S$7)) -> 64759.82596 | J70: =(_xlfn.GAMMA.INV(RAND(),'2. Kostnader'!$L$23,'2. Kostnader'!$M$23))*EXP(_xlfn.NORM.INV(RAND(),'1. Effektsamband'!$N$7,'1. Effektsamband'!$S$7))*'2. Kostnader'!$E$15 -> 366454.712 | K70: 431214.538 | L70: =(_xlfn.GAMMA.INV(RAND(),'2. Kostnader'!$K$7,'2. Kostnader'!$L$7))*EXP(_xlfn.NORM.INV(RAND(),'1. Effektsamband'!$N$8,'1. Effektsamband'!$S$8)) -> 1569.990893 | M70: =(_xlfn.GAMMA.INV(RAND(),'2. Kostnader'!$L$21,'2. Kostnader'!$M$21))*EXP(_xlfn.NORM.INV(RAND(), '1. Effektsamband'!$N$8,'1. Effektsamband'!$S$8))*'2. Kostnader'!$E$15 -> 163850.6034 | N70: 165420.5943 | O70: =(_xlfn.GAMMA.INV(RAND(),'2. Kostnader'!$K$13,'2. Kostnader'!$L$13))*EXP(_xlfn.NORM.INV(RAND(),'1. Effektsamband'!$N$9,'1. Effektsamband'!$S$9)) -> 2708.653328 | P70: =(_xlfn.GAMMA.INV(RAND(),'2. Kostnader'!$L$28,'2. Kostnader'!$M$28))*EXP(_xlfn.NORM.INV(RAND(),'1. Effektsamband'!$N$9,'1. Effektsamband'!$S$9))*'2. Kostnader'!$E$15 -> 67178.66259 | Q70: 69887.31592 | R70: =(_xlfn.GAMMA.INV(RAND(),'2. Kostnader'!$K$14,'2. Kostnader'!$L$14))*EXP(_xlfn.NORM.INV(RAND(),'1. Effektsamband'!$N$9,'1. Effektsamband'!$S$9)) -> 31353.4338 | S70: =(_xlfn.GAMMA.INV(RAND(),'2. Kostnader'!$L$27,'2. Kostnader'!$M$27))*EXP(_xlfn.NORM.INV(RAND(),'1. Effektsamband'!$N$9,'1. Effektsamband'!$S$9))*'2. Kostnader'!$E$15 -> 1010659.034 | T70: 1042012.468 | U70: =(_xlfn.GAMMA.INV(RAND(),'2. Kostnader'!$K$11,'2. Kostnader'!$L$11))*EXP(_xlfn.NORM.INV(RAND(),'1. Effektsamband'!$N$13,'1. Effektsamband'!$S$13)) -> 59768.22019 | V70: 59768.22019 | W70: =(_xlfn.GAMMA.INV(RAND(),'2. Kostnader'!$K$10,'2. Kostnader'!$L$10)*EXP(_xlfn.NORM.INV(RAND(),'1. Effektsamband'!$N$10,'1. Effektsamband'!$S$10))) -> 30662.76558 | X70: =(_xlfn.GAMMA.INV(RAND(),'2. Kostnader'!$K$10,'2. Kostnader'!$L$10)*(EXP(_xlfn.NORM.INV(RAND(),'1. Effektsamband'!$N$11,'1. Effektsamband'!$S$11)))) -> 9794.627413 | Y70: =(_xlfn.GAMMA.INV(RAND(),'2. Kostnader'!$K$6,'2. Kostnader'!$L$6)*(EXP(_xlfn.NORM.INV(RAND(),'1. Effektsamband'!$N$4,'1. Effektsamband'!$S$4)))) -> 14742.85745
A71: 57 | B71: =EXP(_xlfn.NORM.INV(RAND(),'1. Effektsamband'!$N$3,'1. Effektsamband'!$S$3))*(_xlfn.GAMMA.INV(RAND(),'2. Kostnader'!$K$6,'2. Kostnader'!$L$6)*'1. Effektsamband'!$B$15) -> 2719569.581 | C71: =(_xlfn.GAMMA.INV(RAND(),'2. Kostnader'!$K$9,'2. Kostnader'!$L$9))*(EXP(_xlfn.NORM.INV(RAND(),'1. Effektsamband'!$N$5,'1. Effektsamband'!$S$5))) -> 1381.794512 | D71: =(_xlfn.GAMMA.INV(RAND(),'2. Kostnader'!$L$22,'2. Kostnader'!$M$22))*EXP(_xlfn.NORM.INV(RAND(),'1. Effektsamband'!$N$5,'1. Effektsamband'!$S$5))*'2. Kostnader'!$E$15 -> 2232.507474 | E71: 3614.301985 | F71: =(_xlfn.GAMMA.INV(RAND(),'2. Kostnader'!$K$12,'2. Kostnader'!$L$12))*EXP(_xlfn.NORM.INV(RAND(),'1. Effektsamband'!$N$6,'1. Effektsamband'!$S$6)) -> 860639.376 | G71: =(_xlfn.GAMMA.INV(RAND(),'2. Kostnader'!$L$26,'2. Kostnader'!$M$26))*EXP(_xlfn.NORM.INV(RAND(),'1. Effektsamband'!$N$6,'1. Effektsamband'!$S$6))*'2. Kostnader'!$E$15 -> 5379552.07 | H71: 6240191.446 | I71: =(_xlfn.GAMMA.INV(RAND(),'2. Kostnader'!$K$8,'2. Kostnader'!$L$8))*EXP(_xlfn.NORM.INV(RAND(),'1. Effektsamband'!$N$7,'1. Effektsamband'!$S$7)) -> 63215.46794 | J71: =(_xlfn.GAMMA.INV(RAND(),'2. Kostnader'!$L$23,'2. Kostnader'!$M$23))*EXP(_xlfn.NORM.INV(RAND(),'1. Effektsamband'!$N$7,'1. Effektsamband'!$S$7))*'2. Kostnader'!$E$15 -> 429381.3229 | K71: 492596.7909 | L71: =(_xlfn.GAMMA.INV(RAND(),'2. Kostnader'!$K$7,'2. Kostnader'!$L$7))*EXP(_xlfn.NORM.INV(RAND(),'1. Effektsamband'!$N$8,'1. Effektsamband'!$S$8)) -> 1385.837935 | M71: =(_xlfn.GAMMA.INV(RAND(),'2. Kostnader'!$L$21,'2. Kostnader'!$M$21))*EXP(_xlfn.NORM.INV(RAND(), '1. Effektsamband'!$N$8,'1. Effektsamband'!$S$8))*'2. Kostnader'!$E$15 -> 117372.4682 | N71: 118758.3062 | O71: =(_xlfn.GAMMA.INV(RAND(),'2. Kostnader'!$K$13,'2. Kostnader'!$L$13))*EXP(_xlfn.NORM.INV(RAND(),'1. Effektsamband'!$N$9,'1. Effektsamband'!$S$9)) -> 7259.45413 | P71: =(_xlfn.GAMMA.INV(RAND(),'2. Kostnader'!$L$28,'2. Kostnader'!$M$28))*EXP(_xlfn.NORM.INV(RAND(),'1. Effektsamband'!$N$9,'1. Effektsamband'!$S$9))*'2. Kostnader'!$E$15 -> 102168.712 | Q71: 109428.1661 | R71: =(_xlfn.GAMMA.INV(RAND(),'2. Kostnader'!$K$14,'2. Kostnader'!$L$14))*EXP(_xlfn.NORM.INV(RAND(),'1. Effektsamband'!$N$9,'1. Effektsamband'!$S$9)) -> 47277.6777 | S71: =(_xlfn.GAMMA.INV(RAND(),'2. Kostnader'!$L$27,'2. Kostnader'!$M$27))*EXP(_xlfn.NORM.INV(RAND(),'1. Effektsamband'!$N$9,'1. Effektsamband'!$S$9))*'2. Kostnader'!$E$15 -> 575318.3298 | T71: 622596.0075 | U71: =(_xlfn.GAMMA.INV(RAND(),'2. Kostnader'!$K$11,'2. Kostnader'!$L$11))*EXP(_xlfn.NORM.INV(RAND(),'1. Effektsamband'!$N$13,'1. Effektsamband'!$S$13)) -> 59628.03193 | V71: 59628.03193 | W71: =(_xlfn.GAMMA.INV(RAND(),'2. Kostnader'!$K$10,'2. Kostnader'!$L$10)*EXP(_xlfn.NORM.INV(RAND(),'1. Effektsamband'!$N$10,'1. Effektsamband'!$S$10))) -> 18320.99877 | X71: =(_xlfn.GAMMA.INV(RAND(),'2. Kostnader'!$K$10,'2. Kostnader'!$L$10)*(EXP(_xlfn.NORM.INV(RAND(),'1. Effektsamband'!$N$11,'1. Effektsamband'!$S$11)))) -> 14256.38282 | Y71: =(_xlfn.GAMMA.INV(RAND(),'2. Kostnader'!$K$6,'2. Kostnader'!$L$6)*(EXP(_xlfn.NORM.INV(RAND(),'1. Effektsamband'!$N$4,'1. Effektsamband'!$S$4)))) -> 6081.403693
A72: 58 | B72: =EXP(_xlfn.NORM.INV(RAND(),'1. Effektsamband'!$N$3,'1. Effektsamband'!$S$3))*(_xlfn.GAMMA.INV(RAND(),'2. Kostnader'!$K$6,'2. Kostnader'!$L$6)*'1. Effektsamband'!$B$15) -> 4142500.347 | C72: =(_xlfn.GAMMA.INV(RAND(),'2. Kostnader'!$K$9,'2. Kostnader'!$L$9))*(EXP(_xlfn.NORM.INV(RAND(),'1. Effektsamband'!$N$5,'1. Effektsamband'!$S$5))) -> 9611.767707 | D72: =(_xlfn.GAMMA.INV(RAND(),'2. Kostnader'!$L$22,'2. Kostnader'!$M$22))*EXP(_xlfn.NORM.INV(RAND(),'1. Effektsamband'!$N$5,'1. Effektsamband'!$S$5))*'2. Kostnader'!$E$15 -> 2101.698477 | E72: 11713.46618 | F72: =(_xlfn.GAMMA.INV(RAND(),'2. Kostnader'!$K$12,'2. Kostnader'!$L$12))*EXP(_xlfn.NORM.INV(RAND(),'1. Effektsamband'!$N$6,'1. Effektsamband'!$S$6)) -> 34613.68258 | G72: =(_xlfn.GAMMA.INV(RAND(),'2. Kostnader'!$L$26,'2. Kostnader'!$M$26))*EXP(_xlfn.NORM.INV(RAND(),'1. Effektsamband'!$N$6,'1. Effektsamband'!$S$6))*'2. Kostnader'!$E$15 -> 432483.1724 | H72: 467096.855 | I72: =(_xlfn.GAMMA.INV(RAND(),'2. Kostnader'!$K$8,'2. Kostnader'!$L$8))*EXP(_xlfn.NORM.INV(RAND(),'1. Effektsamband'!$N$7,'1. Effektsamband'!$S$7)) -> 45175.33753 | J72: =(_xlfn.GAMMA.INV(RAND(),'2. Kostnader'!$L$23,'2. Kostnader'!$M$23))*EXP(_xlfn.NORM.INV(RAND(),'1. Effektsamband'!$N$7,'1. Effektsamband'!$S$7))*'2. Kostnader'!$E$15 -> 252979.6873 | K72: 298155.0249 | L72: =(_xlfn.GAMMA.INV(RAND(),'2. Kostnader'!$K$7,'2. Kostnader'!$L$7))*EXP(_xlfn.NORM.INV(RAND(),'1. Effektsamband'!$N$8,'1. Effektsamband'!$S$8)) -> 1973.915599 | M72: =(_xlfn.GAMMA.INV(RAND(),'2. Kostnader'!$L$21,'2. Kostnader'!$M$21))*EXP(_xlfn.NORM.INV(RAND(), '1. Effektsamband'!$N$8,'1. Effektsamband'!$S$8))*'2. Kostnader'!$E$15 -> 131148.162 | N72: 133122.0776 | O72: =(_xlfn.GAMMA.INV(RAND(),'2. Kostnader'!$K$13,'2. Kostnader'!$L$13))*EXP(_xlfn.NORM.INV(RAND(),'1. Effektsamband'!$N$9,'1. Effektsamband'!$S$9)) -> 5286.615993 | P72: =(_xlfn.GAMMA.INV(RAND(),'2. Kostnader'!$L$28,'2. Kostnader'!$M$28))*EXP(_xlfn.NORM.INV(RAND(),'1. Effektsamband'!$N$9,'1. Effektsamband'!$S$9))*'2. Kostnader'!$E$15 -> 148670.2182 | Q72: 153956.8342 | R72: =(_xlfn.GAMMA.INV(RAND(),'2. Kostnader'!$K$14,'2. Kostnader'!$L$14))*EXP(_xlfn.NORM.INV(RAND(),'1. Effektsamband'!$N$9,'1. Effektsamband'!$S$9)) -> 69058.7061 | S72: =(_xlfn.GAMMA.INV(RAND(),'2. Kostnader'!$L$27,'2. Kostnader'!$M$27))*EXP(_xlfn.NORM.INV(RAND(),'1. Effektsamband'!$N$9,'1. Effektsamband'!$S$9))*'2. Kostnader'!$E$15 -> 727558.9644 | T72: 796617.6705 | U72: =(_xlfn.GAMMA.INV(RAND(),'2. Kostnader'!$K$11,'2. Kostnader'!$L$11))*EXP(_xlfn.NORM.INV(RAND(),'1. Effektsamband'!$N$13,'1. Effektsamband'!$S$13)) -> 47663.17571 | V72: 47663.17571 | W72: =(_xlfn.GAMMA.INV(RAND(),'2. Kostnader'!$K$10,'2. Kostnader'!$L$10)*EXP(_xlfn.NORM.INV(RAND(),'1. Effektsamband'!$N$10,'1. Effektsamband'!$S$10))) -> 22511.73036 | X72: =(_xlfn.GAMMA.INV(RAND(),'2. Kostnader'!$K$10,'2. Kostnader'!$L$10)*(EXP(_xlfn.NORM.INV(RAND(),'1. Effektsamband'!$N$11,'1. Effektsamband'!$S$11)))) -> 6974.867081 | Y72: =(_xlfn.GAMMA.INV(RAND(),'2. Kostnader'!$K$6,'2. Kostnader'!$L$6)*(EXP(_xlfn.NORM.INV(RAND(),'1. Effektsamband'!$N$4,'1. Effektsamband'!$S$4)))) -> 17671.44687
A73: 59 | B73: =EXP(_xlfn.NORM.INV(RAND(),'1. Effektsamband'!$N$3,'1. Effektsamband'!$S$3))*(_xlfn.GAMMA.INV(RAND(),'2. Kostnader'!$K$6,'2. Kostnader'!$L$6)*'1. Effektsamband'!$B$15) -> 3276214.811 | C73: =(_xlfn.GAMMA.INV(RAND(),'2. Kostnader'!$K$9,'2. Kostnader'!$L$9))*(EXP(_xlfn.NORM.INV(RAND(),'1. Effektsamband'!$N$5,'1. Effektsamband'!$S$5))) -> 19187.20517 | D73: =(_xlfn.GAMMA.INV(RAND(),'2. Kostnader'!$L$22,'2. Kostnader'!$M$22))*EXP(_xlfn.NORM.INV(RAND(),'1. Effektsamband'!$N$5,'1. Effektsamband'!$S$5))*'2. Kostnader'!$E$15 -> 12755.13876 | E73: 31942.34393 | F73: =(_xlfn.GAMMA.INV(RAND(),'2. Kostnader'!$K$12,'2. Kostnader'!$L$12))*EXP(_xlfn.NORM.INV(RAND(),'1. Effektsamband'!$N$6,'1. Effektsamband'!$S$6)) -> 1473383.445 | G73: =(_xlfn.GAMMA.INV(RAND(),'2. Kostnader'!$L$26,'2. Kostnader'!$M$26))*EXP(_xlfn.NORM.INV(RAND(),'1. Effektsamband'!$N$6,'1. Effektsamband'!$S$6))*'2. Kostnader'!$E$15 -> 396193.4897 | H73: 1869576.935 | I73: =(_xlfn.GAMMA.INV(RAND(),'2. Kostnader'!$K$8,'2. Kostnader'!$L$8))*EXP(_xlfn.NORM.INV(RAND(),'1. Effektsamband'!$N$7,'1. Effektsamband'!$S$7)) -> 33200.56124 | J73: =(_xlfn.GAMMA.INV(RAND(),'2. Kostnader'!$L$23,'2. Kostnader'!$M$23))*EXP(_xlfn.NORM.INV(RAND(),'1. Effektsamband'!$N$7,'1. Effektsamband'!$S$7))*'2. Kostnader'!$E$15 -> 293130.6353 | K73: 326331.1966 | L73: =(_xlfn.GAMMA.INV(RAND(),'2. Kostnader'!$K$7,'2. Kostnader'!$L$7))*EXP(_xlfn.NORM.INV(RAND(),'1. Effektsamband'!$N$8,'1. Effektsamband'!$S$8)) -> 853.7399918 | M73: =(_xlfn.GAMMA.INV(RAND(),'2. Kostnader'!$L$21,'2. Kostnader'!$M$21))*EXP(_xlfn.NORM.INV(RAND(), '1. Effektsamband'!$N$8,'1. Effektsamband'!$S$8))*'2. Kostnader'!$E$15 -> 115828.0463 | N73: 116681.7863 | O73: =(_xlfn.GAMMA.INV(RAND(),'2. Kostnader'!$K$13,'2. Kostnader'!$L$13))*EXP(_xlfn.NORM.INV(RAND(),'1. Effektsamband'!$N$9,'1. Effektsamband'!$S$9)) -> 3973.43372 | P73: =(_xlfn.GAMMA.INV(RAND(),'2. Kostnader'!$L$28,'2. Kostnader'!$M$28))*EXP(_xlfn.NORM.INV(RAND(),'1. Effektsamband'!$N$9,'1. Effektsamband'!$S$9))*'2. Kostnader'!$E$15 -> 177969.6959 | Q73: 181943.1297 | R73: =(_xlfn.GAMMA.INV(RAND(),'2. Kostnader'!$K$14,'2. Kostnader'!$L$14))*EXP(_xlfn.NORM.INV(RAND(),'1. Effektsamband'!$N$9,'1. Effektsamband'!$S$9)) -> 32250.44361 | S73: =(_xlfn.GAMMA.INV(RAND(),'2. Kostnader'!$L$27,'2. Kostnader'!$M$27))*EXP(_xlfn.NORM.INV(RAND(),'1. Effektsamband'!$N$9,'1. Effektsamband'!$S$9))*'2. Kostnader'!$E$15 -> 625626.2609 | T73: 657876.7046 | U73: =(_xlfn.GAMMA.INV(RAND(),'2. Kostnader'!$K$11,'2. Kostnader'!$L$11))*EXP(_xlfn.NORM.INV(RAND(),'1. Effektsamband'!$N$13,'1. Effektsamband'!$S$13)) -> 48111.56417 | V73: 48111.56417 | W73: =(_xlfn.GAMMA.INV(RAND(),'2. Kostnader'!$K$10,'2. Kostnader'!$L$10)*EXP(_xlfn.NORM.INV(RAND(),'1. Effektsamband'!$N$10,'1. Effektsamband'!$S$10))) -> 21973.87577 | X73: =(_xlfn.GAMMA.INV(RAND(),'2. Kostnader'!$K$10,'2. Kostnader'!$L$10)*(EXP(_xlfn.NORM.INV(RAND(),'1. Effektsamband'!$N$11,'1. Effektsamband'!$S$11)))) -> 5347.690734 | Y73: =(_xlfn.GAMMA.INV(RAND(),'2. Kostnader'!$K$6,'2. Kostnader'!$L$6)*(EXP(_xlfn.NORM.INV(RAND(),'1. Effektsamband'!$N$4,'1. Effektsamband'!$S$4)))) -> 26723.74499
A74: 60 | B74: =EXP(_xlfn.NORM.INV(RAND(),'1. Effektsamband'!$N$3,'1. Effektsamband'!$S$3))*(_xlfn.GAMMA.INV(RAND(),'2. Kostnader'!$K$6,'2. Kostnader'!$L$6)*'1. Effektsamband'!$B$15) -> 3257875.009 | C74: =(_xlfn.GAMMA.INV(RAND(),'2. Kostnader'!$K$9,'2. Kostnader'!$L$9))*(EXP(_xlfn.NORM.INV(RAND(),'1. Effektsamband'!$N$5,'1. Effektsamband'!$S$5))) -> 4281.067023 | D74: =(_xlfn.GAMMA.INV(RAND(),'2. Kostnader'!$L$22,'2. Kostnader'!$M$22))*EXP(_xlfn.NORM.INV(RAND(),'1. Effektsamband'!$N$5,'1. Effektsamband'!$S$5))*'2. Kostnader'!$E$15 -> 2450.222547 | E74: 6731.28957 | F74: =(_xlfn.GAMMA.INV(RAND(),'2. Kostnader'!$K$12,'2. Kostnader'!$L$12))*EXP(_xlfn.NORM.INV(RAND(),'1. Effektsamband'!$N$6,'1. Effektsamband'!$S$6)) -> 1283810.562 | G74: =(_xlfn.GAMMA.INV(RAND(),'2. Kostnader'!$L$26,'2. Kostnader'!$M$26))*EXP(_xlfn.NORM.INV(RAND(),'1. Effektsamband'!$N$6,'1. Effektsamband'!$S$6))*'2. Kostnader'!$E$15 -> 676311.9184 | H74: 1960122.481 | I74: =(_xlfn.GAMMA.INV(RAND(),'2. Kostnader'!$K$8,'2. Kostnader'!$L$8))*EXP(_xlfn.NORM.INV(RAND(),'1. Effektsamband'!$N$7,'1. Effektsamband'!$S$7)) -> 35353.1306 | J74: =(_xlfn.GAMMA.INV(RAND(),'2. Kostnader'!$L$23,'2. Kostnader'!$M$23))*EXP(_xlfn.NORM.INV(RAND(),'1. Effektsamband'!$N$7,'1. Effektsamband'!$S$7))*'2. Kostnader'!$E$15 -> 257133.4825 | K74: 292486.6131 | L74: =(_xlfn.GAMMA.INV(RAND(),'2. Kostnader'!$K$7,'2. Kostnader'!$L$7))*EXP(_xlfn.NORM.INV(RAND(),'1. Effektsamband'!$N$8,'1. Effektsamband'!$S$8)) -> 1393.430346 | M74: =(_xlfn.GAMMA.INV(RAND(),'2. Kostnader'!$L$21,'2. Kostnader'!$M$21))*EXP(_xlfn.NORM.INV(RAND(), '1. Effektsamband'!$N$8,'1. Effektsamband'!$S$8))*'2. Kostnader'!$E$15 -> 179360.7741 | N74: 180754.2044 | O74: =(_xlfn.GAMMA.INV(RAND(),'2. Kostnader'!$K$13,'2. Kostnader'!$L$13))*EXP(_xlfn.NORM.INV(RAND(),'1. Effektsamband'!$N$9,'1. Effektsamband'!$S$9)) -> 5555.919608 | P74: =(_xlfn.GAMMA.INV(RAND(),'2. Kostnader'!$L$28,'2. Kostnader'!$M$28))*EXP(_xlfn.NORM.INV(RAND(),'1. Effektsamband'!$N$9,'1. Effektsamband'!$S$9))*'2. Kostnader'!$E$15 -> 102552.3419 | Q74: 108108.2615 | R74: =(_xlfn.GAMMA.INV(RAND(),'2. Kostnader'!$K$14,'2. Kostnader'!$L$14))*EXP(_xlfn.NORM.INV(RAND(),'1. Effektsamband'!$N$9,'1. Effektsamband'!$S$9)) -> 26466.54065 | S74: =(_xlfn.GAMMA.INV(RAND(),'2. Kostnader'!$L$27,'2. Kostnader'!$M$27))*EXP(_xlfn.NORM.INV(RAND(),'1. Effektsamband'!$N$9,'1. Effektsamband'!$S$9))*'2. Kostnader'!$E$15 -> 685323.0272 | T74: 711789.5679 | U74: =(_xlfn.GAMMA.INV(RAND(),'2. Kostnader'!$K$11,'2. Kostnader'!$L$11))*EXP(_xlfn.NORM.INV(RAND(),'1. Effektsamband'!$N$13,'1. Effektsamband'!$S$13)) -> 59167.46996 | V74: 59167.46996 | W74: =(_xlfn.GAMMA.INV(RAND(),'2. Kostnader'!$K$10,'2. Kostnader'!$L$10)*EXP(_xlfn.NORM.INV(RAND(),'1. Effektsamband'!$N$10,'1. Effektsamband'!$S$10))) -> 26409.08501 | X74: =(_xlfn.GAMMA.INV(RAND(),'2. Kostnader'!$K$10,'2. Kostnader'!$L$10)*(EXP(_xlfn.NORM.INV(RAND(),'1. Effektsamband'!$N$11,'1. Effektsamband'!$S$11)))) -> 9168.51732 | Y74: =(_xlfn.GAMMA.INV(RAND(),'2. Kostnader'!$K$6,'2. Kostnader'!$L$6)*(EXP(_xlfn.NORM.INV(RAND(),'1. Effektsamband'!$N$4,'1. Effektsamband'!$S$4)))) -> 16447.66607
A75: 61 | B75: =EXP(_xlfn.NORM.INV(RAND(),'1. Effektsamband'!$N$3,'1. Effektsamband'!$S$3))*(_xlfn.GAMMA.INV(RAND(),'2. Kostnader'!$K$6,'2. Kostnader'!$L$6)*'1. Effektsamband'!$B$15) -> 3359692.412 | C75: =(_xlfn.GAMMA.INV(RAND(),'2. Kostnader'!$K$9,'2. Kostnader'!$L$9))*(EXP(_xlfn.NORM.INV(RAND(),'1. Effektsamband'!$N$5,'1. Effektsamband'!$S$5))) -> 1981.731882 | D75: =(_xlfn.GAMMA.INV(RAND(),'2. Kostnader'!$L$22,'2. Kostnader'!$M$22))*EXP(_xlfn.NORM.INV(RAND(),'1. Effektsamband'!$N$5,'1. Effektsamband'!$S$5))*'2. Kostnader'!$E$15 -> 3573.347869 | E75: 5555.079751 | F75: =(_xlfn.GAMMA.INV(RAND(),'2. Kostnader'!$K$12,'2. Kostnader'!$L$12))*EXP(_xlfn.NORM.INV(RAND(),'1. Effektsamband'!$N$6,'1. Effektsamband'!$S$6)) -> 293758.4546 | G75: =(_xlfn.GAMMA.INV(RAND(),'2. Kostnader'!$L$26,'2. Kostnader'!$M$26))*EXP(_xlfn.NORM.INV(RAND(),'1. Effektsamband'!$N$6,'1. Effektsamband'!$S$6))*'2. Kostnader'!$E$15 -> 151136.7316 | H75: 444895.1862 | I75: =(_xlfn.GAMMA.INV(RAND(),'2. Kostnader'!$K$8,'2. Kostnader'!$L$8))*EXP(_xlfn.NORM.INV(RAND(),'1. Effektsamband'!$N$7,'1. Effektsamband'!$S$7)) -> 72654.94543 | J75: =(_xlfn.GAMMA.INV(RAND(),'2. Kostnader'!$L$23,'2. Kostnader'!$M$23))*EXP(_xlfn.NORM.INV(RAND(),'1. Effektsamband'!$N$7,'1. Effektsamband'!$S$7))*'2. Kostnader'!$E$15 -> 392994.4818 | K75: 465649.4272 | L75: =(_xlfn.GAMMA.INV(RAND(),'2. Kostnader'!$K$7,'2. Kostnader'!$L$7))*EXP(_xlfn.NORM.INV(RAND(),'1. Effektsamband'!$N$8,'1. Effektsamband'!$S$8)) -> 965.0742355 | M75: =(_xlfn.GAMMA.INV(RAND(),'2. Kostnader'!$L$21,'2. Kostnader'!$M$21))*EXP(_xlfn.NORM.INV(RAND(), '1. Effektsamband'!$N$8,'1. Effektsamband'!$S$8))*'2. Kostnader'!$E$15 -> 108689.4752 | N75: 109654.5495 | O75: =(_xlfn.GAMMA.INV(RAND(),'2. Kostnader'!$K$13,'2. Kostnader'!$L$13))*EXP(_xlfn.NORM.INV(RAND(),'1. Effektsamband'!$N$9,'1. Effektsamband'!$S$9)) -> 1757.477214 | P75: =(_xlfn.GAMMA.INV(RAND(),'2. Kostnader'!$L$28,'2. Kostnader'!$M$28))*EXP(_xlfn.NORM.INV(RAND(),'1. Effektsamband'!$N$9,'1. Effektsamband'!$S$9))*'2. Kostnader'!$E$15 -> 159805.7768 | Q75: 161563.254 | R75: =(_xlfn.GAMMA.INV(RAND(),'2. Kostnader'!$K$14,'2. Kostnader'!$L$14))*EXP(_xlfn.NORM.INV(RAND(),'1. Effektsamband'!$N$9,'1. Effektsamband'!$S$9)) -> 35875.71909 | S75: =(_xlfn.GAMMA.INV(RAND(),'2. Kostnader'!$L$27,'2. Kostnader'!$M$27))*EXP(_xlfn.NORM.INV(RAND(),'1. Effektsamband'!$N$9,'1. Effektsamband'!$S$9))*'2. Kostnader'!$E$15 -> 350854.9759 | T75: 386730.695 | U75: =(_xlfn.GAMMA.INV(RAND(),'2. Kostnader'!$K$11,'2. Kostnader'!$L$11))*EXP(_xlfn.NORM.INV(RAND(),'1. Effektsamband'!$N$13,'1. Effektsamband'!$S$13)) -> 86071.35192 | V75: 86071.35192 | W75: =(_xlfn.GAMMA.INV(RAND(),'2. Kostnader'!$K$10,'2. Kostnader'!$L$10)*EXP(_xlfn.NORM.INV(RAND(),'1. Effektsamband'!$N$10,'1. Effektsamband'!$S$10))) -> 16052.59338 | X75: =(_xlfn.GAMMA.INV(RAND(),'2. Kostnader'!$K$10,'2. Kostnader'!$L$10)*(EXP(_xlfn.NORM.INV(RAND(),'1. Effektsamband'!$N$11,'1. Effektsamband'!$S$11)))) -> 5651.697016 | Y75: =(_xlfn.GAMMA.INV(RAND(),'2. Kostnader'!$K$6,'2. Kostnader'!$L$6)*(EXP(_xlfn.NORM.INV(RAND(),'1. Effektsamband'!$N$4,'1. Effektsamband'!$S$4)))) -> 18050.71663
A76: 62 | B76: =EXP(_xlfn.NORM.INV(RAND(),'1. Effektsamband'!$N$3,'1. Effektsamband'!$S$3))*(_xlfn.GAMMA.INV(RAND(),'2. Kostnader'!$K$6,'2. Kostnader'!$L$6)*'1. Effektsamband'!$B$15) -> 3536847.613 | C76: =(_xlfn.GAMMA.INV(RAND(),'2. Kostnader'!$K$9,'2. Kostnader'!$L$9))*(EXP(_xlfn.NORM.INV(RAND(),'1. Effektsamband'!$N$5,'1. Effektsamband'!$S$5))) -> 5028.59537 | D76: =(_xlfn.GAMMA.INV(RAND(),'2. Kostnader'!$L$22,'2. Kostnader'!$M$22))*EXP(_xlfn.NORM.INV(RAND(),'1. Effektsamband'!$N$5,'1. Effektsamband'!$S$5))*'2. Kostnader'!$E$15 -> 3779.614052 | E76: 8808.209422 | F76: =(_xlfn.GAMMA.INV(RAND(),'2. Kostnader'!$K$12,'2. Kostnader'!$L$12))*EXP(_xlfn.NORM.INV(RAND(),'1. Effektsamband'!$N$6,'1. Effektsamband'!$S$6)) -> 1123710.701 | G76: =(_xlfn.GAMMA.INV(RAND(),'2. Kostnader'!$L$26,'2. Kostnader'!$M$26))*EXP(_xlfn.NORM.INV(RAND(),'1. Effektsamband'!$N$6,'1. Effektsamband'!$S$6))*'2. Kostnader'!$E$15 -> 138114.9371 | H76: 1261825.638 | I76: =(_xlfn.GAMMA.INV(RAND(),'2. Kostnader'!$K$8,'2. Kostnader'!$L$8))*EXP(_xlfn.NORM.INV(RAND(),'1. Effektsamband'!$N$7,'1. Effektsamband'!$S$7)) -> 21207.48735 | J76: =(_xlfn.GAMMA.INV(RAND(),'2. Kostnader'!$L$23,'2. Kostnader'!$M$23))*EXP(_xlfn.NORM.INV(RAND(),'1. Effektsamband'!$N$7,'1. Effektsamband'!$S$7))*'2. Kostnader'!$E$15 -> 185038.8596 | K76: 206246.347 | L76: =(_xlfn.GAMMA.INV(RAND(),'2. Kostnader'!$K$7,'2. Kostnader'!$L$7))*EXP(_xlfn.NORM.INV(RAND(),'1. Effektsamband'!$N$8,'1. Effektsamband'!$S$8)) -> 1443.271481 | M76: =(_xlfn.GAMMA.INV(RAND(),'2. Kostnader'!$L$21,'2. Kostnader'!$M$21))*EXP(_xlfn.NORM.INV(RAND(), '1. Effektsamband'!$N$8,'1. Effektsamband'!$S$8))*'2. Kostnader'!$E$15 -> 169854.2714 | N76: 171297.5429 | O76: =(_xlfn.GAMMA.INV(RAND(),'2. Kostnader'!$K$13,'2. Kostnader'!$L$13))*EXP(_xlfn.NORM.INV(RAND(),'1. Effektsamband'!$N$9,'1. Effektsamband'!$S$9)) -> 4348.367173 | P76: =(_xlfn.GAMMA.INV(RAND(),'2. Kostnader'!$L$28,'2. Kostnader'!$M$28))*EXP(_xlfn.NORM.INV(RAND(),'1. Effektsamband'!$N$9,'1. Effektsamband'!$S$9))*'2. Kostnader'!$E$15 -> 102352.6004 | Q76: 106700.9676 | R76: =(_xlfn.GAMMA.INV(RAND(),'2. Kostnader'!$K$14,'2. Kostnader'!$L$14))*EXP(_xlfn.NORM.INV(RAND(),'1. Effektsamband'!$N$9,'1. Effektsamband'!$S$9)) -> 40412.87642 | S76: =(_xlfn.GAMMA.INV(RAND(),'2. Kostnader'!$L$27,'2. Kostnader'!$M$27))*EXP(_xlfn.NORM.INV(RAND(),'1. Effektsamband'!$N$9,'1. Effektsamband'!$S$9))*'2. Kostnader'!$E$15 -> 265786.728 | T76: 306199.6044 | U76: =(_xlfn.GAMMA.INV(RAND(),'2. Kostnader'!$K$11,'2. Kostnader'!$L$11))*EXP(_xlfn.NORM.INV(RAND(),'1. Effektsamband'!$N$13,'1. Effektsamband'!$S$13)) -> 67836.63624 | V76: 67836.63624 | W76: =(_xlfn.GAMMA.INV(RAND(),'2. Kostnader'!$K$10,'2. Kostnader'!$L$10)*EXP(_xlfn.NORM.INV(RAND(),'1. Effektsamband'!$N$10,'1. Effektsamband'!$S$10))) -> 23160.76338 | X76: =(_xlfn.GAMMA.INV(RAND(),'2. Kostnader'!$K$10,'2. Kostnader'!$L$10)*(EXP(_xlfn.NORM.INV(RAND(),'1. Effektsamband'!$N$11,'1. Effektsamband'!$S$11)))) -> 9544.211974 | Y76: =(_xlfn.GAMMA.INV(RAND(),'2. Kostnader'!$K$6,'2. Kostnader'!$L$6)*(EXP(_xlfn.NORM.INV(RAND(),'1. Effektsamband'!$N$4,'1. Effektsamband'!$S$4)))) -> 45609.04827
A77: 63 | B77: =EXP(_xlfn.NORM.INV(RAND(),'1. Effektsamband'!$N$3,'1. Effektsamband'!$S$3))*(_xlfn.GAMMA.INV(RAND(),'2. Kostnader'!$K$6,'2. Kostnader'!$L$6)*'1. Effektsamband'!$B$15) -> 4350942.107 | C77: =(_xlfn.GAMMA.INV(RAND(),'2. Kostnader'!$K$9,'2. Kostnader'!$L$9))*(EXP(_xlfn.NORM.INV(RAND(),'1. Effektsamband'!$N$5,'1. Effektsamband'!$S$5))) -> 11456.93483 | D77: =(_xlfn.GAMMA.INV(RAND(),'2. Kostnader'!$L$22,'2. Kostnader'!$M$22))*EXP(_xlfn.NORM.INV(RAND(),'1. Effektsamband'!$N$5,'1. Effektsamband'!$S$5))*'2. Kostnader'!$E$15 -> 4683.786345 | E77: 16140.72117 | F77: =(_xlfn.GAMMA.INV(RAND(),'2. Kostnader'!$K$12,'2. Kostnader'!$L$12))*EXP(_xlfn.NORM.INV(RAND(),'1. Effektsamband'!$N$6,'1. Effektsamband'!$S$6)) -> 664805.416 | G77: =(_xlfn.GAMMA.INV(RAND(),'2. Kostnader'!$L$26,'2. Kostnader'!$M$26))*EXP(_xlfn.NORM.INV(RAND(),'1. Effektsamband'!$N$6,'1. Effektsamband'!$S$6))*'2. Kostnader'!$E$15 -> 988558.2406 | H77: 1653363.657 | I77: =(_xlfn.GAMMA.INV(RAND(),'2. Kostnader'!$K$8,'2. Kostnader'!$L$8))*EXP(_xlfn.NORM.INV(RAND(),'1. Effektsamband'!$N$7,'1. Effektsamband'!$S$7)) -> 37199.34102 | J77: =(_xlfn.GAMMA.INV(RAND(),'2. Kostnader'!$L$23,'2. Kostnader'!$M$23))*EXP(_xlfn.NORM.INV(RAND(),'1. Effektsamband'!$N$7,'1. Effektsamband'!$S$7))*'2. Kostnader'!$E$15 -> 175340.3372 | K77: 212539.6782 | L77: =(_xlfn.GAMMA.INV(RAND(),'2. Kostnader'!$K$7,'2. Kostnader'!$L$7))*EXP(_xlfn.NORM.INV(RAND(),'1. Effektsamband'!$N$8,'1. Effektsamband'!$S$8)) -> 1219.024961 | M77: =(_xlfn.GAMMA.INV(RAND(),'2. Kostnader'!$L$21,'2. Kostnader'!$M$21))*EXP(_xlfn.NORM.INV(RAND(), '1. Effektsamband'!$N$8,'1. Effektsamband'!$S$8))*'2. Kostnader'!$E$15 -> 119051.1036 | N77: 120270.1286 | O77: =(_xlfn.GAMMA.INV(RAND(),'2. Kostnader'!$K$13,'2. Kostnader'!$L$13))*EXP(_xlfn.NORM.INV(RAND(),'1. Effektsamband'!$N$9,'1. Effektsamband'!$S$9)) -> 3859.628374 | P77: =(_xlfn.GAMMA.INV(RAND(),'2. Kostnader'!$L$28,'2. Kostnader'!$M$28))*EXP(_xlfn.NORM.INV(RAND(),'1. Effektsamband'!$N$9,'1. Effektsamband'!$S$9))*'2. Kostnader'!$E$15 -> 126067.4997 | Q77: 129927.1281 | R77: =(_xlfn.GAMMA.INV(RAND(),'2. Kostnader'!$K$14,'2. Kostnader'!$L$14))*EXP(_xlfn.NORM.INV(RAND(),'1. Effektsamband'!$N$9,'1. Effektsamband'!$S$9)) -> 28844.7983 | S77: =(_xlfn.GAMMA.INV(RAND(),'2. Kostnader'!$L$27,'2. Kostnader'!$M$27))*EXP(_xlfn.NORM.INV(RAND(),'1. Effektsamband'!$N$9,'1. Effektsamband'!$S$9))*'2. Kostnader'!$E$15 -> 735736.9399 | T77: 764581.7382 | U77: =(_xlfn.GAMMA.INV(RAND(),'2. Kostnader'!$K$11,'2. Kostnader'!$L$11))*EXP(_xlfn.NORM.INV(RAND(),'1. Effektsamband'!$N$13,'1. Effektsamband'!$S$13)) -> 26761.91713 | V77: 26761.91713 | W77: =(_xlfn.GAMMA.INV(RAND(),'2. Kostnader'!$K$10,'2. Kostnader'!$L$10)*EXP(_xlfn.NORM.INV(RAND(),'1. Effektsamband'!$N$10,'1. Effektsamband'!$S$10))) -> 21379.1002 | X77: =(_xlfn.GAMMA.INV(RAND(),'2. Kostnader'!$K$10,'2. Kostnader'!$L$10)*(EXP(_xlfn.NORM.INV(RAND(),'1. Effektsamband'!$N$11,'1. Effektsamband'!$S$11)))) -> 9506.472772 | Y77: =(_xlfn.GAMMA.INV(RAND(),'2. Kostnader'!$K$6,'2. Kostnader'!$L$6)*(EXP(_xlfn.NORM.INV(RAND(),'1. Effektsamband'!$N$4,'1. Effektsamband'!$S$4)))) -> 30599.17856
A78: 64 | B78: =EXP(_xlfn.NORM.INV(RAND(),'1. Effektsamband'!$N$3,'1. Effektsamband'!$S$3))*(_xlfn.GAMMA.INV(RAND(),'2. Kostnader'!$K$6,'2. Kostnader'!$L$6)*'1. Effektsamband'!$B$15) -> 3274947.118 | C78: =(_xlfn.GAMMA.INV(RAND(),'2. Kostnader'!$K$9,'2. Kostnader'!$L$9))*(EXP(_xlfn.NORM.INV(RAND(),'1. Effektsamband'!$N$5,'1. Effektsamband'!$S$5))) -> 2765.878836 | D78: =(_xlfn.GAMMA.INV(RAND(),'2. Kostnader'!$L$22,'2. Kostnader'!$M$22))*EXP(_xlfn.NORM.INV(RAND(),'1. Effektsamband'!$N$5,'1. Effektsamband'!$S$5))*'2. Kostnader'!$E$15 -> 4446.838749 | E78: 7212.717585 | F78: =(_xlfn.GAMMA.INV(RAND(),'2. Kostnader'!$K$12,'2. Kostnader'!$L$12))*EXP(_xlfn.NORM.INV(RAND(),'1. Effektsamband'!$N$6,'1. Effektsamband'!$S$6)) -> 93071.05132 | G78: =(_xlfn.GAMMA.INV(RAND(),'2. Kostnader'!$L$26,'2. Kostnader'!$M$26))*EXP(_xlfn.NORM.INV(RAND(),'1. Effektsamband'!$N$6,'1. Effektsamband'!$S$6))*'2. Kostnader'!$E$15 -> 728815.3837 | H78: 821886.435 | I78: =(_xlfn.GAMMA.INV(RAND(),'2. Kostnader'!$K$8,'2. Kostnader'!$L$8))*EXP(_xlfn.NORM.INV(RAND(),'1. Effektsamband'!$N$7,'1. Effektsamband'!$S$7)) -> 27966.39233 | J78: =(_xlfn.GAMMA.INV(RAND(),'2. Kostnader'!$L$23,'2. Kostnader'!$M$23))*EXP(_xlfn.NORM.INV(RAND(),'1. Effektsamband'!$N$7,'1. Effektsamband'!$S$7))*'2. Kostnader'!$E$15 -> 255981.0601 | K78: 283947.4524 | L78: =(_xlfn.GAMMA.INV(RAND(),'2. Kostnader'!$K$7,'2. Kostnader'!$L$7))*EXP(_xlfn.NORM.INV(RAND(),'1. Effektsamband'!$N$8,'1. Effektsamband'!$S$8)) -> 1003.739569 | M78: =(_xlfn.GAMMA.INV(RAND(),'2. Kostnader'!$L$21,'2. Kostnader'!$M$21))*EXP(_xlfn.NORM.INV(RAND(), '1. Effektsamband'!$N$8,'1. Effektsamband'!$S$8))*'2. Kostnader'!$E$15 -> 76752.46721 | N78: 77756.20678 | O78: =(_xlfn.GAMMA.INV(RAND(),'2. Kostnader'!$K$13,'2. Kostnader'!$L$13))*EXP(_xlfn.NORM.INV(RAND(),'1. Effektsamband'!$N$9,'1. Effektsamband'!$S$9)) -> 4672.333808 | P78: =(_xlfn.GAMMA.INV(RAND(),'2. Kostnader'!$L$28,'2. Kostnader'!$M$28))*EXP(_xlfn.NORM.INV(RAND(),'1. Effektsamband'!$N$9,'1. Effektsamband'!$S$9))*'2. Kostnader'!$E$15 -> 89300.25388 | Q78: 93972.58768 | R78: =(_xlfn.GAMMA.INV(RAND(),'2. Kostnader'!$K$14,'2. Kostnader'!$L$14))*EXP(_xlfn.NORM.INV(RAND(),'1. Effektsamband'!$N$9,'1. Effektsamband'!$S$9)) -> 60701.63531 | S78: =(_xlfn.GAMMA.INV(RAND(),'2. Kostnader'!$L$27,'2. Kostnader'!$M$27))*EXP(_xlfn.NORM.INV(RAND(),'1. Effektsamband'!$N$9,'1. Effektsamband'!$S$9))*'2. Kostnader'!$E$15 -> 288659.2177 | T78: 349360.853 | U78: =(_xlfn.GAMMA.INV(RAND(),'2. Kostnader'!$K$11,'2. Kostnader'!$L$11))*EXP(_xlfn.NORM.INV(RAND(),'1. Effektsamband'!$N$13,'1. Effektsamband'!$S$13)) -> 52337.81143 | V78: 52337.81143 | W78: =(_xlfn.GAMMA.INV(RAND(),'2. Kostnader'!$K$10,'2. Kostnader'!$L$10)*EXP(_xlfn.NORM.INV(RAND(),'1. Effektsamband'!$N$10,'1. Effektsamband'!$S$10))) -> 10600.08804 | X78: =(_xlfn.GAMMA.INV(RAND(),'2. Kostnader'!$K$10,'2. Kostnader'!$L$10)*(EXP(_xlfn.NORM.INV(RAND(),'1. Effektsamband'!$N$11,'1. Effektsamband'!$S$11)))) -> 8431.701195 | Y78: =(_xlfn.GAMMA.INV(RAND(),'2. Kostnader'!$K$6,'2. Kostnader'!$L$6)*(EXP(_xlfn.NORM.INV(RAND(),'1. Effektsamband'!$N$4,'1. Effektsamband'!$S$4)))) -> 23983.51093
A79: 65 | B79: =EXP(_xlfn.NORM.INV(RAND(),'1. Effektsamband'!$N$3,'1. Effektsamband'!$S$3))*(_xlfn.GAMMA.INV(RAND(),'2. Kostnader'!$K$6,'2. Kostnader'!$L$6)*'1. Effektsamband'!$B$15) -> 3068770.024 | C79: =(_xlfn.GAMMA.INV(RAND(),'2. Kostnader'!$K$9,'2. Kostnader'!$L$9))*(EXP(_xlfn.NORM.INV(RAND(),'1. Effektsamband'!$N$5,'1. Effektsamband'!$S$5))) -> 3612.640458 | D79: =(_xlfn.GAMMA.INV(RAND(),'2. Kostnader'!$L$22,'2. Kostnader'!$M$22))*EXP(_xlfn.NORM.INV(RAND(),'1. Effektsamband'!$N$5,'1. Effektsamband'!$S$5))*'2. Kostnader'!$E$15 -> 4451.497243 | E79: 8064.137701 | F79: =(_xlfn.GAMMA.INV(RAND(),'2. Kostnader'!$K$12,'2. Kostnader'!$L$12))*EXP(_xlfn.NORM.INV(RAND(),'1. Effektsamband'!$N$6,'1. Effektsamband'!$S$6)) -> 793602.8128 | G79: =(_xlfn.GAMMA.INV(RAND(),'2. Kostnader'!$L$26,'2. Kostnader'!$M$26))*EXP(_xlfn.NORM.INV(RAND(),'1. Effektsamband'!$N$6,'1. Effektsamband'!$S$6))*'2. Kostnader'!$E$15 -> 223544.3579 | H79: 1017147.171 | I79: =(_xlfn.GAMMA.INV(RAND(),'2. Kostnader'!$K$8,'2. Kostnader'!$L$8))*EXP(_xlfn.NORM.INV(RAND(),'1. Effektsamband'!$N$7,'1. Effektsamband'!$S$7)) -> 31657.13643 | J79: =(_xlfn.GAMMA.INV(RAND(),'2. Kostnader'!$L$23,'2. Kostnader'!$M$23))*EXP(_xlfn.NORM.INV(RAND(),'1. Effektsamband'!$N$7,'1. Effektsamband'!$S$7))*'2. Kostnader'!$E$15 -> 178153.0491 | K79: 209810.1855 | L79: =(_xlfn.GAMMA.INV(RAND(),'2. Kostnader'!$K$7,'2. Kostnader'!$L$7))*EXP(_xlfn.NORM.INV(RAND(),'1. Effektsamband'!$N$8,'1. Effektsamband'!$S$8)) -> 840.559605 | M79: =(_xlfn.GAMMA.INV(RAND(),'2. Kostnader'!$L$21,'2. Kostnader'!$M$21))*EXP(_xlfn.NORM.INV(RAND(), '1. Effektsamband'!$N$8,'1. Effektsamband'!$S$8))*'2. Kostnader'!$E$15 -> 154391.7335 | N79: 155232.2932 | O79: =(_xlfn.GAMMA.INV(RAND(),'2. Kostnader'!$K$13,'2. Kostnader'!$L$13))*EXP(_xlfn.NORM.INV(RAND(),'1. Effektsamband'!$N$9,'1. Effektsamband'!$S$9)) -> 2349.017463 | P79: =(_xlfn.GAMMA.INV(RAND(),'2. Kostnader'!$L$28,'2. Kostnader'!$M$28))*EXP(_xlfn.NORM.INV(RAND(),'1. Effektsamband'!$N$9,'1. Effektsamband'!$S$9))*'2. Kostnader'!$E$15 -> 117493.9444 | Q79: 119842.9619 | R79: =(_xlfn.GAMMA.INV(RAND(),'2. Kostnader'!$K$14,'2. Kostnader'!$L$14))*EXP(_xlfn.NORM.INV(RAND(),'1. Effektsamband'!$N$9,'1. Effektsamband'!$S$9)) -> 28139.24624 | S79: =(_xlfn.GAMMA.INV(RAND(),'2. Kostnader'!$L$27,'2. Kostnader'!$M$27))*EXP(_xlfn.NORM.INV(RAND(),'1. Effektsamband'!$N$9,'1. Effektsamband'!$S$9))*'2. Kostnader'!$E$15 -> 599326.0114 | T79: 627465.2576 | U79: =(_xlfn.GAMMA.INV(RAND(),'2. Kostnader'!$K$11,'2. Kostnader'!$L$11))*EXP(_xlfn.NORM.INV(RAND(),'1. Effektsamband'!$N$13,'1. Effektsamband'!$S$13)) -> 63035.69224 | V79: =SUM(U79:U79) -> 63035.69224 | W79: =(_xlfn.GAMMA.INV(RAND(),'2. Kostnader'!$K$10,'2. Kostnader'!$L$10)*EXP(_xlfn.NORM.INV(RAND(),'1. Effektsamband'!$N$10,'1. Effektsamband'!$S$10))) -> 35100.4773 | X79: =(_xlfn.GAMMA.INV(RAND(),'2. Kostnader'!$K$10,'2. Kostnader'!$L$10)*(EXP(_xlfn.NORM.INV(RAND(),'1. Effektsamband'!$N$11,'1. Effektsamband'!$S$11)))) -> 5011.938365 | Y79: =(_xlfn.GAMMA.INV(RAND(),'2. Kostnader'!$K$6,'2. Kostnader'!$L$6)*(EXP(_xlfn.NORM.INV(RAND(),'1. Effektsamband'!$N$4,'1. Effektsamband'!$S$4)))) -> 93067.66009
A80: 66 | B80: =EXP(_xlfn.NORM.INV(RAND(),'1. Effektsamband'!$N$3,'1. Effektsamband'!$S$3))*(_xlfn.GAMMA.INV(RAND(),'2. Kostnader'!$K$6,'2. Kostnader'!$L$6)*'1. Effektsamband'!$B$15) -> 4086340.887 | C80: =(_xlfn.GAMMA.INV(RAND(),'2. Kostnader'!$K$9,'2. Kostnader'!$L$9))*(EXP(_xlfn.NORM.INV(RAND(),'1. Effektsamband'!$N$5,'1. Effektsamband'!$S$5))) -> 16880.32408 | D80: =(_xlfn.GAMMA.INV(RAND(),'2. Kostnader'!$L$22,'2. Kostnader'!$M$22))*EXP(_xlfn.NORM.INV(RAND(),'1. Effektsamband'!$N$5,'1. Effektsamband'!$S$5))*'2. Kostnader'!$E$15 -> 2213.667235 | E80: =SUM(C80:D80) -> 19093.99131 | F80: =(_xlfn.GAMMA.INV(RAND(),'2. Kostnader'!$K$12,'2. Kostnader'!$L$12))*EXP(_xlfn.NORM.INV(RAND(),'1. Effektsamband'!$N$6,'1. Effektsamband'!$S$6)) -> 488251.2741 | G80: =(_xlfn.GAMMA.INV(RAND(),'2. Kostnader'!$L$26,'2. Kostnader'!$M$26))*EXP(_xlfn.NORM.INV(RAND(),'1. Effektsamband'!$N$6,'1. Effektsamband'!$S$6))*'2. Kostnader'!$E$15 -> 422567.79 | H80: =SUM(F80:G80) -> 910819.0641 | I80: =(_xlfn.GAMMA.INV(RAND(),'2. Kostnader'!$K$8,'2. Kostnader'!$L$8))*EXP(_xlfn.NORM.INV(RAND(),'1. Effektsamband'!$N$7,'1. Effektsamband'!$S$7)) -> 29701.56221 | J80: =(_xlfn.GAMMA.INV(RAND(),'2. Kostnader'!$L$23,'2. Kostnader'!$M$23))*EXP(_xlfn.NORM.INV(RAND(),'1. Effektsamband'!$N$7,'1. Effektsamband'!$S$7))*'2. Kostnader'!$E$15 -> 452145.3165 | K80: =SUM(I80:J80) -> 481846.8787 | L80: =(_xlfn.GAMMA.INV(RAND(),'2. Kostnader'!$K$7,'2. Kostnader'!$L$7))*EXP(_xlfn.NORM.INV(RAND(),'1. Effektsamband'!$N$8,'1. Effektsamband'!$S$8)) -> 2207.902454 | M80: =(_xlfn.GAMMA.INV(RAND(),'2. Kostnader'!$L$21,'2. Kostnader'!$M$21))*EXP(_xlfn.NORM.INV(RAND(), '1. Effektsamband'!$N$8,'1. Effektsamband'!$S$8))*'2. Kostnader'!$E$15 -> 105103.7882 | N80: =SUM(L80:M80) -> 107311.6906 | O80: =(_xlfn.GAMMA.INV(RAND(),'2. Kostnader'!$K$13,'2. Kostnader'!$L$13))*EXP(_xlfn.NORM.INV(RAND(),'1. Effektsamband'!$N$9,'1. Effektsamband'!$S$9)) -> 6403.813468 | P80: =(_xlfn.GAMMA.INV(RAND(),'2. Kostnader'!$L$28,'2. Kostnader'!$M$28))*EXP(_xlfn.NORM.INV(RAND(),'1. Effektsamband'!$N$9,'1. Effektsamband'!$S$9))*'2. Kostnader'!$E$15 -> 156733.1237 | Q80: =SUM(O80:P80) -> 163136.9372 | R80: =(_xlfn.GAMMA.INV(RAND(),'2. Kostnader'!$K$14,'2. Kostnader'!$L$14))*EXP(_xlfn.NORM.INV(RAND(),'1. Effektsamband'!$N$9,'1. Effektsamband'!$S$9)) -> 34246.92064 | S80: =(_xlfn.GAMMA.INV(RAND(),'2. Kostnader'!$L$27,'2. Kostnader'!$M$27))*EXP(_xlfn.NORM.INV(RAND(),'1. Effektsamband'!$N$9,'1. Effektsamband'!$S$9))*'2. Kostnader'!$E$15 -> 579567.0087 | T80: =SUM(R80:S80) -> 613813.9293 | U80: =(_xlfn.GAMMA.INV(RAND(),'2. Kostnader'!$K$11,'2. Kostnader'!$L$11))*EXP(_xlfn.NORM.INV(RAND(),'1. Effektsamband'!$N$13,'1. Effektsamband'!$S$13)) -> 57961.35146 | V80: 57961.35146 | W80: =(_xlfn.GAMMA.INV(RAND(),'2. Kostnader'!$K$10,'2. Kostnader'!$L$10)*EXP(_xlfn.NORM.INV(RAND(),'1. Effektsamband'!$N$10,'1. Effektsamband'!$S$10))) -> 12468.69084 | X80: =(_xlfn.GAMMA.INV(RAND(),'2. Kostnader'!$K$10,'2. Kostnader'!$L$10)*(EXP(_xlfn.NORM.INV(RAND(),'1. Effektsamband'!$N$11,'1. Effektsamband'!$S$11)))) -> 7112.374263 | Y80: =(_xlfn.GAMMA.INV(RAND(),'2. Kostnader'!$K$6,'2. Kostnader'!$L$6)*(EXP(_xlfn.NORM.INV(RAND(),'1. Effektsamband'!$N$4,'1. Effektsamband'!$S$4)))) -> 11983.23816
A81: 67 | B81: =EXP(_xlfn.NORM.INV(RAND(),'1. Effektsamband'!$N$3,'1. Effektsamband'!$S$3))*(_xlfn.GAMMA.INV(RAND(),'2. Kostnader'!$K$6,'2. Kostnader'!$L$6)*'1. Effektsamband'!$B$15) -> 4052287.889 | C81: =(_xlfn.GAMMA.INV(RAND(),'2. Kostnader'!$K$9,'2. Kostnader'!$L$9))*(EXP(_xlfn.NORM.INV(RAND(),'1. Effektsamband'!$N$5,'1. Effektsamband'!$S$5))) -> 1178.619099 | D81: =(_xlfn.GAMMA.INV(RAND(),'2. Kostnader'!$L$22,'2. Kostnader'!$M$22))*EXP(_xlfn.NORM.INV(RAND(),'1. Effektsamband'!$N$5,'1. Effektsamband'!$S$5))*'2. Kostnader'!$E$15 -> 10671.21042 | E81: 11849.82952 | F81: =(_xlfn.GAMMA.INV(RAND(),'2. Kostnader'!$K$12,'2. Kostnader'!$L$12))*EXP(_xlfn.NORM.INV(RAND(),'1. Effektsamband'!$N$6,'1. Effektsamband'!$S$6)) -> 185885.5468 | G81: =(_xlfn.GAMMA.INV(RAND(),'2. Kostnader'!$L$26,'2. Kostnader'!$M$26))*EXP(_xlfn.NORM.INV(RAND(),'1. Effektsamband'!$N$6,'1. Effektsamband'!$S$6))*'2. Kostnader'!$E$15 -> 291102.0526 | H81: 476987.5994 | I81: =(_xlfn.GAMMA.INV(RAND(),'2. Kostnader'!$K$8,'2. Kostnader'!$L$8))*EXP(_xlfn.NORM.INV(RAND(),'1. Effektsamband'!$N$7,'1. Effektsamband'!$S$7)) -> 27514.44933 | J81: =(_xlfn.GAMMA.INV(RAND(),'2. Kostnader'!$L$23,'2. Kostnader'!$M$23))*EXP(_xlfn.NORM.INV(RAND(),'1. Effektsamband'!$N$7,'1. Effektsamband'!$S$7))*'2. Kostnader'!$E$15 -> 410981.7487 | K81: 438496.198 | L81: =(_xlfn.GAMMA.INV(RAND(),'2. Kostnader'!$K$7,'2. Kostnader'!$L$7))*EXP(_xlfn.NORM.INV(RAND(),'1. Effektsamband'!$N$8,'1. Effektsamband'!$S$8)) -> 880.9527262 | M81: =(_xlfn.GAMMA.INV(RAND(),'2. Kostnader'!$L$21,'2. Kostnader'!$M$21))*EXP(_xlfn.NORM.INV(RAND(), '1. Effektsamband'!$N$8,'1. Effektsamband'!$S$8))*'2. Kostnader'!$E$15 -> 187689.7934 | N81: 188570.7461 | O81: =(_xlfn.GAMMA.INV(RAND(),'2. Kostnader'!$K$13,'2. Kostnader'!$L$13))*EXP(_xlfn.NORM.INV(RAND(),'1. Effektsamband'!$N$9,'1. Effektsamband'!$S$9)) -> 7475.20469 | P81: =(_xlfn.GAMMA.INV(RAND(),'2. Kostnader'!$L$28,'2. Kostnader'!$M$28))*EXP(_xlfn.NORM.INV(RAND(),'1. Effektsamband'!$N$9,'1. Effektsamband'!$S$9))*'2. Kostnader'!$E$15 -> 162312.1049 | Q81: 169787.3096 | R81: =(_xlfn.GAMMA.INV(RAND(),'2. Kostnader'!$K$14,'2. Kostnader'!$L$14))*EXP(_xlfn.NORM.INV(RAND(),'1. Effektsamband'!$N$9,'1. Effektsamband'!$S$9)) -> 41071.68159 | S81: =(_xlfn.GAMMA.INV(RAND(),'2. Kostnader'!$L$27,'2. Kostnader'!$M$27))*EXP(_xlfn.NORM.INV(RAND(),'1. Effektsamband'!$N$9,'1. Effektsamband'!$S$9))*'2. Kostnader'!$E$15 -> 1098163.56 | T81: 1139235.242 | U81: =(_xlfn.GAMMA.INV(RAND(),'2. Kostnader'!$K$11,'2. Kostnader'!$L$11))*EXP(_xlfn.NORM.INV(RAND(),'1. Effektsamband'!$N$13,'1. Effektsamband'!$S$13)) -> 68846.7997 | V81: 68846.7997 | W81: =(_xlfn.GAMMA.INV(RAND(),'2. Kostnader'!$K$10,'2. Kostnader'!$L$10)*EXP(_xlfn.NORM.INV(RAND(),'1. Effektsamband'!$N$10,'1. Effektsamband'!$S$10))) -> 15604.64833 | X81: =(_xlfn.GAMMA.INV(RAND(),'2. Kostnader'!$K$10,'2. Kostnader'!$L$10)*(EXP(_xlfn.NORM.INV(RAND(),'1. Effektsamband'!$N$11,'1. Effektsamband'!$S$11)))) -> 6150.728914 | Y81: =(_xlfn.GAMMA.INV(RAND(),'2. Kostnader'!$K$6,'2. Kostnader'!$L$6)*(EXP(_xlfn.NORM.INV(RAND(),'1. Effektsamband'!$N$4,'1. Effektsamband'!$S$4)))) -> 51031.75144
A82: 68 | B82: =EXP(_xlfn.NORM.INV(RAND(),'1. Effektsamband'!$N$3,'1. Effektsamband'!$S$3))*(_xlfn.GAMMA.INV(RAND(),'2. Kostnader'!$K$6,'2. Kostnader'!$L$6)*'1. Effektsamband'!$B$15) -> 3238261.817 | C82: =(_xlfn.GAMMA.INV(RAND(),'2. Kostnader'!$K$9,'2. Kostnader'!$L$9))*(EXP(_xlfn.NORM.INV(RAND(),'1. Effektsamband'!$N$5,'1. Effektsamband'!$S$5))) -> 6377.976338 | D82: =(_xlfn.GAMMA.INV(RAND(),'2. Kostnader'!$L$22,'2. Kostnader'!$M$22))*EXP(_xlfn.NORM.INV(RAND(),'1. Effektsamband'!$N$5,'1. Effektsamband'!$S$5))*'2. Kostnader'!$E$15 -> 7566.475736 | E82: 13944.45207 | F82: =(_xlfn.GAMMA.INV(RAND(),'2. Kostnader'!$K$12,'2. Kostnader'!$L$12))*EXP(_xlfn.NORM.INV(RAND(),'1. Effektsamband'!$N$6,'1. Effektsamband'!$S$6)) -> 53069.58565 | G82: =(_xlfn.GAMMA.INV(RAND(),'2. Kostnader'!$L$26,'2. Kostnader'!$M$26))*EXP(_xlfn.NORM.INV(RAND(),'1. Effektsamband'!$N$6,'1. Effektsamband'!$S$6))*'2. Kostnader'!$E$15 -> 376788.5395 | H82: 429858.1251 | I82: =(_xlfn.GAMMA.INV(RAND(),'2. Kostnader'!$K$8,'2. Kostnader'!$L$8))*EXP(_xlfn.NORM.INV(RAND(),'1. Effektsamband'!$N$7,'1. Effektsamband'!$S$7)) -> 19757.35171 | J82: =(_xlfn.GAMMA.INV(RAND(),'2. Kostnader'!$L$23,'2. Kostnader'!$M$23))*EXP(_xlfn.NORM.INV(RAND(),'1. Effektsamband'!$N$7,'1. Effektsamband'!$S$7))*'2. Kostnader'!$E$15 -> 281997.6922 | K82: 301755.0439 | L82: =(_xlfn.GAMMA.INV(RAND(),'2. Kostnader'!$K$7,'2. Kostnader'!$L$7))*EXP(_xlfn.NORM.INV(RAND(),'1. Effektsamband'!$N$8,'1. Effektsamband'!$S$8)) -> 1112.672431 | M82: =(_xlfn.GAMMA.INV(RAND(),'2. Kostnader'!$L$21,'2. Kostnader'!$M$21))*EXP(_xlfn.NORM.INV(RAND(), '1. Effektsamband'!$N$8,'1. Effektsamband'!$S$8))*'2. Kostnader'!$E$15 -> 126225.7987 | N82: 127338.4712 | O82: =(_xlfn.GAMMA.INV(RAND(),'2. Kostnader'!$K$13,'2. Kostnader'!$L$13))*EXP(_xlfn.NORM.INV(RAND(),'1. Effektsamband'!$N$9,'1. Effektsamband'!$S$9)) -> 10234.10034 | P82: =(_xlfn.GAMMA.INV(RAND(),'2. Kostnader'!$L$28,'2. Kostnader'!$M$28))*EXP(_xlfn.NORM.INV(RAND(),'1. Effektsamband'!$N$9,'1. Effektsamband'!$S$9))*'2. Kostnader'!$E$15 -> 54685.92617 | Q82: 64920.02651 | R82: =(_xlfn.GAMMA.INV(RAND(),'2. Kostnader'!$K$14,'2. Kostnader'!$L$14))*EXP(_xlfn.NORM.INV(RAND(),'1. Effektsamband'!$N$9,'1. Effektsamband'!$S$9)) -> 35324.01013 | S82: =(_xlfn.GAMMA.INV(RAND(),'2. Kostnader'!$L$27,'2. Kostnader'!$M$27))*EXP(_xlfn.NORM.INV(RAND(),'1. Effektsamband'!$N$9,'1. Effektsamband'!$S$9))*'2. Kostnader'!$E$15 -> 707379.1939 | T82: 742703.204 | U82: =(_xlfn.GAMMA.INV(RAND(),'2. Kostnader'!$K$11,'2. Kostnader'!$L$11))*EXP(_xlfn.NORM.INV(RAND(),'1. Effektsamband'!$N$13,'1. Effektsamband'!$S$13)) -> 45543.70534 | V82: 45543.70534 | W82: =(_xlfn.GAMMA.INV(RAND(),'2. Kostnader'!$K$10,'2. Kostnader'!$L$10)*EXP(_xlfn.NORM.INV(RAND(),'1. Effektsamband'!$N$10,'1. Effektsamband'!$S$10))) -> 37150.46568 | X82: =(_xlfn.GAMMA.INV(RAND(),'2. Kostnader'!$K$10,'2. Kostnader'!$L$10)*(EXP(_xlfn.NORM.INV(RAND(),'1. Effektsamband'!$N$11,'1. Effektsamband'!$S$11)))) -> 8340.582628 | Y82: =(_xlfn.GAMMA.INV(RAND(),'2. Kostnader'!$K$6,'2. Kostnader'!$L$6)*(EXP(_xlfn.NORM.INV(RAND(),'1. Effektsamband'!$N$4,'1. Effektsamband'!$S$4)))) -> 12826.29195
A83: 69 | B83: =EXP(_xlfn.NORM.INV(RAND(),'1. Effektsamband'!$N$3,'1. Effektsamband'!$S$3))*(_xlfn.GAMMA.INV(RAND(),'2. Kostnader'!$K$6,'2. Kostnader'!$L$6)*'1. Effektsamband'!$B$15) -> 2324953.065 | C83: =(_xlfn.GAMMA.INV(RAND(),'2. Kostnader'!$K$9,'2. Kostnader'!$L$9))*(EXP(_xlfn.NORM.INV(RAND(),'1. Effektsamband'!$N$5,'1. Effektsamband'!$S$5))) -> 7154.284592 | D83: =(_xlfn.GAMMA.INV(RAND(),'2. Kostnader'!$L$22,'2. Kostnader'!$M$22))*EXP(_xlfn.NORM.INV(RAND(),'1. Effektsamband'!$N$5,'1. Effektsamband'!$S$5))*'2. Kostnader'!$E$15 -> 12650.07629 | E83: 19804.36088 | F83: =(_xlfn.GAMMA.INV(RAND(),'2. Kostnader'!$K$12,'2. Kostnader'!$L$12))*EXP(_xlfn.NORM.INV(RAND(),'1. Effektsamband'!$N$6,'1. Effektsamband'!$S$6)) -> 77434.96542 | G83: =(_xlfn.GAMMA.INV(RAND(),'2. Kostnader'!$L$26,'2. Kostnader'!$M$26))*EXP(_xlfn.NORM.INV(RAND(),'1. Effektsamband'!$N$6,'1. Effektsamband'!$S$6))*'2. Kostnader'!$E$15 -> 530917.8121 | H83: 608352.7775 | I83: =(_xlfn.GAMMA.INV(RAND(),'2. Kostnader'!$K$8,'2. Kostnader'!$L$8))*EXP(_xlfn.NORM.INV(RAND(),'1. Effektsamband'!$N$7,'1. Effektsamband'!$S$7)) -> 36109.23511 | J83: =(_xlfn.GAMMA.INV(RAND(),'2. Kostnader'!$L$23,'2. Kostnader'!$M$23))*EXP(_xlfn.NORM.INV(RAND(),'1. Effektsamband'!$N$7,'1. Effektsamband'!$S$7))*'2. Kostnader'!$E$15 -> 301564.5119 | K83: 337673.747 | L83: =(_xlfn.GAMMA.INV(RAND(),'2. Kostnader'!$K$7,'2. Kostnader'!$L$7))*EXP(_xlfn.NORM.INV(RAND(),'1. Effektsamband'!$N$8,'1. Effektsamband'!$S$8)) -> 1354.127911 | M83: =(_xlfn.GAMMA.INV(RAND(),'2. Kostnader'!$L$21,'2. Kostnader'!$M$21))*EXP(_xlfn.NORM.INV(RAND(), '1. Effektsamband'!$N$8,'1. Effektsamband'!$S$8))*'2. Kostnader'!$E$15 -> 152289.5586 | N83: 153643.6865 | O83: =(_xlfn.GAMMA.INV(RAND(),'2. Kostnader'!$K$13,'2. Kostnader'!$L$13))*EXP(_xlfn.NORM.INV(RAND(),'1. Effektsamband'!$N$9,'1. Effektsamband'!$S$9)) -> 3860.523354 | P83: =(_xlfn.GAMMA.INV(RAND(),'2. Kostnader'!$L$28,'2. Kostnader'!$M$28))*EXP(_xlfn.NORM.INV(RAND(),'1. Effektsamband'!$N$9,'1. Effektsamband'!$S$9))*'2. Kostnader'!$E$15 -> 60530.11689 | Q83: 64390.64025 | R83: =(_xlfn.GAMMA.INV(RAND(),'2. Kostnader'!$K$14,'2. Kostnader'!$L$14))*EXP(_xlfn.NORM.INV(RAND(),'1. Effektsamband'!$N$9,'1. Effektsamband'!$S$9)) -> 31095.43155 | S83: =(_xlfn.GAMMA.INV(RAND(),'2. Kostnader'!$L$27,'2. Kostnader'!$M$27))*EXP(_xlfn.NORM.INV(RAND(),'1. Effektsamband'!$N$9,'1. Effektsamband'!$S$9))*'2. Kostnader'!$E$15 -> 634519.252 | T83: 665614.6835 | U83: =(_xlfn.GAMMA.INV(RAND(),'2. Kostnader'!$K$11,'2. Kostnader'!$L$11))*EXP(_xlfn.NORM.INV(RAND(),'1. Effektsamband'!$N$13,'1. Effektsamband'!$S$13)) -> 66171.18567 | V83: 66171.18567 | W83: =(_xlfn.GAMMA.INV(RAND(),'2. Kostnader'!$K$10,'2. Kostnader'!$L$10)*EXP(_xlfn.NORM.INV(RAND(),'1. Effektsamband'!$N$10,'1. Effektsamband'!$S$10))) -> 22809.40976 | X83: =(_xlfn.GAMMA.INV(RAND(),'2. Kostnader'!$K$10,'2. Kostnader'!$L$10)*(EXP(_xlfn.NORM.INV(RAND(),'1. Effektsamband'!$N$11,'1. Effektsamband'!$S$11)))) -> 6748.549437 | Y83: =(_xlfn.GAMMA.INV(RAND(),'2. Kostnader'!$K$6,'2. Kostnader'!$L$6)*(EXP(_xlfn.NORM.INV(RAND(),'1. Effektsamband'!$N$4,'1. Effektsamband'!$S$4)))) -> 113215.8002
A84: 70 | B84: =EXP(_xlfn.NORM.INV(RAND(),'1. Effektsamband'!$N$3,'1. Effektsamband'!$S$3))*(_xlfn.GAMMA.INV(RAND(),'2. Kostnader'!$K$6,'2. Kostnader'!$L$6)*'1. Effektsamband'!$B$15) -> 3826352.667 | C84: =(_xlfn.GAMMA.INV(RAND(),'2. Kostnader'!$K$9,'2. Kostnader'!$L$9))*(EXP(_xlfn.NORM.INV(RAND(),'1. Effektsamband'!$N$5,'1. Effektsamband'!$S$5))) -> 18267.94104 | D84: =(_xlfn.GAMMA.INV(RAND(),'2. Kostnader'!$L$22,'2. Kostnader'!$M$22))*EXP(_xlfn.NORM.INV(RAND(),'1. Effektsamband'!$N$5,'1. Effektsamband'!$S$5))*'2. Kostnader'!$E$15 -> 1221.334004 | E84: 19489.27505 | F84: =(_xlfn.GAMMA.INV(RAND(),'2. Kostnader'!$K$12,'2. Kostnader'!$L$12))*EXP(_xlfn.NORM.INV(RAND(),'1. Effektsamband'!$N$6,'1. Effektsamband'!$S$6)) -> 8628.528993 | G84: =(_xlfn.GAMMA.INV(RAND(),'2. Kostnader'!$L$26,'2. Kostnader'!$M$26))*EXP(_xlfn.NORM.INV(RAND(),'1. Effektsamband'!$N$6,'1. Effektsamband'!$S$6))*'2. Kostnader'!$E$15 -> 401919.8279 | H84: 410548.3569 | I84: =(_xlfn.GAMMA.INV(RAND(),'2. Kostnader'!$K$8,'2. Kostnader'!$L$8))*EXP(_xlfn.NORM.INV(RAND(),'1. Effektsamband'!$N$7,'1. Effektsamband'!$S$7)) -> 55079.84828 | J84: =(_xlfn.GAMMA.INV(RAND(),'2. Kostnader'!$L$23,'2. Kostnader'!$M$23))*EXP(_xlfn.NORM.INV(RAND(),'1. Effektsamband'!$N$7,'1. Effektsamband'!$S$7))*'2. Kostnader'!$E$15 -> 359959.0294 | K84: 415038.8777 | L84: =(_xlfn.GAMMA.INV(RAND(),'2. Kostnader'!$K$7,'2. Kostnader'!$L$7))*EXP(_xlfn.NORM.INV(RAND(),'1. Effektsamband'!$N$8,'1. Effektsamband'!$S$8)) -> 1493.375317 | M84: =(_xlfn.GAMMA.INV(RAND(),'2. Kostnader'!$L$21,'2. Kostnader'!$M$21))*EXP(_xlfn.NORM.INV(RAND(), '1. Effektsamband'!$N$8,'1. Effektsamband'!$S$8))*'2. Kostnader'!$E$15 -> 177907.6523 | N84: 179401.0276 | O84: =(_xlfn.GAMMA.INV(RAND(),'2. Kostnader'!$K$13,'2. Kostnader'!$L$13))*EXP(_xlfn.NORM.INV(RAND(),'1. Effektsamband'!$N$9,'1. Effektsamband'!$S$9)) -> 4164.982848 | P84: =(_xlfn.GAMMA.INV(RAND(),'2. Kostnader'!$L$28,'2. Kostnader'!$M$28))*EXP(_xlfn.NORM.INV(RAND(),'1. Effektsamband'!$N$9,'1. Effektsamband'!$S$9))*'2. Kostnader'!$E$15 -> 65722.72748 | Q84: 69887.71033 | R84: =(_xlfn.GAMMA.INV(RAND(),'2. Kostnader'!$K$14,'2. Kostnader'!$L$14))*EXP(_xlfn.NORM.INV(RAND(),'1. Effektsamband'!$N$9,'1. Effektsamband'!$S$9)) -> 52938.33788 | S84: =(_xlfn.GAMMA.INV(RAND(),'2. Kostnader'!$L$27,'2. Kostnader'!$M$27))*EXP(_xlfn.NORM.INV(RAND(),'1. Effektsamband'!$N$9,'1. Effektsamband'!$S$9))*'2. Kostnader'!$E$15 -> 364467.6671 | T84: 417406.005 | U84: =(_xlfn.GAMMA.INV(RAND(),'2. Kostnader'!$K$11,'2. Kostnader'!$L$11))*EXP(_xlfn.NORM.INV(RAND(),'1. Effektsamband'!$N$13,'1. Effektsamband'!$S$13)) -> 77105.72152 | V84: 77105.72152 | W84: =(_xlfn.GAMMA.INV(RAND(),'2. Kostnader'!$K$10,'2. Kostnader'!$L$10)*EXP(_xlfn.NORM.INV(RAND(),'1. Effektsamband'!$N$10,'1. Effektsamband'!$S$10))) -> 20037.44832 | X84: =(_xlfn.GAMMA.INV(RAND(),'2. Kostnader'!$K$10,'2. Kostnader'!$L$10)*(EXP(_xlfn.NORM.INV(RAND(),'1. Effektsamband'!$N$11,'1. Effektsamband'!$S$11)))) -> 3880.634836 | Y84: =(_xlfn.GAMMA.INV(RAND(),'2. Kostnader'!$K$6,'2. Kostnader'!$L$6)*(EXP(_xlfn.NORM.INV(RAND(),'1. Effektsamband'!$N$4,'1. Effektsamband'!$S$4)))) -> 11114.33066
A85: 71 | B85: =EXP(_xlfn.NORM.INV(RAND(),'1. Effektsamband'!$N$3,'1. Effektsamband'!$S$3))*(_xlfn.GAMMA.INV(RAND(),'2. Kostnader'!$K$6,'2. Kostnader'!$L$6)*'1. Effektsamband'!$B$15) -> 4452535.513 | C85: =(_xlfn.GAMMA.INV(RAND(),'2. Kostnader'!$K$9,'2. Kostnader'!$L$9))*(EXP(_xlfn.NORM.INV(RAND(),'1. Effektsamband'!$N$5,'1. Effektsamband'!$S$5))) -> 25623.14956 | D85: =(_xlfn.GAMMA.INV(RAND(),'2. Kostnader'!$L$22,'2. Kostnader'!$M$22))*EXP(_xlfn.NORM.INV(RAND(),'1. Effektsamband'!$N$5,'1. Effektsamband'!$S$5))*'2. Kostnader'!$E$15 -> 12122.71051 | E85: 37745.86007 | F85: =(_xlfn.GAMMA.INV(RAND(),'2. Kostnader'!$K$12,'2. Kostnader'!$L$12))*EXP(_xlfn.NORM.INV(RAND(),'1. Effektsamband'!$N$6,'1. Effektsamband'!$S$6)) -> 104704.5896 | G85: =(_xlfn.GAMMA.INV(RAND(),'2. Kostnader'!$L$26,'2. Kostnader'!$M$26))*EXP(_xlfn.NORM.INV(RAND(),'1. Effektsamband'!$N$6,'1. Effektsamband'!$S$6))*'2. Kostnader'!$E$15 -> 119768.1961 | H85: 224472.7857 | I85: =(_xlfn.GAMMA.INV(RAND(),'2. Kostnader'!$K$8,'2. Kostnader'!$L$8))*EXP(_xlfn.NORM.INV(RAND(),'1. Effektsamband'!$N$7,'1. Effektsamband'!$S$7)) -> 31473.38511 | J85: =(_xlfn.GAMMA.INV(RAND(),'2. Kostnader'!$L$23,'2. Kostnader'!$M$23))*EXP(_xlfn.NORM.INV(RAND(),'1. Effektsamband'!$N$7,'1. Effektsamband'!$S$7))*'2. Kostnader'!$E$15 -> 322113.1984 | K85: 353586.5835 | L85: =(_xlfn.GAMMA.INV(RAND(),'2. Kostnader'!$K$7,'2. Kostnader'!$L$7))*EXP(_xlfn.NORM.INV(RAND(),'1. Effektsamband'!$N$8,'1. Effektsamband'!$S$8)) -> 1914.935527 | M85: =(_xlfn.GAMMA.INV(RAND(),'2. Kostnader'!$L$21,'2. Kostnader'!$M$21))*EXP(_xlfn.NORM.INV(RAND(), '1. Effektsamband'!$N$8,'1. Effektsamband'!$S$8))*'2. Kostnader'!$E$15 -> 126881.5582 | N85: 128796.4938 | O85: =(_xlfn.GAMMA.INV(RAND(),'2. Kostnader'!$K$13,'2. Kostnader'!$L$13))*EXP(_xlfn.NORM.INV(RAND(),'1. Effektsamband'!$N$9,'1. Effektsamband'!$S$9)) -> 7267.706814 | P85: =(_xlfn.GAMMA.INV(RAND(),'2. Kostnader'!$L$28,'2. Kostnader'!$M$28))*EXP(_xlfn.NORM.INV(RAND(),'1. Effektsamband'!$N$9,'1. Effektsamband'!$S$9))*'2. Kostnader'!$E$15 -> 85086.48622 | Q85: 92354.19303 | R85: =(_xlfn.GAMMA.INV(RAND(),'2. Kostnader'!$K$14,'2. Kostnader'!$L$14))*EXP(_xlfn.NORM.INV(RAND(),'1. Effektsamband'!$N$9,'1. Effektsamband'!$S$9)) -> 50565.49114 | S85: =(_xlfn.GAMMA.INV(RAND(),'2. Kostnader'!$L$27,'2. Kostnader'!$M$27))*EXP(_xlfn.NORM.INV(RAND(),'1. Effektsamband'!$N$9,'1. Effektsamband'!$S$9))*'2. Kostnader'!$E$15 -> 341148.0368 | T85: 391713.5279 | U85: =(_xlfn.GAMMA.INV(RAND(),'2. Kostnader'!$K$11,'2. Kostnader'!$L$11))*EXP(_xlfn.NORM.INV(RAND(),'1. Effektsamband'!$N$13,'1. Effektsamband'!$S$13)) -> 48893.0999 | V85: 48893.0999 | W85: =(_xlfn.GAMMA.INV(RAND(),'2. Kostnader'!$K$10,'2. Kostnader'!$L$10)*EXP(_xlfn.NORM.INV(RAND(),'1. Effektsamband'!$N$10,'1. Effektsamband'!$S$10))) -> 18906.19607 | X85: =(_xlfn.GAMMA.INV(RAND(),'2. Kostnader'!$K$10,'2. Kostnader'!$L$10)*(EXP(_xlfn.NORM.INV(RAND(),'1. Effektsamband'!$N$11,'1. Effektsamband'!$S$11)))) -> 5136.09533 | Y85: =(_xlfn.GAMMA.INV(RAND(),'2. Kostnader'!$K$6,'2. Kostnader'!$L$6)*(EXP(_xlfn.NORM.INV(RAND(),'1. Effektsamband'!$N$4,'1. Effektsamband'!$S$4)))) -> 98312.56971
A86: 72 | B86: =EXP(_xlfn.NORM.INV(RAND(),'1. Effektsamband'!$N$3,'1. Effektsamband'!$S$3))*(_xlfn.GAMMA.INV(RAND(),'2. Kostnader'!$K$6,'2. Kostnader'!$L$6)*'1. Effektsamband'!$B$15) -> 3517076.462 | C86: =(_xlfn.GAMMA.INV(RAND(),'2. Kostnader'!$K$9,'2. Kostnader'!$L$9))*(EXP(_xlfn.NORM.INV(RAND(),'1. Effektsamband'!$N$5,'1. Effektsamband'!$S$5))) -> 838.4530545 | D86: =(_xlfn.GAMMA.INV(RAND(),'2. Kostnader'!$L$22,'2. Kostnader'!$M$22))*EXP(_xlfn.NORM.INV(RAND(),'1. Effektsamband'!$N$5,'1. Effektsamband'!$S$5))*'2. Kostnader'!$E$15 -> 716.7450035 | E86: 1555.198058 | F86: =(_xlfn.GAMMA.INV(RAND(),'2. Kostnader'!$K$12,'2. Kostnader'!$L$12))*EXP(_xlfn.NORM.INV(RAND(),'1. Effektsamband'!$N$6,'1. Effektsamband'!$S$6)) -> 182385.357 | G86: =(_xlfn.GAMMA.INV(RAND(),'2. Kostnader'!$L$26,'2. Kostnader'!$M$26))*EXP(_xlfn.NORM.INV(RAND(),'1. Effektsamband'!$N$6,'1. Effektsamband'!$S$6))*'2. Kostnader'!$E$15 -> 59306.96557 | H86: 241692.3225 | I86: =(_xlfn.GAMMA.INV(RAND(),'2. Kostnader'!$K$8,'2. Kostnader'!$L$8))*EXP(_xlfn.NORM.INV(RAND(),'1. Effektsamband'!$N$7,'1. Effektsamband'!$S$7)) -> 32447.22054 | J86: =(_xlfn.GAMMA.INV(RAND(),'2. Kostnader'!$L$23,'2. Kostnader'!$M$23))*EXP(_xlfn.NORM.INV(RAND(),'1. Effektsamband'!$N$7,'1. Effektsamband'!$S$7))*'2. Kostnader'!$E$15 -> 178144.4893 | K86: 210591.7098 | L86: =(_xlfn.GAMMA.INV(RAND(),'2. Kostnader'!$K$7,'2. Kostnader'!$L$7))*EXP(_xlfn.NORM.INV(RAND(),'1. Effektsamband'!$N$8,'1. Effektsamband'!$S$8)) -> 1351.152527 | M86: =(_xlfn.GAMMA.INV(RAND(),'2. Kostnader'!$L$21,'2. Kostnader'!$M$21))*EXP(_xlfn.NORM.INV(RAND(), '1. Effektsamband'!$N$8,'1. Effektsamband'!$S$8))*'2. Kostnader'!$E$15 -> 141360.5339 | N86: 142711.6865 | O86: =(_xlfn.GAMMA.INV(RAND(),'2. Kostnader'!$K$13,'2. Kostnader'!$L$13))*EXP(_xlfn.NORM.INV(RAND(),'1. Effektsamband'!$N$9,'1. Effektsamband'!$S$9)) -> 5280.591968 | P86: =(_xlfn.GAMMA.INV(RAND(),'2. Kostnader'!$L$28,'2. Kostnader'!$M$28))*EXP(_xlfn.NORM.INV(RAND(),'1. Effektsamband'!$N$9,'1. Effektsamband'!$S$9))*'2. Kostnader'!$E$15 -> 149917.1734 | Q86: 155197.7654 | R86: =(_xlfn.GAMMA.INV(RAND(),'2. Kostnader'!$K$14,'2. Kostnader'!$L$14))*EXP(_xlfn.NORM.INV(RAND(),'1. Effektsamband'!$N$9,'1. Effektsamband'!$S$9)) -> 39277.64228 | S86: =(_xlfn.GAMMA.INV(RAND(),'2. Kostnader'!$L$27,'2. Kostnader'!$M$27))*EXP(_xlfn.NORM.INV(RAND(),'1. Effektsamband'!$N$9,'1. Effektsamband'!$S$9))*'2. Kostnader'!$E$15 -> 328214.5145 | T86: 367492.1568 | U86: =(_xlfn.GAMMA.INV(RAND(),'2. Kostnader'!$K$11,'2. Kostnader'!$L$11))*EXP(_xlfn.NORM.INV(RAND(),'1. Effektsamband'!$N$13,'1. Effektsamband'!$S$13)) -> 76288.43223 | V86: 76288.43223 | W86: =(_xlfn.GAMMA.INV(RAND(),'2. Kostnader'!$K$10,'2. Kostnader'!$L$10)*EXP(_xlfn.NORM.INV(RAND(),'1. Effektsamband'!$N$10,'1. Effektsamband'!$S$10))) -> 18618.74606 | X86: =(_xlfn.GAMMA.INV(RAND(),'2. Kostnader'!$K$10,'2. Kostnader'!$L$10)*(EXP(_xlfn.NORM.INV(RAND(),'1. Effektsamband'!$N$11,'1. Effektsamband'!$S$11)))) -> 4631.599563 | Y86: =(_xlfn.GAMMA.INV(RAND(),'2. Kostnader'!$K$6,'2. Kostnader'!$L$6)*(EXP(_xlfn.NORM.INV(RAND(),'1. Effektsamband'!$N$4,'1. Effektsamband'!$S$4)))) -> 18683.63764
A87: 73 | B87: =EXP(_xlfn.NORM.INV(RAND(),'1. Effektsamband'!$N$3,'1. Effektsamband'!$S$3))*(_xlfn.GAMMA.INV(RAND(),'2. Kostnader'!$K$6,'2. Kostnader'!$L$6)*'1. Effektsamband'!$B$15) -> 3217293.189 | C87: =(_xlfn.GAMMA.INV(RAND(),'2. Kostnader'!$K$9,'2. Kostnader'!$L$9))*(EXP(_xlfn.NORM.INV(RAND(),'1. Effektsamband'!$N$5,'1. Effektsamband'!$S$5))) -> 8666.750756 | D87: =(_xlfn.GAMMA.INV(RAND(),'2. Kostnader'!$L$22,'2. Kostnader'!$M$22))*EXP(_xlfn.NORM.INV(RAND(),'1. Effektsamband'!$N$5,'1. Effektsamband'!$S$5))*'2. Kostnader'!$E$15 -> 3825.845821 | E87: 12492.59658 | F87: =(_xlfn.GAMMA.INV(RAND(),'2. Kostnader'!$K$12,'2. Kostnader'!$L$12))*EXP(_xlfn.NORM.INV(RAND(),'1. Effektsamband'!$N$6,'1. Effektsamband'!$S$6)) -> 288343.8738 | G87: =(_xlfn.GAMMA.INV(RAND(),'2. Kostnader'!$L$26,'2. Kostnader'!$M$26))*EXP(_xlfn.NORM.INV(RAND(),'1. Effektsamband'!$N$6,'1. Effektsamband'!$S$6))*'2. Kostnader'!$E$15 -> 965513.7284 | H87: 1253857.602 | I87: =(_xlfn.GAMMA.INV(RAND(),'2. Kostnader'!$K$8,'2. Kostnader'!$L$8))*EXP(_xlfn.NORM.INV(RAND(),'1. Effektsamband'!$N$7,'1. Effektsamband'!$S$7)) -> 32769.46426 | J87: =(_xlfn.GAMMA.INV(RAND(),'2. Kostnader'!$L$23,'2. Kostnader'!$M$23))*EXP(_xlfn.NORM.INV(RAND(),'1. Effektsamband'!$N$7,'1. Effektsamband'!$S$7))*'2. Kostnader'!$E$15 -> 325515.7791 | K87: 358285.2434 | L87: =(_xlfn.GAMMA.INV(RAND(),'2. Kostnader'!$K$7,'2. Kostnader'!$L$7))*EXP(_xlfn.NORM.INV(RAND(),'1. Effektsamband'!$N$8,'1. Effektsamband'!$S$8)) -> 1540.860329 | M87: =(_xlfn.GAMMA.INV(RAND(),'2. Kostnader'!$L$21,'2. Kostnader'!$M$21))*EXP(_xlfn.NORM.INV(RAND(), '1. Effektsamband'!$N$8,'1. Effektsamband'!$S$8))*'2. Kostnader'!$E$15 -> 128342.3886 | N87: 129883.2489 | O87: =(_xlfn.GAMMA.INV(RAND(),'2. Kostnader'!$K$13,'2. Kostnader'!$L$13))*EXP(_xlfn.NORM.INV(RAND(),'1. Effektsamband'!$N$9,'1. Effektsamband'!$S$9)) -> 6198.262896 | P87: =(_xlfn.GAMMA.INV(RAND(),'2. Kostnader'!$L$28,'2. Kostnader'!$M$28))*EXP(_xlfn.NORM.INV(RAND(),'1. Effektsamband'!$N$9,'1. Effektsamband'!$S$9))*'2. Kostnader'!$E$15 -> 187372.8661 | Q87: 193571.129 | R87: =(_xlfn.GAMMA.INV(RAND(),'2. Kostnader'!$K$14,'2. Kostnader'!$L$14))*EXP(_xlfn.NORM.INV(RAND(),'1. Effektsamband'!$N$9,'1. Effektsamband'!$S$9)) -> 22946.69881 | S87: =(_xlfn.GAMMA.INV(RAND(),'2. Kostnader'!$L$27,'2. Kostnader'!$M$27))*EXP(_xlfn.NORM.INV(RAND(),'1. Effektsamband'!$N$9,'1. Effektsamband'!$S$9))*'2. Kostnader'!$E$15 -> 448341.4693 | T87: 471288.1681 | U87: =(_xlfn.GAMMA.INV(RAND(),'2. Kostnader'!$K$11,'2. Kostnader'!$L$11))*EXP(_xlfn.NORM.INV(RAND(),'1. Effektsamband'!$N$13,'1. Effektsamband'!$S$13)) -> 66147.58959 | V87: 66147.58959 | W87: =(_xlfn.GAMMA.INV(RAND(),'2. Kostnader'!$K$10,'2. Kostnader'!$L$10)*EXP(_xlfn.NORM.INV(RAND(),'1. Effektsamband'!$N$10,'1. Effektsamband'!$S$10))) -> 15976.32057 | X87: =(_xlfn.GAMMA.INV(RAND(),'2. Kostnader'!$K$10,'2. Kostnader'!$L$10)*(EXP(_xlfn.NORM.INV(RAND(),'1. Effektsamband'!$N$11,'1. Effektsamband'!$S$11)))) -> 4519.525327 | Y87: =(_xlfn.GAMMA.INV(RAND(),'2. Kostnader'!$K$6,'2. Kostnader'!$L$6)*(EXP(_xlfn.NORM.INV(RAND(),'1. Effektsamband'!$N$4,'1. Effektsamband'!$S$4)))) -> 37942.92072
A88: 74 | B88: =EXP(_xlfn.NORM.INV(RAND(),'1. Effektsamband'!$N$3,'1. Effektsamband'!$S$3))*(_xlfn.GAMMA.INV(RAND(),'2. Kostnader'!$K$6,'2. Kostnader'!$L$6)*'1. Effektsamband'!$B$15) -> 3659527.809 | C88: =(_xlfn.GAMMA.INV(RAND(),'2. Kostnader'!$K$9,'2. Kostnader'!$L$9))*(EXP(_xlfn.NORM.INV(RAND(),'1. Effektsamband'!$N$5,'1. Effektsamband'!$S$5))) -> 2646.217063 | D88: =(_xlfn.GAMMA.INV(RAND(),'2. Kostnader'!$L$22,'2. Kostnader'!$M$22))*EXP(_xlfn.NORM.INV(RAND(),'1. Effektsamband'!$N$5,'1. Effektsamband'!$S$5))*'2. Kostnader'!$E$15 -> 2037.056444 | E88: 4683.273508 | F88: =(_xlfn.GAMMA.INV(RAND(),'2. Kostnader'!$K$12,'2. Kostnader'!$L$12))*EXP(_xlfn.NORM.INV(RAND(),'1. Effektsamband'!$N$6,'1. Effektsamband'!$S$6)) -> 176404.6469 | G88: =(_xlfn.GAMMA.INV(RAND(),'2. Kostnader'!$L$26,'2. Kostnader'!$M$26))*EXP(_xlfn.NORM.INV(RAND(),'1. Effektsamband'!$N$6,'1. Effektsamband'!$S$6))*'2. Kostnader'!$E$15 -> 1156847.129 | H88: 1333251.776 | I88: =(_xlfn.GAMMA.INV(RAND(),'2. Kostnader'!$K$8,'2. Kostnader'!$L$8))*EXP(_xlfn.NORM.INV(RAND(),'1. Effektsamband'!$N$7,'1. Effektsamband'!$S$7)) -> 100300.1897 | J88: =(_xlfn.GAMMA.INV(RAND(),'2. Kostnader'!$L$23,'2. Kostnader'!$M$23))*EXP(_xlfn.NORM.INV(RAND(),'1. Effektsamband'!$N$7,'1. Effektsamband'!$S$7))*'2. Kostnader'!$E$15 -> 171889.2797 | K88: 272189.4693 | L88: =(_xlfn.GAMMA.INV(RAND(),'2. Kostnader'!$K$7,'2. Kostnader'!$L$7))*EXP(_xlfn.NORM.INV(RAND(),'1. Effektsamband'!$N$8,'1. Effektsamband'!$S$8)) -> 1569.366591 | M88: =(_xlfn.GAMMA.INV(RAND(),'2. Kostnader'!$L$21,'2. Kostnader'!$M$21))*EXP(_xlfn.NORM.INV(RAND(), '1. Effektsamband'!$N$8,'1. Effektsamband'!$S$8))*'2. Kostnader'!$E$15 -> 110942.7512 | N88: 112512.1178 | O88: =(_xlfn.GAMMA.INV(RAND(),'2. Kostnader'!$K$13,'2. Kostnader'!$L$13))*EXP(_xlfn.NORM.INV(RAND(),'1. Effektsamband'!$N$9,'1. Effektsamband'!$S$9)) -> 4061.19836 | P88: =(_xlfn.GAMMA.INV(RAND(),'2. Kostnader'!$L$28,'2. Kostnader'!$M$28))*EXP(_xlfn.NORM.INV(RAND(),'1. Effektsamband'!$N$9,'1. Effektsamband'!$S$9))*'2. Kostnader'!$E$15 -> 132480.6163 | Q88: 136541.8147 | R88: =(_xlfn.GAMMA.INV(RAND(),'2. Kostnader'!$K$14,'2. Kostnader'!$L$14))*EXP(_xlfn.NORM.INV(RAND(),'1. Effektsamband'!$N$9,'1. Effektsamband'!$S$9)) -> 28829.91234 | S88: =(_xlfn.GAMMA.INV(RAND(),'2. Kostnader'!$L$27,'2. Kostnader'!$M$27))*EXP(_xlfn.NORM.INV(RAND(),'1. Effektsamband'!$N$9,'1. Effektsamband'!$S$9))*'2. Kostnader'!$E$15 -> 546187.5094 | T88: 575017.4217 | U88: =(_xlfn.GAMMA.INV(RAND(),'2. Kostnader'!$K$11,'2. Kostnader'!$L$11))*EXP(_xlfn.NORM.INV(RAND(),'1. Effektsamband'!$N$13,'1. Effektsamband'!$S$13)) -> 52816.11509 | V88: 52816.11509 | W88: =(_xlfn.GAMMA.INV(RAND(),'2. Kostnader'!$K$10,'2. Kostnader'!$L$10)*EXP(_xlfn.NORM.INV(RAND(),'1. Effektsamband'!$N$10,'1. Effektsamband'!$S$10))) -> 11910.10694 | X88: =(_xlfn.GAMMA.INV(RAND(),'2. Kostnader'!$K$10,'2. Kostnader'!$L$10)*(EXP(_xlfn.NORM.INV(RAND(),'1. Effektsamband'!$N$11,'1. Effektsamband'!$S$11)))) -> 14849.76994 | Y88: =(_xlfn.GAMMA.INV(RAND(),'2. Kostnader'!$K$6,'2. Kostnader'!$L$6)*(EXP(_xlfn.NORM.INV(RAND(),'1. Effektsamband'!$N$4,'1. Effektsamband'!$S$4)))) -> 10652.28854
A89: 75 | B89: =EXP(_xlfn.NORM.INV(RAND(),'1. Effektsamband'!$N$3,'1. Effektsamband'!$S$3))*(_xlfn.GAMMA.INV(RAND(),'2. Kostnader'!$K$6,'2. Kostnader'!$L$6)*'1. Effektsamband'!$B$15) -> 3601296.42 | C89: =(_xlfn.GAMMA.INV(RAND(),'2. Kostnader'!$K$9,'2. Kostnader'!$L$9))*(EXP(_xlfn.NORM.INV(RAND(),'1. Effektsamband'!$N$5,'1. Effektsamband'!$S$5))) -> 4292.482306 | D89: =(_xlfn.GAMMA.INV(RAND(),'2. Kostnader'!$L$22,'2. Kostnader'!$M$22))*EXP(_xlfn.NORM.INV(RAND(),'1. Effektsamband'!$N$5,'1. Effektsamband'!$S$5))*'2. Kostnader'!$E$15 -> 10920.72164 | E89: 15213.20394 | F89: =(_xlfn.GAMMA.INV(RAND(),'2. Kostnader'!$K$12,'2. Kostnader'!$L$12))*EXP(_xlfn.NORM.INV(RAND(),'1. Effektsamband'!$N$6,'1. Effektsamband'!$S$6)) -> 336982.8355 | G89: =(_xlfn.GAMMA.INV(RAND(),'2. Kostnader'!$L$26,'2. Kostnader'!$M$26))*EXP(_xlfn.NORM.INV(RAND(),'1. Effektsamband'!$N$6,'1. Effektsamband'!$S$6))*'2. Kostnader'!$E$15 -> 341711.8355 | H89: 678694.6709 | I89: =(_xlfn.GAMMA.INV(RAND(),'2. Kostnader'!$K$8,'2. Kostnader'!$L$8))*EXP(_xlfn.NORM.INV(RAND(),'1. Effektsamband'!$N$7,'1. Effektsamband'!$S$7)) -> 25930.71317 | J89: =(_xlfn.GAMMA.INV(RAND(),'2. Kostnader'!$L$23,'2. Kostnader'!$M$23))*EXP(_xlfn.NORM.INV(RAND(),'1. Effektsamband'!$N$7,'1. Effektsamband'!$S$7))*'2. Kostnader'!$E$15 -> 181788.3929 | K89: 207719.106 | L89: =(_xlfn.GAMMA.INV(RAND(),'2. Kostnader'!$K$7,'2. Kostnader'!$L$7))*EXP(_xlfn.NORM.INV(RAND(),'1. Effektsamband'!$N$8,'1. Effektsamband'!$S$8)) -> 685.0820272 | M89: =(_xlfn.GAMMA.INV(RAND(),'2. Kostnader'!$L$21,'2. Kostnader'!$M$21))*EXP(_xlfn.NORM.INV(RAND(), '1. Effektsamband'!$N$8,'1. Effektsamband'!$S$8))*'2. Kostnader'!$E$15 -> 107206.5864 | N89: 107891.6685 | O89: =(_xlfn.GAMMA.INV(RAND(),'2. Kostnader'!$K$13,'2. Kostnader'!$L$13))*EXP(_xlfn.NORM.INV(RAND(),'1. Effektsamband'!$N$9,'1. Effektsamband'!$S$9)) -> 5207.463954 | P89: =(_xlfn.GAMMA.INV(RAND(),'2. Kostnader'!$L$28,'2. Kostnader'!$M$28))*EXP(_xlfn.NORM.INV(RAND(),'1. Effektsamband'!$N$9,'1. Effektsamband'!$S$9))*'2. Kostnader'!$E$15 -> 250267.8928 | Q89: 255475.3567 | R89: =(_xlfn.GAMMA.INV(RAND(),'2. Kostnader'!$K$14,'2. Kostnader'!$L$14))*EXP(_xlfn.NORM.INV(RAND(),'1. Effektsamband'!$N$9,'1. Effektsamband'!$S$9)) -> 81832.55692 | S89: =(_xlfn.GAMMA.INV(RAND(),'2. Kostnader'!$L$27,'2. Kostnader'!$M$27))*EXP(_xlfn.NORM.INV(RAND(),'1. Effektsamband'!$N$9,'1. Effektsamband'!$S$9))*'2. Kostnader'!$E$15 -> 697135.6053 | T89: 778968.1622 | U89: =(_xlfn.GAMMA.INV(RAND(),'2. Kostnader'!$K$11,'2. Kostnader'!$L$11))*EXP(_xlfn.NORM.INV(RAND(),'1. Effektsamband'!$N$13,'1. Effektsamband'!$S$13)) -> 70007.49537 | V89: 70007.49537 | W89: =(_xlfn.GAMMA.INV(RAND(),'2. Kostnader'!$K$10,'2. Kostnader'!$L$10)*EXP(_xlfn.NORM.INV(RAND(),'1. Effektsamband'!$N$10,'1. Effektsamband'!$S$10))) -> 18910.5644 | X89: =(_xlfn.GAMMA.INV(RAND(),'2. Kostnader'!$K$10,'2. Kostnader'!$L$10)*(EXP(_xlfn.NORM.INV(RAND(),'1. Effektsamband'!$N$11,'1. Effektsamband'!$S$11)))) -> 7770.664097 | Y89: =(_xlfn.GAMMA.INV(RAND(),'2. Kostnader'!$K$6,'2. Kostnader'!$L$6)*(EXP(_xlfn.NORM.INV(RAND(),'1. Effektsamband'!$N$4,'1. Effektsamband'!$S$4)))) -> 16928.51776
A90: 76 | B90: =EXP(_xlfn.NORM.INV(RAND(),'1. Effektsamband'!$N$3,'1. Effektsamband'!$S$3))*(_xlfn.GAMMA.INV(RAND(),'2. Kostnader'!$K$6,'2. Kostnader'!$L$6)*'1. Effektsamband'!$B$15) -> 4442514.17 | C90: =(_xlfn.GAMMA.INV(RAND(),'2. Kostnader'!$K$9,'2. Kostnader'!$L$9))*(EXP(_xlfn.NORM.INV(RAND(),'1. Effektsamband'!$N$5,'1. Effektsamband'!$S$5))) -> 719.4938768 | D90: =(_xlfn.GAMMA.INV(RAND(),'2. Kostnader'!$L$22,'2. Kostnader'!$M$22))*EXP(_xlfn.NORM.INV(RAND(),'1. Effektsamband'!$N$5,'1. Effektsamband'!$S$5))*'2. Kostnader'!$E$15 -> 5493.179081 | E90: 6212.672957 | F90: =(_xlfn.GAMMA.INV(RAND(),'2. Kostnader'!$K$12,'2. Kostnader'!$L$12))*EXP(_xlfn.NORM.INV(RAND(),'1. Effektsamband'!$N$6,'1. Effektsamband'!$S$6)) -> 70080.44556 | G90: =(_xlfn.GAMMA.INV(RAND(),'2. Kostnader'!$L$26,'2. Kostnader'!$M$26))*EXP(_xlfn.NORM.INV(RAND(),'1. Effektsamband'!$N$6,'1. Effektsamband'!$S$6))*'2. Kostnader'!$E$15 -> 1951195.45 | H90: 2021275.896 | I90: =(_xlfn.GAMMA.INV(RAND(),'2. Kostnader'!$K$8,'2. Kostnader'!$L$8))*EXP(_xlfn.NORM.INV(RAND(),'1. Effektsamband'!$N$7,'1. Effektsamband'!$S$7)) -> 28362.98029 | J90: =(_xlfn.GAMMA.INV(RAND(),'2. Kostnader'!$L$23,'2. Kostnader'!$M$23))*EXP(_xlfn.NORM.INV(RAND(),'1. Effektsamband'!$N$7,'1. Effektsamband'!$S$7))*'2. Kostnader'!$E$15 -> 244992.8615 | K90: 273355.8418 | L90: =(_xlfn.GAMMA.INV(RAND(),'2. Kostnader'!$K$7,'2. Kostnader'!$L$7))*EXP(_xlfn.NORM.INV(RAND(),'1. Effektsamband'!$N$8,'1. Effektsamband'!$S$8)) -> 1266.386183 | M90: =(_xlfn.GAMMA.INV(RAND(),'2. Kostnader'!$L$21,'2. Kostnader'!$M$21))*EXP(_xlfn.NORM.INV(RAND(), '1. Effektsamband'!$N$8,'1. Effektsamband'!$S$8))*'2. Kostnader'!$E$15 -> 112514.4696 | N90: 113780.8558 | O90: =(_xlfn.GAMMA.INV(RAND(),'2. Kostnader'!$K$13,'2. Kostnader'!$L$13))*EXP(_xlfn.NORM.INV(RAND(),'1. Effektsamband'!$N$9,'1. Effektsamband'!$S$9)) -> 3059.195857 | P90: =(_xlfn.GAMMA.INV(RAND(),'2. Kostnader'!$L$28,'2. Kostnader'!$M$28))*EXP(_xlfn.NORM.INV(RAND(),'1. Effektsamband'!$N$9,'1. Effektsamband'!$S$9))*'2. Kostnader'!$E$15 -> 94267.01719 | Q90: 97326.21305 | R90: =(_xlfn.GAMMA.INV(RAND(),'2. Kostnader'!$K$14,'2. Kostnader'!$L$14))*EXP(_xlfn.NORM.INV(RAND(),'1. Effektsamband'!$N$9,'1. Effektsamband'!$S$9)) -> 30729.7264 | S90: =(_xlfn.GAMMA.INV(RAND(),'2. Kostnader'!$L$27,'2. Kostnader'!$M$27))*EXP(_xlfn.NORM.INV(RAND(),'1. Effektsamband'!$N$9,'1. Effektsamband'!$S$9))*'2. Kostnader'!$E$15 -> 377700.9051 | T90: 408430.6315 | U90: =(_xlfn.GAMMA.INV(RAND(),'2. Kostnader'!$K$11,'2. Kostnader'!$L$11))*EXP(_xlfn.NORM.INV(RAND(),'1. Effektsamband'!$N$13,'1. Effektsamband'!$S$13)) -> 49480.93343 | V90: 49480.93343 | W90: =(_xlfn.GAMMA.INV(RAND(),'2. Kostnader'!$K$10,'2. Kostnader'!$L$10)*EXP(_xlfn.NORM.INV(RAND(),'1. Effektsamband'!$N$10,'1. Effektsamband'!$S$10))) -> 16430.27489 | X90: =(_xlfn.GAMMA.INV(RAND(),'2. Kostnader'!$K$10,'2. Kostnader'!$L$10)*(EXP(_xlfn.NORM.INV(RAND(),'1. Effektsamband'!$N$11,'1. Effektsamband'!$S$11)))) -> 4804.621343 | Y90: =(_xlfn.GAMMA.INV(RAND(),'2. Kostnader'!$K$6,'2. Kostnader'!$L$6)*(EXP(_xlfn.NORM.INV(RAND(),'1. Effektsamband'!$N$4,'1. Effektsamband'!$S$4)))) -> 56672.76
A91: 77 | B91: =EXP(_xlfn.NORM.INV(RAND(),'1. Effektsamband'!$N$3,'1. Effektsamband'!$S$3))*(_xlfn.GAMMA.INV(RAND(),'2. Kostnader'!$K$6,'2. Kostnader'!$L$6)*'1. Effektsamband'!$B$15) -> 3109605.212 | C91: =(_xlfn.GAMMA.INV(RAND(),'2. Kostnader'!$K$9,'2. Kostnader'!$L$9))*(EXP(_xlfn.NORM.INV(RAND(),'1. Effektsamband'!$N$5,'1. Effektsamband'!$S$5))) -> 5765.879051 | D91: =(_xlfn.GAMMA.INV(RAND(),'2. Kostnader'!$L$22,'2. Kostnader'!$M$22))*EXP(_xlfn.NORM.INV(RAND(),'1. Effektsamband'!$N$5,'1. Effektsamband'!$S$5))*'2. Kostnader'!$E$15 -> 6539.605497 | E91: 12305.48455 | F91: =(_xlfn.GAMMA.INV(RAND(),'2. Kostnader'!$K$12,'2. Kostnader'!$L$12))*EXP(_xlfn.NORM.INV(RAND(),'1. Effektsamband'!$N$6,'1. Effektsamband'!$S$6)) -> 904390.5527 | G91: =(_xlfn.GAMMA.INV(RAND(),'2. Kostnader'!$L$26,'2. Kostnader'!$M$26))*EXP(_xlfn.NORM.INV(RAND(),'1. Effektsamband'!$N$6,'1. Effektsamband'!$S$6))*'2. Kostnader'!$E$15 -> 137020.1701 | H91: 1041410.723 | I91: =(_xlfn.GAMMA.INV(RAND(),'2. Kostnader'!$K$8,'2. Kostnader'!$L$8))*EXP(_xlfn.NORM.INV(RAND(),'1. Effektsamband'!$N$7,'1. Effektsamband'!$S$7)) -> 20226.61892 | J91: =(_xlfn.GAMMA.INV(RAND(),'2. Kostnader'!$L$23,'2. Kostnader'!$M$23))*EXP(_xlfn.NORM.INV(RAND(),'1. Effektsamband'!$N$7,'1. Effektsamband'!$S$7))*'2. Kostnader'!$E$15 -> 257679.0753 | K91: 277905.6943 | L91: =(_xlfn.GAMMA.INV(RAND(),'2. Kostnader'!$K$7,'2. Kostnader'!$L$7))*EXP(_xlfn.NORM.INV(RAND(),'1. Effektsamband'!$N$8,'1. Effektsamband'!$S$8)) -> 1059.693621 | M91: =(_xlfn.GAMMA.INV(RAND(),'2. Kostnader'!$L$21,'2. Kostnader'!$M$21))*EXP(_xlfn.NORM.INV(RAND(), '1. Effektsamband'!$N$8,'1. Effektsamband'!$S$8))*'2. Kostnader'!$E$15 -> 132792.0196 | N91: 133851.7132 | O91: =(_xlfn.GAMMA.INV(RAND(),'2. Kostnader'!$K$13,'2. Kostnader'!$L$13))*EXP(_xlfn.NORM.INV(RAND(),'1. Effektsamband'!$N$9,'1. Effektsamband'!$S$9)) -> 6615.831471 | P91: =(_xlfn.GAMMA.INV(RAND(),'2. Kostnader'!$L$28,'2. Kostnader'!$M$28))*EXP(_xlfn.NORM.INV(RAND(),'1. Effektsamband'!$N$9,'1. Effektsamband'!$S$9))*'2. Kostnader'!$E$15 -> 77733.76042 | Q91: 84349.59189 | R91: =(_xlfn.GAMMA.INV(RAND(),'2. Kostnader'!$K$14,'2. Kostnader'!$L$14))*EXP(_xlfn.NORM.INV(RAND(),'1. Effektsamband'!$N$9,'1. Effektsamband'!$S$9)) -> 37979.31199 | S91: =(_xlfn.GAMMA.INV(RAND(),'2. Kostnader'!$L$27,'2. Kostnader'!$M$27))*EXP(_xlfn.NORM.INV(RAND(),'1. Effektsamband'!$N$9,'1. Effektsamband'!$S$9))*'2. Kostnader'!$E$15 -> 423141.2288 | T91: 461120.5408 | U91: =(_xlfn.GAMMA.INV(RAND(),'2. Kostnader'!$K$11,'2. Kostnader'!$L$11))*EXP(_xlfn.NORM.INV(RAND(),'1. Effektsamband'!$N$13,'1. Effektsamband'!$S$13)) -> 49307.5489 | V91: 49307.5489 | W91: =(_xlfn.GAMMA.INV(RAND(),'2. Kostnader'!$K$10,'2. Kostnader'!$L$10)*EXP(_xlfn.NORM.INV(RAND(),'1. Effektsamband'!$N$10,'1. Effektsamband'!$S$10))) -> 26059.80384 | X91: =(_xlfn.GAMMA.INV(RAND(),'2. Kostnader'!$K$10,'2. Kostnader'!$L$10)*(EXP(_xlfn.NORM.INV(RAND(),'1. Effektsamband'!$N$11,'1. Effektsamband'!$S$11)))) -> 12636.44358 | Y91: =(_xlfn.GAMMA.INV(RAND(),'2. Kostnader'!$K$6,'2. Kostnader'!$L$6)*(EXP(_xlfn.NORM.INV(RAND(),'1. Effektsamband'!$N$4,'1. Effektsamband'!$S$4)))) -> 68722.28693
A92: 78 | B92: =EXP(_xlfn.NORM.INV(RAND(),'1. Effektsamband'!$N$3,'1. Effektsamband'!$S$3))*(_xlfn.GAMMA.INV(RAND(),'2. Kostnader'!$K$6,'2. Kostnader'!$L$6)*'1. Effektsamband'!$B$15) -> 3820566.675 | C92: =(_xlfn.GAMMA.INV(RAND(),'2. Kostnader'!$K$9,'2. Kostnader'!$L$9))*(EXP(_xlfn.NORM.INV(RAND(),'1. Effektsamband'!$N$5,'1. Effektsamband'!$S$5))) -> 7206.772996 | D92: =(_xlfn.GAMMA.INV(RAND(),'2. Kostnader'!$L$22,'2. Kostnader'!$M$22))*EXP(_xlfn.NORM.INV(RAND(),'1. Effektsamband'!$N$5,'1. Effektsamband'!$S$5))*'2. Kostnader'!$E$15 -> 3246.076528 | E92: 10452.84952 | F92: =(_xlfn.GAMMA.INV(RAND(),'2. Kostnader'!$K$12,'2. Kostnader'!$L$12))*EXP(_xlfn.NORM.INV(RAND(),'1. Effektsamband'!$N$6,'1. Effektsamband'!$S$6)) -> 73315.70391 | G92: =(_xlfn.GAMMA.INV(RAND(),'2. Kostnader'!$L$26,'2. Kostnader'!$M$26))*EXP(_xlfn.NORM.INV(RAND(),'1. Effektsamband'!$N$6,'1. Effektsamband'!$S$6))*'2. Kostnader'!$E$15 -> 319311.3942 | H92: 392627.0981 | I92: =(_xlfn.GAMMA.INV(RAND(),'2. Kostnader'!$K$8,'2. Kostnader'!$L$8))*EXP(_xlfn.NORM.INV(RAND(),'1. Effektsamband'!$N$7,'1. Effektsamband'!$S$7)) -> 52265.60484 | J92: =(_xlfn.GAMMA.INV(RAND(),'2. Kostnader'!$L$23,'2. Kostnader'!$M$23))*EXP(_xlfn.NORM.INV(RAND(),'1. Effektsamband'!$N$7,'1. Effektsamband'!$S$7))*'2. Kostnader'!$E$15 -> 274602.9477 | K92: 326868.5525 | L92: =(_xlfn.GAMMA.INV(RAND(),'2. Kostnader'!$K$7,'2. Kostnader'!$L$7))*EXP(_xlfn.NORM.INV(RAND(),'1. Effektsamband'!$N$8,'1. Effektsamband'!$S$8)) -> 1204.465116 | M92: =(_xlfn.GAMMA.INV(RAND(),'2. Kostnader'!$L$21,'2. Kostnader'!$M$21))*EXP(_xlfn.NORM.INV(RAND(), '1. Effektsamband'!$N$8,'1. Effektsamband'!$S$8))*'2. Kostnader'!$E$15 -> 147337.6265 | N92: 148542.0916 | O92: =(_xlfn.GAMMA.INV(RAND(),'2. Kostnader'!$K$13,'2. Kostnader'!$L$13))*EXP(_xlfn.NORM.INV(RAND(),'1. Effektsamband'!$N$9,'1. Effektsamband'!$S$9)) -> 5664.578239 | P92: =(_xlfn.GAMMA.INV(RAND(),'2. Kostnader'!$L$28,'2. Kostnader'!$M$28))*EXP(_xlfn.NORM.INV(RAND(),'1. Effektsamband'!$N$9,'1. Effektsamband'!$S$9))*'2. Kostnader'!$E$15 -> 68741.47798 | Q92: 74406.05622 | R92: =(_xlfn.GAMMA.INV(RAND(),'2. Kostnader'!$K$14,'2. Kostnader'!$L$14))*EXP(_xlfn.NORM.INV(RAND(),'1. Effektsamband'!$N$9,'1. Effektsamband'!$S$9)) -> 65120.65065 | S92: =(_xlfn.GAMMA.INV(RAND(),'2. Kostnader'!$L$27,'2. Kostnader'!$M$27))*EXP(_xlfn.NORM.INV(RAND(),'1. Effektsamband'!$N$9,'1. Effektsamband'!$S$9))*'2. Kostnader'!$E$15 -> 545333.3171 | T92: 610453.9677 | U92: =(_xlfn.GAMMA.INV(RAND(),'2. Kostnader'!$K$11,'2. Kostnader'!$L$11))*EXP(_xlfn.NORM.INV(RAND(),'1. Effektsamband'!$N$13,'1. Effektsamband'!$S$13)) -> 54151.11925 | V92: 54151.11925 | W92: =(_xlfn.GAMMA.INV(RAND(),'2. Kostnader'!$K$10,'2. Kostnader'!$L$10)*EXP(_xlfn.NORM.INV(RAND(),'1. Effektsamband'!$N$10,'1. Effektsamband'!$S$10))) -> 28409.29417 | X92: =(_xlfn.GAMMA.INV(RAND(),'2. Kostnader'!$K$10,'2. Kostnader'!$L$10)*(EXP(_xlfn.NORM.INV(RAND(),'1. Effektsamband'!$N$11,'1. Effektsamband'!$S$11)))) -> 6281.308357 | Y92: =(_xlfn.GAMMA.INV(RAND(),'2. Kostnader'!$K$6,'2. Kostnader'!$L$6)*(EXP(_xlfn.NORM.INV(RAND(),'1. Effektsamband'!$N$4,'1. Effektsamband'!$S$4)))) -> 10401.28013
A93: 79 | B93: =EXP(_xlfn.NORM.INV(RAND(),'1. Effektsamband'!$N$3,'1. Effektsamband'!$S$3))*(_xlfn.GAMMA.INV(RAND(),'2. Kostnader'!$K$6,'2. Kostnader'!$L$6)*'1. Effektsamband'!$B$15) -> 1774329.723 | C93: =(_xlfn.GAMMA.INV(RAND(),'2. Kostnader'!$K$9,'2. Kostnader'!$L$9))*(EXP(_xlfn.NORM.INV(RAND(),'1. Effektsamband'!$N$5,'1. Effektsamband'!$S$5))) -> 2643.900864 | D93: =(_xlfn.GAMMA.INV(RAND(),'2. Kostnader'!$L$22,'2. Kostnader'!$M$22))*EXP(_xlfn.NORM.INV(RAND(),'1. Effektsamband'!$N$5,'1. Effektsamband'!$S$5))*'2. Kostnader'!$E$15 -> 1626.280414 | E93: 4270.181278 | F93: =(_xlfn.GAMMA.INV(RAND(),'2. Kostnader'!$K$12,'2. Kostnader'!$L$12))*EXP(_xlfn.NORM.INV(RAND(),'1. Effektsamband'!$N$6,'1. Effektsamband'!$S$6)) -> 47817.74903 | G93: =(_xlfn.GAMMA.INV(RAND(),'2. Kostnader'!$L$26,'2. Kostnader'!$M$26))*EXP(_xlfn.NORM.INV(RAND(),'1. Effektsamband'!$N$6,'1. Effektsamband'!$S$6))*'2. Kostnader'!$E$15 -> 41010.28583 | H93: 88828.03486 | I93: =(_xlfn.GAMMA.INV(RAND(),'2. Kostnader'!$K$8,'2. Kostnader'!$L$8))*EXP(_xlfn.NORM.INV(RAND(),'1. Effektsamband'!$N$7,'1. Effektsamband'!$S$7)) -> 49417.74061 | J93: =(_xlfn.GAMMA.INV(RAND(),'2. Kostnader'!$L$23,'2. Kostnader'!$M$23))*EXP(_xlfn.NORM.INV(RAND(),'1. Effektsamband'!$N$7,'1. Effektsamband'!$S$7))*'2. Kostnader'!$E$15 -> 283184.0114 | K93: 332601.752 | L93: =(_xlfn.GAMMA.INV(RAND(),'2. Kostnader'!$K$7,'2. Kostnader'!$L$7))*EXP(_xlfn.NORM.INV(RAND(),'1. Effektsamband'!$N$8,'1. Effektsamband'!$S$8)) -> 1768.833005 | M93: =(_xlfn.GAMMA.INV(RAND(),'2. Kostnader'!$L$21,'2. Kostnader'!$M$21))*EXP(_xlfn.NORM.INV(RAND(), '1. Effektsamband'!$N$8,'1. Effektsamband'!$S$8))*'2. Kostnader'!$E$15 -> 130805.8643 | N93: 132574.6973 | O93: =(_xlfn.GAMMA.INV(RAND(),'2. Kostnader'!$K$13,'2. Kostnader'!$L$13))*EXP(_xlfn.NORM.INV(RAND(),'1. Effektsamband'!$N$9,'1. Effektsamband'!$S$9)) -> 5534.712591 | P93: =(_xlfn.GAMMA.INV(RAND(),'2. Kostnader'!$L$28,'2. Kostnader'!$M$28))*EXP(_xlfn.NORM.INV(RAND(),'1. Effektsamband'!$N$9,'1. Effektsamband'!$S$9))*'2. Kostnader'!$E$15 -> 156338.676 | Q93: 161873.3886 | R93: =(_xlfn.GAMMA.INV(RAND(),'2. Kostnader'!$K$14,'2. Kostnader'!$L$14))*EXP(_xlfn.NORM.INV(RAND(),'1. Effektsamband'!$N$9,'1. Effektsamband'!$S$9)) -> 25887.73454 | S93: =(_xlfn.GAMMA.INV(RAND(),'2. Kostnader'!$L$27,'2. Kostnader'!$M$27))*EXP(_xlfn.NORM.INV(RAND(),'1. Effektsamband'!$N$9,'1. Effektsamband'!$S$9))*'2. Kostnader'!$E$15 -> 1843776.453 | T93: 1869664.188 | U93: =(_xlfn.GAMMA.INV(RAND(),'2. Kostnader'!$K$11,'2. Kostnader'!$L$11))*EXP(_xlfn.NORM.INV(RAND(),'1. Effektsamband'!$N$13,'1. Effektsamband'!$S$13)) -> 78659.57854 | V93: 78659.57854 | W93: =(_xlfn.GAMMA.INV(RAND(),'2. Kostnader'!$K$10,'2. Kostnader'!$L$10)*EXP(_xlfn.NORM.INV(RAND(),'1. Effektsamband'!$N$10,'1. Effektsamband'!$S$10))) -> 12050.72963 | X93: =(_xlfn.GAMMA.INV(RAND(),'2. Kostnader'!$K$10,'2. Kostnader'!$L$10)*(EXP(_xlfn.NORM.INV(RAND(),'1. Effektsamband'!$N$11,'1. Effektsamband'!$S$11)))) -> 11257.20742 | Y93: =(_xlfn.GAMMA.INV(RAND(),'2. Kostnader'!$K$6,'2. Kostnader'!$L$6)*(EXP(_xlfn.NORM.INV(RAND(),'1. Effektsamband'!$N$4,'1. Effektsamband'!$S$4)))) -> 38693.87754
A94: 80 | B94: =EXP(_xlfn.NORM.INV(RAND(),'1. Effektsamband'!$N$3,'1. Effektsamband'!$S$3))*(_xlfn.GAMMA.INV(RAND(),'2. Kostnader'!$K$6,'2. Kostnader'!$L$6)*'1. Effektsamband'!$B$15) -> 3760299.637 | C94: =(_xlfn.GAMMA.INV(RAND(),'2. Kostnader'!$K$9,'2. Kostnader'!$L$9))*(EXP(_xlfn.NORM.INV(RAND(),'1. Effektsamband'!$N$5,'1. Effektsamband'!$S$5))) -> 1291.613089 | D94: =(_xlfn.GAMMA.INV(RAND(),'2. Kostnader'!$L$22,'2. Kostnader'!$M$22))*EXP(_xlfn.NORM.INV(RAND(),'1. Effektsamband'!$N$5,'1. Effektsamband'!$S$5))*'2. Kostnader'!$E$15 -> 4180.195556 | E94: 5471.808645 | F94: =(_xlfn.GAMMA.INV(RAND(),'2. Kostnader'!$K$12,'2. Kostnader'!$L$12))*EXP(_xlfn.NORM.INV(RAND(),'1. Effektsamband'!$N$6,'1. Effektsamband'!$S$6)) -> 414914.7509 | G94: =(_xlfn.GAMMA.INV(RAND(),'2. Kostnader'!$L$26,'2. Kostnader'!$M$26))*EXP(_xlfn.NORM.INV(RAND(),'1. Effektsamband'!$N$6,'1. Effektsamband'!$S$6))*'2. Kostnader'!$E$15 -> 789607.0843 | H94: 1204521.835 | I94: =(_xlfn.GAMMA.INV(RAND(),'2. Kostnader'!$K$8,'2. Kostnader'!$L$8))*EXP(_xlfn.NORM.INV(RAND(),'1. Effektsamband'!$N$7,'1. Effektsamband'!$S$7)) -> 39986.88089 | J94: =(_xlfn.GAMMA.INV(RAND(),'2. Kostnader'!$L$23,'2. Kostnader'!$M$23))*EXP(_xlfn.NORM.INV(RAND(),'1. Effektsamband'!$N$7,'1. Effektsamband'!$S$7))*'2. Kostnader'!$E$15 -> 277750.1115 | K94: 317736.9923 | L94: =(_xlfn.GAMMA.INV(RAND(),'2. Kostnader'!$K$7,'2. Kostnader'!$L$7))*EXP(_xlfn.NORM.INV(RAND(),'1. Effektsamband'!$N$8,'1. Effektsamband'!$S$8)) -> 1393.310391 | M94: =(_xlfn.GAMMA.INV(RAND(),'2. Kostnader'!$L$21,'2. Kostnader'!$M$21))*EXP(_xlfn.NORM.INV(RAND(), '1. Effektsamband'!$N$8,'1. Effektsamband'!$S$8))*'2. Kostnader'!$E$15 -> 163783.3961 | N94: 165176.7065 | O94: =(_xlfn.GAMMA.INV(RAND(),'2. Kostnader'!$K$13,'2. Kostnader'!$L$13))*EXP(_xlfn.NORM.INV(RAND(),'1. Effektsamband'!$N$9,'1. Effektsamband'!$S$9)) -> 3573.272362 | P94: =(_xlfn.GAMMA.INV(RAND(),'2. Kostnader'!$L$28,'2. Kostnader'!$M$28))*EXP(_xlfn.NORM.INV(RAND(),'1. Effektsamband'!$N$9,'1. Effektsamband'!$S$9))*'2. Kostnader'!$E$15 -> 93535.85761 | Q94: 97109.12997 | R94: =(_xlfn.GAMMA.INV(RAND(),'2. Kostnader'!$K$14,'2. Kostnader'!$L$14))*EXP(_xlfn.NORM.INV(RAND(),'1. Effektsamband'!$N$9,'1. Effektsamband'!$S$9)) -> 40574.01416 | S94: =(_xlfn.GAMMA.INV(RAND(),'2. Kostnader'!$L$27,'2. Kostnader'!$M$27))*EXP(_xlfn.NORM.INV(RAND(),'1. Effektsamband'!$N$9,'1. Effektsamband'!$S$9))*'2. Kostnader'!$E$15 -> 435292.9477 | T94: 475866.9619 | U94: =(_xlfn.GAMMA.INV(RAND(),'2. Kostnader'!$K$11,'2. Kostnader'!$L$11))*EXP(_xlfn.NORM.INV(RAND(),'1. Effektsamband'!$N$13,'1. Effektsamband'!$S$13)) -> 64911.66289 | V94: 64911.66289 | W94: =(_xlfn.GAMMA.INV(RAND(),'2. Kostnader'!$K$10,'2. Kostnader'!$L$10)*EXP(_xlfn.NORM.INV(RAND(),'1. Effektsamband'!$N$10,'1. Effektsamband'!$S$10))) -> 11789.53185 | X94: =(_xlfn.GAMMA.INV(RAND(),'2. Kostnader'!$K$10,'2. Kostnader'!$L$10)*(EXP(_xlfn.NORM.INV(RAND(),'1. Effektsamband'!$N$11,'1. Effektsamband'!$S$11)))) -> 7076.242182 | Y94: =(_xlfn.GAMMA.INV(RAND(),'2. Kostnader'!$K$6,'2. Kostnader'!$L$6)*(EXP(_xlfn.NORM.INV(RAND(),'1. Effektsamband'!$N$4,'1. Effektsamband'!$S$4)))) -> 9180.062292
A95: 81 | B95: =EXP(_xlfn.NORM.INV(RAND(),'1. Effektsamband'!$N$3,'1. Effektsamband'!$S$3))*(_xlfn.GAMMA.INV(RAND(),'2. Kostnader'!$K$6,'2. Kostnader'!$L$6)*'1. Effektsamband'!$B$15) -> 4308181.271 | C95: =(_xlfn.GAMMA.INV(RAND(),'2. Kostnader'!$K$9,'2. Kostnader'!$L$9))*(EXP(_xlfn.NORM.INV(RAND(),'1. Effektsamband'!$N$5,'1. Effektsamband'!$S$5))) -> 2786.955548 | D95: =(_xlfn.GAMMA.INV(RAND(),'2. Kostnader'!$L$22,'2. Kostnader'!$M$22))*EXP(_xlfn.NORM.INV(RAND(),'1. Effektsamband'!$N$5,'1. Effektsamband'!$S$5))*'2. Kostnader'!$E$15 -> 6191.619307 | E95: 8978.574856 | F95: =(_xlfn.GAMMA.INV(RAND(),'2. Kostnader'!$K$12,'2. Kostnader'!$L$12))*EXP(_xlfn.NORM.INV(RAND(),'1. Effektsamband'!$N$6,'1. Effektsamband'!$S$6)) -> 303917.8666 | G95: =(_xlfn.GAMMA.INV(RAND(),'2. Kostnader'!$L$26,'2. Kostnader'!$M$26))*EXP(_xlfn.NORM.INV(RAND(),'1. Effektsamband'!$N$6,'1. Effektsamband'!$S$6))*'2. Kostnader'!$E$15 -> 232501.4697 | H95: 536419.3364 | I95: =(_xlfn.GAMMA.INV(RAND(),'2. Kostnader'!$K$8,'2. Kostnader'!$L$8))*EXP(_xlfn.NORM.INV(RAND(),'1. Effektsamband'!$N$7,'1. Effektsamband'!$S$7)) -> 25965.07492 | J95: =(_xlfn.GAMMA.INV(RAND(),'2. Kostnader'!$L$23,'2. Kostnader'!$M$23))*EXP(_xlfn.NORM.INV(RAND(),'1. Effektsamband'!$N$7,'1. Effektsamband'!$S$7))*'2. Kostnader'!$E$15 -> 259287.0218 | K95: 285252.0967 | L95: =(_xlfn.GAMMA.INV(RAND(),'2. Kostnader'!$K$7,'2. Kostnader'!$L$7))*EXP(_xlfn.NORM.INV(RAND(),'1. Effektsamband'!$N$8,'1. Effektsamband'!$S$8)) -> 1647.580943 | M95: =(_xlfn.GAMMA.INV(RAND(),'2. Kostnader'!$L$21,'2. Kostnader'!$M$21))*EXP(_xlfn.NORM.INV(RAND(), '1. Effektsamband'!$N$8,'1. Effektsamband'!$S$8))*'2. Kostnader'!$E$15 -> 121282.9961 | N95: 122930.577 | O95: =(_xlfn.GAMMA.INV(RAND(),'2. Kostnader'!$K$13,'2. Kostnader'!$L$13))*EXP(_xlfn.NORM.INV(RAND(),'1. Effektsamband'!$N$9,'1. Effektsamband'!$S$9)) -> 3336.261857 | P95: =(_xlfn.GAMMA.INV(RAND(),'2. Kostnader'!$L$28,'2. Kostnader'!$M$28))*EXP(_xlfn.NORM.INV(RAND(),'1. Effektsamband'!$N$9,'1. Effektsamband'!$S$9))*'2. Kostnader'!$E$15 -> 107582.6974 | Q95: 110918.9593 | R95: =(_xlfn.GAMMA.INV(RAND(),'2. Kostnader'!$K$14,'2. Kostnader'!$L$14))*EXP(_xlfn.NORM.INV(RAND(),'1. Effektsamband'!$N$9,'1. Effektsamband'!$S$9)) -> 60629.72594 | S95: =(_xlfn.GAMMA.INV(RAND(),'2. Kostnader'!$L$27,'2. Kostnader'!$M$27))*EXP(_xlfn.NORM.INV(RAND(),'1. Effektsamband'!$N$9,'1. Effektsamband'!$S$9))*'2. Kostnader'!$E$15 -> 245946.3252 | T95: 306576.0511 | U95: =(_xlfn.GAMMA.INV(RAND(),'2. Kostnader'!$K$11,'2. Kostnader'!$L$11))*EXP(_xlfn.NORM.INV(RAND(),'1. Effektsamband'!$N$13,'1. Effektsamband'!$S$13)) -> 95310.85464 | V95: 95310.85464 | W95: =(_xlfn.GAMMA.INV(RAND(),'2. Kostnader'!$K$10,'2. Kostnader'!$L$10)*EXP(_xlfn.NORM.INV(RAND(),'1. Effektsamband'!$N$10,'1. Effektsamband'!$S$10))) -> 25484.67254 | X95: =(_xlfn.GAMMA.INV(RAND(),'2. Kostnader'!$K$10,'2. Kostnader'!$L$10)*(EXP(_xlfn.NORM.INV(RAND(),'1. Effektsamband'!$N$11,'1. Effektsamband'!$S$11)))) -> 5907.461294 | Y95: =(_xlfn.GAMMA.INV(RAND(),'2. Kostnader'!$K$6,'2. Kostnader'!$L$6)*(EXP(_xlfn.NORM.INV(RAND(),'1. Effektsamband'!$N$4,'1. Effektsamband'!$S$4)))) -> 18440.82994
A96: 82 | B96: =EXP(_xlfn.NORM.INV(RAND(),'1. Effektsamband'!$N$3,'1. Effektsamband'!$S$3))*(_xlfn.GAMMA.INV(RAND(),'2. Kostnader'!$K$6,'2. Kostnader'!$L$6)*'1. Effektsamband'!$B$15) -> 1776560.105 | C96: =(_xlfn.GAMMA.INV(RAND(),'2. Kostnader'!$K$9,'2. Kostnader'!$L$9))*(EXP(_xlfn.NORM.INV(RAND(),'1. Effektsamband'!$N$5,'1. Effektsamband'!$S$5))) -> 4010.697434 | D96: =(_xlfn.GAMMA.INV(RAND(),'2. Kostnader'!$L$22,'2. Kostnader'!$M$22))*EXP(_xlfn.NORM.INV(RAND(),'1. Effektsamband'!$N$5,'1. Effektsamband'!$S$5))*'2. Kostnader'!$E$15 -> 2844.168072 | E96: 6854.865506 | F96: =(_xlfn.GAMMA.INV(RAND(),'2. Kostnader'!$K$12,'2. Kostnader'!$L$12))*EXP(_xlfn.NORM.INV(RAND(),'1. Effektsamband'!$N$6,'1. Effektsamband'!$S$6)) -> 218357.0787 | G96: =(_xlfn.GAMMA.INV(RAND(),'2. Kostnader'!$L$26,'2. Kostnader'!$M$26))*EXP(_xlfn.NORM.INV(RAND(),'1. Effektsamband'!$N$6,'1. Effektsamband'!$S$6))*'2. Kostnader'!$E$15 -> 823060.6352 | H96: 1041417.714 | I96: =(_xlfn.GAMMA.INV(RAND(),'2. Kostnader'!$K$8,'2. Kostnader'!$L$8))*EXP(_xlfn.NORM.INV(RAND(),'1. Effektsamband'!$N$7,'1. Effektsamband'!$S$7)) -> 32611.1985 | J96: =(_xlfn.GAMMA.INV(RAND(),'2. Kostnader'!$L$23,'2. Kostnader'!$M$23))*EXP(_xlfn.NORM.INV(RAND(),'1. Effektsamband'!$N$7,'1. Effektsamband'!$S$7))*'2. Kostnader'!$E$15 -> 179609.4054 | K96: 212220.6038 | L96: =(_xlfn.GAMMA.INV(RAND(),'2. Kostnader'!$K$7,'2. Kostnader'!$L$7))*EXP(_xlfn.NORM.INV(RAND(),'1. Effektsamband'!$N$8,'1. Effektsamband'!$S$8)) -> 1772.816744 | M96: =(_xlfn.GAMMA.INV(RAND(),'2. Kostnader'!$L$21,'2. Kostnader'!$M$21))*EXP(_xlfn.NORM.INV(RAND(), '1. Effektsamband'!$N$8,'1. Effektsamband'!$S$8))*'2. Kostnader'!$E$15 -> 110887.2163 | N96: 112660.0331 | O96: =(_xlfn.GAMMA.INV(RAND(),'2. Kostnader'!$K$13,'2. Kostnader'!$L$13))*EXP(_xlfn.NORM.INV(RAND(),'1. Effektsamband'!$N$9,'1. Effektsamband'!$S$9)) -> 2181.359004 | P96: =(_xlfn.GAMMA.INV(RAND(),'2. Kostnader'!$L$28,'2. Kostnader'!$M$28))*EXP(_xlfn.NORM.INV(RAND(),'1. Effektsamband'!$N$9,'1. Effektsamband'!$S$9))*'2. Kostnader'!$E$15 -> 93399.55557 | Q96: 95580.91457 | R96: =(_xlfn.GAMMA.INV(RAND(),'2. Kostnader'!$K$14,'2. Kostnader'!$L$14))*EXP(_xlfn.NORM.INV(RAND(),'1. Effektsamband'!$N$9,'1. Effektsamband'!$S$9)) -> 39579.60526 | S96: =(_xlfn.GAMMA.INV(RAND(),'2. Kostnader'!$L$27,'2. Kostnader'!$M$27))*EXP(_xlfn.NORM.INV(RAND(),'1. Effektsamband'!$N$9,'1. Effektsamband'!$S$9))*'2. Kostnader'!$E$15 -> 763375.5421 | T96: 802955.1473 | U96: =(_xlfn.GAMMA.INV(RAND(),'2. Kostnader'!$K$11,'2. Kostnader'!$L$11))*EXP(_xlfn.NORM.INV(RAND(),'1. Effektsamband'!$N$13,'1. Effektsamband'!$S$13)) -> 70721.85613 | V96: 70721.85613 | W96: =(_xlfn.GAMMA.INV(RAND(),'2. Kostnader'!$K$10,'2. Kostnader'!$L$10)*EXP(_xlfn.NORM.INV(RAND(),'1. Effektsamband'!$N$10,'1. Effektsamband'!$S$10))) -> 17766.58362 | X96: =(_xlfn.GAMMA.INV(RAND(),'2. Kostnader'!$K$10,'2. Kostnader'!$L$10)*(EXP(_xlfn.NORM.INV(RAND(),'1. Effektsamband'!$N$11,'1. Effektsamband'!$S$11)))) -> 13684.03677 | Y96: =(_xlfn.GAMMA.INV(RAND(),'2. Kostnader'!$K$6,'2. Kostnader'!$L$6)*(EXP(_xlfn.NORM.INV(RAND(),'1. Effektsamband'!$N$4,'1. Effektsamband'!$S$4)))) -> 9325.594608
A97: 83 | B97: =EXP(_xlfn.NORM.INV(RAND(),'1. Effektsamband'!$N$3,'1. Effektsamband'!$S$3))*(_xlfn.GAMMA.INV(RAND(),'2. Kostnader'!$K$6,'2. Kostnader'!$L$6)*'1. Effektsamband'!$B$15) -> 3696139.053 | C97: =(_xlfn.GAMMA.INV(RAND(),'2. Kostnader'!$K$9,'2. Kostnader'!$L$9))*(EXP(_xlfn.NORM.INV(RAND(),'1. Effektsamband'!$N$5,'1. Effektsamband'!$S$5))) -> 731.2977244 | D97: =(_xlfn.GAMMA.INV(RAND(),'2. Kostnader'!$L$22,'2. Kostnader'!$M$22))*EXP(_xlfn.NORM.INV(RAND(),'1. Effektsamband'!$N$5,'1. Effektsamband'!$S$5))*'2. Kostnader'!$E$15 -> 2094.640061 | E97: 2825.937786 | F97: =(_xlfn.GAMMA.INV(RAND(),'2. Kostnader'!$K$12,'2. Kostnader'!$L$12))*EXP(_xlfn.NORM.INV(RAND(),'1. Effektsamband'!$N$6,'1. Effektsamband'!$S$6)) -> 757161.6497 | G97: =(_xlfn.GAMMA.INV(RAND(),'2. Kostnader'!$L$26,'2. Kostnader'!$M$26))*EXP(_xlfn.NORM.INV(RAND(),'1. Effektsamband'!$N$6,'1. Effektsamband'!$S$6))*'2. Kostnader'!$E$15 -> 41638.19557 | H97: 798799.8453 | I97: =(_xlfn.GAMMA.INV(RAND(),'2. Kostnader'!$K$8,'2. Kostnader'!$L$8))*EXP(_xlfn.NORM.INV(RAND(),'1. Effektsamband'!$N$7,'1. Effektsamband'!$S$7)) -> 28594.59809 | J97: =(_xlfn.GAMMA.INV(RAND(),'2. Kostnader'!$L$23,'2. Kostnader'!$M$23))*EXP(_xlfn.NORM.INV(RAND(),'1. Effektsamband'!$N$7,'1. Effektsamband'!$S$7))*'2. Kostnader'!$E$15 -> 185512.1302 | K97: 214106.7283 | L97: =(_xlfn.GAMMA.INV(RAND(),'2. Kostnader'!$K$7,'2. Kostnader'!$L$7))*EXP(_xlfn.NORM.INV(RAND(),'1. Effektsamband'!$N$8,'1. Effektsamband'!$S$8)) -> 919.4692885 | M97: =(_xlfn.GAMMA.INV(RAND(),'2. Kostnader'!$L$21,'2. Kostnader'!$M$21))*EXP(_xlfn.NORM.INV(RAND(), '1. Effektsamband'!$N$8,'1. Effektsamband'!$S$8))*'2. Kostnader'!$E$15 -> 125971.8185 | N97: 126891.2878 | O97: =(_xlfn.GAMMA.INV(RAND(),'2. Kostnader'!$K$13,'2. Kostnader'!$L$13))*EXP(_xlfn.NORM.INV(RAND(),'1. Effektsamband'!$N$9,'1. Effektsamband'!$S$9)) -> 4853.903225 | P97: =(_xlfn.GAMMA.INV(RAND(),'2. Kostnader'!$L$28,'2. Kostnader'!$M$28))*EXP(_xlfn.NORM.INV(RAND(),'1. Effektsamband'!$N$9,'1. Effektsamband'!$S$9))*'2. Kostnader'!$E$15 -> 118656.5861 | Q97: 123510.4894 | R97: =(_xlfn.GAMMA.INV(RAND(),'2. Kostnader'!$K$14,'2. Kostnader'!$L$14))*EXP(_xlfn.NORM.INV(RAND(),'1. Effektsamband'!$N$9,'1. Effektsamband'!$S$9)) -> 42578.3672 | S97: =(_xlfn.GAMMA.INV(RAND(),'2. Kostnader'!$L$27,'2. Kostnader'!$M$27))*EXP(_xlfn.NORM.INV(RAND(),'1. Effektsamband'!$N$9,'1. Effektsamband'!$S$9))*'2. Kostnader'!$E$15 -> 373800.4654 | T97: 416378.8326 | U97: =(_xlfn.GAMMA.INV(RAND(),'2. Kostnader'!$K$11,'2. Kostnader'!$L$11))*EXP(_xlfn.NORM.INV(RAND(),'1. Effektsamband'!$N$13,'1. Effektsamband'!$S$13)) -> 85334.91709 | V97: 85334.91709 | W97: =(_xlfn.GAMMA.INV(RAND(),'2. Kostnader'!$K$10,'2. Kostnader'!$L$10)*EXP(_xlfn.NORM.INV(RAND(),'1. Effektsamband'!$N$10,'1. Effektsamband'!$S$10))) -> 30190.49287 | X97: =(_xlfn.GAMMA.INV(RAND(),'2. Kostnader'!$K$10,'2. Kostnader'!$L$10)*(EXP(_xlfn.NORM.INV(RAND(),'1. Effektsamband'!$N$11,'1. Effektsamband'!$S$11)))) -> 4544.037251 | Y97: =(_xlfn.GAMMA.INV(RAND(),'2. Kostnader'!$K$6,'2. Kostnader'!$L$6)*(EXP(_xlfn.NORM.INV(RAND(),'1. Effektsamband'!$N$4,'1. Effektsamband'!$S$4)))) -> 23151.50498
A98: 84 | B98: =EXP(_xlfn.NORM.INV(RAND(),'1. Effektsamband'!$N$3,'1. Effektsamband'!$S$3))*(_xlfn.GAMMA.INV(RAND(),'2. Kostnader'!$K$6,'2. Kostnader'!$L$6)*'1. Effektsamband'!$B$15) -> 5241615.48 | C98: =(_xlfn.GAMMA.INV(RAND(),'2. Kostnader'!$K$9,'2. Kostnader'!$L$9))*(EXP(_xlfn.NORM.INV(RAND(),'1. Effektsamband'!$N$5,'1. Effektsamband'!$S$5))) -> 5332.593947 | D98: =(_xlfn.GAMMA.INV(RAND(),'2. Kostnader'!$L$22,'2. Kostnader'!$M$22))*EXP(_xlfn.NORM.INV(RAND(),'1. Effektsamband'!$N$5,'1. Effektsamband'!$S$5))*'2. Kostnader'!$E$15 -> 2341.34726 | E98: 7673.941207 | F98: =(_xlfn.GAMMA.INV(RAND(),'2. Kostnader'!$K$12,'2. Kostnader'!$L$12))*EXP(_xlfn.NORM.INV(RAND(),'1. Effektsamband'!$N$6,'1. Effektsamband'!$S$6)) -> 98968.02733 | G98: =(_xlfn.GAMMA.INV(RAND(),'2. Kostnader'!$L$26,'2. Kostnader'!$M$26))*EXP(_xlfn.NORM.INV(RAND(),'1. Effektsamband'!$N$6,'1. Effektsamband'!$S$6))*'2. Kostnader'!$E$15 -> 200905.657 | H98: 299873.6844 | I98: =(_xlfn.GAMMA.INV(RAND(),'2. Kostnader'!$K$8,'2. Kostnader'!$L$8))*EXP(_xlfn.NORM.INV(RAND(),'1. Effektsamband'!$N$7,'1. Effektsamband'!$S$7)) -> 51468.28554 | J98: =(_xlfn.GAMMA.INV(RAND(),'2. Kostnader'!$L$23,'2. Kostnader'!$M$23))*EXP(_xlfn.NORM.INV(RAND(),'1. Effektsamband'!$N$7,'1. Effektsamband'!$S$7))*'2. Kostnader'!$E$15 -> 286740.4365 | K98: 338208.7221 | L98: =(_xlfn.GAMMA.INV(RAND(),'2. Kostnader'!$K$7,'2. Kostnader'!$L$7))*EXP(_xlfn.NORM.INV(RAND(),'1. Effektsamband'!$N$8,'1. Effektsamband'!$S$8)) -> 1397.944573 | M98: =(_xlfn.GAMMA.INV(RAND(),'2. Kostnader'!$L$21,'2. Kostnader'!$M$21))*EXP(_xlfn.NORM.INV(RAND(), '1. Effektsamband'!$N$8,'1. Effektsamband'!$S$8))*'2. Kostnader'!$E$15 -> 110480.1855 | N98: 111878.13 | O98: =(_xlfn.GAMMA.INV(RAND(),'2. Kostnader'!$K$13,'2. Kostnader'!$L$13))*EXP(_xlfn.NORM.INV(RAND(),'1. Effektsamband'!$N$9,'1. Effektsamband'!$S$9)) -> 5197.218187 | P98: =(_xlfn.GAMMA.INV(RAND(),'2. Kostnader'!$L$28,'2. Kostnader'!$M$28))*EXP(_xlfn.NORM.INV(RAND(),'1. Effektsamband'!$N$9,'1. Effektsamband'!$S$9))*'2. Kostnader'!$E$15 -> 73696.17161 | Q98: 78893.3898 | R98: =(_xlfn.GAMMA.INV(RAND(),'2. Kostnader'!$K$14,'2. Kostnader'!$L$14))*EXP(_xlfn.NORM.INV(RAND(),'1. Effektsamband'!$N$9,'1. Effektsamband'!$S$9)) -> 52572.86852 | S98: =(_xlfn.GAMMA.INV(RAND(),'2. Kostnader'!$L$27,'2. Kostnader'!$M$27))*EXP(_xlfn.NORM.INV(RAND(),'1. Effektsamband'!$N$9,'1. Effektsamband'!$S$9))*'2. Kostnader'!$E$15 -> 589835.8902 | T98: 642408.7587 | U98: =(_xlfn.GAMMA.INV(RAND(),'2. Kostnader'!$K$11,'2. Kostnader'!$L$11))*EXP(_xlfn.NORM.INV(RAND(),'1. Effektsamband'!$N$13,'1. Effektsamband'!$S$13)) -> 85932.65845 | V98: 85932.65845 | W98: =(_xlfn.GAMMA.INV(RAND(),'2. Kostnader'!$K$10,'2. Kostnader'!$L$10)*EXP(_xlfn.NORM.INV(RAND(),'1. Effektsamband'!$N$10,'1. Effektsamband'!$S$10))) -> 13212.71409 | X98: =(_xlfn.GAMMA.INV(RAND(),'2. Kostnader'!$K$10,'2. Kostnader'!$L$10)*(EXP(_xlfn.NORM.INV(RAND(),'1. Effektsamband'!$N$11,'1. Effektsamband'!$S$11)))) -> 8653.849831 | Y98: =(_xlfn.GAMMA.INV(RAND(),'2. Kostnader'!$K$6,'2. Kostnader'!$L$6)*(EXP(_xlfn.NORM.INV(RAND(),'1. Effektsamband'!$N$4,'1. Effektsamband'!$S$4)))) -> 14614.22923
A99: 85 | B99: =EXP(_xlfn.NORM.INV(RAND(),'1. Effektsamband'!$N$3,'1. Effektsamband'!$S$3))*(_xlfn.GAMMA.INV(RAND(),'2. Kostnader'!$K$6,'2. Kostnader'!$L$6)*'1. Effektsamband'!$B$15) -> 4096723.657 | C99: =(_xlfn.GAMMA.INV(RAND(),'2. Kostnader'!$K$9,'2. Kostnader'!$L$9))*(EXP(_xlfn.NORM.INV(RAND(),'1. Effektsamband'!$N$5,'1. Effektsamband'!$S$5))) -> 4014.916161 | D99: =(_xlfn.GAMMA.INV(RAND(),'2. Kostnader'!$L$22,'2. Kostnader'!$M$22))*EXP(_xlfn.NORM.INV(RAND(),'1. Effektsamband'!$N$5,'1. Effektsamband'!$S$5))*'2. Kostnader'!$E$15 -> 2480.761184 | E99: 6495.677345 | F99: =(_xlfn.GAMMA.INV(RAND(),'2. Kostnader'!$K$12,'2. Kostnader'!$L$12))*EXP(_xlfn.NORM.INV(RAND(),'1. Effektsamband'!$N$6,'1. Effektsamband'!$S$6)) -> 4110742.109 | G99: =(_xlfn.GAMMA.INV(RAND(),'2. Kostnader'!$L$26,'2. Kostnader'!$M$26))*EXP(_xlfn.NORM.INV(RAND(),'1. Effektsamband'!$N$6,'1. Effektsamband'!$S$6))*'2. Kostnader'!$E$15 -> 813605.3236 | H99: 4924347.432 | I99: =(_xlfn.GAMMA.INV(RAND(),'2. Kostnader'!$K$8,'2. Kostnader'!$L$8))*EXP(_xlfn.NORM.INV(RAND(),'1. Effektsamband'!$N$7,'1. Effektsamband'!$S$7)) -> 64349.24089 | J99: =(_xlfn.GAMMA.INV(RAND(),'2. Kostnader'!$L$23,'2. Kostnader'!$M$23))*EXP(_xlfn.NORM.INV(RAND(),'1. Effektsamband'!$N$7,'1. Effektsamband'!$S$7))*'2. Kostnader'!$E$15 -> 501552.6697 | K99: 565901.9106 | L99: =(_xlfn.GAMMA.INV(RAND(),'2. Kostnader'!$K$7,'2. Kostnader'!$L$7))*EXP(_xlfn.NORM.INV(RAND(),'1. Effektsamband'!$N$8,'1. Effektsamband'!$S$8)) -> 1502.824274 | M99: =(_xlfn.GAMMA.INV(RAND(),'2. Kostnader'!$L$21,'2. Kostnader'!$M$21))*EXP(_xlfn.NORM.INV(RAND(), '1. Effektsamband'!$N$8,'1. Effektsamband'!$S$8))*'2. Kostnader'!$E$15 -> 142541.0446 | N99: 144043.8689 | O99: =(_xlfn.GAMMA.INV(RAND(),'2. Kostnader'!$K$13,'2. Kostnader'!$L$13))*EXP(_xlfn.NORM.INV(RAND(),'1. Effektsamband'!$N$9,'1. Effektsamband'!$S$9)) -> 4117.990794 | P99: =(_xlfn.GAMMA.INV(RAND(),'2. Kostnader'!$L$28,'2. Kostnader'!$M$28))*EXP(_xlfn.NORM.INV(RAND(),'1. Effektsamband'!$N$9,'1. Effektsamband'!$S$9))*'2. Kostnader'!$E$15 -> 152671.5075 | Q99: 156789.4983 | R99: =(_xlfn.GAMMA.INV(RAND(),'2. Kostnader'!$K$14,'2. Kostnader'!$L$14))*EXP(_xlfn.NORM.INV(RAND(),'1. Effektsamband'!$N$9,'1. Effektsamband'!$S$9)) -> 61996.89802 | S99: =(_xlfn.GAMMA.INV(RAND(),'2. Kostnader'!$L$27,'2. Kostnader'!$M$27))*EXP(_xlfn.NORM.INV(RAND(),'1. Effektsamband'!$N$9,'1. Effektsamband'!$S$9))*'2. Kostnader'!$E$15 -> 726173.1308 | T99: 788170.0288 | U99: =(_xlfn.GAMMA.INV(RAND(),'2. Kostnader'!$K$11,'2. Kostnader'!$L$11))*EXP(_xlfn.NORM.INV(RAND(),'1. Effektsamband'!$N$13,'1. Effektsamband'!$S$13)) -> 41068.95605 | V99: 41068.95605 | W99: =(_xlfn.GAMMA.INV(RAND(),'2. Kostnader'!$K$10,'2. Kostnader'!$L$10)*EXP(_xlfn.NORM.INV(RAND(),'1. Effektsamband'!$N$10,'1. Effektsamband'!$S$10))) -> 18298.27273 | X99: =(_xlfn.GAMMA.INV(RAND(),'2. Kostnader'!$K$10,'2. Kostnader'!$L$10)*(EXP(_xlfn.NORM.INV(RAND(),'1. Effektsamband'!$N$11,'1. Effektsamband'!$S$11)))) -> 8409.965043 | Y99: =(_xlfn.GAMMA.INV(RAND(),'2. Kostnader'!$K$6,'2. Kostnader'!$L$6)*(EXP(_xlfn.NORM.INV(RAND(),'1. Effektsamband'!$N$4,'1. Effektsamband'!$S$4)))) -> 53111.64587
A100: 86 | B100: =EXP(_xlfn.NORM.INV(RAND(),'1. Effektsamband'!$N$3,'1. Effektsamband'!$S$3))*(_xlfn.GAMMA.INV(RAND(),'2. Kostnader'!$K$6,'2. Kostnader'!$L$6)*'1. Effektsamband'!$B$15) -> 2458793.102 | C100: =(_xlfn.GAMMA.INV(RAND(),'2. Kostnader'!$K$9,'2. Kostnader'!$L$9))*(EXP(_xlfn.NORM.INV(RAND(),'1. Effektsamband'!$N$5,'1. Effektsamband'!$S$5))) -> 7599.033268 | D100: =(_xlfn.GAMMA.INV(RAND(),'2. Kostnader'!$L$22,'2. Kostnader'!$M$22))*EXP(_xlfn.NORM.INV(RAND(),'1. Effektsamband'!$N$5,'1. Effektsamband'!$S$5))*'2. Kostnader'!$E$15 -> 6894.093854 | E100: 14493.12712 | F100: =(_xlfn.GAMMA.INV(RAND(),'2. Kostnader'!$K$12,'2. Kostnader'!$L$12))*EXP(_xlfn.NORM.INV(RAND(),'1. Effektsamband'!$N$6,'1. Effektsamband'!$S$6)) -> 1188903.694 | G100: =(_xlfn.GAMMA.INV(RAND(),'2. Kostnader'!$L$26,'2. Kostnader'!$M$26))*EXP(_xlfn.NORM.INV(RAND(),'1. Effektsamband'!$N$6,'1. Effektsamband'!$S$6))*'2. Kostnader'!$E$15 -> 489434.1176 | H100: 1678337.811 | I100: =(_xlfn.GAMMA.INV(RAND(),'2. Kostnader'!$K$8,'2. Kostnader'!$L$8))*EXP(_xlfn.NORM.INV(RAND(),'1. Effektsamband'!$N$7,'1. Effektsamband'!$S$7)) -> 49557.52199 | J100: =(_xlfn.GAMMA.INV(RAND(),'2. Kostnader'!$L$23,'2. Kostnader'!$M$23))*EXP(_xlfn.NORM.INV(RAND(),'1. Effektsamband'!$N$7,'1. Effektsamband'!$S$7))*'2. Kostnader'!$E$15 -> 264527.4776 | K100: 314084.9996 | L100: =(_xlfn.GAMMA.INV(RAND(),'2. Kostnader'!$K$7,'2. Kostnader'!$L$7))*EXP(_xlfn.NORM.INV(RAND(),'1. Effektsamband'!$N$8,'1. Effektsamband'!$S$8)) -> 1322.42723 | M100: =(_xlfn.GAMMA.INV(RAND(),'2. Kostnader'!$L$21,'2. Kostnader'!$M$21))*EXP(_xlfn.NORM.INV(RAND(), '1. Effektsamband'!$N$8,'1. Effektsamband'!$S$8))*'2. Kostnader'!$E$15 -> 102678.4688 | N100: 104000.896 | O100: =(_xlfn.GAMMA.INV(RAND(),'2. Kostnader'!$K$13,'2. Kostnader'!$L$13))*EXP(_xlfn.NORM.INV(RAND(),'1. Effektsamband'!$N$9,'1. Effektsamband'!$S$9)) -> 2447.771148 | P100: =(_xlfn.GAMMA.INV(RAND(),'2. Kostnader'!$L$28,'2. Kostnader'!$M$28))*EXP(_xlfn.NORM.INV(RAND(),'1. Effektsamband'!$N$9,'1. Effektsamband'!$S$9))*'2. Kostnader'!$E$15 -> 79885.03542 | Q100: 82332.80657 | R100: =(_xlfn.GAMMA.INV(RAND(),'2. Kostnader'!$K$14,'2. Kostnader'!$L$14))*EXP(_xlfn.NORM.INV(RAND(),'1. Effektsamband'!$N$9,'1. Effektsamband'!$S$9)) -> 33883.50549 | S100: =(_xlfn.GAMMA.INV(RAND(),'2. Kostnader'!$L$27,'2. Kostnader'!$M$27))*EXP(_xlfn.NORM.INV(RAND(),'1. Effektsamband'!$N$9,'1. Effektsamband'!$S$9))*'2. Kostnader'!$E$15 -> 949345.1882 | T100: 983228.6937 | U100: =(_xlfn.GAMMA.INV(RAND(),'2. Kostnader'!$K$11,'2. Kostnader'!$L$11))*EXP(_xlfn.NORM.INV(RAND(),'1. Effektsamband'!$N$13,'1. Effektsamband'!$S$13)) -> 44093.65337 | V100: 44093.65337 | W100: =(_xlfn.GAMMA.INV(RAND(),'2. Kostnader'!$K$10,'2. Kostnader'!$L$10)*EXP(_xlfn.NORM.INV(RAND(),'1. Effektsamband'!$N$10,'1. Effektsamband'!$S$10))) -> 25077.27395 | X100: =(_xlfn.GAMMA.INV(RAND(),'2. Kostnader'!$K$10,'2. Kostnader'!$L$10)*(EXP(_xlfn.NORM.INV(RAND(),'1. Effektsamband'!$N$11,'1. Effektsamband'!$S$11)))) -> 7518.465438 | Y100: =(_xlfn.GAMMA.INV(RAND(),'2. Kostnader'!$K$6,'2. Kostnader'!$L$6)*(EXP(_xlfn.NORM.INV(RAND(),'1. Effektsamband'!$N$4,'1. Effektsamband'!$S$4)))) -> 92238.55787
A101: 87 | B101: =EXP(_xlfn.NORM.INV(RAND(),'1. Effektsamband'!$N$3,'1. Effektsamband'!$S$3))*(_xlfn.GAMMA.INV(RAND(),'2. Kostnader'!$K$6,'2. Kostnader'!$L$6)*'1. Effektsamband'!$B$15) -> 1595974.803 | C101: =(_xlfn.GAMMA.INV(RAND(),'2. Kostnader'!$K$9,'2. Kostnader'!$L$9))*(EXP(_xlfn.NORM.INV(RAND(),'1. Effektsamband'!$N$5,'1. Effektsamband'!$S$5))) -> 2334.149533 | D101: =(_xlfn.GAMMA.INV(RAND(),'2. Kostnader'!$L$22,'2. Kostnader'!$M$22))*EXP(_xlfn.NORM.INV(RAND(),'1. Effektsamband'!$N$5,'1. Effektsamband'!$S$5))*'2. Kostnader'!$E$15 -> 4332.090237 | E101: 6666.23977 | F101: =(_xlfn.GAMMA.INV(RAND(),'2. Kostnader'!$K$12,'2. Kostnader'!$L$12))*EXP(_xlfn.NORM.INV(RAND(),'1. Effektsamband'!$N$6,'1. Effektsamband'!$S$6)) -> 47719.66215 | G101: =(_xlfn.GAMMA.INV(RAND(),'2. Kostnader'!$L$26,'2. Kostnader'!$M$26))*EXP(_xlfn.NORM.INV(RAND(),'1. Effektsamband'!$N$6,'1. Effektsamband'!$S$6))*'2. Kostnader'!$E$15 -> 607066.8541 | H101: 654786.5162 | I101: =(_xlfn.GAMMA.INV(RAND(),'2. Kostnader'!$K$8,'2. Kostnader'!$L$8))*EXP(_xlfn.NORM.INV(RAND(),'1. Effektsamband'!$N$7,'1. Effektsamband'!$S$7)) -> 27894.26327 | J101: =(_xlfn.GAMMA.INV(RAND(),'2. Kostnader'!$L$23,'2. Kostnader'!$M$23))*EXP(_xlfn.NORM.INV(RAND(),'1. Effektsamband'!$N$7,'1. Effektsamband'!$S$7))*'2. Kostnader'!$E$15 -> 119397.5964 | K101: 147291.8597 | L101: =(_xlfn.GAMMA.INV(RAND(),'2. Kostnader'!$K$7,'2. Kostnader'!$L$7))*EXP(_xlfn.NORM.INV(RAND(),'1. Effektsamband'!$N$8,'1. Effektsamband'!$S$8)) -> 1377.865277 | M101: =(_xlfn.GAMMA.INV(RAND(),'2. Kostnader'!$L$21,'2. Kostnader'!$M$21))*EXP(_xlfn.NORM.INV(RAND(), '1. Effektsamband'!$N$8,'1. Effektsamband'!$S$8))*'2. Kostnader'!$E$15 -> 108923.4837 | N101: 110301.349 | O101: =(_xlfn.GAMMA.INV(RAND(),'2. Kostnader'!$K$13,'2. Kostnader'!$L$13))*EXP(_xlfn.NORM.INV(RAND(),'1. Effektsamband'!$N$9,'1. Effektsamband'!$S$9)) -> 4463.496694 | P101: =(_xlfn.GAMMA.INV(RAND(),'2. Kostnader'!$L$28,'2. Kostnader'!$M$28))*EXP(_xlfn.NORM.INV(RAND(),'1. Effektsamband'!$N$9,'1. Effektsamband'!$S$9))*'2. Kostnader'!$E$15 -> 105022.8619 | Q101: 109486.3586 | R101: =(_xlfn.GAMMA.INV(RAND(),'2. Kostnader'!$K$14,'2. Kostnader'!$L$14))*EXP(_xlfn.NORM.INV(RAND(),'1. Effektsamband'!$N$9,'1. Effektsamband'!$S$9)) -> 64544.3071 | S101: =(_xlfn.GAMMA.INV(RAND(),'2. Kostnader'!$L$27,'2. Kostnader'!$M$27))*EXP(_xlfn.NORM.INV(RAND(),'1. Effektsamband'!$N$9,'1. Effektsamband'!$S$9))*'2. Kostnader'!$E$15 -> 1067961.872 | T101: 1132506.18 | U101: =(_xlfn.GAMMA.INV(RAND(),'2. Kostnader'!$K$11,'2. Kostnader'!$L$11))*EXP(_xlfn.NORM.INV(RAND(),'1. Effektsamband'!$N$13,'1. Effektsamband'!$S$13)) -> 81497.6155 | V101: 81497.6155 | W101: =(_xlfn.GAMMA.INV(RAND(),'2. Kostnader'!$K$10,'2. Kostnader'!$L$10)*EXP(_xlfn.NORM.INV(RAND(),'1. Effektsamband'!$N$10,'1. Effektsamband'!$S$10))) -> 57828.50322 | X101: =(_xlfn.GAMMA.INV(RAND(),'2. Kostnader'!$K$10,'2. Kostnader'!$L$10)*(EXP(_xlfn.NORM.INV(RAND(),'1. Effektsamband'!$N$11,'1. Effektsamband'!$S$11)))) -> 5840.256639 | Y101: =(_xlfn.GAMMA.INV(RAND(),'2. Kostnader'!$K$6,'2. Kostnader'!$L$6)*(EXP(_xlfn.NORM.INV(RAND(),'1. Effektsamband'!$N$4,'1. Effektsamband'!$S$4)))) -> 40063.65484
A102: 88 | B102: =EXP(_xlfn.NORM.INV(RAND(),'1. Effektsamband'!$N$3,'1. Effektsamband'!$S$3))*(_xlfn.GAMMA.INV(RAND(),'2. Kostnader'!$K$6,'2. Kostnader'!$L$6)*'1. Effektsamband'!$B$15) -> 3374808.948 | C102: =(_xlfn.GAMMA.INV(RAND(),'2. Kostnader'!$K$9,'2. Kostnader'!$L$9))*(EXP(_xlfn.NORM.INV(RAND(),'1. Effektsamband'!$N$5,'1. Effektsamband'!$S$5))) -> 11441.41242 | D102: =(_xlfn.GAMMA.INV(RAND(),'2. Kostnader'!$L$22,'2. Kostnader'!$M$22))*EXP(_xlfn.NORM.INV(RAND(),'1. Effektsamband'!$N$5,'1. Effektsamband'!$S$5))*'2. Kostnader'!$E$15 -> 1756.424431 | E102: 13197.83685 | F102: =(_xlfn.GAMMA.INV(RAND(),'2. Kostnader'!$K$12,'2. Kostnader'!$L$12))*EXP(_xlfn.NORM.INV(RAND(),'1. Effektsamband'!$N$6,'1. Effektsamband'!$S$6)) -> 565404.0563 | G102: =(_xlfn.GAMMA.INV(RAND(),'2. Kostnader'!$L$26,'2. Kostnader'!$M$26))*EXP(_xlfn.NORM.INV(RAND(),'1. Effektsamband'!$N$6,'1. Effektsamband'!$S$6))*'2. Kostnader'!$E$15 -> 252301.5898 | H102: 817705.6461 | I102: =(_xlfn.GAMMA.INV(RAND(),'2. Kostnader'!$K$8,'2. Kostnader'!$L$8))*EXP(_xlfn.NORM.INV(RAND(),'1. Effektsamband'!$N$7,'1. Effektsamband'!$S$7)) -> 32403.75683 | J102: =(_xlfn.GAMMA.INV(RAND(),'2. Kostnader'!$L$23,'2. Kostnader'!$M$23))*EXP(_xlfn.NORM.INV(RAND(),'1. Effektsamband'!$N$7,'1. Effektsamband'!$S$7))*'2. Kostnader'!$E$15 -> 356359.3469 | K102: 388763.1038 | L102: =(_xlfn.GAMMA.INV(RAND(),'2. Kostnader'!$K$7,'2. Kostnader'!$L$7))*EXP(_xlfn.NORM.INV(RAND(),'1. Effektsamband'!$N$8,'1. Effektsamband'!$S$8)) -> 1371.780472 | M102: =(_xlfn.GAMMA.INV(RAND(),'2. Kostnader'!$L$21,'2. Kostnader'!$M$21))*EXP(_xlfn.NORM.INV(RAND(), '1. Effektsamband'!$N$8,'1. Effektsamband'!$S$8))*'2. Kostnader'!$E$15 -> 108535.7977 | N102: 109907.5781 | O102: =(_xlfn.GAMMA.INV(RAND(),'2. Kostnader'!$K$13,'2. Kostnader'!$L$13))*EXP(_xlfn.NORM.INV(RAND(),'1. Effektsamband'!$N$9,'1. Effektsamband'!$S$9)) -> 3086.46766 | P102: =(_xlfn.GAMMA.INV(RAND(),'2. Kostnader'!$L$28,'2. Kostnader'!$M$28))*EXP(_xlfn.NORM.INV(RAND(),'1. Effektsamband'!$N$9,'1. Effektsamband'!$S$9))*'2. Kostnader'!$E$15 -> 76420.06745 | Q102: 79506.53511 | R102: =(_xlfn.GAMMA.INV(RAND(),'2. Kostnader'!$K$14,'2. Kostnader'!$L$14))*EXP(_xlfn.NORM.INV(RAND(),'1. Effektsamband'!$N$9,'1. Effektsamband'!$S$9)) -> 41395.45559 | S102: =(_xlfn.GAMMA.INV(RAND(),'2. Kostnader'!$L$27,'2. Kostnader'!$M$27))*EXP(_xlfn.NORM.INV(RAND(),'1. Effektsamband'!$N$9,'1. Effektsamband'!$S$9))*'2. Kostnader'!$E$15 -> 655407.2758 | T102: 696802.7314 | U102: =(_xlfn.GAMMA.INV(RAND(),'2. Kostnader'!$K$11,'2. Kostnader'!$L$11))*EXP(_xlfn.NORM.INV(RAND(),'1. Effektsamband'!$N$13,'1. Effektsamband'!$S$13)) -> 72972.9629 | V102: 72972.9629 | W102: =(_xlfn.GAMMA.INV(RAND(),'2. Kostnader'!$K$10,'2. Kostnader'!$L$10)*EXP(_xlfn.NORM.INV(RAND(),'1. Effektsamband'!$N$10,'1. Effektsamband'!$S$10))) -> 39144.67339 | X102: =(_xlfn.GAMMA.INV(RAND(),'2. Kostnader'!$K$10,'2. Kostnader'!$L$10)*(EXP(_xlfn.NORM.INV(RAND(),'1. Effektsamband'!$N$11,'1. Effektsamband'!$S$11)))) -> 7634.672602 | Y102: =(_xlfn.GAMMA.INV(RAND(),'2. Kostnader'!$K$6,'2. Kostnader'!$L$6)*(EXP(_xlfn.NORM.INV(RAND(),'1. Effektsamband'!$N$4,'1. Effektsamband'!$S$4)))) -> 33296.14747
A103: 89 | B103: =EXP(_xlfn.NORM.INV(RAND(),'1. Effektsamband'!$N$3,'1. Effektsamband'!$S$3))*(_xlfn.GAMMA.INV(RAND(),'2. Kostnader'!$K$6,'2. Kostnader'!$L$6)*'1. Effektsamband'!$B$15) -> 4390220.082 | C103: =(_xlfn.GAMMA.INV(RAND(),'2. Kostnader'!$K$9,'2. Kostnader'!$L$9))*(EXP(_xlfn.NORM.INV(RAND(),'1. Effektsamband'!$N$5,'1. Effektsamband'!$S$5))) -> 6382.309829 | D103: =(_xlfn.GAMMA.INV(RAND(),'2. Kostnader'!$L$22,'2. Kostnader'!$M$22))*EXP(_xlfn.NORM.INV(RAND(),'1. Effektsamband'!$N$5,'1. Effektsamband'!$S$5))*'2. Kostnader'!$E$15 -> 4763.124839 | E103: 11145.43467 | F103: =(_xlfn.GAMMA.INV(RAND(),'2. Kostnader'!$K$12,'2. Kostnader'!$L$12))*EXP(_xlfn.NORM.INV(RAND(),'1. Effektsamband'!$N$6,'1. Effektsamband'!$S$6)) -> 686613.6801 | G103: =(_xlfn.GAMMA.INV(RAND(),'2. Kostnader'!$L$26,'2. Kostnader'!$M$26))*EXP(_xlfn.NORM.INV(RAND(),'1. Effektsamband'!$N$6,'1. Effektsamband'!$S$6))*'2. Kostnader'!$E$15 -> 157724.0496 | H103: 844337.7297 | I103: =(_xlfn.GAMMA.INV(RAND(),'2. Kostnader'!$K$8,'2. Kostnader'!$L$8))*EXP(_xlfn.NORM.INV(RAND(),'1. Effektsamband'!$N$7,'1. Effektsamband'!$S$7)) -> 46541.16691 | J103: =(_xlfn.GAMMA.INV(RAND(),'2. Kostnader'!$L$23,'2. Kostnader'!$M$23))*EXP(_xlfn.NORM.INV(RAND(),'1. Effektsamband'!$N$7,'1. Effektsamband'!$S$7))*'2. Kostnader'!$E$15 -> 523970.6519 | K103: 570511.8188 | L103: =(_xlfn.GAMMA.INV(RAND(),'2. Kostnader'!$K$7,'2. Kostnader'!$L$7))*EXP(_xlfn.NORM.INV(RAND(),'1. Effektsamband'!$N$8,'1. Effektsamband'!$S$8)) -> 729.1207279 | M103: =(_xlfn.GAMMA.INV(RAND(),'2. Kostnader'!$L$21,'2. Kostnader'!$M$21))*EXP(_xlfn.NORM.INV(RAND(), '1. Effektsamband'!$N$8,'1. Effektsamband'!$S$8))*'2. Kostnader'!$E$15 -> 112428.1473 | N103: 113157.2681 | O103: =(_xlfn.GAMMA.INV(RAND(),'2. Kostnader'!$K$13,'2. Kostnader'!$L$13))*EXP(_xlfn.NORM.INV(RAND(),'1. Effektsamband'!$N$9,'1. Effektsamband'!$S$9)) -> 3456.328958 | P103: =(_xlfn.GAMMA.INV(RAND(),'2. Kostnader'!$L$28,'2. Kostnader'!$M$28))*EXP(_xlfn.NORM.INV(RAND(),'1. Effektsamband'!$N$9,'1. Effektsamband'!$S$9))*'2. Kostnader'!$E$15 -> 85840.96969 | Q103: 89297.29864 | R103: =(_xlfn.GAMMA.INV(RAND(),'2. Kostnader'!$K$14,'2. Kostnader'!$L$14))*EXP(_xlfn.NORM.INV(RAND(),'1. Effektsamband'!$N$9,'1. Effektsamband'!$S$9)) -> 51657.15923 | S103: =(_xlfn.GAMMA.INV(RAND(),'2. Kostnader'!$L$27,'2. Kostnader'!$M$27))*EXP(_xlfn.NORM.INV(RAND(),'1. Effektsamband'!$N$9,'1. Effektsamband'!$S$9))*'2. Kostnader'!$E$15 -> 820704.8519 | T103: 872362.0111 | U103: =(_xlfn.GAMMA.INV(RAND(),'2. Kostnader'!$K$11,'2. Kostnader'!$L$11))*EXP(_xlfn.NORM.INV(RAND(),'1. Effektsamband'!$N$13,'1. Effektsamband'!$S$13)) -> 46989.90765 | V103: 46989.90765 | W103: =(_xlfn.GAMMA.INV(RAND(),'2. Kostnader'!$K$10,'2. Kostnader'!$L$10)*EXP(_xlfn.NORM.INV(RAND(),'1. Effektsamband'!$N$10,'1. Effektsamband'!$S$10))) -> 16702.68966 | X103: =(_xlfn.GAMMA.INV(RAND(),'2. Kostnader'!$K$10,'2. Kostnader'!$L$10)*(EXP(_xlfn.NORM.INV(RAND(),'1. Effektsamband'!$N$11,'1. Effektsamband'!$S$11)))) -> 8311.769184 | Y103: =(_xlfn.GAMMA.INV(RAND(),'2. Kostnader'!$K$6,'2. Kostnader'!$L$6)*(EXP(_xlfn.NORM.INV(RAND(),'1. Effektsamband'!$N$4,'1. Effektsamband'!$S$4)))) -> 48386.04551
A104: 90 | B104: =EXP(_xlfn.NORM.INV(RAND(),'1. Effektsamband'!$N$3,'1. Effektsamband'!$S$3))*(_xlfn.GAMMA.INV(RAND(),'2. Kostnader'!$K$6,'2. Kostnader'!$L$6)*'1. Effektsamband'!$B$15) -> 3657428.452 | C104: =(_xlfn.GAMMA.INV(RAND(),'2. Kostnader'!$K$9,'2. Kostnader'!$L$9))*(EXP(_xlfn.NORM.INV(RAND(),'1. Effektsamband'!$N$5,'1. Effektsamband'!$S$5))) -> 9746.277633 | D104: =(_xlfn.GAMMA.INV(RAND(),'2. Kostnader'!$L$22,'2. Kostnader'!$M$22))*EXP(_xlfn.NORM.INV(RAND(),'1. Effektsamband'!$N$5,'1. Effektsamband'!$S$5))*'2. Kostnader'!$E$15 -> 3229.098584 | E104: 12975.37622 | F104: =(_xlfn.GAMMA.INV(RAND(),'2. Kostnader'!$K$12,'2. Kostnader'!$L$12))*EXP(_xlfn.NORM.INV(RAND(),'1. Effektsamband'!$N$6,'1. Effektsamband'!$S$6)) -> 87443.94797 | G104: =(_xlfn.GAMMA.INV(RAND(),'2. Kostnader'!$L$26,'2. Kostnader'!$M$26))*EXP(_xlfn.NORM.INV(RAND(),'1. Effektsamband'!$N$6,'1. Effektsamband'!$S$6))*'2. Kostnader'!$E$15 -> 2913158.023 | H104: 3000601.971 | I104: =(_xlfn.GAMMA.INV(RAND(),'2. Kostnader'!$K$8,'2. Kostnader'!$L$8))*EXP(_xlfn.NORM.INV(RAND(),'1. Effektsamband'!$N$7,'1. Effektsamband'!$S$7)) -> 26307.381 | J104: =(_xlfn.GAMMA.INV(RAND(),'2. Kostnader'!$L$23,'2. Kostnader'!$M$23))*EXP(_xlfn.NORM.INV(RAND(),'1. Effektsamband'!$N$7,'1. Effektsamband'!$S$7))*'2. Kostnader'!$E$15 -> 232930.6448 | K104: 259238.0258 | L104: =(_xlfn.GAMMA.INV(RAND(),'2. Kostnader'!$K$7,'2. Kostnader'!$L$7))*EXP(_xlfn.NORM.INV(RAND(),'1. Effektsamband'!$N$8,'1. Effektsamband'!$S$8)) -> 2039.792761 | M104: =(_xlfn.GAMMA.INV(RAND(),'2. Kostnader'!$L$21,'2. Kostnader'!$M$21))*EXP(_xlfn.NORM.INV(RAND(), '1. Effektsamband'!$N$8,'1. Effektsamband'!$S$8))*'2. Kostnader'!$E$15 -> 114177.2101 | N104: 116217.0029 | O104: =(_xlfn.GAMMA.INV(RAND(),'2. Kostnader'!$K$13,'2. Kostnader'!$L$13))*EXP(_xlfn.NORM.INV(RAND(),'1. Effektsamband'!$N$9,'1. Effektsamband'!$S$9)) -> 3008.52503 | P104: =(_xlfn.GAMMA.INV(RAND(),'2. Kostnader'!$L$28,'2. Kostnader'!$M$28))*EXP(_xlfn.NORM.INV(RAND(),'1. Effektsamband'!$N$9,'1. Effektsamband'!$S$9))*'2. Kostnader'!$E$15 -> 133072.4535 | Q104: 136080.9786 | R104: =(_xlfn.GAMMA.INV(RAND(),'2. Kostnader'!$K$14,'2. Kostnader'!$L$14))*EXP(_xlfn.NORM.INV(RAND(),'1. Effektsamband'!$N$9,'1. Effektsamband'!$S$9)) -> 40471.08235 | S104: =(_xlfn.GAMMA.INV(RAND(),'2. Kostnader'!$L$27,'2. Kostnader'!$M$27))*EXP(_xlfn.NORM.INV(RAND(),'1. Effektsamband'!$N$9,'1. Effektsamband'!$S$9))*'2. Kostnader'!$E$15 -> 830663.8344 | T104: 871134.9167 | U104: =(_xlfn.GAMMA.INV(RAND(),'2. Kostnader'!$K$11,'2. Kostnader'!$L$11))*EXP(_xlfn.NORM.INV(RAND(),'1. Effektsamband'!$N$13,'1. Effektsamband'!$S$13)) -> 56275.21571 | V104: 56275.21571 | W104: =(_xlfn.GAMMA.INV(RAND(),'2. Kostnader'!$K$10,'2. Kostnader'!$L$10)*EXP(_xlfn.NORM.INV(RAND(),'1. Effektsamband'!$N$10,'1. Effektsamband'!$S$10))) -> 18941.22249 | X104: =(_xlfn.GAMMA.INV(RAND(),'2. Kostnader'!$K$10,'2. Kostnader'!$L$10)*(EXP(_xlfn.NORM.INV(RAND(),'1. Effektsamband'!$N$11,'1. Effektsamband'!$S$11)))) -> 7560.423837 | Y104: =(_xlfn.GAMMA.INV(RAND(),'2. Kostnader'!$K$6,'2. Kostnader'!$L$6)*(EXP(_xlfn.NORM.INV(RAND(),'1. Effektsamband'!$N$4,'1. Effektsamband'!$S$4)))) -> 82390.16089
